Workbook

Sheet Contacts
A1: 2017 ACCOUNTING SPREADSHEET ECCV, ACWWA, and United
B3: =CONCATENATE("Case No. 12CW073, 11CW280, 10CW312, 10CW313, 11CW285, 09CW283, 10CW306, 84CW090, 88CW264(B), 2002CW105-A, 02CW403, 02CW404 and 03CW442 - ",'Control Sheet'!D6," SWSP Accounting Spreadsheet") -> Case No. 12CW073, 11CW280, 10CW312, 10CW313, 11CW285, 09CW283, 10CW306, 84CW090, 88CW264(B), 2002CW105-A, 02CW403, 02CW404 and 03CW442 - 2019 SWSP Accounting Spreadsheet
B8: East Cherry Creek Valley Water and Sanitation District
B9: Dave Kaunisto
B10: phone: (303) 693-3800
B12: Arapahoe County Water and Wastewater Authority
B13: Steve Witter
B14: phone: (303) 790-4830
B16: United Water and Sanitation District
B17: Andrew Damiano
B18: phone: (303) 785-3581
B20: DiNatale Water Consultants
B21: Rebecca Evans
B22: phone: (303) 709-7044
B24: Farmer's Reservoir and Irrigation Company
B25: Scott Edgar
B26: phone: (303) 659-7373

Sheet Control Sheet
A1: Accounting Control Variables
A2: Input data in yellow highlighted cells only. If yellow cells contain a formula, at the end of the accounting year, copy and paste the data for the year that just ended as values and remove the yellow shading.
A3: Sheets that require input have purple tabs.
A4: Accounting is administrated from 12 am to 12 am and the most senior call of the day will be used for the entire day.
A5: Year NHF Accounting Started | D5: 1995
A6: Current Accounting Year | D6: 2019
A7: Year Case 02CW404 and 03CW442 Accounting Started | D7: 2011
A8: Capacities | G8: Month | H8: No. of Days
A9: Max Rate of Diversion at United No. 1 | D9: 100 | E9: cfs | G9: Apr | H9: 30
A10: Max Rate of Diversion at United No. 2 | D10: 24 | E10: cfs | G10: Aug | H10: 31
A11: Max Rate of Diversion at United No. 3 | D11: 100 | E11: cfs | G11: Dec | H11: 31
A12: Div Capacity at United No. 4 | D12: 11.58 | E12: cfs | G12: Feb | H12: =IF(MOD(D6+1,4)=0,29,28) -> 29
A13: Milliken Reservoir Intake (Jay Thomas Ditch) | D13: 100 | E13: cfs | G13: Jan | H13: 31
A14: Beebe Pipeline Capacity | D14: 50 | E14: cfs | G14: Jul | H14: 31
A15: Burlington/FRICO HID share of Beebe Pipeline Capacity | D15: =0.5*D14 -> 25 | E15: cfs | G15: Jun | H15: 30
G16: Mar | H16: 31
A17: United Reservoir #3 Capacity (non-jurisdictional) | D17: 3180 | E17: AF | G17: May | H17: 31
A18: United Reservoir #3 Capacity (jurisdictional) | D18: 4611 | E18: AF | G18: Nov | H18: 30
G19: Oct | H19: 31
G20: Sep | H20: 30
A21: Div Capacity at Platte Valley Canal | D21: 350 | E21: cfs
A22: Div Capacity at Burlington Headgate | D22: 900 | E22: cfs
A23: Metro Pumping Plant | D23: 105 | E23: cfs
A25: Barr Lake Canal Characteristics
A27: Canal | B27: Length (ft) | C27: Canal Width (ft) | D27: Surface Area (ac) | E27: Capacity (cfs)
A28: Speer I | B28: 96440 | C28: 20 | D28: =(C28*B28)/43560 -> 44.27915519 | E28: 150
A29: West Burlington | B29: 48050 | C29: 10 | D29: 11.03076217 | E29: 20
A30: East Burlington | B30: 47870 | C30: 10 | D30: 10.98943985 | E30: 45
A31: Neres | B31: 89000 | C31: 20 | D31: 40.86317723 | E31: 120
... 37 more rows

Sheet ECCV Daily Replacement Summary
A1: =CONCATENATE('Control Sheet'!D6, " Accounting - Case 02CW404, 03CW442, and 10CW306") -> 2019 Accounting - Case 02CW404, 03CW442, and 10CW306 | ACW1: why is this by itself?
A2: Year | B2: ='Control Sheet'!D6 -> 2019 | BI2: REPLACEMENT SUMMARY FOR SOUTH PLATTE RIVER REACH 5 (BELOW BIJOU CANAL) | CR2: REPLACEMENT SUMMARY FOR SOUTH PLATTE RIVER REACH 4 (EMPIRE CANAL TO BIJOU CANAL) | EE2: REPLACEMENT SUMMARY FOR CACHE LA POUDRE RIVER (CONNECTED TO REACH 3) | FQ2: REPLACEMENT SUMMARY FOR SOUTH PLATTE RIVER REACH 3 (LOWER LATHAM CANAL TO EMPIRE CANAL) | HD2: REPLACEMENT SUMMARY FOR SOUTH PLATTE RIVER REACH 2 (WESTERN MUTUAL DITCH TO LOWER LATHAM CANAL) | LD2: REPLACEMENT SUMMARY FOR SOUTH PLATTE RIVER REACH 1 (ABOVE WESTERN MUTUAL DITCH) | MI2: REPLACEMENT SUMMARY FOR BEEBE DRAW ABOVE MILTON | NX2: REPLACEMENT SUMMARY FOR BEEBE DRAW BELOW MILTON | OL2: REPLACEMENT SUMMARY FOR BOX ELDER CREEK
PN3: SOUTH PLATTE RIVER EXCHANGES | AFR3: Beebe Draw Exchanges | AIN3: Cache La Poudre Exchanges | ALX3: Used to Check Releases on Reservoir Sheets
C4: District 2 Call Information | K4: District 1 & 64 Call Information | S4: District 3 Call Information | AA4: 70 Ranch Diversions and Well Pumping | AO4: 2003 One Time Diversion Right | AQ4: Replacement Summary For Riverside | AV4: Replacement Summary for South Platte River Reach 5 | CR4: Replacement Summary for South Platte River Reach 4 | EE4: Replacement Summary for Cache La Poudre River | FQ4: Replacement Summary for South Platte River Reach 3 | HD4: Replacement Summary for South Platte River Reach 2 | LD4: Replacement Summary for South Platte River Reach 1 | MI4: Replacement Summary for Beebe Draw Above Milton | NX4: Replacement Summary for Beebe Draw below Milton | OL4: Replacement Summary for Box Elder Ck | OS4: OVERALL REPLACEMENT SUMMARY | PI4: Minimum Rates of Flow | PN4: MAXIMUM EXCHANGE RATE FROM BEAVER CREEK=12.2 CFS | PR4: Maximum Exchange Rate From Downstream End Point of SPR 5 = 86.15 cfs | QG4: MAXIMUM EXCHANGE RATE FROM FT. MORGAN CANAL=12.2 CFS | QT4: Maximum Exchange Rate From Ft. Morgan Canal Quantification Point = 3.51 cfs | RE4: MAXIMUM EXCHANGE RATE FROM WELDON VALLEY CANAL= 14.2 CFS | RQ4: Maximum Exchange Rate From Weldon Valley Tail Aug Station = 11.79 cfs | SG4: Maximum Exchange Rate From Weldon Valley Central/ACWWA Aug Station = 10.29 cfs | SW4: MAXIMUM EXCHANGE RATE FROM 70 RANCH EXCHANGE QUANTIFICATION POINT= 11.0 CFS | TI4: Maximum Exchange Rate From 70 Ranch Recharge Project Quantification Point = 11 cfs | TT4: Maximum Exchange Rate From Downstream End Point of SPR 4 = 70.84 cfs | UJ4: Maximum Exchange Rate From Hardin Seep Discharge = 11 cfs | UT4: Maximum Exchange Rate From 70 Ranch Reservoir Outlet 1 = 100 cfs | VI4: Maximum Exchange Rate From Illinois Aug Station = 3.3 cfs | VR4: Maximum Exchange Rate From Downstream End Point of SPR 3 = 59.84 cfs | WF4: Maximum Exchange Rate From Confluence of Crow Creek and South Platte = 12.54 cfs | WT4: Maximum Exchange Rate From Ogilvy Ditch Bifurcation Aug Station = 3.6 cfs | XC4: Maximum Exchange Rate From Confluence of Lone Tree Creek and South Platte = 12.54 cfs | XQ4: MAXIMUM EXCHANGE RATE FROM SOUTH PLATTE AND CACHE LA POUDRE CONFLUENCE=5.2 CFS | YE4: Maximum Exchange Rate From Confluence of Cache la Poudre and South Platte = 12.54 cfs | YR4: MAXIMUM EXCHANGE RATE FROM WESTERN MUTUAL DITCH=5.5 CFS | ZB4: Maximum Exchange Rate From Western Mutual Ditch Aug Station (Downstream) = 9.65 cfs | ZN4: Maximum Exchange Rate From Downstream End of SPR 2 = 47.3 cfs | ZZ4: Maximum Exchange Rate From Strohauer Pond Accretions = 12.06 cfs | AAL4: Maximum Exchange Rate From FIDCO Pipeline = 2.41 cfs | AAX4: Maximum Exchange Rate From Haren Recharge Accretion Location = 9 cfs | ABE4: Maximum Exchange Rate From Drouhard Recharge Accretion Location = 10 cfs | ABQ4: Maximum Exchange Rate From Brownwood Aug Station = 9.65 cfs | ACC4: MAXIMUM EXCHANGE RATE FROM MILLIKEN RESERVOIR OUTLET STRUCTURE=260.0 CFS | ACL4: Maximum Exchange Rate From Milliken North Diversion = 260 cfs | ACQ4: Maximum Exchange Rate From Milliken Pump 1 = 260 cfs | ACV4: MAXIMUM EXCHANGE RATE FROM SOUTH PLATTE AND ST VRAIN CONFLUENCE=50 CFS | ACZ4: Maximum Exchange Rate From St. Vrain Confluence = 10 cfs | ADI4: Maximum Exchange Rate From Milliken Pump 2 = 260 cfs | ADP4: Maximum Exchange Rate From Milliken Reservoir South Diversion = 260 cfs | ADW4: Maximum Exchange Rate From Western Mutual Ditch Aug Station = 9.65 cfs | AEC4: Maximum Exchange Rate From Downstream End Point of SPR 1 = 18.65 cfs | AEI4: MAXIMUM EXCHANGE RATE FROM ST VRAIN PIPELINE OUTLET EXCHANGE QUANTIFICATION POINT= 50 CFS | AEN4: Maximum Exchange Rate From St. Vrain Pipeline = 30 cfs | AEQ4: MAXIMUM EXCHANGE RATE FROM FARMERS INDEPENDENT DITCH=1.5 CFS | AEZ4: Maximum Exchange Rate From FIDCO Upper Aug Station = 2.41 cfs | AFE4: Maximum Exchange Rate From Fulton Lower Aug Station = 1.19 cfs | AFH4: Maximum Exchange Rate From Fulton Ft. Lupton Aug Station = 1.19 cfs | AFK4: Maximum Exchange Rate From Fulton Upper Aug Station = 1.19 cfs | AFN4: Maximum Exchange Rate From Binder Pipeline and Fulton Section 2 and 3 Aug Station = 16.24 cfs | AFR4: Maximum Exchange Rate From Highlands Reservoir Diversion No. 4 = 50 cfs | AFW4: Maximum Exchange from Highlands Reservoir Outfall = 50 cfs | AGD4: Maximum Exchange From Highlands Reservoir Diversion No. 1 = 50 cfs | AGK4: Maximum Exchange From Highlands Reservoir Diversion No. 2 = 50 cfs | AGS4: Maximum Exchange From Highlands Reservoir Diversion No. 3 = 50 cfs | AHB4: Maximum Exchange From Highway 52 Quantification Point = 84 cfs | AHK4: Maximum Exchange From East Neres Quantification Point = 84 cfs | AHT4: Maximum Exchange From Milton Quantification Point = 84 cfs | AIC4: Maximum Exchange Rate From Milton Lake = 84 cfs | AIN4: Maximum Exchange from Cache la Poudre/SPR Confluence = 20 cfs | AIR4: Maximum Exchange from Sand Creek Aug Station = 20 cfs | AIV4: Maximum Exchange from Eaton Draw Aug Station = 20 cfs | AIZ4: Maximum Exchange from Graham Seep Aug Station = 20 cfs | AJD4: Maximum Exchange from Orr Lateral Aug Station = 20 cfs | AJH4: Maximum Exchange from John Law Seepage Ditch Aug Station = 20 cfs | AJL4: Maximum Exchange from Serfer Pit = 20 cfs | AJO4: Maximum Exchange from Serfer Augmentation Station = 20 cfs | AJR4: Total Exchanged to Exchange-to Points under 16CW3196 | AKR4: Total exchanged under Appropriation Dates (other than 16CW3196) | AKU4: AGGREGATE OF EXCHANGES | AKY4: Retiming of ECCV's Surplus Beebe Draw Recharge Accretions | ALL4: Retiming of FRICO's Surplus Beebe Draw Recharge Accretions | ALX4: Reservoir Replacement Release Summary
A5: Month | B5: Day | C5: Primary River Call Name (Structure Calling) | D5: Primary River Call Appropriation Date | E5: Primary River Call Location | F5: Primary River Call Admin Number | G5: Secondary River Call Name (Structure Calling) | H5: Secondary River Call Appropriation Date | I5: Secondary River Call Location | J5: Secondary River Call Admin Number | K5: Primary River Call Name (Structure Calling) | L5: Primary River Call Appropriation Date | M5: Primary River Call Location | N5: Primary River Call Admin Number | O5: Secondary River Call Name (Structure Calling) | P5: Secondary River Call Appropriation Date | Q5: Secondary River Call Location | R5: Secondary River Call Admin Number | S5: Primary River Call Name (Structure Calling) | T5: Primary River Call Appropriation Date | U5: Primary River Call Location | V5: Primary River Call Admin Number | W5: Secondary River Call Name (Structure Calling) | X5: Secondary River Call Appropriation Date | Y5: Secondary River Call Location | Z5: Secondary River Call Admin Number | AA5: Surplus CU Water Available for Diversion by Exchange at United No. 1 | AB5: United No. 1 Diversion of C.U. Water by Exchange | AC5: United No. 1 Diversion of the 2003 Right | AD5: Other Water Diverted at United No. 1 | AE5: Source of Other Water | AF5: United No. 1 Total Diversion | AG5: NFC-W1, W3 and W4 Pumping | AH5: 88CW264(B) Pumping, Peterson Well Nos. 1 and 2, Residential Well Nos.1 and 2, Illinois Irrigation Pump No.1 and 2 | AI5: Surplus C.U. Water in SPR-Reaches 4 and 5 Available for Diversion at United No. 2 | AJ5: United Diversion Facility No. 2 Well Pumping of ECCV C.U. Water | AK5: United Diversion Facility No. 2 Well Pumping of the 2003 Right | AL5: Other Water Pumped at United No. 2 | AM5: Source of Other Water | AN5: Total Pumping | AO5: Total Diversion of the 2003 One Time Diversion Right | AP5: Maximum Total Rate of Diversion | AQ5: NFC Well Depletions to Riverside | AR5: Other Approved Water to Replace NFC Well Depletions to Riverside | AS5: Source of Other Water | AT5: ECCV 70 Ranch Recharge Accretions to Riverside | AU5: Remaining Requirement to Riverside | AV5: OOP NFC Well Depletions | AW5: Leased Credits from Riverside Irrigation District | AX5: Other Approved Water used to Replace NFC Well Depletions in SPR Reach 5 | AY5: Source of Other Water | AZ5: Weldon Valley Surface RF Obligation above Fort Morgan Canal Headgate | BA5: Weldon Valley Unlagged Subsurface RF Obligation above Fort Morgan Canal Headgate | BB5: Weldon Valley Lagged Subsurface RF Obligation above Fort Morgan Canal Headgate | BC5: Weldon Valley RF Obligation above Fort Morgan Canal Headgate | BD5: Weldon Valley Surface RF Obligation below Fort Morgan Canal Headgate | BE5: Weldon Valley Unlagged Subsurface RF Obligation below Fort Morgan Canal Headgate | BF5: Weldon Valley Lagged Subsurface RF Obligation below Fort Morgan Canal Headgate | BG5: Weldon Valley RF Obligation below Fort Morgan Canal Headgate | BH5: Weldon Valley 50% RF Difference Obligation | BI5: ECCV's Riverside Recharge Accretions in SPR Reach 5 | BJ5: Weldon Valley Recharge Accretions in SPR Reach 5 | BK5: ECCV 70 Ranch Recharge Accretions to SPR Reach 5 | BL5: ECCV's Weldon Valley Ditch Augmentation Station Delivery Measured at Weldon Valley Aug Station | BM5: ECCV's Weldon Valley Ditch Augmentation Station Delivery Measured at ACWWA/Central Aug Station | BN5: ECCV's Weldon Valley Augmentation Station Delivery Used to Meet RF and RFD Obls Above Ft. Morgan | BO5: ECCV's Weldon Valley Augmentation Station Delivery Used to Meet RF and RFD Obls Below Ft. Morgan | BP5: Transit Loss from ACWWA/Central Aug Station to RF Obls Below Ft. Morgan | BQ5: Weldon Valley Ditch CU Credit | BR5: ECCV's Riverside Recharge Accrtns used to Replace Obligation in SPR Reach 5 | BS5: Weldon Valley Recharge Accrtns used to Replace Obligation in SPR Reach 5 | BT5: 70 Ranch Recharge Accrtns used to Replace Obligation in SPR Reach 5 | BU5: Transit Loss on Riverside and 70 Ranch Recharge Accretions Used for Replacement | BV5: United Res #3 Release to Satisfy Requirement in SPR Reach 5 | BW5: Transit Loss on United Res Release | BX5: Milliken Release to Satisfy Requirement in SPR Reach 5 | BY5: Transit Loss on Milliken Release | BZ5: 70 Ranch Reservoir Release to Replace Reach 5 Obligations | CA5: Transit Loss on 70 Ranch Release | CB5: Other Approved Water used to Replace Requirement in SPR Reach 5 | CC5: Source of Other Water | CD5: Is Ft. Morgan Canal the Calling Right and Drying up the River (Yes or No) | CE5: Is Jackson Canal the Calling Right and Drying up the River (Yes or No) | CF5: Is Bijou Canal the Calling Right and Drying up the River (Yes or No) | CG5: Available Bypassed at Bijou, Jackson or Ft. Morgan | CH5: Requested Bypassed at Bijou, Jackson or Ft. Morgan | CI5: Actual Amount Bypassed at Bijou, Jackson or Ft. Morgan | CJ5: Source of Water Bypassed at Bijou, Jackson or Ft. Morgan | CK5: Riverside Accrtns used to Replace Obligation in SPR Reach 4 | CL5: 70 Ranch Recharge Accrtns in SPR Reach 5 used to Replace Obligation in SPR Reach 4 | CM5: Weldon Valley CU in SPR Reach 5 used to Replace Obligation in SPR Reach 4 | CN5: Riverside Accrtns Used to Augment OOP Storage under 2003 Right in Milton | CO5: Recharge Accrtns in SPR 5 Used to Augment OOP Storage under 2003 Right in Milton | CP5: Total Obligation in SPR Reach 5 | CQ5: Surplus CU in SPR Reach 5 Available for Upstream Replacement and/or Exchange | CR5: OOP NFC Well Depletions | CS5: OOP 88CW264(B) Pumping, Peterson Well Nos. 1 and 2, Residential Well Nos.1 and 2, Illinois Irrigation Pump No.1 and 2 | CT5: United's Total OOP Stream Depletion due to Pumping | CU5: Leased Credits from Riverside Irrigation District | CV5: Other Approved Water used to Replace NFC & Peterson Well Obligation in SPR Reach 4 | CW5: Source of Other Approved Water | CX5: OOP United Diversion Facility No. 2 Depletions | CY5: ECCV's Total OOP Stream Depletion due to Pumping | CZ5: Return Flow Obligation Associated with 70 Ranch Water Rights (Lower Latham and Illinois) | DA5: ECCV's Total OOP Replacement Requirement to SPR Reach 4 | DB5: ECCV's 70 Ranch Recharge Accretions to SPR Reach 4 | DC5: Lower Latham Delivery Measured at ECCV Aug Station | DD5: Lower Latham CU Credit | DE5: ECCV's Lower Latham Aug Station Delivery Used to Meet RF Obligations | DF5: Illinois Ditch Delivery Measured at ECCV Aug Station | DG5: Illinois Ditch CU Credit | DH5: Hardin Ditch CU Credit | DI5: Other Approved Water used to Replace Obligation in SPR Reach 4 | DJ5: Source of Other Approved Water | DK5: Total Consumptive Use Credit in SPR Reach 4 | DL5: Consumptive Use Credit Used to Satisfy ECCV's Obligation in SPR Reach 4 | DM5: Consumptive Use Credit Used to Replace Longmont obligation | DN5: Transit loss from SPR Reach 4 to Longmont Obligation | DO5: 70 Ranch Recharge Accrtns used to Replace ECCV's Obligation in SPR Reach 4 | DP5: Consumptive Use Credit Used to Augment OOP Storage under 2003 Right in Milton | DQ5: Recharge Accrtns Used to Augment OOP Storage under 2003 Right in Milton | DR5: Credit Balance in SPR Reach 4 | DS5: Riverside Accrtns used to Replace Obligation in SPR Reach 4 | DT5: 70 Ranch Recharge Accrtns in SPR Reach 5 used to Replace Obligation in SPR Reach 4 | DU5: Weldon Valley Accrtns used to Replace Obligation in SPR Reach 4 | DV5: NFC Well Pumping Delivered to the South Platte for Replacement | DW5: United Res #3 Release to Satisfy Remaining Requirement in SPR Reach 4 | DX5: Transit Loss on United Res Release | DY5: ECCV LIRFs to Replace Remaining RF Obligation to SPR Reach 4 | DZ5: Transit Loss on ECCV's Toll Gate Creek LIRFs | EA5: Milliken Release to Satisfy Remaining Requirement in SPR Reach 4 | EB5: Transit Loss on Milliken Release | EC5: 70 Ranch Reservoir Release to Replace Reach 4 Obligations | ED5: Surplus CU in SPR Reach 4 Available for Upstream Replacement and/or Exchange | EE5: New Cache Delivery Measured at Headgate Aug Station | EF5: New Cache Delivery Measured at Serfer Aug Station | EG5: New Cache Delivery Measured at John Law Aug Station | EH5: Transit Loss on John Law Release to CLP | EI5: New Cache Delivery Measured at Orr Lateral Aug Station | EJ5: Transit Loss on Orr Lateral Release to CLP | EK5: ECCV Serfer Pit Release | EL5: Transit Loss on SerFer Pit Release to Ogilvy Ditch | EM5: Is the Greeley No. 3 drying up the river (Yes or No) | EN5: New Cache Delivery Measured at Graham Seep Aug Station | EO5: Transit Loss on Graham Seep Release to CLP | EP5: New Cache Delivery Measured at Carpenter Lateral Aug Station | EQ5: Transit Loss on Carpenter Lateral Release to CLP | ER5: New Cache Delivery Measured at Eaton Draw Aug Station | ES5: Transit Loss on Eaton Draw Release to CLP | ET5: GIC RF Obligation abv the Ogilvy Ditch | EU5: Total RF Obligation | EV5: ECCV's GIC Delivery Measured at F Street Release Structure | EW5: Transit Loss on F Street Release to Ogilvy | EX5: ECCV's GIC Delivery Measured at 23rd Avenue Release Structure | EY5: Transit Loss on 23rd Ave Release to Ogilvy | EZ5: Other Approved Water used to Replace Obligation abv the Ogilvy Ditch | FA5: Source of Other Approved Water | FB5: Is the Ogilvy Ditch drying up the river (Yes or No) | FC5: Net Effect between GIC and Ogilvy Ditch | FD5: GIC RF Obligation below the Ogilvy Ditch | FE5: CU above Ogilvy available to SPR | FF5: Transit Loss on CU above Ogilvy to SPR | FG5: New Cache Delivery Measured at Upper Sand Creek Aug Station | FH5: Transit Loss on Upper Sand Creek Releases to SPR | FI5: New Cache Delivery Measured at Lower Sand Creek Aug Station | FJ5: Transit Loss on Lower Sand Creek Releases to SPR | FK5: ECCV's GIC Delivery Measured at 16th Street Release Structure | FL5: Transit Loss on 16th Street Releases to SPR | FM5: Total GIC Delivery at all Structures | FN5: Total Greeley No. 3 Portion of GIC Delivery | FO5: Total Fossil Creek Portion of GIC Delivery | FP5: Net Effect from CLP to SPR | FQ5: OOP Historic RF Obligation to SPR Reach 3 | FR5: New Cache Lagged Subsurface RF Obligation to SPR Reach 3 | FS5: GIC RF Obligation above Highland Ditch | FT5: CLP RF Obligation to SPR Reach 3 | FU5: Total RF Obligation | FV5: ECCV's CLP CU used to meet RFO in SPR Reach 3 | FW5: New Cache Delivery Measured at Lone Tree Creek Aug Station | FX5: Transit Loss on Lone Tree Creek Releases to SPR | FY5: New Cache Delivery Measured at Galeton Draw Aug Station | FZ5: Transit Loss on Galeton Draw Aug Releases to SPR | GA5: New Cache Delivery Measured at Gill Aug Station | GB5: Transit Loss on Gill Aug Releases to SPR | GC5: New Cache Delivery Measured at Upper Crow Creek Aug Station | GD5: Transit Loss on Upper Crow Creek Releases to SPR | GE5: New Cache Delivery Measured at Lower Crow Creek Aug Station | GF5: Transit Loss on Lower Crow Creek Releases to SPR | GG5: ECCV's SPR New Cache Augmentation Station Delivery Used to Meet RFO in SPR3 | GH5: Is there a call between Lower Latham and Bijou that is drying up the river (Yes or No) | GI5: Available Bypassed at the Lower Latham | GJ5: Requested Bypassed at Lower Latham | GK5: Actual Amount Bypassed at Lower Latham | GL5: Source of Water Bypassed at Lower Latham | GM5: 70 Ranch CU Water in SPR Reach 4 Substituted to Replace RF Obligation to SPR Reach 3 | GN5: 70 Ranch CU Water in SPR Reach 5 Substituted to Replace RF Obligation to SPR Reach 3 | GO5: United Res #3 Release to Replace Remaining RF Obligation to SPR Reach 3 | GP5: Transit Loss on United #3 Release | GQ5: ECCV's Cache la Poudre Res Co lagged RFOs used | GR5: ECCV's New Cache Irr Co lagged RFOs used | GS5: ECCV LIRFs to Replace Remaining RF Obligation to SPR Reach 3 | GT5: Transit Loss on ECCV's Toll Gate Creek LIRFs | GU5: Milliken Res Release to Replace Remaining RF Obligation to SPR Reach 3 | GV5: Transit Loss on Milliken Release | GW5: Other Approved Water used to Replace Obligation in SPR Reach 3 | GX5: Source of Other Approved Water | GY5: CLP Excess CU to SPR Reach 3 | GZ5: Obligation in SPR Reach 3 | HA5: Surplus CU in SPR Reach 3 Available for Replacement and/or Exchange | HB5: ECCV's Surplus Consumable Water in SPR Reach 4 after SPR3 Replacements | HC5: ECCV's Surplus Consumable Water in SPR Reach 5 after SPR3 Replacements | HD5: OOP Barr Share Historic RF Obligation to SPR Reach 2 | HE5: FIDCO RF Obligation to SPR Reach 2 | HF5: Western Lagged Subsurface RF Obligation above Union Ditch | HG5: Western Surface RF Obligation above Union Ditch | HH5: Total Western RF Obligation above Union Ditch | HI5: Western Lagged Subsurface RF Obligation to Oxbow | HJ5: Western Surface RF Obligation to Oxbow | HK5: Total Western RF Obligation to Oxbow | HL5: Western Lagged Subsurface RF Obligation above Godfrey Ditch | HM5: Western Surface RF Obligation above Godfrey Ditch | HN5: Total Western RF Obligation above Godfrey Ditch | HO5: Western Lagged Subsurface RF Obligation above Lower Latham Ditch | HP5: Western Surface RF Obligation above Lower Latham Ditch | HQ5: Total Western RF Obligation above Lower Latham Ditch | HR5: Western Delivery Measured at Brownwood Aug Station | HS5: United Res #3 Release to Replace Western RF Obligation | HT5: Transit Loss on United #3 Release to Union Ditch | HU5: ECCV Haren Pond Recharge Accretions to Oxbow | HV5: Other Approved Water to Oxbow | HW5: Source of Other Approved Water to Oxbow | HX5: Other Approved Water Above Union Ditch | HY5: Source of Other Approved Water Above Union Ditch | HZ5: Is replacement required above Union Ditch? (Yes or No) | IA5: Haren Pond Recharge Accretions above Godfrey Ditch | IB5: Other Approved Water Above Godfrey Ditch | IC5: Source of Other Approved Water Above Godfrey Ditch | ID5: Is replacement required above Godfrey Ditch? (Yes or No) | IE5: Strohauer Pond Recharge Accretions above Lower Latham Ditch | IF5: Other Approved Water Above Lower Latham Ditch | IG5: Source of Other Approved Water Above Lower Latham Ditch | IH5: Is replacement required above Lower Latham Ditch? (Yes or No) | II5: Western Aug and Recharge Credit Used to Meet RFO above Union Ditch | IJ5: United Res #3 Release to Replace Western RF Obligation above Union Ditch | IK5: Milliken Res Release to Replace Western RF Obligation above Union Ditch | IL5: Remaining Western RFO required to be met above Union Ditch | IM5: Western Aug and Recharge Credit Used to Meet RFO at Oxbow | IN5: United Res #3 Release to Replace Western RF Obligation at Oxbow | IO5: Milliken Res Release to Replace Western RF Obligation at Oxbow | IP5: Remaining Western RFO required to be met at Oxbow | IQ5: Western Aug and Recharge Credit Used to Meet RFO above Godfrey Ditch | IR5: United Res #3 Release to Replace Western RF Obligation above Godfrey Ditch | IS5: Milliken Res Release to Replace Western RF Obligation above Godfrey Ditch | IT5: Remaining Western RFO required to be met above Godfrey Ditch | IU5: Western Aug and Recharge Credit Used to Meet RFO above Lower Latham Ditch | IV5: United Res #3 Release to Replace Western RF Obligation above Lower Latham Ditch | IW5: Milliken Res Release to Replace Western RF Obligation above Lower Latham Ditch | IX5: Remaining Western RFO required to be met above Lower Latham Ditch | IY5: Remaining RF Obligation | IZ5: FIDCO Lower Aug Station deliveries for replacement of RF obligation | JA5: FIDCO Middle Aug Station deliveries for replacement of RF Obiligation | JB5: FIDCO Upper Aug Station deliveries for replacement of RF Obiligation | JC5: Transit Loss on FIDCO Upper Aug Station Delivery for replacement of RF Obligation | JD5: Haren Pond Recharge Accrtns used to Replace Obligation in SPR Reach 2 | JE5: Haren Recharge Accretions Used to Augment Well Depletions abv Milton | JF5: Is there a call between the Western and Bijou that is drying up the river (Yes or No) | JG5: Is the Western (Jay Thomas) the Calling Right and Drying up the River (Yes or No) | JH5: Is the Union or Godfrey the Calling Right (Yes or No) | JI5: Available Bypassed at Western | JJ5: Requested Bypassed at Western | JK5: Actual Amount Bypassed at Western | JL5: Source of Water Bypassed at Western | JM5: CU Water in SPR-Reach 4 Substituted to Replace RF Obligation to SPR Reach 2 | JN5: CU Water in SPR-Reach 5 Substituted to Replace RF Obligation to SPR Reach 2 | JO5: Remaining Historic RF Obligation to SPR Reach 2 | JP5: United Res #3 Release to Replace Remaining RF Obligation to SPR Reach 2 | JQ5: Transit Loss on United #3 Release | JR5: ECCV LIRFs to Replace Remaining RF Obligation to SPR Reach 2 | JS5: Transit Loss on ECCV's Toll Gate Creek LIRFs | JT5: Milliken Res Release to Replace RF Obligations | JU5: Milliken Res Release to Replace RF Obligation to SPR Reach 2 | JV5: Transit Loss on Milliken Release | JW5: Other Approved Water used to Replace Obligation in SPR Reach 2 | JX5: Source of Other Approved Water | JY5: Remaining Historic RF Obligation to SPR Reach 2 | JZ5: Western Ditch Delivery Measured at Haren Recharge Pond | KA5: Excess SPR 2 Credit after Western and FIDCO | KB5: FIDCO Delivery Measured at Lower Aug Station | KC5: FIDCO CU Credit from Lower Aug Station | KD5: FIDCO Delivery Measured at Middle Aug Station | KE5: FIDCO CU Credit from Middle Aug Station | KF5: FIDCO CU from Lower Aug Station used to Replace Obligation to Beebe abv Milton | KG5: Excess SPR2 Western and Recharge Credits used to Replace Obligation to Beebe abv Milton | KH5: FIDCO CU from Lower Aug Station used to Replace Longmont Obligation | KI5: Transit loss from FIDCO Lower Aug Station to Longmont Obligation | KJ5: Excess SPR 2 Credits used to Replace Longmont Obligation | KK5: Milliken Release used to Replace Longmont Obligation | KL5: Transit Loss on Milliken Release | KM5: Excess Western Credits Available for Exchange to Milliken and United | KN5: Western CU Exchanged to Milliken Res | KO5: Western CU Exchanged to United Res | KP5: FIDCO Lower Aug Station CU Available for Exchange to Milliken and United | KQ5: FIDCO SPR Reach 2 CU Exchanged to Milliken | KR5: FIDCO SPR Reach 2 CU Exchanged to United Res | KS5: CU Water from SPR Reach 5 Available for Exchange to Milliken | KT5: CU Water from SPR Reach 5 Exchanged to Milliken Res | KU5: CU Water from SPR Reach 4 Available for Exchange to Milliken | KV5: CU Water from SPR Reach 4 Exchanged to Milliken Res | KW5: FIDCO CU Diverted to Milliken Res | KX5: ECCV Toll Gate Creek LIRFs to Milliken Res | KY5: Transit Loss on ECCV's Toll Gate Creek LIRFs to Milliken Res | KZ5: Total ECCV Diversion to Milliken Res of CU Water | LA5: ECCV's Surplus Consumable Water in SPR Reach 2 | LB5: ECCV's Surplus Consumable Water in SPR Reach 4 | LC5: ECCV's Surplus Consumable Water in SPR Reach 5 | LD5: OOP Barr Share Historic RF Obligation to SPR Reach 1 | LE5: FIDCO Delivery Measured at Upper Aug Station | LF5: FIDCO CU Credit from Upper Aug Station | LG5: FIDCO CU Used for Barr RF | LH5: Is there a call between the Farmers Independent and Bijou that is drying up the river (Yes or No) | LI5: CU Water in SPR-Reach 4 Substituted to Replace RF Obligation to SPR Reach 1 | LJ5: CU Water in SPR-Reach 5 Substituted to Replace RF Obligation to SPR Reach 1 | LK5: CU Water in SPR-Reach 2 Substituted to Replace RF Obligation to SPR Reach 1 | LL5: Remaining Historic RF Obligation to SPR Reach 1 | LM5: ECCV United Res #3 Release to Replace RF Obligations | LN5: United Res #3 Release to Replace Remaining RF Obligation to SPR Reach 1 | LO5: Transit Loss on United Res Release | LP5: Milliken Release to Replace Remaining RF Obligation to SPR Reach 1 | LQ5: ECCV's 03CW200 Toll Gate LIRFs | LR5: Transit Loss on ECCV's Toll Gate Creek LIRFs from Sand Crk Abv Burlington gage to South Platte River | LS5: ECCV LIRFs to Replace Remaining RF Obligation to SPR Reach 1 | LT5: Transit Loss on ECCV's Toll Gate Creek LIRFs | LU5: Other Approved Water used to Replace Obligation in SPR Reach 1 | LV5: Source of Other Approved Water | LW5: Remaining Requirement in SPR Reach 1 | LX5: CU Water from SPR Reach 5 Available for Exchange to United Res | LY5: CU Water from SPR Reach 5 Exchanged to United Res | LZ5: CU Water from SPR Reach 4 Available for Exchange to United Res | MA5: CU Water from SPR Reach 4 Exchanged to United Res | MB5: Western CU Water from SPR Reach 2 Exchanged to United Res | MC5: FIDCO CU Water from SPR Reach 2 Exchanged to United Res | MD5: ECCV Toll Gate Creek LIRFs to United Res | ME5: Transit Loss on ECCV's Toll Gate Creek LIRFs to United Res | MF5: Total ECCV Diversion to United Res of CU Water | MG5: ECCV's Surplus Consumable Water in SPR Reach 4 | MH5: ECCV's Surplus Consumable Water in SPR Reach 5 | MI5: OOP ECCV Well Depletion to Beebe abv Milton | MJ5: OOP Historic RF Obligation to Beebe abv Milton | MK5: Total Ditch Loss Obligation for ECCV's Changed Barr Shares | ML5: ECCV Recharge Accretions to Beebe above Milton Lake | MM5: Total 84CW090 Direct Flow above Milton Lake | MN5: ECCV's 84CW090 Direct Flow above Milton Lake | MO5: ECCV's use of 84CW090 Direct Flow above Milton Lake to Augment Well Depletions abv Milton | MP5: 84CW090 Recharge Accretions to Beebe above Milton Lake | MQ5: Lochbuie 84CW090 Accretions used for Replacement to Beebe above Milton Lake | MR5: ECCV's Share Allocation of 84CW090 Accretions | MS5: ECCV Recharge Accretions Used to Augment Well Depletions abv Milton | MT5: ECCV's 84CW090 Accretions Used to Augment Well Depletions abv Milton | MU5: Is there a call on Beebe Draw or SPR between Powell Spillway and Bijou Canal that is drying up the river (Yes or No) | MV5: Milton Lake Net Loss Based on Mass Balance | MW5: CU Water in SPR-Reach 4 Substituted to Replace RF Obligation abv Milton | MX5: CU Water in SPR-Reach 4 Used to Augment Well Depletions abv Milton | MY5: CU Water in SPR-Reach 5 Substituted to Replace RF Obligation abv Milton | MZ5: CU Water in SPR-Reach 5 Used to Augment Well Depletions abv Milton | NA5: CU Water in SPR-Reach 3 Substituted to Replace RF Obligation abv Milton | NB5: CU Water in SPR-Reach 3 Used to Augment Well Depletions abv Milton | NC5: Remaining Well Depletion to Beebe abv Milton | ND5: Remaining Historic RF Obligation to Beebe abv Milton | NE5: Barr Release to Replace Well Depletion to Beebe abv Milton | NF5: Transit Loss on Barr Release | NG5: Barr Release to Replace RF Obligation to Beebe abv Milton | NH5: Barr Release to Replace Ditch Loss Obligation to Beebe abv Milton | NI5: Milton Bookover to Replace Well Depletion to Beebe abv Milton | NJ5: FIDCO CU from Lower Aug Station Substituted to Replace RF Obligation abv Milton | NK5: FIDCO CU from Lower Aug Station Used to Augment Well Depletions abv Milton | NL5: Excess CU in SPR-Reach 2 Substituted to Replace RF Obligation abv Milton | NM5: Excess CU in SPR-Reach 2 Used to Augment Well Depletions abv Milton | NN5: Haren Recharge Accretions in SPR- Reach 2 Used to Augment Well Depletions abv Milton | NO5: ECCV's Milliken Release to Replace Remaining Obligation to abv Milton | NP5: Transit Loss on Milliken Res Release | NQ5: ECCV's Other Approved Water used to Replace Obligation above Milton | NR5: Source of ECCV's Other Approved Water | NS5: Remaining Obligation to Beebe abv Milton | NT5: ECCV's Surplus Recharge Accretions to Beebe above Milton Lake | NU5: ECCV's Surplus 84CW090 Recharge Accretions to Beebe above Milton Lake | NV5: ECCV's Surplus Consumable Water in SPR-Reach 4 | NW5: ECCV's Surplus Consumable Water in SPR-Reach 5 | NX5: OOP Historic RF Obligation to Beebe blw Milton | NY5: Is there a call on Beebe Draw blw Milton or SPR btwn Powell Spillway and Bijou Canal drying up the river (Yes or No) | NZ5: ECCV's Surplus Consumable Water in SPR Reach 4 Substituted to Replace RF Obligation blw Milton | OA5: ECCV's Surplus Consumable Water in SPR Reach 5 Substituted to Replace RF Obligation blw Milton | OB5: Remaining Historic RF Obligation to Beebe blw Milton | OC5: Milton Release to meet RF Obligation to Beebe blw Milton | OD5: Transit Loss on Milton Release | OE5: Other Approved Water used to Replace Obligation below Milton | OF5: Source of Other Approved Water | OG5: Total 84CW090 Direct Flow below Milton Lake | OH5: ECCV's 84CW090 Direct Flow below Milton Lake | OI5: ECCV's use of 84CW090 Direct Flow below Milton Lake to Augment Well Pumping Depletions | OJ5: ECCV's Surplus Consumable Water in SPR-Reach 4 | OK5: ECCV's Surplus Consumable Water in SPR-Reach 5 | OL5: OOP Historic RF Obligation to Box Elder Creek | OM5: ECCV Recharge Accretions to Box Elder Creek | ON5: ECCV Recharge Accretions Used to Augment Box Elder Creek Obligation | OO5: Milton Release to meet RF Obligation to Box Elder Ck | OP5: Transit Loss on Milton Release | OQ5: Other Approved Water used to Replace Obligation to Box Elder | OR5: Source of Other Approved Water | OS5: Total Out of Priority Replacement Requirement | OT5: Total Replacement to Beebe abv Milton | OU5: Total Replacement to Beebe blw Milton | OV5: Total Replacement to Box Elder Ck | OW5: Total Replacement to SPR-Reach 1 | OX5: Total Replacement to SPR-Reach 2 | OY5: Total Replacement to SPR-Reach 3 | OZ5: Total Replacement to CLP | PA5: Total Replacement to SPR-Reach 4 | PB5: Total Replacement to SPR-Reach 5 | PC5: Total Replacement | PD5: Total Remaining Replacement Requirement | PE5: ECCV's Surplus Recharge Accretions in Beebe abv Milton | PF5: ECCV's Surplus Consumable Water in SPR-Reach 4 | PG5: ECCV's Surplus Consumable Water in SPR-Reach 5 | PI5: Minimum Flow within Reach 5 | PJ5: Minimum Flow within Reach 4 | PK5: Minimum Flow within Reach 3 | PL5: Minimum Flow within Reach 2 | PM5: Minimum Flow within Reach 1 | PN5: Measured flow at Beaver Creek | PO5: Exchange from Beaver Creek to Ft. Morgan Headgate | PP5: Total Exchanged from Beaver Creek under 12/29/2011 Appropriation Date | PQ5: Source of Substitute Supply Used for Exchanges from Beaver Creek | PR5: Measured from Downstream End Point of SPR 5 for Exchange | PS5: Exchanged from Downstream End Point of SPR 5 to Burlington Canal | PT5: Exchanged from Downstream End Point of SPR 5 to UDF No. 3 | PU5: Exchanged from Downstream End Point of SPR 5 to Binder Pipeline | PV5: Exchanged from Downstream End Point of SPR 5 to FIDCO Headgate | PW5: Exchanged from Downstream End Point of SPR 5 to Western Headgate | PX5: Exchanged from Downstream End Point of SPR 5 to Milliken South Diversion | PY5: Exchanged from Downstream End Point of SPR 5 to Milliken Pump 2 | PZ5: Exchanged from Downstream End Point of SPR 5 to Milliken Pump 1 | QA5: Exchanged from Downstream End Point of SPR 5 to Milliken North Diversion | QB5: Exchanged from Downstream End Point of SPR 5 to Powell Spillway | QC5: Exchanged from Downstream End Point of SPR 5 to Confluence of Cache la Poudre and South Platte | QD5: Exchanged from Downstream End Point of SPR 5 to UDF No. 1 | QE5: Exchanged from Downstream End Point of SPR 5 to 70 Ranch Reservoir Surface Diversion | QF5: Total Exchanged from Downstream End Point of SPR 5 under 12/14/2016 Appropriation Date | QG5: Measured flow at all Ft. Morgan Canal Aug Stations | QH5: Exchange from all Ft. Morgan Canal Aug Stations to Ft Morgan Canal Headgate | QI5: Exchange from all Ft. Morgan Canal Aug Stations to United Div Facility No. 1 | QJ5: Total exchange from all Ft. Morgan Canal Aug Stations to either Milliken Res Diversion | QK5: Exchange from all Ft. Morgan Canal Aug Stations to St Vrain Pipeline | QL5: Exchange from all Ft. Morgan Canal Aug Stations to Jay Thomas Ditch | QM5: Exchange from all Ft. Morgan Canal Aug Stations to Platte Valley Canal | QN5: Exchange from all Ft. Morgan Canal Aug Stations to United Div Facility No. 3 | QO5: Exchange from all Ft. Morgan Canal Aug Stations to Burlington Canal | QP5: Total Exchanged from all Ft. Morgan Canal Aug Stations under 12/31/2003 Appropriation Date | QQ5: Total Exchanged from all Ft. Morgan Canal Aug Stations under 5/31/2007 Appropriation Date | QR5: Total Exchanged from all Ft. Morgan Canal Aug Stations under 12/29/2011 Appropriation Date | QS5: Source of Substitute Supply Used for Exchanges from all Ft. Morgan Canal Aug Stations | QT5: Measured from Ft. Morgan Canal Quantification Point for Exchange | QU5: Exchanged from Ft. Morgan Canal Quantification Point to Binder Pipeline | QV5: Exchanged from Ft. Morgan Canal Quantification Point to FIDCO Headgate | QW5: Exchanged from Ft. Morgan Canal Quantification Point to Western Headgate | QX5: Exchanged from Ft. Morgan Canal Quantification Point to Milliken Pump 2 | QY5: Exchanged from Ft. Morgan Canal Quantification Point to Milliken Pump 1 | QZ5: Exchanged from Ft. Morgan Canal Quantification Point to Powell Spillway | RA5: Exchanged from Ft. Morgan Canal Quantification Point to Confluence of Cache la Poudre and South Platte | RB5: Exchanged from Ft. Morgan Canal Quantification Point to UDF No. 1 | RC5: Exchanged from Ft. Morgan Canal Quantification Point to 70 Ranch Reservoir Surface Diversion | RD5: Total Exchanged from Ft. Morgan Canal Quantification Point under 12/14/2016 Appropriation Date | RE5: Measured flow at all Weldon Valley Canal Aug Stations | RF5: Exchange from all Weldon Valley Canal Aug Stations to United Div Facility No. 1 | RG5: Exchange from all Weldon Valley Canal Aug Stations to either Milliken Res Diversion | RH5: Exchange from all Weldon Valley Canal Aug Stations to St Vrain Pipeline | RI5: Exchange from all Weldon Valley Canal Aug Stations to Jay Thomas Ditch | RJ5: Exchange from all Weldon Valley Canal Aug Stations to Platte Valley Canal | RK5: Exchange from all Weldon Valley Canal Aug Stations to United Div Facility No. 3 | RL5: Exchange from all Weldon Valley Canal Aug Stations to Burlington Canal | RM5: Total Exchanged from all Weldon Valley Aug Stations under 12/31/2003 Appropriation Date | RN5: Total Exchanged from all Weldon Valley Aug Stations under 5/31/2007 Appropriation Date | RO5: Total Exchanged from all Weldon Valley Aug Stations under 12/29/2011 Appropriation Date | RP5: Source of Substitute Supply Used for Exchanges from Weldon Valley Canal | RQ5: Measured from Weldon Valley Tail Aug Station for Exchange | RR5: Exchanged from Weldon Valley Tail Aug Station to Burlington Canal | RS5: Exchanged from Weldon Valley Tail Aug Station to UDF No. 3 | RT5: Exchanged from Weldon Valley Tail Aug Station to Binder Pipeline | RU5: Exchanged from Weldon Valley Tail Aug Station to FIDCO Headgate | RV5: Exchanged from Weldon Valley Tail Aug Station to Western Headgate | RW5: Exchanged from Weldon Valley Tail Aug Station to Milliken South Diversion | RX5: Exchanged from Weldon Valley Tail Aug Station to Milliken Pump 2 | RY5: Exchanged from Weldon Valley Tail Aug Station to St. Vrain Pipeline | RZ5: Exchanged from Weldon Valley Tail Aug Station to Milliken Pump 1 | SA5: Exchanged from Weldon Valley Tail Aug Station to Milliken North Diversion | SB5: Exchanged from Weldon Valley Tail Aug Station to Powell Spillway | SC5: Exchanged from Weldon Valley Tail Aug Station to Confluence of Cache la Poudre and South Platte | SD5: Exchanged from Weldon Valley Tail Aug Station to UDF No. 1 | SE5: Exchanged from Weldon Valley Tail Aug Station to 70 Ranch Reservoir Surface Diversion | SF5: Total Exchanged from Weldon Valley Tail Aug Station under 12/14/2016 Appropriation Date | SG5: Measured from Weldon Valley Central/ACWWA Aug Station for Exchange | SH5: Exchanged from Weldon Valley Central/ACWWA Aug Station to Burlington Canal | SI5: Exchanged from Weldon Valley Central/ACWWA Aug Station to UDF No. 3 | SJ5: Exchanged from Weldon Valley Central/ACWWA Aug Station to Binder Pipeline | SK5: Exchanged from Weldon Valley Central/ACWWA Aug Station to FIDCO Headgate | SL5: Exchanged from Weldon Valley Central/ACWWA Aug Station to Western Headgate | SM5: Exchanged from Weldon Valley Central/ACWWA Aug Station to Milliken South Diversion | SN5: Exchanged from Weldon Valley Central/ACWWA Aug Station to Milliken Pump 2 | SO5: Exchanged from Weldon Valley Central/ACWWA Aug Station to St. Vrain Pipeline | SP5: Exchanged from Weldon Valley Central/ACWWA Aug Station to Milliken Pump 1 | SQ5: Exchanged from Weldon Valley Central/ACWWA Aug Station to Milliken North Diversion | SR5: Exchanged from Weldon Valley Central/ACWWA Aug Station to Powell Spillway | SS5: Exchanged from Weldon Valley Central/ACWWA Aug Station to Confluence of Cache la Poudre and South Platte | ST5: Exchanged from Weldon Valley Central/ACWWA Aug Station to UDF No. 1 | SU5: Exchanged from Weldon Valley Central/ACWWA Aug Station to 70 Ranch Reservoir Surface Diversion | SV5: Total Exchanged from Weldon Valley Central/ACWWA Aug Station under 12/14/2016 Appropriation Date | SW5: ECCV's Surplus Consumable Water in SPR-Reaches 4 and 5 Available for Exchanges from 70 Ranch | SX5: Exchange from 70 Ranch Exchange Quantification Point to United Div Facility No. 1 | SY5: Exchange from 70 Ranch Exchange Quantification Point to either Milliken Res Diversion | SZ5: Exchange from 70 Ranch Exchange Quantification Point to St Vrain Pipeline | TA5: Exchange from 70 Ranch Exchange Quantification Point to Jay Thomas Ditch | TB5: Exchange from 70 Ranch Exchange Quantification Point to Platte Valley Canal | TC5: Exchange from 70 Ranch Exchange Quantification Point to United Div Facility No. 3 | TD5: Exchange from 70 Ranch Exchange Quantification Point to Burlington Canal | TE5: Total Exchanged from 70 Ranch under 12/31/2003 Appropriation Date | TF5: Total Exchanged from 70 Ranch under 5/31/2007 Appropriation Date | TG5: Total Exchanged from 70 Ranch under 12/29/2011 Appropriation Date | TH5: Source of Substitute Supply Used for Exchanges from 70 Ranch | TI5: Measured from 70 Ranch Recharge Project Quantification Point for Exchange | TJ5: Exchanged from 70 Ranch Recharge Project Quantification Point to Binder Pipeline | TK5: Exchanged from 70 Ranch Recharge Project Quantification Point to FIDCO Headgate | TL5: Exchanged from 70 Ranch Recharge Project Quantification Point to Western Headgate | TM5: Exchanged from 70 Ranch Recharge Project Quantification Point to Milliken Pump 2 | TN5: Exchanged from 70 Ranch Recharge Project Quantification Point to Milliken Pump 1 | TO5: Exchanged from 70 Ranch Recharge Project Quantification Point to Powell Spillway | TP5: Exchanged from 70 Ranch Recharge Project Quantification Point to Confluence of Cache la Poudre and South Platte | TQ5: Exchanged from 70 Ranch Recharge Project Quantification Point to UDF No. 1 | TR5: Exchanged from 70 Ranch Recharge Project Quantification Point to 70 Ranch Reservoir Surface Diversion | TS5: Total Exchanged from 70 Ranch Recharge Project Quantification Point under 12/14/2016 Appropriation Date | TT5: Measured from Downstream End Point of SPR 4 for Exchange | TU5: Exchanged from Downstream End Point of SPR 4 to Burlington Canal | TV5: Exchanged from Downstream End Point of SPR 4 to UDF No. 3 | TW5: Exchanged from Downstream End Point of SPR 4 to Binder Pipeline | TX5: Exchanged from Downstream End Point of SPR 4 to FIDCO Headgate | TY5: Exchanged from Downstream End Point of SPR 4 to Western Headgate | TZ5: Exchanged from Downstream End Point of SPR 4 to Milliken South Diversion | UA5: Exchanged from Downstream End Point of SPR 4 to Milliken Pump 2 | UB5: Exchanged from Downstream End Point of SPR 4 to St. Vrain Pipeline | UC5: Exchanged from Downstream End Point of SPR 4 to Milliken Pump 1 | UD5: Exchanged from Downstream End Point of SPR 4 to Milliken North Diversion | UE5: Exchanged from Downstream End Point of SPR 4 to Powell Spillway | UF5: Exchanged from Downstream End Point of SPR 4 to Confluence of Cache la Poudre and South Platte | UG5: Exchanged from Downstream End Point of SPR 4 to UDF No. 1 | UH5: Exchanged from Downstream End Point of SPR 4 to 70 Ranch Reservoir Surface Diversion | UI5: Total Exchanged from Downstream End Point of SPR 4 under 12/14/2016 Appropriation Date | UJ5: Measured from Hardin Seep Discharge for Exchange | UK5: Exchanged from Hardin Seep Discharge to Binder Pipeline | UL5: Exchanged from Hardin Seep Discharge to FIDCO Headgate | UM5: Exchanged from Hardin Seep Discharge to Western Headgate | UN5: Exchanged from Hardin Seep Discharge to Milliken Pump 2 | UO5: Exchanged from Hardin Seep Discharge to Milliken Pump 1 | UP5: Exchanged from Hardin Seep Discharge to Powell Spillway | UQ5: Exchanged from Hardin Seep Discharge to Confluence of Cache la Poudre and South Platte | UR5: Exchanged from Hardin Seep Discharge to UDF No. 1 | US5: Total Exchanged from Hardin Seep Discharge under 12/14/2016 Appropriation Date | UT5: Measured from 70 Ranch Reservoir for Exchange | UU5: Exchanged from 70 Ranch Reservoir to Burlington Canal | UV5: Exchanged from 70 Ranch Reservoir to UDF No. 3 | UW5: Exchanged from 70 Ranch Reservoir to Binder Pipeline | UX5: Exchanged from 70 Ranch Reservoir to FIDCO Headgate | UY5: Exchanged from 70 Ranch Reservoir to Western Headgate | UZ5: Exchanged from 70 Ranch Reservoir to Milliken South Diversion | VA5: Exchanged from 70 Ranch Reservoir to Milliken Pump 2 | VB5: Exchanged from 70 Ranch Reservoir to St. Vrain Pipeline | VC5: Exchanged from 70 Ranch Reservoir to Milliken Pump 1 | VD5: Exchanged from 70 Ranch Reservoir to Milliken North Diversion | VE5: Exchanged from 70 Ranch Reservoir to Powell Spillway | VF5: Exchanged from 70 Ranch Reservoir to Confluence of Cache la Poudre and South Platte | VG5: Exchanged from 70 Ranch Reservoir Outlet 1 to UDF No. 1 | VH5: Total Exchanged from 70 Ranch Reservoir under 12/14/2016 Appropriation Date | VI5: Measured from Illinois Aug Station for Exchange | VJ5: Exchanged from Illinois Aug Station to Binder Pipeline | VK5: Exchanged from Illinois Aug Station to FIDCO Headgate | VL5: Exchanged from Illinois Aug Station to Western Headgate | VM5: Exchanged from Illinois Aug Station to Milliken Pump 2 | VN5: Exchanged from Illinois Aug Station to Milliken Pump 1 | VO5: Exchanged from Illinois Aug Station to Powell Spillway | VP5: Exchanged from Illinois Aug Station to Confluence of Cache la Poudre and South Platte | VQ5: Total Exchanged from Illinois Aug Station under 12/14/2016 Appropriation Date | VR5: Measured from Downstream End Point of SPR 3 for Exchange | VS5: Exchanged from Downstream End Point of SPR 3 to Burlington Canal | VT5: Exchanged from Downstream End Point of SPR 3 to UDF No. 3 | VU5: Exchanged from Downstream End Point of SPR 3 to Binder Pipeline | VV5: Exchanged from Downstream End Point of SPR 3 to FIDCO Headgate | VW5: Exchanged from Downstream End Point of SPR 3 to Western Headgate | VX5: Exchanged from Downstream End Point of SPR 3 to Milliken South Diversion | VY5: Exchanged from Downstream End Point of SPR 3 to Milliken Pump 2 | VZ5: Exchanged from Downstream End Point of SPR 3 to St. Vrain Pipeline | WA5: Exchanged from Downstream End Point of SPR 3 to Milliken Pump 1 | WB5: Exchanged from Downstream End Point of SPR 3 to Milliken North Diversion | WC5: Exchanged from Downstream End Point of SPR 3 to Powell Spillway | WD5: Exchanged from Downstream End Point of SPR 3 to Confluence of Cache la Poudre and South Platte | WE5: Total Exchanged from Downstream End Point of SPR 3 under 12/14/2016 Appropriation Date | WF5: Measured from Confluence of Crow Creek and South Platte for Exchange | WG5: Exchanged from Confluence of Crow Creek and South Platte to Burlington Canal | WH5: Exchanged from Confluence of Crow Creek and South Platte to UDF No. 3 | WI5: Exchanged from Confluence of Crow Creek and South Platte to Binder Pipeline | WJ5: Exchanged from Confluence of Crow Creek and South Platte to FIDCO Headgate | WK5: Exchanged from Confluence of Crow Creek and South Platte to Western Headgate | WL5: Exchanged from Confluence of Crow Creek and South Platte to Milliken South Diversion | WM5: Exchanged from Confluence of Crow Creek and South Platte to Milliken Pump 2 | WN5: Exchanged from Confluence of Crow Creek and South Platte to St. Vrain Pipeline | WO5: Exchanged from Confluence of Crow Creek and South Platte to Milliken Pump 1 | WP5: Exchanged from Confluence of Crow Creek and South Platte to Milliken North Diversion | WQ5: Exchanged from Confluence of Crow Creek and South Platte to Powell Spillway | WR5: Exchanged from Confluence of Crow Creek and South Platte to Confluence of Cache la Poudre and South Platte | WS5: Total Exchanged from Confluence of Crow Creek and South Platte under 12/14/2016 Appropriation Date | WT5: Measured from Confluence of Lone Tree Creek and South Platte for Exchange | WU5: Exchanged from Ogilvy Ditch Bifurcation Aug Station to Binder Pipeline | WV5: Exchanged from Ogilvy Ditch Bifurcation Aug Station to FIDCO Headgate | WW5: Exchanged from Ogilvy Ditch Bifurcation Aug Station to Western Headgate | WX5: Exchanged from Ogilvy Ditch Bifurcation Aug Station to Milliken Pump 2 | WY5: Exchanged from Ogilvy Ditch Bifurcation Aug Station to Milliken Pump 1 | WZ5: Exchanged from Ogilvy Ditch Bifurcation Aug Station to Powell Spillway | XA5: Exchanged from Ogilvy Ditch Bifurcation Aug Station to Confluence of Cache la Poudre and South Platte | XB5: Total Exchanged from Ogilvy Ditch Bifurcation Aug Station under 12/14/2016 Appropriation Date | XC5: Measured from Confluence of Lone Tree Creek and South Platte for Exchange | XD5: Exchanged from Confluence of Lone Tree Creek and South Platte to Burlington Canal | XE5: Exchanged from Confluence of Lone Tree Creek and South Platte to UDF No. 3 | XF5: Exchanged from Confluence of Lone Tree Creek and South Platte to Binder Pipeline | XG5: Exchanged from Confluence of Lone Tree Creek and South Platte to FIDCO Headgate | XH5: Exchanged from Confluence of Lone Tree Creek and South Platte to Western Headgate | XI5: Exchanged from Confluence of Lone Tree Creek and South Platte to Milliken South Diversion | XJ5: Exchanged from Confluence of Lone Tree Creek and South Platte to Milliken Pump 2 | XK5: Exchanged from Confluence of Lone Tree Creek and South Platte to St. Vrain Pipeline | XL5: Exchanged from Confluence of Lone Tree Creek and South Platte to Milliken Pump 1 | XM5: Exchanged from Confluence of Lone Tree Creek and South Platte to Milliken North Diversion | XN5: Exchanged from Confluence of Lone Tree Creek and South Platte to Powell Spillway | XO5: Exchanged from Confluence of Lone Tree Creek and South Platte to Confluence of Cache la Poudre and South Platte | XP5: Total Exchanged from Confluence of Lone Tree Creek and South Platte under 12/14/2016 Appropriation Date | XQ5: Amount Available at South Platte and Cache la Poudre Confluence for Exchange | XR5: Amount Available at Sand Creek Aug Station for Exchange | XS5: Amount Available at Lone Tree Creek Aug Station for Exchange | XT5: Amount Available at Crow Creek Aug Station for Exchange | XU5: Total exchange from all Cache la Poudre Rights on the South Platte to either Milliken Res Diversion | XV5: Exchange from all Cache la Poudre Rights on the South Platte to St Vrain Pipeline | XW5: Exchange from all Cache la Poudre Rights on the South Platte to Jay Thomas Ditch | XX5: Exchange from all Cache la Poudre Rights on the South Platte to Platte Valley Canal | XY5: Exchange from all Cache la Poudre Rights on the South Platte to United Div Facility No. 3 | XZ5: Exchange from all Cache la Poudre Rights on the South Platte to Burlington Canal | YA5: Total Exchanged from all Cache la Poudre Rights on the South Platte under 12/31/2003 Appropriation Date | YB5: Total Exchanged from all Cache la Poudre Rights on the South Platte under 5/31/2007 Appropriation Date | YC5: Total Exchanged from all Cache la Poudre Rights on the South Platte under 12/29/2011 Appropriation Date | YD5: Source of Substitute Supply Used for Exchanges from all Cache la Poudre Rights on the South Platte | YE5: Measured from Confluence of Cache la Poudre and South Platte for Exchange | YF5: Exchanged from Confluence of Cache la Poudre and South Platte to Burlington Canal | YG5: Exchanged from Confluence of Cache la Poudre and South Platte to UDF No. 3 | YH5: Exchanged from Confluence of Cache la Poudre and South Platte to Binder Pipeline | YI5: Exchanged from Confluence of Cache la Poudre and South Platte to FIDCO Headgate | YJ5: Exchanged from Confluence of Cache la Poudre and South Platte to Western Headgate | YK5: Exchanged from Confluence of Cache la Poudre and South Platte to Milliken South Diversion | YL5: Exchanged from Confluence of Cache la Poudre and South Platte to Milliken Pump 2 | YM5: Exchanged from Confluence of Cache la Poudre and South Platte to St. Vrain Pipeline | YN5: Exchanged from Confluence of Cache la Poudre and South Platte to Milliken Pump 1 | YO5: Exchanged from Confluence of Cache la Poudre and South Platte to Milliken North Diversion | YP5: Exchanged from Confluence of Cache la Poudre and South Platte to Powell Spillway | YQ5: Total Exchanged from Confluence of Cache la Poudre and South Platte under 12/14/2016 Appropriation Date | YR5: Measured flow at Western Mutual Ditch Aug Station | YS5: Total exchange from downstream and mid Western Mutual Ditch Aug Station to either Milliken Res Diversion | YT5: Exchange from downstream and mid Western Mutual Ditch Aug Station to St Vrain Pipeline (United Div Facility No. 5) | YU5: Exchange from all Western Mutual Ditch Aug Station to Platte Valley Canal | YV5: Exchange from all Western Mutual Ditch Aug Station to United Div Facility No. 3 | YW5: Exchange from all Western Mutual Ditch Aug Station to Burlington Canal | YX5: Total Exchanged from Western Mutual under 12/31/2003 Appropriation Date | YY5: Total Exchanged from Western Mutual under 5/31/2007 Appropriation Date | YZ5: Total Exchanged from Western Mutual under 12/29/2011 Appropriation Date | ZA5: Source of Substitute Supply Used for Exchanges from Western Mutual Ditch Aug Station | ZB5: Measured from Western Mutual Ditch Aug Station (Downstream) for Exchange | ZC5: Exchanged from Western Mutual Ditch Aug Station (Downstream) to Burlington Canal | ZD5: Exchanged from Western Mutual Ditch Aug Station (Downstream) to UDF No. 3 | ZE5: Exchanged from Western Mutual Ditch Aug Station (Downstream) to Binder Pipeline | ZF5: Exchanged from Western Mutual Ditch Aug Station (Downstream) to FIDCO Headgate | ZG5: Exchanged from Western Mutual Ditch Aug Station (Downstream) to Western Headgate | ZH5: Exchanged from Western Mutual Ditch Aug Station (Downstream) to Milliken South Diversion | ZI5: Exchanged from Western Mutual Ditch Aug Station (Downstream) to Milliken Pump 2 | ZJ5: Exchanged from Western Mutual Ditch Aug Station (Downstream) to St. Vrain Pipeline | ZK5: Exchanged from Western Mutual Ditch Aug Station (Downstream) to Milliken Pump 1 | ZL5: Exchanged from Western Mutual Ditch Aug Station (Downstream) to Milliken North Diversion | ZM5: Total Exchanged from Western Mutual Ditch Aug Station (Downstream) under 12/14/2016 Appropriation Date | ZN5: Measured from Downstream End of SPR 2 for Exchange | ZO5: Exchanged from Downstream End of SPR 2 to Burlington Canal | ZP5: Exchanged from Downstream End of SPR 2 to UDF No. 3 | ZQ5: Exchanged from Downstream End of SPR 2 to Binder Pipeline | ZR5: Exchanged from Downstream End of SPR 2 to FIDCO Headgate | ZS5: Exchanged from Downstream End of SPR 2 to Western Headgate | ZT5: Exchanged from Downstream End of SPR 2 to Milliken South Diversion | ZU5: Exchanged from Downstream End of SPR 2 to Milliken Pump 2 | ZV5: Exchanged from Downstream End of SPR 2 to St. Vrain Pipeline | ZW5: Exchanged from Downstream End of SPR 2 to Milliken Pump 1 | ZX5: Exchanged from Downstream End of SPR 2 to Milliken North Diversion | ZY5: Total Exchanged from Downstream End of SPR 2 under 12/14/2016 Appropriation Date | ZZ5: Measured from Strohauer Pond Accretions for Exchange | AAA5: Exchanged from Strohauer Pond Accretions to Burlington Canal | AAB5: Exchanged from Strohauer Pond Accretions to UDF No. 3 | AAC5: Exchanged from Strohauer Pond Accretions to Binder Pipeline | AAD5: Exchanged from Strohauer Pond Accretions to FIDCO Headgate | AAE5: Exchanged from Strohauer Pond Accretions to Western Headgate | AAF5: Exchanged from Strohauer Pond Accretions to Milliken South Diversion | AAG5: Exchanged from Strohauer Pond Accretions to Milliken Pump 2 | AAH5: Exchanged from Strohauer Pond Accretions to St. Vrain Pipeline | AAI5: Exchanged from Strohauer Pond Accretions to Milliken Pump 1 | AAJ5: Exchanged from Strohauer Pond Accretions to Milliken North Diversion | AAK5: Total Exchanged from Strohauer Pond Accretions under 12/14/2016 Appropriation Date | AAL5: Measured from FIDCO Pipeline for Exchange | AAM5: Exchanged from FIDCO Pipeline to Burlington Canal | AAN5: Exchanged from FIDCO Pipeline to UDF No. 3 | AAO5: Exchanged from FIDCO Pipeline to Binder Pipeline | AAP5: Exchanged from FIDCO Pipeline to FIDCO Headgate | AAQ5: Exchanged from FIDCO Pipeline to Western Headgate | AAR5: Exchanged from FIDCO Pipeline to Milliken South Diversion | AAS5: Exchanged from FIDCO Pipeline to Milliken Pump 2 | AAT5: Exchanged from FIDCO Pipeline to St. Vrain Pipeline | AAU5: Exchanged from FIDCO Pipeline to Milliken Pump 1 | AAV5: Exchanged from FIDCO Pipeline to Milliken North Diversion | AAW5: Total Exchanged from FIDCO Pipeline under 12/14/2016 Appropriation Date | AAX5: Measured from Haren Recharge Accretion Location for Exchange | AAY5: Exchanged from Haren Recharge Accretion Location to Binder Pipeline | AAZ5: Exchanged from Haren Recharge Accretion Location to FIDCO Headgate | ABA5: Exchanged from Haren Recharge Accretion Location to Western Headgate | ABB5: Exchanged from Haren Recharge Accretion Location to Milliken Pump 2 | ABC5: Exchanged from Haren Recharge Accretion Location to Milliken Pump 1 | ABD5: Total Exchanged from Haren Recharge Accretion Location under 12/14/2016 Appropriation Date | ABE5: Measured from Drouhard Recharge Accretion Location for Exchange | ABF5: Exchanged from Drouhard Recharge Accretion Location to Burlington Canal | ABG5: Exchanged from Drouhard Recharge Accretion Location to UDF No. 3 | ABH5: Exchanged from Drouhard Recharge Accretion Location to Binder Pipeline | ABI5: Exchanged from Drouhard Recharge Accretion Location to FIDCO Headgate | ABJ5: Exchanged from Drouhard Recharge Accretion Location to Western Headgate | ABK5: Exchanged from Drouhard Recharge Accretion Location to Milliken South Diversion | ABL5: Exchanged from Drouhard Recharge Accretion Location to Milliken Pump 2 | ABM5: Exchanged from Drouhard Recharge Accretion Location to St. Vrain Pipeline | ABN5: Exchanged from Drouhard Recharge Accretion Location to Milliken Pump 1 | ABO5: Exchanged from Drouhard Recharge Accretion Location to Milliken North Diversion | ABP5: Total Exchanged from Drouhard Recharge Accretion Location under 12/14/2016 Appropriation Date | ABQ5: Measured from Brownwood Aug Station for Exchange | ABR5: Exchanged from Brownwood Aug Station to Burlington Canal | ABS5: Exchanged from Brownwood Aug Station to UDF No. 3 | ABT5: Exchanged from Brownwood Aug Station to Binder Pipeline | ABU5: Exchanged from Brownwood Aug Station to FIDCO Headgate | ABV5: Exchanged from Brownwood Aug Station to Western Headgate | ABW5: Exchanged from Brownwood Aug Station to Milliken South Diversion | ABX5: Exchanged from Brownwood Aug Station to Milliken Pump 2 | ABY5: Exchanged from Brownwood Aug Station to St. Vrain Pipeline | ABZ5: Exchanged from Brownwood Aug Station to Milliken Pump 1 | ACA5: Exchanged from Brownwood Aug Station to Milliken North Diversion | ACB5: Total Exchanged from Brownwood Aug Station under 12/14/2016 Appropriation Date | ACC5: Total Measured flow at all Milliken Res Outlet Structures | ACD5: Exchange from all Milliken Res Outlet Structures to St Vrain Pipeline | ACE5: Exchange from all Milliken Res Outlet Structures to Platte Valley Canal | ACF5: Exchange from all Milliken Res Outlet Structures to United Div Facility No. 3 | ACG5: Exchange from all Milliken Res Outlet Structures to Burlington Canal | ACH5: Total Exchanged from Milliken Res Outlets under 12/31/2003 Appropriation Date | ACI5: Total Exchanged from Milliken Res Outlets under 5/31/2007 Appropriation Date | ACJ5: Total Exchanged from Milliken Res Outlets under 12/29/2011 Appropriation Date | ACK5: Source of Substitute Supply Used for Exchanges from all Milliken Res Outlet Structures | ACL5: Measured from Milliken North Diversion for Exchange | ACM5: Exchanged from Milliken North Diversion to Binder Pipeline | ACN5: Exchanged from Milliken North Diversion to FIDCO Headgate | ACO5: Exchanged from Milliken North Diversion to Western Headgate | ACP5: Total Exchanged from Milliken North Diversion under 12/14/2016 Appropriation Date | ACQ5: Measured from Milliken Pump 1 for Exchange | ACR5: Exchanged from Milliken Pump 1 to Binder Pipeline | ACS5: Exchanged from Milliken Pump 1 to FIDCO Headgate | ACT5: Exchanged from Milliken Pump 1 to Western Headgate | ACU5: Total Exchanged from Milliken Pump 1 under 12/14/2016 Appropriation Date | ACV5: Amount Available at South Platte and St Vrain Confluence for Exchange | ACW5: Exchange from Confluence of South Platte and St Vrain Rivers to St Vrain Pipeline | ACX5: Total Exchanged from Confluence of South Platte and St Vrain Rivers to St Vrain Pipeline under 12/29/2011 Appropriation Date | ACY5: Source of Substitute Supply Used for Exchanges from South Platte and St Vrain Confluence | ACZ5: Measured from St. Vrain Confluence for Exchange | ADA5: Exchanged from St. Vrain Confluence to Burlington Canal | ADB5: Exchanged from St. Vrain Confluence to UDF No. 3 | ADC5: Exchanged from St. Vrain Confluence to Binder Pipeline | ADD5: Exchanged from St. Vrain Confluence to FIDCO Headgate | ADE5: Exchanged from St. Vrain Confluence to Western Headgate | ADF5: Exchanged from St. Vrain Confluence to Milliken South Diversion | ADG5: Exchanged from St. Vrain Confluence to Milliken Pump 2 | ADH5: Total Exchanged from St. Vrain Confluence under 12/14/2016 Appropriation Date | ADI5: Measured from Milliken Pump 2 for Exchange | ADJ5: Exchanged from Milliken Pump 2 to Burlington Canal | ADK5: Exchanged from Milliken Pump 2 to UDF No. 3 | ADL5: Exchanged from Milliken Pump 2 to Binder Pipeline | ADM5: Exchanged from Milliken Pump 2 to FIDCO Headgate | ADN5: Exchanged from Milliken Pump 2 to Western Headgate | ADO5: Total Exchanged from Milliken Pump 2 under 12/14/2016 Appropriation Date | ADP5: Measured from Milliken Reservoir South Diversion for Exchange | ADQ5: Exchanged from Milliken Reservoir South Diversion to Burlington Canal | ADR5: Exchanged from Milliken Reservoir South Diversion to UDF No. 3 | ADS5: Exchanged from Milliken Reservoir South Diversion to Binder Pipeline | ADT5: Exchanged from Milliken Reservoir South Diversion to FIDCO Headgate | ADU5: Exchanged from Milliken Reservoir South Diversion to Western Headgate | ADV5: Total Exchanged from Milliken Reservoir South Diversion under 12/14/2016 Appropriation Date | ADW5: Measured from Western Mutual Ditch Aug Station for Exchange | ADX5: Exchanged from Western Mutual Ditch Aug Station to Burlington Canal | ADY5: Exchanged from Western Mutual Ditch Aug Station to UDF No. 3 | ADZ5: Exchanged from Western Mutual Ditch Aug Station to Binder Pipeline | AEA5: Exchanged from Western Mutual Ditch Aug Station to FIDCO Headgate | AEB5: Total Exchanged from Western Mutual Ditch Aug Station under 12/14/2016 Appropriation Date | AEC5: Measured from Downstream End Point of SPR 1 for Exchange | AED5: Exchanged from Downstream End Point of SPR 1 to Burlington Canal | AEE5: Exchanged from Downstream End Point of SPR 1 to UDF No. 3 | AEF5: Exchanged from Downstream End Point of SPR 1 to Binder Pipeline | AEG5: Exchanged from Downstream End Point of SPR 1 to FIDCO Headgate | AEH5: Total Exchanged from Downstream End Point of SPR 1 under 12/14/2016 Appropriation Date | AEI5: Measured flow at St. Vrain Pipeline Outlet | AEJ5: Exchange from St. Vrain Pipeline to United Div Facility No. 3 | AEK5: Exchange from St. Vrain Pipeline to Burlington Canal | AEL5: Total Exchanged from the St Vrain Pipeline under 12/29/2011 Appropriation Date | AEM5: Source of Substitute Supply Used for Exchanges from St. Vrain Pipeline | AEN5: Measured Release from St. Vrain Pipeline for Exchange | AEO5: Exchanged from St. Vrain Pipeline to Binder Pipeline | AEP5: Total Exchanged from Fulton Lower Aug Station under 12/14/2016 Appropriation Date | AEQ5: Measured flow at Farmers Independent Ditch Lower Aug Station | AER5: Exchange from Farmers Independent Lower Aug Station to St Vrain Pipeline | AES5: Exchange from Farmers Independent Ditch Lower Aug Station to Platte Valley Canal | AET5: Exchange from Farmers Independent Ditch Lower Aug Station to United Div Facility No. 3 | AEU5: Exchange from Farmers Independent Ditch Lower Aug Station to Burlington Canal | AEV5: Total Exchanged from Farmers Independent Lower Aug Station under 12/31/2003 Appropriation Date | AEW5: Total Exchanged from Farmers Independent Lower Aug Station under 5/31/2007 Appropriation Date | AEX5: Total Exchanged from Farmers Independent Lower Aug Station under 12/29/2011 Appropriation Date | AEY5: Source of Substitute Supply Used for Exchanges from Farmers Independent Ditch Lower Aug Station | AEZ5: Measured Release from FIDCO Upper Aug Station for Exchange | AFA5: Exchanged from FIDCO Upper Aug Station to Burlington Canal | AFB5: Exchanged from FIDCO Upper Aug Station to UDF No. 3 | AFC5: Exchanged from FIDCO Upper Aug Station to Binder Pipeline | AFD5: Total Exchanged from FIDCO Upper Aug Station under 12/14/2016 Appropriation Date | AFE5: Measured Release from Fulton Lower Aug Station for Exchange | AFF5: Exchanged from Fulton Lower Aug Station to Binder Pipeline | AFG5: Total Exchanged from Fulton Lower Aug Station under 12/14/2016 Appropriation Date | AFH5: Measured Release from Fulton Ft. Lupton Aug Station for Exchange | AFI5: Exchanged from Fulton Ft. Lupton Aug Station to Binder Pipeline | AFJ5: Total Exchanged from Fulton Ft. Lupton Aug Station under 12/14/2016 Appropriation Date | AFK5: Measured Release from Fulton Upper Aug Station for Exchange | AFL5: Exchanged from Fulton Upper Aug Station to Binder Pipeline | AFM5: Total Exchanged from Fulton Upper Aug Station under 12/14/2016 Appropriation Date | AFN5: Measured Release from Binder Pipeline and Fulton Section 2 and 3 Aug Station for Exchange | AFO5: Exchanged from Binder Pipeline and Fulton Section 2 and 3 Aug Station to Burlington Canal | AFP5: Exchanged from Binder Pipeline and Fulton Section 2 and 3 Aug Station to UDF No. 3 | AFQ5: Total Exchanged from Binder Pipeline and Fulton Section 2 and 3 Aug Station under 12/14/2016 Appropriation Date | AFR5: Measured from Highlands Reservoir Diversion No. 4 For Exchange | AFS5: Exchanged from Highlands Reservoir Diversion No. 4 to Barr Lake | AFT5: Exchanged from Highlands Reservoir Diversion No. 4 to Toe of Barr Lake Dam | AFU5: Exchanged from Highlands Reservoir Diversion No. 4 to DeSanti Headgate | AFV5: Total Exchanged from Highlands Reservoir Diversion No. 4 under 12/14/2016 Appropriation Date | AFW5: Measured from Highlands Reservoir Outfall For Exchange | AFX5: Exchanged from Highlands Reservoir Outfall to Barr Lake | AFY5: Exchanged from Highlands Reservoir Outfall to Toe of Barr Lake Dam | AFZ5: Exchanged from Highlands Reservoir Outfall to DeSanti Headgate | AGA5: Exchanged from Highlands Reservoir Outfall to Bowles Seep Headgate | AGB5: Exchanged from Highlands Reservoir Outfall to Highlands Reservoir Diversion No. 4 | AGC5: Total Exchanged from Highlands Reservoir Outfall under 12/14/2016 Appropriation Date | AGD5: Measured from Highlands Reservoir Diversion No. 1 For Exchange | AGE5: Exchanged from Highlands Reservoir Diversion No. 1 to Barr Lake | AGF5: Exchanged from Highlands Reservoir Diversion No. 1 to Toe of Barr Lake Dam | AGG5: Exchanged from Highlands Reservoir Diversion No. 1 to DeSanti Headgate | AGH5: Exchanged from Highlands Reservoir Diversion No. 1 to Bowles Seep Headgate | AGI5: Exchanged from Highlands Reservoir Diversion No. 1 to Highlands Reservoir Diversion No. 4 | AGJ5: Total Exchanged from Highlands Reservoir Diversion No. 1 under 12/14/2016 Appropriation Date | AGK5: Measured from Highlands Reservoir Diversion No. 2 For Exchange | AGL5: Exchanged from Highlands Reservoir Diversion No. 2 to Barr Lake | AGM5: Exchanged from Highlands Reservoir Diversion No. 2 to Toe of Barr Lake Dam | AGN5: Exchanged from Highlands Reservoir Diversion No. 2 to DeSanti Headgate | AGO5: Exchanged from Highlands Reservoir Diversion No. 2 to Bowles Seep Headgate | AGP5: Exchanged from Highlands Reservoir Diversion No. 2 to Highlands Reservoir Diversion No. 4 | AGQ5: Exchanged from Highlands Reservoir Diversion No. 2 to Highlands Reservoir Diversion No. 1 | AGR5: Total Exchanged from Highlands Reservoir Diversion No. 2 under 12/14/2016 Appropriation Date | AGS5: Measured from Highlands Reservoir Diversion No. 3 For Exchange | AGT5: Exchanged from Highlands Reservoir Diversion No. 3 to Barr Lake | AGU5: Exchanged from Highlands Reservoir Diversion No. 3 to Toe of Barr Lake Dam | AGV5: Exchanged from Highlands Reservoir Diversion No. 3 to DeSanti Headgate | AGW5: Exchanged from Highlands Reservoir Diversion No. 3 to Bowles Seep Headgate | AGX5: Exchanged from Highlands Reservoir Diversion No. 3 to Highlands Reservoir Diversion No. 4 | AGY5: Exchanged from Highlands Reservoir Diversion No. 3 to Highlands Reservoir Diversion No. 1 | AGZ5: Exchanged from Highlands Reservoir Diversion No. 3 to Highlands Reservoir Diversion No. 2 | AHA5: Total Exchanged from Highlands Reservoir Diversion No. 3 under 12/14/2016 Appropriation Date | AHB5: Measured from Highway 52 Quantification Point For Exchange | AHC5: Exchanged from Highway 52 Quantification Point to Barr Lake | AHD5: Exchanged from Highway 52 Quantification Point to Toe of Barr Lake Dam | AHE5: Exchanged from Highway 52 Quantification Point to DeSanti Headgate | AHF5: Exchanged from Highway 52 Quantification Point to Bowles Seep Headgate | AHG5: Exchanged from Highway 52 Quantification Point to Highlands Reservoir Diversion No. 4 | AHH5: Exchanged from Highway 52 Quantification Point to Highlands Reservoir Diversion No. 1 | AHI5: Exchanged from Highway 52 Quantification Point to Highlands Reservoir Diversion No. 2 | AHJ5: Total Exchanged from Highway 52 Quantification Point under 12/14/2016 Appropriation Date | AHK5: Measured from Beebe Seep Canal East Neres Quantification Point For Exchange | AHL5: Exchanged from Beebe Seep Canal East Neres Quantification Point to Barr Lake | AHM5: Exchanged from Beebe Seep Canal East Neres Quantification Point to Toe of Barr Lake Dam | AHN5: Exchanged from Beebe Seep Canal East Neres Quantification Point to DeSanti Headgate | AHO5: Exchanged from Beebe Seep Canal East Neres Quantification Point to Bowles Seep Headgate | AHP5: Exchanged from Beebe Seep Canal East Neres Quantification Point to Highlands Reservoir Diversion No. 4 | AHQ5: Exchanged from Beebe Seep Canal East Neres Quantification Point to Highlands Reservoir Diversion No. 1 | AHR5: Exchanged from Beebe Seep Canal East Neres Quantification Point to Highlands Reservoir Diversion No. 2 | AHS5: Total Exchanged from Beebe Seep Canal East Neres Quantification Point under 12/14/2016 Appropriation Date | AHT5: Measured from Beebe Seep Canal Milton Lake Quantification Point For Exchange | AHU5: Exchanged from Beebe Seep Canal Milton Lake Quantification Point to Barr Lake | AHV5: Exchanged from Beebe Seep Canal Milton Lake Quantification Point to Toe of Barr Lake Dam | AHW5: Exchanged from Beebe Seep Canal Milton Lake Quantification Point to DeSanti Headgate | AHX5: Exchanged from Beebe Seep Canal Milton Lake Quantification Point to Bowles Seep Headgate | AHY5: Exchanged from Beebe Seep Canal Milton Lake Quantification Point to Highlands Reservoir Diversion No. 4 | AHZ5: Exchanged from Beebe Seep Canal Milton Lake Quantification Point to Highlands Reservoir Diversion No. 1 | AIA5: Exchanged from Beebe Seep Canal Milton Lake Quantification Point to Highlands Reservoir Diversion No. 2 | AIB5: Total Exchanged from Beebe Seep Canal Milton Lake Quantification Point under 12/14/2016 Appropriation Date | AIC5: Measured from Milton Lake For Exchange | AID5: Exchanged from Milton Lake to Barr Lake | AIE5: Exchanged from Milton Lake to Toe of Barr Lake Dam | AIF5: Exchanged from Milton Lake to DeSanti Headgate | AIG5: Exchanged from Milton Lake to Bowles Seep Headgate | AIH5: Exchanged from Milton Lake to Highlands Reservoir Diversion No. 4 | AII5: Exchanged from Milton Lake to Highlands Reservoir Diversion No. 1 | AIJ5: Exchanged from Milton Lake to Highlands Reservoir Diversion No. 2 | AIK5: Exchanged from Milton Lake to Highlands Reservoir Diversion No. 3 | AIL5: Exchanged from Milton Lake to East Neres Headgate | AIM5: Total Exchanged from Milton Lake under 12/14/2016 Appropriation Date | AIN5: Measured from Confluence of Cache la Poudre and SPR For Exchange | AIO5: Exchanged from Confluence of Cache la Poudre and SPR to Greeley Canal No. 2 Headgate | AIP5: Exchanged from Confluence of Cache la Poudre and SPR to Serfer Pit | AIQ5: Total Exchanged from Confluence of Cache la Poudre and SPR under 12/14/2016 Appropriation Date | AIR5: Measured from Sand Creek Aug Station For Exchange | AIS5: Exchanged from Sand Creek Aug Station to Greeley Canal No. 2 Headgate | AIT5: Exchanged from Sand Creek Aug Station to Serfer Pit | AIU5: Total Exchanged from Sand Creek Aug Station under 12/14/2016 Appropriation Date | AIV5: Measured from Eaton Draw Aug Station For Exchange | AIW5: Exchanged from Eaton Draw Aug Station to Greeley Canal No. 2 Headgate | AIX5: Exchanged from Eaton Draw Aug Station to Serfer Pit | AIY5: Total Exchanged from Eaton Draw Aug Station under 12/14/2016 Appropriation Date | AIZ5: Measured from Graham Seep Aug Station For Exchange | AJA5: Exchanged from Graham Seep Aug Station to Greeley Canal No. 2 Headgate | AJB5: Exchanged from Graham Seep Aug Station to Serfer Pit | AJC5: Total Exchanged from Graham Seep Aug Station under 12/14/2016 Appropriation Date | AJD5: Measured from Orr Lateral Aug Station For Exchange | AJE5: Exchanged from Orr Lateral Aug Station to Greeley Canal No. 2 Headgate | AJF5: Exchanged from Orr Lateral Aug Station to Serfer Pit | AJG5: Total Exchanged from Orr Lateral Aug Station under 12/14/2016 Appropriation Date | AJH5: Measured from John Law Seepage Ditch For Exchange | AJI5: Exchanged from John Law Seepage Ditch to Greeley Canal No. 2 Headgate | AJJ5: Exchanged from John Law Seepage Ditch to Serfer Pit | AJK5: Total Exchanged from John Law Seepage Ditch under 12/14/2016 Appropriation Date | AJL5: Measured from Serfer Pit For Exchange | AJM5: Exchanged from Serfer Pit to Greeley Canal No. 2 Headgate | AJN5: Total Exchanged from Greeley Canal No. 2 Serfer Aug Station under 12/14/2016 Appropriation Date | AJO5: Measured from Serfer Augmentation Station For Exchange | AJP5: Exchanged from Serfer Augmentation Station to Greeley Canal No. 2 Headgate | AJQ5: Total Exchanged from Serfer Augmentation Station under 12/14/2016 Appropriation Date | AJR5: Total Exchanged to Burlington Canal | AJS5: Total Exchanged to UDF No. 3 | AJT5: Total Exchanged to Binder Pipeline | AJU5: Total Exchanged to FIDCO Headgate | AJV5: Total Exchanged to Western Mutual Headgate | AJW5: Total Exchanged to Milliken South Diversion | AJX5: Total Exchanged to Milliken Pump 2 | AJY5: Total Exchanged to St. Vrain Pipeline | AJZ5: Total Exchanged to Milliken Pump 1 | AKA5: Total Exchanged to Milliken North Diversion | AKB5: Total Exchanged to Powell Spillway | AKC5: Total Exchanged to Confluence of CLP and SPR | AKD5: Total Exchanged to UDF No. 1 | AKE5: Total Exchanged to 70 Ranch Reservoir Surface Diversion | AKF5: Total Exchanged to Barr Lake | AKG5: Total Exchanged to Toe of Barr Lake Dam | AKH5: Total Exchanged to DeSanti Headgate | AKI5: Total Exchanged to Bowles Seep Headgate | AKJ5: Total Exchanged to Highlands Reservoir Diversion No. 4 | AKK5: Total Exchanged to Highlands Reservoir Diversion No. 1 | AKL5: Total Exchanged to Highlands Reservoir Diversion No. 2 | AKM5: Total Exchanged to Highlands Reservoir Diversion No. 3 | AKN5: Total Exchanged to East Neres Headgate | AKO5: Total Exchanged to Greeley Canal No. 2 | AKP5: Total Exchanged to Serfer Pit | AKQ5: Total Exchanged under 16CW3196 | AKR5: Total Exchanged under 12/31/2003 Appropriation Date, Decree 02CW404 | AKS5: Total Exchanged under 5/31/2007 Appropriation Date, Decree 11CW285 | AKT5: Total Exchanged under 12/29/2011 Appropriation Date, Decree 11CW285 | AKU5: Total Aggregate Rate of Exchange | AKV5: Cumulative Total | AKW5: Maximum Allowable Total Aggregate Rate of Exchange | AKY5: Surplus ECCV Beebe Recharge Accretions abv Milton | AKZ5: Surplus Recharge Accretions Delivered to Milton Lake | ALA5: Surplus ECCV Beebe Recharge Accretions Diverted to Bowles Seep | ALB5: Surplus ECCV Beebe Recharge Accretions Diverted to East Neres | ALC5: Surplus ECCV Beebe Recharge Accretions Diverted to Speer | ALD5: Surplus ECCV Beebe Recharge Accretions Diverted to West Burl. | ALE5: Surplus ECCV Beebe Recharge Accretions Diverted to East Burl. | ALF5: Surplus ECCV Beebe Recharge Accretions Diverted to Neres | ALG5: Surplus ECCV Recharge Accretions Diverted to the Tu Site | ALH5: Surplus ECCV Recharge Accretions Diverted to the Mile High Lakes Site | ALI5: Surplus ECCV Recharge Accretions Diverted to the Bromley Site | ALJ5: Surplus ECCV Recharge Accretions Diverted to the Schupman Site | ALK5: Surplus ECCV Recharge Accretions Diverted to the Moser Site | ALL5: Surplus ECCV Recharge Accretions Diverted to the Pettinger East Site | ALM5: Surplus ECCV Recharge Accretions Diverted to the Pettinger West Site | ALN5: Surplus ECCV Recharge Accretions Diverted to the Artese Site | ALO5: Surplus ECCV Recharge Accretions Diverted to the Dechant Site | ALP5: Surplus ECCV Recharge Accretions Diverted to Carlin Site | ALQ5: Surplus ECCV Recharge Accretions Diverted to the Klug Site | ALR5: Surplus ECCV Recharge Accretions Diverted to the Sater Site | ALS5: Check on Diversion of Surplus Recharge Accretions (must be >=0) | ALT5: Check on ECCV LIRFs use of credits | ALU5: Check on ECCV FIDCO credits | ALV5: Haren Accretions Check | ALX5: Release from Barr Lake for Replacement | ALY5: Release from Milton Lake for Replacement | AMA5: Days in the Month
A6: WDID | AA6: 100587 | AB6: 100587 | AC6: 100587 | AD6: 100587 | AF6: 100587 | AG6: 0109961, 0109962, 0109963, 0109964 | AH6: 0107968, 0107969, 0107656, 0107657, 0107520, 0109719 | AI6: 0110707, 0110708, 0110709 | AJ6: 0110707, 0110708, 0110709 | AK6: 0110707, 0110708, 0110709 | AL6: 0110707, 0110708, 0110709 | BL6: 102900 | BM6: 102909 | BV6: 201511 | BX6: 203388 | BZ6: added | CA6: added | CG6: 0100507, 0100503, 0100514 | CH6: 0100507, 0100503, 0100514 | CI6: 0100507, 0100503, 0100514 | CJ6: 0100507, 0100503, 0100514 | DC6: 102917 | DF6: 102907 | DW6: 201511 | EA6: 203388 | EG6: 300771 | EV6: 302320 | EX6: 302318 | FI6: 302902 | FK6: 302319 | FW6: 102932 | GE6: 102911 | GI6: 102917 | GJ6: 102917 | GK6: 102917 | GO6: 201511 | GU6: 203388 | HS6: 201511 | IZ6: 202909 | JB6: 202908 | JI6: 200825 | JJ6: 200825 | JK6: 200825 | JP6: 201511 | JT6: 203388 | JU6: 203388 | JZ6: 202921 | KB6: 0202909 | LE6: 202908 | LM6: 201511 | LN6: 201511 | PO6: 11CW285 Max = 12.2 cfs | PS6: 16CW3196 Max = 27.55 cfs | PT6: 16CW3196 Max = 27.55 cfs | PU6: 16CW3196 Max = 30 cfs | PV6: 16CW3196 Max = 86.15 cfs | PW6: 16CW3196 Max = 86.15 cfs | PX6: 16CW3196 Max = 27.55 cfs | PY6: 16CW3196 Max = 86.15 cfs | PZ6: 16CW3196 Max = 86.15 cfs | QA6: 16CW3196 Max = 27.55 cfs | QB6: 16CW3196 Max = 41 cfs | QC6: 16CW3196 Max = 20 cfs | QD6: 16CW3196 Max = 86.15 cfs | QE6: 16CW3196 Max = 86.15 cfs | QH6: 11CW285 Max = 12.2 cfs | QI6: 404/442 Max = 12.2 cfs | QJ6: 11CW285 Max = 12.2 cfs | QK6: 11CW285 Max = 12.2 cfs | QL6: 404/442 Max = 12.2 cfs | QM6: 404/442 Max = 12.2 cfs | QN6: 404/442 Max = 12.2 cfs | QO6: 404/442 Max = 12.2 cfs | QU6: 16CW3196 Max = 3.51 cfs | QV6: 16CW3196 Max = 3.51 cfs | QW6: 16CW3196 Max = 3.51 cfs | QX6: 16CW3196 Max = 3.51 cfs | QY6: 16CW3196 Max = 3.51 cfs | QZ6: 16CW3196 Max = 3.51 cfs | RA6: 16CW3196 Max = 3.51 cfs | RB6: 16CW3196 Max = 3.51 cfs | RC6: 16CW3196 Max = 3.51 cfs | RF6: 404/442 Max = 14.2 cfs | RG6: 11CW285 Max = 14.2 cfs | RH6: 11CW285 Max = 14.2 cfs | RI6: 404/442 Max = 14.2 cfs | RJ6: 404/442 Max = 14.2 cfs | RK6: 404/442 Max = 14.2 cfs | RL6: 404/442 Max = 14.2 cfs | RR6: 16CW3196 Max = 3.0 cfs | RS6: 16CW3196 Max = 3.0 cfs | RT6: 16CW3196 Max = 11.79 cfs | RU6: 16CW3196 Max = 11.79 cfs | RV6: 16CW3196 Max = 11.79 cfs | RW6: 16CW3196 Max = 3.0 cfs | RX6: 16CW3196 Max = 11.79 cfs | RY6: 16CW3196 Max = 3.0 cfs | RZ6: 16CW3196 Max = 11.79 cfs | SA6: 16CW3196 Max = 3.0 cfs | SB6: 16CW3196 Max = 11.79 cfs | SC6: 16CW3196 Max = 11.79 cfs | SD6: 16CW3196 Max = 11.79 cfs | SE6: 16CW3196 Max = 11.79 cfs | SH6: 16CW3196 Max = 1.5 cfs | SI6: 16CW3196 Max = 1.5 cfs | SJ6: 16CW3196 Max = 10.29 cfs | SK6: 16CW3196 Max = 10.29 cfs | SL6: 16CW3196 Max = 10.29 cfs | SM6: 16CW3196 Max = 1.5 cfs | SN6: 16CW3196 Max = 10.29 cfs | SO6: 16CW3196 Max = 1.5 cfs | SP6: 16CW3196 Max = 10.29 cfs | SQ6: 16CW3196 Max = 1.5 cfs | SR6: 16CW3196 Max = 10.29 cfs | SS6: 16CW3196 Max = 10.29 cfs | ST6: 16CW3196 Max = 10.29 cfs | SU6: 16CW3196 Max = 10.29 cfs | SX6: 404/442 Max = 11 cfs | SY6: 11CW285 Max = 11 cfs | SZ6: 11CW285 Max = 11 cfs | TA6: 404/442 Max = 11 cfs | TB6: 404/442 Max = 11 cfs | TC6: 404/442 Max = 11 cfs | TD6: 404/442 Max = 11 cfs | TJ6: 16CW3196 Max = 11 cfs | TK6: 16CW3196 Max = 11 cfs | TL6: 16CW3196 Max = 11 cfs | TM6: 16CW3196 Max = 11 cfs | TN6: 16CW3196 Max = 11 cfs | TO6: 16CW3196 Max = 11 cfs | TP6: 16CW3196 Max = 11 cfs | TQ6: 16CW3196 Max = 11 cfs | TR6: 16CW3196 Max = 11 cfs | TU6: 16CW3196 Max = 49.64 cfs | TV6: 16CW3196 Max = 49.64 cfs | TW6: 16CW3196 Max = 30 cfs | TX6: 16CW3196 Max = 70.84 cfs | TY6: 16CW3196 Max = 70.84 cfs | TZ6: 16CW3196 Max = 49.64 cfs | UA6: 16CW3196 Max = 70.84 cfs | UB6: 16CW3196 Max = 28.8 cfs | UC6: 16CW3196 Max = 70.84 cfs | UD6: 16CW3196 Max = 49.64 cfs | UE6: 16CW3196 Max = 41 cfs | UF6: 16CW3196 Max = 20 cfs | UG6: 16CW3196 Max = 70.84 cfs | UH6: 16CW3196 Max = 70.84 cfs | UK6: 16CW3196 Max = 11 cfs | UL6: 16CW3196 Max = 11 cfs | UM6: 16CW3196 Max = 11 cfs | UN6: 16CW3196 Max = 11 cfs | UO6: 16CW3196 Max = 11 cfs | UP6: 16CW3196 Max = 11 cfs | UQ6: 16CW3196 Max = 11 cfs | UR6: 16CW3196 Max = 11 cfs | UU6: 16CW3196 Max = 100 cfs | UV6: 16CW3196 Max = 100 cfs | UW6: 16CW3196 Max = 30 cfs | UX6: 16CW3196 Max = 100 cfs | UY6: 16CW3196 Max = 100 cfs | UZ6: 16CW3196 Max = 100 cfs | VA6: 16CW3196 Max = 100 cfs | VB6: 16CW3196 Max = 50 cfs | VC6: 16CW3196 Max = 100 cfs | VD6: 16CW3196 Max = 100 cfs | VE6: 16CW3196 Max = 41 cfs | VF6: 16CW3196 Max = 20 cfs | VG6: 16CW3196 Max = 100 cfs | VJ6: 16CW3196 Max = 3.3 cfs | VK6: 16CW3196 Max = 3.3 cfs | VL6: 16CW3196 Max = 3.3 cfs | VM6: 16CW3196 Max = 3.3 cfs | VN6: 16CW3196 Max = 3.3 cfs | VO6: 16CW3196 Max = 3.3 cfs | VP6: 16CW3196 Max = 3.3 cfs | VS6: 16CW3196 Max = 38.64 cfs | VT6: 16CW3196 Max = 38.64 cfs | VU6: 16CW3196 Max = 30 cfs | VV6: 16CW3196 Max = 59.84 cfs | VW6: 16CW3196 Max = 59.84 cfs | VX6: 16CW3196 Max = 38.64 cfs | VY6: 16CW3196 Max = 59.84 cfs | VZ6: 16CW3196 Max = 28.8 cfs | WA6: 16CW3196 Max = 59.84 cfs | WB6: 16CW3196 Max = 38.64 cfs | WC6: 16CW3196 Max = 41 cfs | WD6: 16CW3196 Max = 20 cfs | WG6: 16CW3196 Max = 7.34 cfs | WH6: 16CW3196 Max = 7.34 cfs | WI6: 16CW3196 Max = 12.54 cfs | WJ6: 16CW3196 Max = 12.54 cfs | WK6: 16CW3196 Max = 12.54 cfs | WL6: 16CW3196 Max = 7.34 cfs | WM6: 16CW3196 Max = 12.54 cfs | WN6: 16CW3196 Max = 7.34 cfs | WO6: 16CW3196 Max = 12.54 cfs | WP6: 16CW3196 Max = 7.34 cfs | WQ6: 16CW3196 Max = 12.54 cfs | WR6: 16CW3196 Max = 12.54 cfs | WU6: 16CW3196 Max = 3.6 cfs | WV6: 16CW3196 Max = 3.6 cfs | WW6: 16CW3196 Max = 3.6 cfs | WX6: 16CW3196 Max = 3.6 cfs | WY6: 16CW3196 Max = 3.6 cfs | WZ6: 16CW3196 Max = 3.6 cfs | XA6: 16CW3196 Max = 3.6 cfs | XD6: 16CW3196 Max = 7.34 cfs | XE6: 16CW3196 Max = 7.34 cfs | XF6: 16CW3196 Max = 12.54 cfs | XG6: 16CW3196 Max = 12.54 cfs | XH6: 16CW3196 Max = 12.54 cfs | XI6: 16CW3196 Max = 7.34 cfs | XJ6: 16CW3196 Max = 12.54 cfs | XK6: 16CW3196 Max = 7.34 cfs | XL6: 16CW3196 Max = 12.54 cfs | XM6: 16CW3196 Max = 7.34 cfs | XN6: 16CW3196 Max = 12.54 cfs | XO6: 16CW3196 Max = 12.54 cfs | XU6: 11CW285 Max = 5.2 cfs | XV6: 11CW285 Max = 5.2 cfs | XW6: 404/442 Max = 5.2 cfs | XX6: 404/442 Max = 5.2 cfs | XY6: 404/442 Max = 5.2 cfs | XZ6: 404/442 Max = 5.2 cfs | YF6: 16CW3196 Max = 7.34 cfs | YG6: 16CW3196 Max = 7.34 cfs | YH6: 16CW3196 Max = 12.54 cfs | YI6: 16CW3196 Max = 12.54 cfs | YJ6: 16CW3196 Max = 12.54 cfs | YK6: 16CW3196 Max = 7.34 cfs | YL6: 16CW3196 Max = 12.54 cfs | YM6: 16CW3196 Max = 7.34 cfs | YN6: 16CW3196 Max = 12.54 cfs | YO6: 16CW3196 Max = 7.34 cfs | YP6: 16CW3196 Max = 12.54 cfs | YS6: 11CW285 Max = 5.5 cfs | YT6: 11CW285 Max = 5.5 cfs | YU6: 404/442 Max = 5.5 cfs | YV6: 404/442 Max = 5.5 cfs | YW6: 404/442 Max = 5.5 cfs | ZC6: 16CW3196 Max = 4.15 cfs | ZD6: 16CW3196 Max = 4.15 cfs | ZE6: 16CW3196 Max = 9.65 cfs | ZF6: 16CW3196 Max = 9.65 cfs | ZG6: 16CW3196 Max = 9.65 cfs | ZH6: 16CW3196 Max = 4.15 cfs | ZI6: 16CW3196 Max = 9.65 cfs | ZJ6: 16CW3196 Max = 4.15 cfs | ZK6: 16CW3196 Max = 9.65 cfs | ZL6: 16CW3196 Max = 4.15 cfs | ZO6: 16CW3196 Max = 30.06 cfs | ZP6: 16CW3196 Max = 30.06 cfs | ZQ6: 16CW3196 Max = 30 cfs | ZR6: 16CW3196 Max = 47.3 cfs | ZS6: 16CW3196 Max = 47.3 cfs | ZT6: 16CW3196 Max = 30.06 cfs | ZU6: 16CW3196 Max = 47.3 cfs | ZV6: 16CW3196 Max = 30.06 cfs | ZW6: 16CW3196 Max = 47.3 cfs | ZX6: 16CW3196 Max = 30.06 cfs | AAA6: 16CW3196 Max = 12.06 cfs | AAB6: 16CW3196 Max = 12.06 cfs | AAC6: 16CW3196 Max = 12.06 cfs | AAD6: 16CW3196 Max = 12.06 cfs | AAE6: 16CW3196 Max = 12.06 cfs | AAF6: 16CW3196 Max = 12.06 cfs | AAG6: 16CW3196 Max = 12.06 cfs | AAH6: 16CW3196 Max = 12.06 cfs | AAI6: 16CW3196 Max = 12.06 cfs | AAJ6: 16CW3196 Max = 12.06 cfs | AAM6: 16CW3196 Max = 0.91 cfs | AAN6: 16CW3196 Max = 0.91 cfs | AAO6: 16CW3196 Max = 2.41 cfs | AAP6: 16CW3196 Max = 2.41 cfs | AAQ6: 16CW3196 Max = 2.41 cfs | AAR6: 16CW3196 Max = 0.91 cfs | AAS6: 16CW3196 Max = 2.41 cfs | AAT6: 16CW3196 Max = 0.91 cfs | AAU6: 16CW3196 Max = 2.41 cfs | AAV6: 16CW3196 Max = 0.91 cfs | AAY6: 16CW3196 Max = 9 cfs | AAZ6: 16CW3196 Max = 9 cfs | ABA6: 16CW3196 Max = 9 cfs | ABB6: 16CW3196 Max = 9 cfs | ABC6: 16CW3196 Max = 9 cfs | ABF6: 16CW3196 Max = 10 cfs | ABG6: 16CW3196 Max = 10 cfs | ABH6: 16CW3196 Max = 10 cfs | ABI6: 16CW3196 Max = 10 cfs | ABJ6: 16CW3196 Max = 10 cfs | ABK6: 16CW3196 Max = 10 cfs | ABL6: 16CW3196 Max = 10 cfs | ABM6: 16CW3196 Max = 10 cfs | ABN6: 16CW3196 Max = 10 cfs | ABO6: 16CW3196 Max = 10 cfs | ABR6: 16CW3196 Max = 4.15 cfs | ABS6: 16CW3196 Max = 4.15 cfs | ABT6: 16CW3196 Max = 9.65 cfs | ABU6: 16CW3196 Max = 9.65 cfs | ABV6: 16CW3196 Max = 9.65 cfs | ABW6: 16CW3196 Max = 4.15 cfs | ABX6: 16CW3196 Max = 9.65 cfs | ABY6: 16CW3196 Max = 4.15 cfs | ABZ6: 16CW3196 Max = 9.65 cfs | ACA6: 16CW3196 Max = 4.15 cfs | ACD6: 11CW285 Max = 50 cfs | ACE6: 404/442 Max = 260 cfs | ACF6: 404/442 Max = 260 cfs | ACG6: 404/442 Max = 260 cfs | ACM6: 16CW3196 Max = 30 cfs | ACN6: 16CW3196 Max = 147 cfs | ACO6: 16CW3196 Max = 185 cfs | ACR6: 16CW3196 Max = 30 cfs | ACS6: 16CW3196 Max = 147 cfs | ACT6: 16CW3196 Max = 185 cfs | ACW6: 11CW285 Max = 50 cfs | ADA6: 16CW3196 Max = 10 cfs | ADB6: 16CW3196 Max = 10 cfs | ADC6: 16CW3196 Max = 10 cfs | ADD6: 16CW3196 Max = 10 cfs | ADE6: 16CW3196 Max = 10 cfs | ADF6: 16CW3196 Max = 10 cfs | ADG6: 16CW3196 Max = 10 cfs | ADJ6: 16CW3196 Max = 260 cfs | ADK6: 16CW3196 Max = 260 cfs | ADL6: 16CW3196 Max = 30 cfs | ADM6: 16CW3196 Max = 147 cfs | ADN6: 16CW3196 Max = 185 cfs | ADQ6: 16CW3196 Max = 260 cfs | ADR6: 16CW3196 Max = 260 cfs | ADS6: 16CW3196 Max = 30 cfs | ADT6: 16CW3196 Max = 147 cfs | ADU6: 16CW3196 Max = 185 cfs | ADX6: 16CW3196 Max = 9.65 cfs | ADY6: 16CW3196 Max = 9.65 cfs | ADZ6: 16CW3196 Max = 9.65 cfs | AEA6: 16CW3196 Max = 9.65 cfs | AED6: 16CW3196 Max = 17.41 cfs | AEE6: 16CW3196 Max = 17.41 cfs | AEF6: 16CW3196 Max = 18.65 cfs | AEG6: 16CW3196 Max = 18.65 cfs | AEJ6: 11CW285 Max = 50 cfs | AEK6: 11CW285 Max = 50 cfs | AEO6: 16CW3196 Max = 30 cfs | AER6: 11CW285 Max = 1.5 cfs | AES6: 404/442 Max = 1.5 cfs | AET6: 404/442 Max = 1.5 cfs | AEU6: 404/442 Max = 1.5 cfs | AFA6: 16CW3196 Max = 2.41 cfs | AFB6: 16CW3196 Max = 2.41 cfs | AFC6: 16CW3196 Max = 2.41 cfs | AFF6: 16CW3196 Max = 1.19 cfs | AFI6: 16CW3196 Max = 1.19 cfs | AFL6: 16CW3196 Max = 1.19 cfs | AFO6: 16CW3196 Max = 16.24 cfs | AFP6: 16CW3196 Max = 16.24 cfs | AFS6: 16CW3196 Max = 50 cfs | AFT6: 16CW3196 Max = 41 cfs | AFU6: 16CW3196 Max = 12 cfs | AFX6: 16CW3196 Max = 50 cfs | AFY6: 16CW3196 Max = 41 cfs | AFZ6: 16CW3196 Max = 12 cfs | AGA6: 16CW3196 Max = 30 cfs | AGB6: 16CW3196 Max = 50 cfs | AGE6: 16CW3196 Max = 50 cfs | AGF6: 16CW3196 Max = 41 cfs | AGG6: 16CW3196 Max = 12 cfs | AGH6: 16CW3196 Max = 30 cfs | AGI6: 16CW3196 Max = 50 cfs | AGL6: 16CW3196 Max = 50 cfs | AGM6: 16CW3196 Max = 41 cfs | AGN6: 16CW3196 Max = 12 cfs | AGO6: 16CW3196 Max = 30 cfs | AGP6: 16CW3196 Max = 50 cfs | AGQ6: 16CW3196 Max = 50 cfs | AGT6: 16CW3196 Max = 50 cfs | AGU6: 16CW3196 Max = 41 cfs | AGV6: 16CW3196 Max = 12 cfs | AGW6: 16CW3196 Max = 30 cfs | AGX6: 16CW3196 Max = 50 cfs | AGY6: 16CW3196 Max = 50 cfs | AGZ6: 16CW3196 Max = 50 cfs | AHC6: 16CW3196 Max = 84 cfs | AHD6: 16CW3196 Max = 41 cfs | AHE6: 16CW3196 Max = 12 cfs | AHF6: 16CW3196 Max = 30 cfs | AHG6: 16CW3196 Max = 50 cfs | AHH6: 16CW3196 Max = 50 cfs | AHI6: 16CW3196 Max = 50 cfs | AHL6: 16CW3196 Max = 84 cfs | AHM6: 16CW3196 Max = 41 cfs | AHN6: 16CW3196 Max = 12 cfs | AHO6: 16CW3196 Max = 30 cfs | AHP6: 16CW3196 Max = 50 cfs | AHQ6: 16CW3196 Max = 50 cfs | AHR6: 16CW3196 Max = 50 cfs | AHU6: 16CW3196 Max = 84 cfs | AHV6: 16CW3196 Max = 41 cfs | AHW6: 16CW3196 Max = 12 cfs | AHX6: 16CW3196 Max = 30 cfs | AHY6: 16CW3196 Max = 50 cfs | AHZ6: 16CW3196 Max = 50 cfs | AIA6: 16CW3196 Max = 50 cfs | AID6: 16CW3196 Max = 84 cfs | AIE6: 16CW3196 Max = 41 cfs | AIF6: 16CW3196 Max = 12 cfs | AIG6: 16CW3196 Max = 30 cfs | AIH6: 16CW3196 Max = 50 cfs | AII6: 16CW3196 Max = 50 cfs | AIJ6: 16CW3196 Max = 50 cfs | AIK6: 16CW3196 Max = 50 cfs | AIL6: 16CW3196 Max = 40 cfs | AIO6: 16CW3196 Max = 20 cfs | AIP6: 16CW3196 Max = 20 cfs | AIS6: 16CW3196 Max = 20 cfs | AIT6: 16CW3196 Max = 20 cfs | AIW6: 16CW3196 Max = 20 cfs | AIX6: 16CW3196 Max = 20 cfs | AJA6: 16CW3196 Max = 20 cfs | AJB6: 16CW3196 Max = 20 cfs | AJE6: 16CW3196 Max = 20 cfs | AJF6: 16CW3196 Max = 20 cfs | AJI6: 16CW3196 Max = 20 cfs | AJJ6: 16CW3196 Max = 20 cfs | AJM6: 16CW3196 Max = 20 cfs | AJP6: 16CW3196 Max = 20 cfs
AA7: cfs | AB7: cfs | AC7: cfs | AD7: cfs | AE7: cfs | AF7: cfs | AG7: cfs | AH7: cfs | AI7: cfs | AJ7: cfs | AK7: cfs | AL7: cfs | AM7: cfs | AN7: cfs | AO7: cfs | AP7: cfs | AQ7: cfs | AR7: cfs | AS7: cfs | AT7: cfs | AU7: cfs | AV7: cfs | AW7: cfs | AX7: cfs | AY7: cfs | AZ7: cfs | BA7: cfs | BB7: cfs | BC7: cfs | BD7: cfs | BE7: cfs | BF7: cfs | BG7: cfs | BH7: cfs | BI7: cfs | BJ7: cfs | BK7: cfs | BL7: cfs | BM7: cfs | BN7: cfs | BO7: cfs | BP7: cfs | BQ7: cfs | BR7: cfs | BS7: cfs | BT7: cfs | BU7: cfs | BV7: cfs | BW7: cfs | BX7: cfs | BY7: cfs | CB7: cfs | CD7: cfs | CE7: cfs | CF7: cfs | CG7: cfs | CH7: cfs | CI7: cfs | CJ7: cfs | CK7: cfs | CL7: cfs | CM7: cfs | CN7: cfs | CO7: cfs | CP7: cfs | CQ7: cfs | CR7: cfs | CS7: cfs | CT7: cfs | CU7: cfs | CV7: cfs | CW7: cfs | CX7: cfs | CY7: cfs | CZ7: cfs | DA7: cfs | DB7: cfs | DC7: cfs | DD7: cfs | DE7: cfs | DF7: cfs | DG7: cfs | DH7: cfs | DI7: cfs | DJ7: cfs | DK7: cfs | DL7: cfs | DM7: cfs | DN7: cfs | DO7: cfs | DP7: cfs | DQ7: cfs | DR7: cfs | DS7: cfs | DT7: cfs | DU7: cfs | DV7: cfs | DW7: cfs | DX7: cfs | DY7: cfs | DZ7: cfs | EA7: cfs | EB7: cfs | ED7: cfs | EE7: cfs | EF7: cfs | EG7: cfs | EH7: cfs | EI7: cfs | EJ7: cfs | EK7: cfs | EL7: cfs | EN7: cfs | EO7: cfs | EP7: cfs | EQ7: cfs | ER7: cfs | ES7: cfs | ET7: cfs | EU7: cfs | EV7: cfs | EW7: cfs | EX7: cfs | EY7: cfs | EZ7: cfs | FC7: cfs | FD7: cfs | FE7: cfs | FF7: cfs | FG7: cfs | FH7: cfs | FI7: cfs | FJ7: cfs | FK7: cfs | FL7: cfs | FM7: cfs | FN7: cfs | FO7: cfs | FP7: cfs | FQ7: cfs | FR7: cfs | FS7: cfs | FT7: cfs | FU7: cfs | FV7: cfs | FW7: cfs | FX7: cfs | FY7: cfs | FZ7: cfs | GA7: cfs | GB7: cfs | GC7: cfs | GD7: cfs | GE7: cfs | GF7: cfs | GG7: cfs | GI7: cfs | GJ7: cfs | GK7: cfs | GM7: cfs | GN7: cfs | GO7: cfs | GP7: cfs | GQ7: cfs | GR7: cfs | GS7: cfs | GT7: cfs | GU7: cfs | GV7: cfs | GW7: cfs | GY7: cfs | GZ7: cfs | HA7: cfs | HB7: cfs | HC7: cfs | HD7: cfs | HE7: cfs | HF7: cfs | HG7: cfs | HH7: cfs | HL7: cfs | HM7: cfs | HN7: cfs | HO7: cfs | HP7: cfs | HQ7: cfs | HR7: cfs | HS7: cfs | HT7: cfs | HU7: cfs | HV7: cfs | HW7: cfs | HX7: cfs | IA7: cfs | IB7: cfs | IE7: cfs | IF7: cfs | II7: cfs | IJ7: cfs | IK7: cfs | IL7: cfs | IM7: cfs | IN7: cfs | IO7: cfs | IP7: cfs | IQ7: cfs | IR7: cfs | IS7: cfs | IT7: cfs | IU7: cfs | IV7: cfs | IW7: cfs | IX7: cfs | IY7: cfs | IZ7: cfs | JA7: cfs | JB7: cfs | JC7: cfs | JD7: cfs | JE7: cfs | JI7: cfs | JJ7: cfs | JK7: cfs | JM7: cfs | JN7: cfs | JO7: cfs | JP7: cfs | JQ7: cfs | JR7: cfs | JS7: cfs | JT7: cfs | JU7: cfs | JV7: cfs | JW7: cfs | JY7: cfs | JZ7: cfs | KA7: cfs | KB7: cfs | KC7: cfs | KD7: cfs | KE7: cfs | KF7: cfs | KG7: cfs | KH7: cfs | KI7: cfs | KJ7: cfs | KK7: cfs | KL7: cfs | KM7: cfs | KN7: cfs | KO7: cfs | KP7: cfs | KQ7: cfs | KR7: cfs | KS7: cfs | KT7: cfs | KU7: cfs | KV7: cfs | KW7: cfs | KX7: cfs | KY7: cfs | KZ7: cfs | LA7: cfs | LB7: cfs | LC7: cfs | LD7: cfs | LE7: cfs | LF7: cfs | LG7: cfs | LI7: cfs | LJ7: cfs | LK7: cfs | LL7: cfs | LM7: cfs | LN7: cfs | LO7: cfs | LP7: cfs | LQ7: cfs | LR7: cfs | LS7: cfs | LT7: cfs | LU7: cfs | LV7: cfs | LW7: cfs | LX7: cfs | LY7: cfs | LZ7: cfs | MA7: cfs | MB7: cfs | MC7: cfs | MD7: cfs | ME7: cfs | MF7: cfs | MG7: cfs | MH7: cfs | MI7: cfs | MJ7: cfs | MK7: cfs | ML7: cfs | MM7: cfs | MN7: cfs | MO7: cfs | MP7: cfs | MQ7: cfs | MR7: cfs | MS7: cfs | MT7: cfs | MV7: cfs | MW7: cfs | MX7: cfs | MY7: cfs | MZ7: cfs | NA7: cfs | NB7: cfs | NC7: cfs | ND7: cfs | NE7: cfs | NF7: cfs | NG7: cfs | NH7: cfs | NI7: cfs | NJ7: cfs | NK7: cfs | NL7: cfs | NM7: cfs | NN7: cfs | NO7: cfs | NP7: cfs | NQ7: cfs | NR7: cfs | NS7: cfs | NT7: cfs | NU7: cfs | NV7: cfs | NW7: cfs | NX7: cfs | NZ7: cfs | OA7: cfs | OB7: cfs | OC7: cfs | OD7: cfs | OE7: cfs | OF7: cfs | OG7: cfs | OH7: cfs | OI7: cfs | OJ7: cfs | OK7: cfs | OL7: cfs | OM7: cfs | ON7: cfs | OO7: cfs | OP7: cfs | OQ7: cfs | OS7: cfs | OT7: cfs | OU7: cfs | OV7: cfs | OW7: cfs | OX7: cfs | OY7: cfs | OZ7: cfs | PA7: cfs | PB7: cfs | PC7: cfs | PD7: cfs | PE7: cfs | PF7: cfs | PG7: cfs | PN7: cfs | PO7: cfs | PP7: cfs | PR7: cfs | PS7: cfs | PT7: cfs | PU7: cfs | PV7: cfs | PW7: cfs | PX7: cfs | PY7: cfs | PZ7: cfs | QA7: cfs | QB7: cfs | QC7: cfs | QE7: cfs | QF7: cfs | QG7: cfs | QH7: cfs | QI7: cfs | QJ7: cfs | QK7: cfs | QL7: cfs | QM7: cfs | QN7: cfs | QO7: cfs | QP7: cfs | QQ7: cfs | QR7: cfs | QT7: cfs | QU7: cfs | QV7: cfs | QW7: cfs | QX7: cfs | QY7: cfs | QZ7: cfs | RA7: cfs | RC7: cfs | RD7: cfs | RF7: cfs | RG7: cfs | RH7: cfs | RI7: cfs | RJ7: cfs | RK7: cfs | RL7: cfs | RM7: cfs | RN7: cfs | RO7: cfs | RQ7: cfs | RR7: cfs | RS7: cfs | RT7: cfs | RU7: cfs | RV7: cfs | RW7: cfs | RX7: cfs | RY7: cfs | RZ7: cfs | SA7: cfs | SB7: cfs | SC7: cfs | SE7: cfs | SF7: cfs | SG7: cfs | SH7: cfs | SI7: cfs | SJ7: cfs | SK7: cfs | SL7: cfs | SM7: cfs | SN7: cfs | SO7: cfs | SP7: cfs | SQ7: cfs | SR7: cfs | SS7: cfs | SU7: cfs | SV7: cfs | SW7: cfs | SX7: cfs | SY7: cfs | SZ7: cfs | TA7: cfs | TB7: cfs | TC7: cfs | TD7: cfs | TE7: cfs | TF7: cfs | TG7: cfs | TI7: cfs | TJ7: cfs | TK7: cfs | TL7: cfs | TM7: cfs | TN7: cfs | TO7: cfs | TP7: cfs | TR7: cfs | TS7: cfs | TT7: cfs | TU7: cfs | TV7: cfs | TW7: cfs | TX7: cfs | TY7: cfs | TZ7: cfs | UA7: cfs | UB7: cfs | UC7: cfs | UD7: cfs | UE7: cfs | UF7: cfs | UH7: cfs | UI7: cfs | UJ7: cfs | UK7: cfs | UL7: cfs | UM7: cfs | UN7: cfs | UO7: cfs | UP7: cfs | UQ7: cfs | US7: cfs | UT7: cfs | UU7: cfs | UV7: cfs | UW7: cfs | UX7: cfs | UY7: cfs | UZ7: cfs | VA7: cfs | VB7: cfs | VC7: cfs | VD7: cfs | VE7: cfs | VF7: cfs | VH7: cfs | VI7: cfs | VJ7: cfs | VK7: cfs | VL7: cfs | VM7: cfs | VN7: cfs | VO7: cfs | VP7: cfs | VQ7: cfs | VR7: cfs | VS7: cfs | VT7: cfs | VU7: cfs | VV7: cfs | VW7: cfs | VX7: cfs | VY7: cfs | VZ7: cfs | WA7: cfs | WB7: cfs | WC7: cfs | WD7: cfs | WE7: cfs | WF7: cfs | WG7: cfs | WH7: cfs | WI7: cfs | WJ7: cfs | WK7: cfs | WL7: cfs | WM7: cfs | WN7: cfs | WO7: cfs | WP7: cfs | WQ7: cfs | WR7: cfs | WS7: cfs | WT7: cfs | WU7: cfs | WV7: cfs | WW7: cfs | WX7: cfs | WY7: cfs | WZ7: cfs | XA7: cfs | XB7: cfs | XC7: cfs | XD7: cfs | XE7: cfs | XF7: cfs | XG7: cfs | XH7: cfs | XI7: cfs | XJ7: cfs | XK7: cfs | XL7: cfs | XM7: cfs | XN7: cfs | XO7: cfs | XP7: cfs | XQ7: cfs | XR7: cfs | XS7: cfs | XT7: cfs | XU7: cfs | XV7: cfs | XW7: cfs | XX7: cfs | XY7: cfs | XZ7: cfs | YA7: cfs | YB7: cfs | YC7: cfs | YE7: cfs | YF7: cfs | YG7: cfs | YH7: cfs | YI7: cfs | YJ7: cfs | YK7: cfs | YL7: cfs | YM7: cfs | YN7: cfs | YO7: cfs | YP7: cfs | YQ7: cfs | YS7: cfs | YT7: cfs | YU7: cfs | YV7: cfs | YW7: cfs | YX7: cfs | YY7: cfs | YZ7: cfs | ZB7: cfs | ZC7: cfs | ZD7: cfs | ZE7: cfs | ZF7: cfs | ZG7: cfs | ZH7: cfs | ZI7: cfs | ZJ7: cfs | ZK7: cfs | ZL7: cfs | ZM7: cfs | ZN7: cfs | ZO7: cfs | ZP7: cfs | ZQ7: cfs | ZR7: cfs | ZS7: cfs | ZT7: cfs | ZU7: cfs | ZV7: cfs | ZW7: cfs | ZX7: cfs | ZY7: cfs | ZZ7: cfs | AAA7: cfs | AAB7: cfs | AAC7: cfs | AAD7: cfs | AAE7: cfs | AAF7: cfs | AAG7: cfs | AAH7: cfs | AAI7: cfs | AAJ7: cfs | AAK7: cfs | AAL7: cfs | AAM7: cfs | AAN7: cfs | AAO7: cfs | AAP7: cfs | AAQ7: cfs | AAR7: cfs | AAS7: cfs | AAT7: cfs | AAU7: cfs | AAV7: cfs | AAW7: cfs | AAX7: cfs | AAY7: cfs | AAZ7: cfs | ABA7: cfs | ABB7: cfs | ABC7: cfs | ABD7: cfs | ABE7: cfs | ABF7: cfs | ABG7: cfs | ABH7: cfs | ABI7: cfs | ABJ7: cfs | ABK7: cfs | ABL7: cfs | ABM7: cfs | ABN7: cfs | ABO7: cfs | ABP7: cfs | ABQ7: cfs | ABR7: cfs | ABS7: cfs | ABT7: cfs | ABU7: cfs | ABV7: cfs | ABW7: cfs | ABX7: cfs | ABY7: cfs | ABZ7: cfs | ACA7: cfs | ACB7: cfs | ACD7: cfs | ACE7: cfs | ACF7: cfs | ACG7: cfs | ACH7: cfs | ACI7: cfs | ACJ7: cfs | ACL7: cfs | ACM7: cfs | ACN7: cfs | ACO7: cfs | ACP7: cfs | ACQ7: cfs | ACR7: cfs | ACS7: cfs | ACT7: cfs | ACU7: cfs | ACW7: cfs | ACX7: cfs | ACZ7: cfs | ADA7: cfs | ADB7: cfs | ADC7: cfs | ADD7: cfs | ADE7: cfs | ADF7: cfs | ADG7: cfs | ADH7: cfs | ADI7: cfs | ADJ7: cfs | ADK7: cfs | ADL7: cfs | ADM7: cfs | ADN7: cfs | ADO7: cfs | ADP7: cfs | ADQ7: cfs | ADR7: cfs | ADS7: cfs | ADT7: cfs | ADU7: cfs | ADV7: cfs | ADW7: cfs | ADX7: cfs | ADY7: cfs | ADZ7: cfs | AEA7: cfs | AEB7: cfs | AEC7: cfs | AED7: cfs | AEE7: cfs | AEF7: cfs | AEG7: cfs | AEH7: cfs | AEI7: cfs | AEJ7: cfs | AEK7: cfs | AEN7: cfs | AEO7: cfs | AEP7: cfs | AER7: cfs | AES7: cfs | AET7: cfs | AEU7: cfs | AEV7: cfs | AEW7: cfs | AEX7: cfs | AEZ7: cfs | AFA7: cfs | AFB7: cfs | AFC7: cfs | AFD7: cfs | AFE7: cfs | AFF7: cfs | AFG7: cfs | AFH7: cfs | AFI7: cfs | AFJ7: cfs | AFK7: cfs | AFL7: cfs | AFM7: cfs | AFN7: cfs | AFO7: cfs | AFP7: cfs | AFQ7: cfs | AFR7: cfs | AFS7: cfs | AFT7: cfs | AFU7: cfs | AFV7: cfs | AFW7: cfs | AFX7: cfs | AFY7: cfs | AFZ7: cfs | AGA7: cfs | AGB7: cfs | AGC7: cfs | AGD7: cfs | AGE7: cfs | AGF7: cfs | AGG7: cfs | AGH7: cfs | AGI7: cfs | AGJ7: cfs | AGK7: cfs | AGL7: cfs | AGM7: cfs | AGN7: cfs | AGO7: cfs | AGP7: cfs | AGQ7: cfs | AGR7: cfs | AGS7: cfs | AGT7: cfs | AGU7: cfs | AGV7: cfs | AGW7: cfs | AGX7: cfs | AGY7: cfs | AGZ7: cfs | AHA7: cfs | AHB7: cfs | AHC7: cfs | AHD7: cfs | AHE7: cfs | AHF7: cfs | AHG7: cfs | AHH7: cfs | AHI7: cfs | AHJ7: cfs | AHK7: cfs | AHL7: cfs | AHM7: cfs | AHN7: cfs | AHO7: cfs | AHP7: cfs | AHQ7: cfs | AHR7: cfs | AHS7: cfs | AHT7: cfs | AHU7: cfs | AHV7: cfs | AHW7: cfs | AHX7: cfs | AHY7: cfs | AHZ7: cfs | AIA7: cfs | AIB7: cfs | AIC7: cfs | AID7: cfs | AIE7: cfs | AIF7: cfs | AIG7: cfs | AIH7: cfs | AII7: cfs | AIJ7: cfs | AIK7: cfs | AIL7: cfs | AIM7: cfs | AJR7: cfs | AJS7: cfs | AJT7: cfs | AJU7: cfs | AJV7: cfs | AJW7: cfs | AJX7: cfs | AJY7: cfs | AJZ7: cfs | AKA7: cfs | AKB7: cfs | AKC7: cfs | AKE7: cfs | AKQ7: cfs | AKR7: cfs | AKS7: cfs | AKT7: cfs | AKU7: cfs | AKW7: cfs | AKY7: cfs | AKZ7: cfs | ALA7: cfs | ALB7: cfs | ALC7: cfs | ALD7: cfs | ALE7: cfs | ALF7: cfs | ALG7: cfs | ALH7: cfs | ALI7: cfs | ALJ7: cfs | ALK7: cfs | ALL7: cfs | ALM7: cfs | ALN7: cfs | ALO7: cfs | ALP7: cfs | ALQ7: cfs | ALR7: cfs | ALS7: cfs | ALV7: cfs | ALX7: cfs | ALY7: cfs
C8: 1 | D8: =C8+1 -> 2 | E8: 3 | F8: 4 | G8: 5 | H8: 6 | I8: 7 | J8: 8 | K8: 9 | L8: 10 | M8: 11 | N8: 12 | O8: 13 | P8: 14 | Q8: 15 | R8: 16 | S8: =R8+1 -> 17 | T8: =S8+1 -> 18 | U8: =T8+1 -> 19 | V8: =U8+1 -> 20 | W8: =V8+1 -> 21 | X8: =W8+1 -> 22 | Y8: =X8+1 -> 23 | Z8: =Y8+1 -> 24 | AA8: 25 | AB8: 26 | AC8: 27 | AD8: 28 | AE8: 29 | AF8: 30 | AG8: =AF8+1 -> 31 | AH8: 32 | AI8: 33 | AJ8: 34 | AK8: 35 | AL8: 36 | AM8: 37 | AN8: 38 | AO8: 39 | AP8: 40 | AQ8: 41 | AR8: =AQ8+1 -> 42 | AS8: 43 | AT8: 44 | AU8: 45 | AV8: 46 | AW8: =AV8+1 -> 47 | AX8: =AW8+1 -> 48 | AY8: 49 | AZ8: 50 | BA8: 51 | BB8: 52 | BC8: 53 | BD8: 54 | BE8: 55 | BF8: 56 | BG8: 57 | BH8: 58 | BI8: =BH8+1 -> 59 | BJ8: 60 | BK8: 61 | BL8: 62 | BM8: 63 | BN8: =BM8+1 -> 64 | BO8: =BN8+1 -> 65 | BP8: =BO8+1 -> 66 | BQ8: =BP8+1 -> 67 | BR8: =BQ8+1 -> 68 | BS8: 69 | BT8: 70 | BU8: 71 | BV8: 72 | BW8: 73 | BX8: 74 | BY8: 75 | BZ8: =BY8+1 -> 76 | CA8: =BZ8+1 -> 77 | CB8: =CA8+1 -> 78 | CC8: 79 | CD8: =CC8+1 -> 80 | CE8: =CD8+1 -> 81 | CF8: 82 | CG8: =CF8+1 -> 83 | CH8: 84 | CI8: 85 | CJ8: 86 | CK8: 87 | CL8: 88 | CM8: 89 | CN8: 90 | CO8: 91 | CP8: 92 | CQ8: =CP8+1 -> 93 | CR8: 94 | CS8: 95 | CT8: 96 | CU8: 97 | CV8: 98 | CW8: 99 | CX8: 100 | CY8: 101 | CZ8: 102 | DA8: 103 | DB8: =DA8+1 -> 104 | DC8: 105 | DD8: 106 | DE8: =DD8+1 -> 107 | DF8: =DE8+1 -> 108 | DG8: 109 | DH8: 110 | DI8: 111 | DJ8: 112 | DK8: 113 | DL8: 114 | DM8: =DL8+1 -> 115 | DN8: =DM8+1 -> 116 | DO8: =DN8+1 -> 117 | DP8: 118 | DQ8: 119 | DR8: 120 | DS8: 121 | DT8: 122 | DU8: 123 | DV8: 124 | DW8: 125 | DX8: 126 | DY8: =DX8+1 -> 127 | DZ8: =DY8+1 -> 128 | EA8: =DZ8+1 -> 129 | EB8: 130 | EC8: =EB8+1 -> 131 | ED8: 132 | EE8: =ED8+1 -> 133 | EF8: =EE8+1 -> 134 | EG8: =EF8+1 -> 135 | EH8: 136 | EI8: 137 | EJ8: 138 | EK8: =EJ8+1 -> 139 | EL8: 140 | EM8: 141 | EN8: 142 | EO8: 143 | EP8: 144 | EQ8: 145 | ER8: =EQ8+1 -> 146 | ES8: 147 | ET8: 148 | EU8: 149 | EV8: 150 | EW8: 151 | EX8: 152 | EY8: 153 | EZ8: =EY8+1 -> 154 | FA8: 155 | FB8: 156 | FC8: =FB8+1 -> 157 | FD8: 158 | FE8: 159 | FF8: 160 | FG8: 161 | FH8: 162 | FI8: 163 | FJ8: 164 | FK8: 165 | FL8: 166 | FM8: 167 | FN8: =FM8+1 -> 168 | FO8: =FN8+1 -> 169 | FP8: =FO8+1 -> 170 | FQ8: =FP8+1 -> 171 | FR8: =FQ8+1 -> 172 | FS8: =FR8+1 -> 173 | FT8: =FS8+1 -> 174 | FU8: =FT8+1 -> 175 | FV8: =FU8+1 -> 176 | FW8: =FV8+1 -> 177 | FX8: =FW8+1 -> 178 | FY8: =FX8+1 -> 179 | FZ8: =FY8+1 -> 180 | GA8: =FZ8+1 -> 181 | GB8: =GA8+1 -> 182 | GC8: =GB8+1 -> 183 | GD8: =GC8+1 -> 184 | GE8: =GD8+1 -> 185 | GF8: =GE8+1 -> 186 | GG8: =GF8+1 -> 187 | GH8: =GG8+1 -> 188 | GI8: =GH8+1 -> 189 | GJ8: 190 | GK8: 191 | GL8: 192 | GM8: 193 | GN8: 194 | GO8: 195 | GP8: =GO8+1 -> 196 | GQ8: =GP8+1 -> 197 | GR8: =GQ8+1 -> 198 | GS8: =GR8+1 -> 199 | GT8: =GS8+1 -> 200 | GU8: =GT8+1 -> 201 | GV8: 202 | GW8: 203 | GX8: 204 | GY8: 205 | GZ8: 206 | HA8: =GZ8+1 -> 207 | HB8: 208 | HC8: 209 | HD8: 210 | HE8: 211 | HF8: 212 | HG8: =HF8+1 -> 213 | HH8: 214 | HI8: 215 | HJ8: 216 | HK8: 217 | HL8: 218 | HM8: 219 | HN8: 220 | HO8: =HN8+1 -> 221 | HP8: 222 | HQ8: 223 | HR8: 224 | HS8: =HR8+1 -> 225 | HT8: 226 | HU8: 227 | HV8: =HU8+1 -> 228 | HW8: 229 | HX8: =HW8+1 -> 230 | HY8: 231 | HZ8: 232 | IA8: 233 | IB8: =IA8+1 -> 234 | IC8: 235 | ID8: 236 | IE8: 237 | IF8: 238 | IG8: 239 | IH8: 240 | II8: 241 | IJ8: =II8+1 -> 242 | IK8: =IJ8+1 -> 243 | IL8: 244 | IM8: =IL8+1 -> 245 | IN8: =IM8+1 -> 246 | IO8: 247 | IP8: 248 | IQ8: =IP8+1 -> 249 | IR8: 250 | IS8: 251 | IT8: 252 | IU8: 253 | IV8: 254 | IW8: 255 | IX8: 256 | IY8: 257 | IZ8: 258 | JA8: =IZ8+1 -> 259 | JB8: =JA8+1 -> 260 | JC8: =JB8+1 -> 261 | JD8: =JC8+1 -> 262 | JE8: =JD8+1 -> 263 | JF8: =JE8+1 -> 264 | JG8: 265 | JH8: =JG8+1 -> 266 | JI8: =JH8+1 -> 267 | JJ8: 268 | JK8: 269 | JL8: 270 | JM8: 271 | JN8: 272 | JO8: 273 | JP8: 274 | JQ8: 275 | JR8: =JQ8+1 -> 276 | JS8: =JR8+1 -> 277 | JT8: =JS8+1 -> 278 | JU8: 279 | JV8: =JU8+1 -> 280 | JW8: 281 | JX8: 282 | JY8: 283 | JZ8: 284 | KA8: 285 | KB8: 286 | KC8: 287 | KD8: =KC8+1 -> 288 | KE8: =KD8+1 -> 289 | KF8: =KE8+1 -> 290 | KG8: 291 | KH8: 292 | KI8: 293 | KJ8: =KI8+1 -> 294 | KK8: =KJ8+1 -> 295 | KL8: =KK8+1 -> 296 | KM8: =KL8+1 -> 297 | KN8: 298 | KO8: 299 | KP8: 300 | KQ8: =KP8+1 -> 301 | KR8: 302 | KS8: 303 | KT8: 304 | KU8: 305 | KV8: 306 | KW8: 307 | KX8: =KW8+1 -> 308 | KY8: =KX8+1 -> 309 | KZ8: =KY8+1 -> 310 | LA8: 311 | LB8: 312 | LC8: 313 | LD8: 314 | LE8: =LD8+1 -> 315 | LF8: =LE8+1 -> 316 | LG8: =LF8+1 -> 317 | LH8: =LG8+1 -> 318 | LI8: 319 | LJ8: 320 | LK8: 321 | LL8: =LK8+1 -> 322 | LM8: =LL8+1 -> 323 | LN8: 324 | LO8: =LN8+1 -> 325 | LP8: 326 | LQ8: =LP8+1 -> 327 | LR8: =LQ8+1 -> 328 | LS8: 329 | LT8: =LS8+1 -> 330 | LU8: 331 | LV8: 332 | LW8: 333 | LX8: 334 | LY8: =LX8+1 -> 335 | LZ8: 336 | MA8: 337 | MB8: 338 | MC8: 339 | MD8: =MC8+1 -> 340 | ME8: =MD8+1 -> 341 | MF8: =ME8+1 -> 342 | MG8: 343 | MH8: 344 | MI8: 345 | MJ8: 346 | MK8: 347 | ML8: 348 | MM8: =ML8+1 -> 349 | MN8: =MM8+1 -> 350 | MO8: =MN8+1 -> 351 | MP8: =MO8+1 -> 352 | MQ8: 353 | MR8: 354 | MS8: 355 | MT8: 356 | MU8: 357 | MV8: 358 | MW8: 359 | MX8: 360 | MY8: 361 | MZ8: 362 | NA8: =MZ8+1 -> 363 | NB8: =NA8+1 -> 364 | NC8: =NB8+1 -> 365 | ND8: =NC8+1 -> 366 | NE8: 367 | NF8: 368 | NG8: =NF8+1 -> 369 | NH8: =NG8+1 -> 370 | NI8: =NH8+1 -> 371 | NJ8: =NI8+1 -> 372 | NK8: 373 | NL8: 374 | NM8: 375 | NN8: =NM8+1 -> 376 | NO8: 377 | NP8: 378 | NQ8: 379 | NR8: 380 | NS8: 381 | NT8: =NS8+1 -> 382 | NU8: =NT8+1 -> 383 | NV8: 384 | NW8: 385 | NX8: 386 | NY8: 387 | NZ8: 388 | OA8: 389 | OB8: 390 | OC8: 391 | OD8: 392 | OE8: 393 | OF8: 394 | OG8: =OF8+1 -> 395 | OH8: =OG8+1 -> 396 | OI8: =OH8+1 -> 397 | OJ8: =OI8+1 -> 398 | OK8: 399 | OL8: 400 | OM8: =OL8+1 -> 401 | ON8: 402 | OO8: 403 | OP8: 404 | OQ8: 405 | OR8: 406 | OS8: 407 | OT8: 408 | OU8: 409 | OV8: 410 | OW8: 411 | OX8: 412 | OY8: 413 | OZ8: 414 | PA8: 415 | PB8: 416 | PC8: 417 | PD8: 418 | PE8: 419 | PF8: 420 | PG8: 421 | PI8: =PG8+1 -> 422 | PJ8: =PI8+1 -> 423 | PK8: 424 | PL8: 425 | PM8: 426 | PN8: 427 | PO8: 428 | PP8: 429 | PQ8: 430 | PR8: 431 | PS8: 432 | PT8: 433 | PU8: 434 | PV8: 435 | PW8: 436 | PX8: 437 | PY8: 438 | PZ8: 439 | QA8: 440 | QB8: 441 | QC8: 442 | QD8: 443 | QE8: 444 | QF8: 445 | QG8: =PQ8+1 -> 431 | QH8: =QG8+1 -> 432 | QI8: 433 | QJ8: 434 | QK8: 435 | QL8: 436 | QM8: 437 | QN8: 438 | QO8: 439 | QP8: 440 | QQ8: 441 | QR8: 442 | QS8: 443 | QT8: 444 | QU8: 445 | QV8: 446 | QW8: 447 | QX8: 448 | QY8: 449 | QZ8: 450 | RA8: 451 | RB8: 452 | RC8: 453 | RD8: 454 | RE8: =QS8+1 -> 444 | RF8: 445 | RG8: 446 | RH8: 447 | RI8: 448 | RJ8: 449 | RK8: 450 | RL8: 451 | RM8: 452 | RN8: 453 | RO8: 454 | RP8: 455 | RQ8: 456 | RR8: 457 | RS8: 458 | RT8: 459 | RU8: 460 | RV8: 461 | RW8: 462 | RX8: 463 | RY8: 464 | RZ8: 465 | SA8: 466 | SB8: 467 | SC8: 468 | SD8: 469 | SE8: 470 | SF8: 471 | SG8: 472 | SH8: 473 | SI8: 474 | SJ8: 475 | SK8: 476 | SL8: 477 | SM8: 478 | SN8: 479 | SO8: 480 | SP8: 481 | SQ8: 482 | SR8: 483 | SS8: 484 | ST8: =SS8+1 -> 485 | SU8: 486 | SV8: 487 | SW8: =RP8+1 -> 456 | SX8: =SW8+1 -> 457 | SY8: 458 | SZ8: 459 | TA8: =SZ8+1 -> 460 | TB8: 461 | TC8: 462 | TD8: 463 | TE8: 464 | TF8: 465 | TG8: 466 | TH8: =TG8+1 -> 467 | TI8: =TH8+1 -> 468 | TJ8: 469 | TK8: 470 | TL8: 471 | TM8: 472 | TN8: 473 | TO8: 474 | TP8: 475 | TQ8: 476 | TR8: 477 | TS8: 478 | TT8: 479 | TU8: 480 | TV8: 481 | TW8: 482 | TX8: 483 | TY8: 484 | TZ8: 485 | UA8: 486 | UB8: 487 | UC8: 488 | UD8: 489 | UE8: 490 | UF8: 491 | UG8: 492 | UH8: 493 | UI8: 494 | UJ8: 495 | UK8: 496 | UL8: 497 | UM8: 498 | UN8: 499 | UO8: 500 | UP8: 501 | UQ8: 502 | UR8: 503 | US8: 504 | UT8: 505 | UU8: 506 | UV8: 507 | UW8: 508 | UX8: 509 | UY8: 510 | UZ8: 511 | VA8: 512 | VB8: 513 | VC8: 514 | VD8: 515 | VE8: 516 | VF8: 517 | VG8: 518 | VH8: 519 | VI8: 520 | VJ8: 521 | VK8: 522 | VL8: 523 | VM8: 524 | VN8: 525 | VO8: 526 | VP8: 527 | VQ8: 528 | VR8: 529 | VS8: 530 | VT8: 531 | VU8: =VT8+1 -> 532 | VV8: 533 | VW8: 534 | VX8: 535 | VY8: 536 | VZ8: 537 | WA8: 538 | WB8: 539 | WC8: 540 | WD8: 541 | WE8: 542 | WF8: 543 | WG8: 544 | WH8: 545 | WI8: 546 | WJ8: 547 | WK8: 548 | WL8: 549 | WM8: 550 | WN8: 551 | WO8: 552 | WP8: 553 | WQ8: 554 | WR8: 555 | WS8: 556 | WT8: 557 | WU8: 558 | WV8: 559 | WW8: 560 | WX8: 561 | WY8: 562 | WZ8: 563 | XA8: 564 | XB8: 565 | XC8: 566 | XD8: 567 | XE8: 568 | XF8: 569 | XG8: 570 | XH8: 571 | XI8: 572 | XJ8: 573 | XK8: 574 | XL8: 575 | XM8: 576 | XN8: 577 | XO8: 578 | XP8: 579 | XQ8: =TH8+1 -> 468 | XR8: =XQ8+1 -> 469 | XS8: 470 | XT8: 471 | XU8: 472 | XV8: 473 | XW8: 474 | XX8: 475 | XY8: 476 | XZ8: 477 | YA8: 478 | YB8: =YA8+1 -> 479 | YC8: 480 | YD8: =YC8+1 -> 481 | YE8: =YD8+1 -> 482 | YF8: 483 | YG8: 484 | YH8: 485 | YI8: 486 | YJ8: 487 | YK8: 488 | YL8: 489 | YM8: 490 | YN8: 491 | YO8: 492 | YP8: 493 | YQ8: 494 | YR8: =YD8+1 -> 482 | YS8: 483 | YT8: 484 | YU8: 485 | YV8: 486 | YW8: 487 | YX8: 488 | YY8: 489 | YZ8: 490 | ZA8: =YZ8+1 -> 491 | ZB8: =ZA8+1 -> 492 | ZC8: 493 | ZD8: 494 | ZE8: 495 | ZF8: 496 | ZG8: 497 | ZH8: 498 | ZI8: 499 | ZJ8: 500 | ZK8: 501 | ZL8: 502 | ZM8: 503 | ZN8: =ZA8+1 -> 492 | ZO8: =ZN8+1 -> 493 | ZP8: 494 | ZQ8: 495 | ZR8: 496 | ZS8: 497 | ZT8: 498 | ZU8: 499 | ZV8: 500 | ZW8: 501 | ZX8: 502 | ZY8: 503 | ZZ8: 504 | AAA8: 505 | AAB8: 506 | AAC8: 507 | AAD8: 508 | AAE8: 509 | AAF8: 510 | AAG8: 511 | AAH8: 512 | AAI8: 513 | AAJ8: 514 | AAK8: 515 | AAL8: 516 | AAM8: 517 | AAN8: 518 | AAO8: 519 | AAP8: 520 | AAQ8: 521 | AAR8: 522 | AAS8: 523 | AAT8: 524 | AAU8: 525 | AAV8: 526 | AAW8: 527 | AAX8: 528 | AAY8: 529 | AAZ8: 530 | ABA8: 531 | ABB8: 532 | ABC8: 533 | ABD8: 534 | ABE8: 535 | ABF8: 536 | ABG8: 537 | ABH8: 538 | ABI8: 539 | ABJ8: 540 | ABK8: 541 | ABL8: 542 | ABM8: 543 | ABN8: 544 | ABO8: 545 | ABP8: 546 | ABQ8: 547 | ABR8: 548 | ABS8: 549 | ABT8: 550 | ABU8: 551 | ABV8: 552 | ABW8: 553 | ABX8: 554 | ABY8: 555 | ABZ8: 556 | ACA8: =ABZ8+1 -> 557 | ACB8: 558 | ACC8: =ZA8+1 -> 492 | ACD8: 493 | ACE8: 494 | ACF8: 495 | ACG8: 496 | ACH8: 497 | ACI8: 498 | ACJ8: 499 | ACK8: =ACJ8+1 -> 500 | ACL8: =ACK8+1 -> 501 | ACM8: 502 | ACN8: 503 | ACO8: 504 | ACP8: 505 | ACQ8: 506 | ACR8: 507 | ACS8: 508 | ACT8: 509 | ACU8: 510 | ACV8: =ACK8+1 -> 501 | ACW8: =ACV8+1 -> 502 | ACX8: 503 | ACY8: =ACX8+1 -> 504 | ACZ8: =ACY8+1 -> 505 | ADA8: 506 | ADB8: 507 | ADC8: 508 | ADD8: 509 | ADE8: 510 | ADF8: 511 | ADG8: 512 | ADH8: 513 | ADI8: =ADA8+1 -> 507 | ADJ8: =ADI8+1 -> 508 | ADK8: 509 | ADL8: 510 | ADM8: 511 | ADN8: 512 | ADO8: 513 | ADP8: =ADH8+1 -> 514 | ADQ8: =ADP8+1 -> 515 | ADR8: 516 | ADS8: 517 | ADT8: 518 | ADU8: 519 | ADV8: 520 | ADW8: 521 | ADX8: 522 | ADY8: 523 | ADZ8: 524 | AEA8: 525 | AEB8: 526 | AEC8: 527 | AED8: 528 | AEE8: 529 | AEF8: 530 | AEG8: 531 | AEH8: 532 | AEI8: =ACY8+1 -> 505 | AEJ8: 506 | AEK8: 507 | AEL8: 508 | AEM8: =AEL8+1 -> 509 | AEN8: =AEM8+1 -> 510 | AEO8: 511 | AEP8: 512 | AEQ8: =AEM8+1 -> 510 | AER8: 511 | AES8: 512 | AET8: 513 | AEU8: 514 | AEV8: 515 | AEW8: 516 | AEX8: 517 | AEY8: =AEX8+1 -> 518 | AEZ8: =AEV8+1 -> 516 | AFA8: =AEZ8+1 -> 517 | AFB8: 518 | AFC8: 519 | AFD8: 520 | AFE8: =AEY8+1 -> 519 | AFF8: =AFE8+1 -> 520 | AFG8: =AFF8+1 -> 521 | AFH8: =AFG8+1 -> 522 | AFI8: =AFH8+1 -> 523 | AFJ8: 524 | AFK8: 525 | AFL8: 526 | AFM8: 527 | AFN8: =AFH8+1 -> 523 | AFO8: =AFN8+1 -> 524 | AFP8: 525 | AFQ8: 526 | AFR8: =AEY8+1 -> 519 | AFS8: 520 | AFT8: 521 | AFU8: 522 | AFV8: 523 | AFW8: 524 | AFX8: 525 | AFY8: 526 | AFZ8: 527 | AGA8: 528 | AGB8: 529 | AGC8: 530 | AGD8: 531 | AGE8: 532 | AGF8: 533 | AGG8: 534 | AGH8: 535 | AGI8: 536 | AGJ8: 537 | AGK8: 538 | AGL8: 539 | AGM8: 540 | AGN8: 541 | AGO8: 542 | AGP8: 543 | AGQ8: 544 | AGR8: 545 | AGS8: 546 | AGT8: 547 | AGU8: 548 | AGV8: 549 | AGW8: 550 | AGX8: 551 | AGY8: 552 | AGZ8: 553 | AHA8: 554 | AHB8: 555 | AHC8: 556 | AHD8: 557 | AHE8: 558 | AHF8: 559 | AHG8: 560 | AHH8: 561 | AHI8: 562 | AHJ8: 563 | AHK8: 564 | AHL8: 565 | AHM8: 566 | AHN8: 567 | AHO8: 568 | AHP8: 569 | AHQ8: 570 | AHR8: 571 | AHS8: 572 | AHT8: 573 | AHU8: 574 | AHV8: 575 | AHW8: 576 | AHX8: 577 | AHY8: 578 | AHZ8: 579 | AIA8: 580 | AIB8: 581 | AIC8: 582 | AID8: 583 | AIE8: 584 | AIF8: 585 | AIG8: 586 | AIH8: 587 | AII8: 588 | AIJ8: 589 | AIK8: 590 | AIL8: 591 | AIM8: 592 | AIN8: 593 | AIO8: 594 | AIP8: 595 | AIQ8: 596 | AIR8: 597 | AIS8: 598 | AIT8: 599 | AIU8: 600 | AIV8: 601 | AIW8: 602 | AIX8: 603 | AIY8: 604 | AIZ8: 605 | AJA8: 606 | AJB8: 607 | AJC8: 608 | AJD8: 609 | AJE8: 610 | AJF8: 611 | AJG8: 612 | AJH8: 613 | AJI8: 614 | AJJ8: 615 | AJK8: 616 | AJL8: 617 | AJM8: 618 | AJN8: 619 | AJO8: 620 | AJP8: 621 | AJQ8: 622 | AJR8: 623 | AJS8: 624 | AJT8: 625 | AJU8: 626 | AJV8: 627 | AJW8: 628 | AJX8: 629 | AJY8: 630 | AJZ8: 631 | AKA8: 632 | AKB8: 633 | AKC8: 634 | AKD8: 635 | AKE8: 636 | AKF8: 637 | AKG8: 638 | AKH8: 639 | AKI8: 640 | AKJ8: 641 | AKK8: 642 | AKL8: 643 | AKM8: 644 | AKN8: 645 | AKO8: 646 | AKP8: 647 | AKQ8: 648 | AKR8: =AEY8+1 -> 519 | AKS8: 520 | AKT8: 521 | AKU8: 522 | AKV8: 523 | AKW8: 524 | AKY8: =AKW8+1 -> 525 | AKZ8: =AKY8+1 -> 526 | ALA8: 527 | ALB8: 528 | ALC8: 529 | ALD8: 530 | ALE8: 531 | ALF8: 532 | ALG8: 533 | ALH8: 534 | ALI8: 535 | ALJ8: 536 | ALK8: 537 | ALL8: 538 | ALM8: 539 | ALN8: 540 | ALO8: 541 | ALP8: 542 | ALQ8: 543 | ALR8: 544 | ALS8: 545 | ALT8: 546 | ALU8: 547 | ALV8: 548 | ALX8: =ALV8+1 -> 549 | ALY8: =ALX8+1 -> 550
A9: Apr | B9: =DATE($B$2,4,1) -> 2019-04-01 | C9: Burlington D River HG | D9: 1910-11-21 | E9: Burlington D River HG | F9: 22239 | AA9: =SW9 -> 0 | AB9: 0 | AC9: =AF9-AB9-AD9 -> 0 | AD9: 0 | AF9: 0 | AG9: =('NFC Well Pumping'!$L7+'NFC Well Pumping'!$L44+'NFC Well Pumping'!$L80)/1.9835 -> 0 | AH9: ='88CW264(B) Pumping'!$E7/1.9835+'88CW264(B) Pumping'!$E43/1.9835+'88CW264(B) Pumping'!E83/1.9835+'88CW264(B) Pumping'!E119/1.9835+'88CW264(B) Pumping'!E159/1.9835+'88CW264(B) Pumping'!E195/1.9835 -> 0.008339451787 | AI9: =$PF9+$PG9 -> 0 | AJ9: =('United No. 2 Well Pumping'!G8+'United No. 2 Well Pumping'!G44+'United No. 2 Well Pumping'!G80)/1.9835 -> 0 | AK9: =('United No. 2 Well Pumping'!F8+'United No. 2 Well Pumping'!F44+'United No. 2 Well Pumping'!F80)/1.9835 -> 0 | AL9: 0 | AN9: =AG9+AH9+AJ9+AK9+AL9 -> 0.008339451787 | AO9: =AC9+AK9+'United Res'!AA171+'United Res'!AQ171+'Milliken Res'!J159 -> 0 | AP9: 100 | AQ9: =-(IF($N9=99999.99999,0,VLOOKUP($B9,'NFC Well Dplns-URF'!B$7:$AB$306,27))/$AMA9/1.9835) -> -0.005586020147 | AR9: 0 | AT9: =(VLOOKUP($B9,'ECCV 70R Pond Acrtns'!$B$7:$AI$1206,34)+VLOOKUP($B9,'2003 70R Pond Acrtns'!$B$7:$AI$1206,34)+VLOOKUP($B9,'ECCV 70R Canal Acrtns'!$B$7:$AI$1206,27)+VLOOKUP($B9,'2003 70R Canal Acrtns'!$B$7:$AI$1206,27))/$AMA9/1.9835 -> 0 | AU9: =IF(AT9<(-AQ9)-AR9,AQ9+AR9+AT9,0) -> -0.005586020147 | AV9: =-(IF($N9=99999.99999,0,VLOOKUP($B9,'NFC Well Dplns-SDF'!$B$7:$Z$306,25)+VLOOKUP($B9,'NFC Well Dplns-URF'!B$7:$AB$306,20))/$AMA9/1.9835) -> -0.1028154558 | AW9: 0 | AX9: 0.07 | AY9: ECCV Riverside Credits | AZ9: =-((BL9+BM9)*'Weldon Credit'!$BB$36) -> 0 | BA9: =-((BL9+BM9)*'Weldon Credit'!$BB$34) -> 0 | BB9: =-INDEX('Weldon Credit'!$AX$249:$BJ$276,MATCH($B$2,'Weldon Credit'!$AX$249:$AX$276,0),MATCH(A9,'Weldon Credit'!$AX$249:$BJ$249,0))/AMA9/1.9835 -> -0.009784592734 | BC9: =AZ9+BB9 -> -0.009784592734 | BD9: =-((BL9+BM9)*'Weldon Credit'!$BB$37) -> 0 | BE9: =-((BL9+BM9)*'Weldon Credit'!$BB$35) -> 0 | BF9: =-INDEX('Weldon Credit'!$AX$281:$BJ$308,MATCH($B$2,'Weldon Credit'!$AX$281:$AX$308,0),MATCH(A9,'Weldon Credit'!$AX$281:$BJ$281,0))/AMA9/1.9835 -> -0.1557750982 | BG9: =BD9+BF9 -> -0.1557750982 | BH9: =-(BL9+BM9)*'Weldon Credit'!$BB$38 -> 0 | BI9: =0.4*(INDEX('Riverside Pond Accrtns'!$B$6:$M$36,MATCH($B$2,'Riverside Pond Accrtns'!$A$6:$A$36,0),MATCH('ECCV Daily Replacement Summary'!A9,'Riverside Pond Accrtns'!$B$5:$M$5,0))/AMA9)/1.9835 -> 1.357862365 | BJ9: =(44/640)*(INDEX('Weldon Valley Accrtns (02CW377)'!$B$6:$M$36,MATCH($B$2,'Weldon Valley Accrtns (02CW377)'!$A$6:$A$36,0),MATCH(A9,'Weldon Valley Accrtns (02CW377)'!$B$5:$M$5,0))/AMA9)/1.9835 -> 0.205705823 | BK9: =(VLOOKUP($B9,'ECCV 70R Pond Acrtns'!$B$7:$AI$1206,25)+VLOOKUP($B9,'ECCV 70R Canal Acrtns'!$B$7:$AI$1206,20)+VLOOKUP($B9,'2003 70R Pond Acrtns'!$B$7:$AI$1206,25)+VLOOKUP($B9,'2003 70R Canal Acrtns'!$B$7:$AI$1206,20))/$AMA9/1.9835 -> 0 | BL9: ='Joint Aug Station Deliveries'!G9 -> 0 | BM9: ='Joint Aug Station Deliveries'!H9 -> 0 | BN9: =IF(CD9="yes",MIN(-(BC9+BH9),BM9),0) -> 0 | BO9: =IF(CD9="no",MIN(-(BC9+BG9+BH9),BL9+BM9),MIN(-BG9,BL9)) -> 0 | BP9: =IF(CD9="no",-MAX(0,MIN(BO9,(BM9-BL9))*(0.5/100*'Distances for Transit Losses'!$C$91)),0) -> 0 | BQ9: =IF(BL9+BM9>0,BL9+BM9-BN9-BO9+BP9,0) -> 0 | BR9: =MIN(-($BC9+BG9+BH9+BN9+BO9+BP9),BI9-BI9*0.5/100*'Distances for Transit Losses'!$C$93) -> 0.1655596909 | BS9: =MIN(-($BC9+BG9+BH9+BN9+BO9+BP9+BR9),BJ9) -> 0 | BT9: =MIN(-($BC9+BG9+BH9+BN9+BO9+BP9+BR9+BS9),BK9-BK9*0.5/100*'Distances for Transit Losses'!$C$93) -> 0 | BU9: =-((BR9+BT9)*(0.5/100*'Distances for Transit Losses'!$C$93)) -> -0.01763210708 | BV9: 0 | BW9: =--BV9*0.5/100*'Distances for Transit Losses'!C$117 -> 0 | BX9: 0 | BY9: =--BX9*0.5/100*'Distances for Transit Losses'!$C$119 -> 0 | BZ9: 0 | CA9: =-BZ9*0.5/100*'Distances for Transit Losses'!$C$115 -> 0 | CB9: 0 | CD9: no | CE9: no | CF9: no | CG9: 0 | CH9: 0 | CI9: 0 | CK9: =IF($CF9="No",MIN(IF(-DR9<0,0,-DR9),BI9-BR9/(1-0.5/100*'Distances for Transit Losses'!$C$93)),0) -> 0.02535763361 | CL9: =IF($CF9="No",IF(MIN(-(DR9+CK9),BK9-BT9/(1-0.5/100*'Distances for Transit Losses'!$C$93))<0,0,MIN(-(DR9+CK9),BK9-BT9/(1-0.5/100*'Distances for Transit Losses'!$C$93))),0) -> 0 | CM9: =IF(AND($CD9="No",$CE9="No",$CF9="No",(DR9+CK9+CL9)<0,CQ9>0),MIN(-(DR9+CK9+CL9),BQ9),0) -> 0 | CN9: 0 | CO9: 0 | CP9: =AV9+BC9+BG9+BH9 -> -0.2683751467 | CQ9: =AV9+AW9+AX9+BC9+BG9+BH9+BI9+BJ9+BK9+BL9+BM9+BP9+BU9+BV9+BX9+BZ9+CB9-SUM(CO9:CP9) -> 1.61593608 | CR9: =-(IF($N9=99999.99999,0,VLOOKUP($B9,'NFC Well Dplns-SDF'!$B$7:$Z$306,16)+VLOOKUP($B9,'NFC Well Dplns-URF'!$B$7:$AB$306,13))/$AMA9/1.9835) -> -0.8829552079 | CS9: =-(IF($N9>=99999,0,'88CW264(B) Pumping'!$E7/1.9835)+IF($N9>=99999,0,'88CW264(B) Pumping'!$E43/1.9835)+IF($N9>=99999,0,'88CW264(B) Pumping'!$E83/1.9835)+IF($N9>=99999,0,'88CW264(B) Pumping'!$E119/1.9835)+IF($N9>=51134.50919,0,'88CW264(B) Pumping'!$E159/1.9835)+IF($N9>=53406,0,'88CW264(B) Pumping'!$E195/1.9835)) -> -0.008339451787 | CT9: =CS9+CR9 -> -0.8912946597 | CU9: 0.69 | CV9: 0 | CX9: =-(IF($N9=99999.99999,0,VLOOKUP($B9,'United No. 2 Dplns'!$B$7:$X$676,13)/1.9835)) -> 0 | CY9: =CX9+(-(INDEX('Pre 1995 Net Accretions'!$B$6:$M$105,MATCH($B$2,'Pre 1995 Net Accretions'!$A$6:$A$105,0),MATCH($A9,'Pre 1995 Net Accretions'!$B$5:$M$5,0))/$AMA9/1.9835)) -> 0.02746354924 | CZ9: =-(IF(N9<99999.99999,(INDEX('70 Ranch RF Obligation'!$B$6:$M$36,MATCH($B$2,'70 Ranch RF Obligation'!$A$6:$A$36,0),MATCH('ECCV Daily Replacement Summary'!A9,'70 Ranch RF Obligation'!$B$5:$M$5,0))/AMA9)/1.9835,0))-DC9*(1-'L. Latham Credit'!$E$41) -> -0.05282118285 | DA9: =MIN(0,CZ9+CY9) -> -0.02535763361 | DB9: =(VLOOKUP($B9,'ECCV 70R Pond Acrtns'!$B$7:$AI$1206,16)+VLOOKUP($B9,'ECCV 70R Canal Acrtns'!$B$7:$AI$1206,13)+VLOOKUP($B9,'2003 70R Pond Acrtns'!$B$7:$AI$1206,16)+VLOOKUP($B9,'2003 70R Canal Acrtns'!$B$7:$AI$1206,13))/$AMA9/1.9835 -> 0 | DC9: ='Joint Aug Station Deliveries'!DQ9 -> 0 | DD9: =IF(DC9>0,DC9-DE9,0) -> 0 | DE9: =MAX(0,MIN(-DA9,DC9)) -> 0 | DF9: ='Joint Aug Station Deliveries'!DT9 -> 0 | DG9: 0 | DH9: 0 | DI9: 0 | DK9: =IF(CZ9=0,MAX(0,CY9),0)+DB9+DD9+DG9+DH9+DI9 -> 0 | DL9: =MAX(0,MIN(-DA9,DK9)) -> 0 | DM9: 0 | DN9: =-DM9*0.5/100*'Distances for Transit Losses'!$C$52 -> 0 | DO9: =MAX(0,MIN(DB9,-(DA9+DL9))) -> 0 | DP9: 0 | DQ9: 0 | DR9: =DA9+DB9+DD9+DG9+DH9+DI9-DM9+DN9-DP9-DQ9 -> -0.02535763361 | DS9: =CK9 -> 0.02535763361 | DT9: =CL9 -> 0 | DU9: =CM9 -> 0 | DV9: =('NFC Well Pumping'!I7+'NFC Well Pumping'!I44+'NFC Well Pumping'!I80)/1.9835 -> 0 | DW9: 0 | DX9: =-DW9*0.5/100*'Distances for Transit Losses'!C$121 -> 0 | DY9: 0 | DZ9: =-DY9*0.5/100*'Distances for Transit Losses'!$C$145 -> 0 | EA9: 0 | EB9: =--EA9*0.5/100*'Distances for Transit Losses'!$C$123 -> 0 | EC9: 0 | ED9: =DR9+DS9+DT9+DU9+DV9+DW9+DY9+EA9+EC9 -> 0 | EE9: =IF('Joint Aug Station Deliveries'!R9="Yes",'Joint Aug Station Deliveries'!P9,0) -> 0 | EF9: ='Joint Aug Station Deliveries'!T9 -> 0 | EG9: =IF('Joint Aug Station Deliveries'!Z9="Yes",'Joint Aug Station Deliveries'!X9,0) -> 0 | EH9: =-(EG9*0.5/100*'Distances for Transit Losses'!$C$234) -> 0 | EI9: =IF('Joint Aug Station Deliveries'!AD9="Yes",'Joint Aug Station Deliveries'!AB9,0) -> 0 | EJ9: =-(EI9*0.5/100*'Distances for Transit Losses'!$C$266) -> 0 | EK9: 0 | EL9: =-(EK9*0.5/100*'Distances for Transit Losses'!$C$256) -> 0 | EM9: no | EN9: =IF('Joint Aug Station Deliveries'!AH9="Yes",'Joint Aug Station Deliveries'!AF9,0) -> 0 | EO9: =-(EN9*0.5/100*'Distances for Transit Losses'!$C$268) -> 0 | EP9: =IF('Joint Aug Station Deliveries'!AL9="Yes",'Joint Aug Station Deliveries'!AJ9,0) -> 0 | EQ9: =-(EP9*0.5/100*'Distances for Transit Losses'!$C$270) -> 0 | ER9: =IF('Joint Aug Station Deliveries'!AP9="Yes",'Joint Aug Station Deliveries'!AN9,0) -> 0 | ES9: =-(ER9*0.5/100*'Distances for Transit Losses'!$C$272) -> 0 | ET9: =-0.25*(INDEX('GIC Credit'!$B$85:$M$116,MATCH($B$2,'GIC Credit'!$A$85:$A$116,0),MATCH($A9,'GIC Credit'!$B$85:$M$85,0))/$AMA9/1.9835+FN9*'GIC Credit'!$Z$39+FO9*'GIC Credit'!$AO$39) -> -0.00014 | EU9: =ET9 -> -0.00014 | EV9: ='Joint Aug Station Deliveries'!DI9 -> 0 | EW9: =-(EV9*0.5/100*'Distances for Transit Losses'!$C$262) -> 0 | EX9: ='Joint Aug Station Deliveries'!DJ9 -> 0 | EY9: =-(EX9*0.5/100*'Distances for Transit Losses'!$C$264) -> 0 | EZ9: 0 | FB9: no | FC9: =SUM(EU9:EZ9) -> -0.00014 | FD9: =-0.39*(INDEX('GIC Credit'!$B$85:$M$116,MATCH($B$2,'GIC Credit'!$A$85:$A$116,0),MATCH($A9,'GIC Credit'!$B$85:$M$85,0))/$AMA9/1.9835+FN9*'GIC Credit'!$Z$39+FO9*'GIC Credit'!$AO$39) -> -0.0002184 | FE9: =MAX(IF(AND(FB9="No",FC9>0),FC9,0),0) -> 0 | FF9: =-(FE9*0.5/100*('Distances for Transit Losses'!$C$238+'Distances for Transit Losses'!$C$244)) -> 0 | FG9: =IF('Joint Aug Station Deliveries'!AT9="Yes",'Joint Aug Station Deliveries'!AR9,0) -> 0 | FH9: =-(FG9*0.5/100*('Distances for Transit Losses'!$C$240+'Distances for Transit Losses'!$C$242)) -> 0 | FI9: =IF('Joint Aug Station Deliveries'!AX9="Yes",'Joint Aug Station Deliveries'!AV9,0) -> 0 | FJ9: =-(FI9*0.5/100*'Distances for Transit Losses'!$C$242) -> 0 | FK9: ='Joint Aug Station Deliveries'!DK9 -> 0 | FL9: =-(FK9*0.5/100*'Distances for Transit Losses'!$C$248) -> 0 | FM9: =EV9+EX9+FK9 -> 0 | FN9: ='Joint Aug Station Deliveries'!DM9 -> 0 | FO9: ='Joint Aug Station Deliveries'!DN9 -> 0 | FP9: =MIN(0,FC9)+SUM(FD9:FF9)+EE9/(1-0.5/100*('Distances for Transit Losses'!$C$274+'Distances for Transit Losses'!$C$286))+EF9/(1-0.5/100*('Distances for Transit Losses'!$C$260))+SUM(EG9:EH9)/(1-0.5/100*('Distances for Transit Losses'!$C$276+'Distances for Transit Losses'!$C$286))+SUM(EI9:EJ9)/(1-0.5/100*('Distances for Transit Losses'!$C$278+'Distances for Transit Losses'!$C$286))+EK9/(1-0.5/100*('Distances for Transit Losses'!$C$260))+SUM(EN9:EO9)/(1-0.5/100*('Distances for Transit Losses'!$C$280+'Distances for Transit Losses'!$C$288))+SUM(EP9:EQ9)/(1-0.5/100*('Distances for Transit Losses'!$C$282+'Distances for Transit Losses'!$C$288))+SUM(ER9:ES9)/(1-0.5/100*('Distances for Transit Losses'!$C$284+'Distances for Transit Losses'!$C$288))+SUM(FG9:FJ9)/(1-0.5/100*('Distances for Transit Losses'!$C$244))+SUM(FK9:FL9) -> -0.0003584 | FQ9: =-(IF(N9<99999.99999,INDEX('Hist RF to SPR'!$AF$6:$AQ$30,MATCH($B$2,'Hist RF to SPR'!$AE$6:$AE$30,0),MATCH($A9,'Hist RF to SPR'!$AF$5:$AQ$5,0))/AMA9/1.9835,0)) -> -0.0002698345146 | FR9: =IF(N9<99999.99999,-INDEX('New Cache Credit'!$BO$109:$CA$136,MATCH($B$2,'New Cache Credit'!$BO$109:$BO$136,0),MATCH(A9,'New Cache Credit'!$BO$109:$CA$109,0))/AMA9/1.9835-INDEX('New Cache Credit'!$CD$77:$CP$104,MATCH($B$2,'New Cache Credit'!$CD$77:$CD$104,0),MATCH(A9,'New Cache Credit'!$CD$77:$CP$77,0))/AMA9/1.9835,0) -> -0.0008755433333 | FS9: =-0.36*(INDEX('GIC Credit'!$B$85:$M$116,MATCH($B$2,'GIC Credit'!$A$85:$A$116,0),MATCH($A9,'GIC Credit'!$B$85:$M$85,0))/$AMA9/1.9835+FN9*'GIC Credit'!$Z$39+FO9*'GIC Credit'!$AO$39) -> -0.0002016 | FT9: =IF(FP9<0,FP9,0) -> -0.0003584 | FU9: =SUM(FQ9:FT9) -> -0.001705377848 | FV9: =IF(FP9>0,MIN(-FU9,FP9),0) -> 0 | FW9: =IF('Joint Aug Station Deliveries'!BB9="Yes",'Joint Aug Station Deliveries'!AZ9,0) -> 0 | FX9: =-(FW9*0.5/100*'Distances for Transit Losses'!$C$226) -> 0 | FY9: =IF('Joint Aug Station Deliveries'!BF9="Yes",'Joint Aug Station Deliveries'!BD9,0) -> 0 | FZ9: =-(FY9*0.5/100*'Distances for Transit Losses'!$C$228) -> 0 | GA9: =IF('Joint Aug Station Deliveries'!BJ9,'Joint Aug Station Deliveries'!BH9,0) -> 0 | GB9: =-(GA9*0.5/100*'Distances for Transit Losses'!$C$230) -> 0 | GC9: =IF('Joint Aug Station Deliveries'!BN9="Yes",'Joint Aug Station Deliveries'!BL9,0) -> 0 | GD9: =-(GC9*0.5/100*'Distances for Transit Losses'!$C$218) -> 0 | GE9: =IF('Joint Aug Station Deliveries'!BR9="Yes",'Joint Aug Station Deliveries'!BP9,0) -> 0 | GF9: =-(GE9*0.5/100*'Distances for Transit Losses'!$C$224) -> 0 | GG9: =MIN(-FU9-FV9,SUM(FW9:FX9)/(1-0.5/100*('Distances for Transit Losses'!$C$292))+SUM(FY9:FZ9)/(1-0.5/100*('Distances for Transit Losses'!$C$294))+SUM(GA9:GB9)+SUM(GC9:GD9)+SUM(GE9:GF9)) -> 0 | GH9: no | GI9: 0 | GJ9: 0 | GK9: 0 | GM9: =IF(AND(GH9="No",NV9>0),MIN(-FU9-FV9-GG9,NV9),0) -> 0 | GN9: =IF(AND(GH9="No",$CF9="No"),MIN(-(FU9+FV9+GG9+GM9),NW9),0) -> 0 | GO9: =IF(AND(LM9-LN9-JP9>0,LH9="no"),MIN(-(FU9+FV9+GG9+GM9+GN9)/(1-0.5/100*'Distances for Transit Losses'!$C$125),LM9-LN9-JP9),0) -> 0 | GP9: =-GO9*0.5/100*'Distances for Transit Losses'!$C$125 -> 0 | GQ9: 0 | GR9: 0 | GS9: 0 | GT9: =-GS9*0.5/100*'Distances for Transit Losses'!$C$143 -> 0 | GU9: =IF(AND(JT9-JU9-LP9>0,JF9="no"),MIN(-(FU9+FV9+GG9+GM9+GN9+GO9+GP9+GS9+GT9)/(1-0.5/100*'Distances for Transit Losses'!$C$127),JT9-JU9-LP9),0) -> 0 | GV9: =-GU9*0.5/100*'Distances for Transit Losses'!$C$133 -> 0 | GW9: 0 | GY9: =IF(FP9>0,FP9,0) -> 0 | GZ9: =IF(FP9>0,FP9,0)+FU9+SUM(FW9:GF9)+SUM(GM9:GW9) -> -0.001705377848 | HA9: =IF(GZ9>0,GZ9,0) -> 0 | HB9: =OJ9-GM9 -> 0 | HC9: =OK9-GN9 -> 0 | HD9: =-(IF(N9<99999.99999,INDEX('Hist RF to SPR'!$Q$6:$AB$30,MATCH($B$2,'Hist RF to SPR'!$P$6:$P$30,0),MATCH($A9,'Hist RF to SPR'!$Q$5:$AB$5,0))/AMA9/1.9835,0)) -> -0.002812216867 | HE9: =-(IF(OR($N9<99999.99999,E9="Lower Latham",I9="Lower Latham",E9="Highland",I9="Highland",E9="Plum",I9="Plum"),(INDEX('FIDCO Credit'!$Y$48:$AJ$78,MATCH($B$2,'FIDCO Credit'!$X$48:$X$78,0),MATCH($A9,'FIDCO Credit'!$Y$47:$AJ$47,0))/$AMA9)/1.9835,0)) -> 0 | HF9: =-(IF(OR($N9<99999.99999,E9="Lower Latham",I9="Lower Latham",E9="Highland",I9="Highland",E9="Plum",I9="Plum",E9="Godfrey",I9="Godfrey",E9="Union",I9="Union"),(INDEX('Western Credit'!$AY$239:$BJ$269,MATCH($B$2,'Western Credit'!$AX$239:$AX$269,0),MATCH($A9,'Western Credit'!$AY$238:$BJ$238,0))/$AMA9)/1.9835)) -> -0.01059002452 | HG9: =-('Joint Aug Station Deliveries'!CK9+'Joint Aug Station Deliveries'!CN9+'Joint Aug Station Deliveries'!CQ9+'Joint Aug Station Deliveries'!CT9)*'Western Credit'!$BB$40 -> 0 | HH9: =SUM(HF9:HG9) -> -0.01059002452 | HI9: =-(IF(OR($N9<99999.99999,E9="Lower Latham",I9="Lower Latham",E9="Highland",I9="Highland",E9="Plum",I9="Plum",E9="Godfrey",I9="Godfrey",E9="Union",I9="Union"),(INDEX('Western Credit'!$AY$276:$BJ$306,MATCH($B$2,'Western Credit'!$AX$276:$AX$306,0),MATCH($A9,'Western Credit'!$AY$275:$BJ$275,0))/$AMA9)/1.9835)) -> -0.008320733551 | HJ9: =-('Joint Aug Station Deliveries'!CK9+'Joint Aug Station Deliveries'!CN9+'Joint Aug Station Deliveries'!CQ9+'Joint Aug Station Deliveries'!CT9)*'Western Credit'!$BB$41 -> 0 | HK9: =SUM(HI9:HJ9) -> -0.008320733551 | HL9: =-(IF(OR($N9<99999.99999,E9="Lower Latham",I9="Lower Latham",E9="Highland",I9="Highland",E9="Plum",I9="Plum",E9="Godfrey",I9="Godfrey"),(INDEX('Western Credit'!$AY$313:$BJ$343,MATCH($B$2,'Western Credit'!$AX$313:$AX$343,0),MATCH($A9,'Western Credit'!$AY$312:$BJ$312,0))/$AMA9)/1.9835)) -> -0.01550682162 | HM9: =('Joint Aug Station Deliveries'!CK9+'Joint Aug Station Deliveries'!CN9+'Joint Aug Station Deliveries'!CQ9+'Joint Aug Station Deliveries'!CT9)*'Western Credit'!$BB$42 -> 0 | HN9: =SUM(HL9:HM9) -> -0.01550682162 | HO9: =-(IF(OR($N9<99999.99999,E9="Lower Latham",I9="Lower Latham",E9="Highland",I9="Highland",E9="Plum",I9="Plum"),(INDEX('Western Credit'!$AY$350:$BJ$380,MATCH($B$2,'Western Credit'!$AX$350:$AX$380,0),MATCH($A9,'Western Credit'!$AY$349:$BJ$349,0))/$AMA9)/1.9835)) -> -0.07413017164 | HP9: =-('Joint Aug Station Deliveries'!CK9+'Joint Aug Station Deliveries'!CN9+'Joint Aug Station Deliveries'!CQ9+'Joint Aug Station Deliveries'!CT9)*'Western Credit'!$BB$43 -> 0 | HQ9: =SUM(HO9:HP9) -> -0.07413017164 | HR9: ='Joint Aug Station Deliveries'!CK9 -> 0 | HS9: 0 | HT9: =-HS9*0.5/100*'Distances for Transit Losses'!$C$26 -> 0 | HU9: =MIN(VLOOKUP($B9,'ECCV Haren Pond Oxbow Acrtns'!$B$7:$G$306,6)/$AMA9/1.9835,-HK9) -> 0.008320733551 | HV9: 0 | HX9: 0 | HZ9: no | IA9: =VLOOKUP($B9,'ECCV Haren Pond S.P. Acrtns'!$B$7:$G$306,6)/$AMA9/1.9835 -> 0.2339377628 | IB9: 0 | ID9: no | IE9: =VLOOKUP($B9,'ECCV Strohauer S.P. Acrtns'!$B$7:$G$306,6)/$AMA9/1.9835 -> 0 | IF9: 0 | IH9: no | II9: =MAX(0,MIN(-HH9,HR9+IF(HZ9="No",IA9,0)+IF(ID9="No",IE9,0)-(MAX(0,-HK9-HU9-HV9)))) -> 0.01059002452 | IJ9: =MIN(-HH9-II9,HS9+HT9) -> 0 | IK9: =MIN(-HH9-II9-IJ9,JU9) -> 0 | IL9: =IF(HZ9="Yes",HH9+II9+IJ9+IK9+HX9,0) -> 0 | IM9: =MIN(-HK9,HR9+HU9) -> 0.008320733551 | IN9: =MIN(-HK9-IM9,HS9+HT9-IJ9) -> 0 | IO9: =MIN(-HK9-IM9-IN9,JU9-IK9) -> 0 | IP9: =HK9+IM9+IN9+IO9+HV9 -> 0 | IQ9: =MAX(0,MIN(-HN9,IA9+IF(HZ9="No",HR9*(1-0.5/100*'Distances for Transit Losses'!$C$66),0)+IF(ID9="No",IE9,0)-II9-(MAX(0,IM9-HU9-HV9)))) -> 0.01550682162 | IR9: =MIN(-HN9-IQ9,HS9+HT9-IJ9-IN9) -> 0 | IS9: =MIN(-HN9-IQ9-IR9,JU9-IK9-IO9) -> 0 | IT9: =IF(ID9="Yes",HN9+IQ9+IR9+IS9+IB9,0) -> 0 | IU9: =MAX(0,MIN(-HQ9,IE9+IF(AND(HZ9="No",ID9="No"),HR9*(1-0.5/100*'Distances for Transit Losses'!$C$68),0)+IF(ID9="No",IA9*(1-0.5/100*'Distances for Transit Losses'!$C$70),0)-II9-(MAX(0,IM9-HU9-HV9))-IQ9)) -> 0.07413017164 | IV9: =MIN(-HQ9-IU9,(HS9-IJ9-IN9-IR9)*(1-0.5/100*'Distances for Transit Losses'!$C$72)) -> 0 | IW9: =MIN(-HQ9-IU9-IV9,(JU9-IK9-IO9-IS9)/(1-0.5/100*'Distances for Transit Losses'!$C$74)) -> 0 | IX9: =IF(IH9="Yes",HQ9+IU9+IV9+IW9+IF9,0) -> 0 | IY9: =HD9+HE9+IL9+IP9+IT9+IX9 -> -0.002812216867 | IZ9: =MIN(-HE9,KB9) -> 0 | JA9: =IF(JH9="yes",0,MIN(-HE9-IZ9,KD9)) -> 0 | JB9: =IF(AND(JG9="no",JH9="no"),MIN(-(IY9-IZ9-JA9)/(1-0.5/100*'Distances for Transit Losses'!$C$111),LE9),0) -> 0 | JC9: =-JB9*0.5/100*'Distances for Transit Losses'!$C$111 -> 0 | JD9: =MIN(-(HH9+MIN(0,HK9+HU9)+HN9+HQ9)-HR9-IE9,IA9) -> 0.1002270178 | JE9: =NN9 -> 0.1308985281 | JF9: no | JG9: no | JH9: no | JI9: 0 | JJ9: 0 | JK9: 0 | JM9: =IF($JF9="No",MIN(MAX(0,-IY9-JD9),HB9),0) -> 0 | JN9: =IF(AND(JF9="No",$CF9="No"),MIN(MAX(0,-IY9-JD9-JM9),HC9),0) -> 0 | JO9: =IY9+IZ9+JA9+JB9+JC9+JM9+JN9 -> -0.002812216867 | JP9: =IF(AND(LM9-LN9>0,LH9="no"),MIN(-JO9/(1-0.5/100*'Distances for Transit Losses'!$C$129)+IJ9+IN9+IR9+IV9,LM9-LN9),0) -> 0 | JQ9: =-JP9*0.5/100*'Distances for Transit Losses'!$C$129 -> 0 | JR9: =IF(AND(LQ9+LR9-LS9-MD9>0,LH9="no"),MIN((-JO9-(JP9+JQ9))/(1-0.5/100*'Distances for Transit Losses'!$C$131),LQ9+LR9-LS9-MD9),0) -> 0.003737165272 | JS9: =-JR9*0.5/100*'Distances for Transit Losses'!$C$131 -> -0.0009249484048 | JT9: 0 | JU9: =IF(JT9>0,MIN(-(JO9+JP9+JQ9+JR9+JS9)/(1-0.5/100*'Distances for Transit Losses'!$C$133)+IK9+IO9+IS9+IW9,JT9),0) -> 0 | JV9: =-JU9*0.5/100*'Distances for Transit Losses'!$C$133 -> 0 | JW9: 0 | JY9: =MIN(0,SUM(JO9:JS9)+SUM(JU9:JW9))-IW9-IV9-IS9-IR9-IO9-IN9-IK9-IJ9 -> 0 | JZ9: ='Joint Aug Station Deliveries'!CN9 -> 0 | KA9: =MAX(0,HD9+HE9+HH9+HK9+HN9+HQ9+SUM(HR9:HV9)+HX9+SUM(IA9:IB9)+SUM(IE9:IF9)+SUM(IZ9:JC9)) -> 0.1308985281 | KB9: ='Joint Aug Station Deliveries'!CA9 -> 0 | KC9: =IF(AND(KB9>0,SUM($KB$9:KB9,$KD$9:KD9,$LE$9:LE9)*1.9835<OFFSET('FIDCO Credit'!$X$39,0,MATCH($A9,'FIDCO Credit'!$Y$5:$AJ$5,0))),KB9-IZ9,0) -> 0 | KD9: ='Joint Aug Station Deliveries'!CD9 -> 0 | KE9: =IF(AND(KD9>0,SUM($KB$9:KB9,$KD$9:KD9,$LE$9:LE9)*1.9835<OFFSET('FIDCO Credit'!$X$39,0,MATCH($A9,'FIDCO Credit'!$Y$5:$AJ$5,0))),KD9-JA9,0) -> 0 | KF9: =MAX(0,(NJ9+NK9))/(1-0.5/100*'Distances for Transit Losses'!$C$99) -> 0 | KG9: =MAX(0,(NL9+NM9)/(1-0.5/100*'Distances for Transit Losses'!$C$95)) -> 0.1308985281 | KH9: 0 | KI9: =-KH9*0.5/100*'Distances for Transit Losses'!$C$101 -> 0 | KJ9: 0 | KK9: 0 | KL9: =-KK9*0.5/100*'Distances for Transit Losses'!$C$38 -> 0 | KM9: =IF($JG9="No",KA9-KG9-KJ9,0) -> 0 | KN9: 0 | KO9: 0 | KP9: =IF($JG9="No",KC9-KF9-KH9,0) -> 0 | KQ9: 0 | KR9: 0 | KS9: =IF(AND($JF9="No",$CF9="No"),$MH9,0) -> 0 | KT9: 0 | KU9: =IF(JF9="No",$MG9,0) -> 0 | KV9: 0 | KW9: 0 | KX9: 0 | KY9: =-KX9*0.5/100*'Distances for Transit Losses'!$C$141 -> 0 | KZ9: =KN9+KQ9+KT9+SUM(KV9:KY9) -> 0 | LA9: =KA9+KC9+KE9-SUM(KF9:KJ9)-KN9-KO9-KQ9-KR9-KW9 -> 0 | LB9: =HB9-JM9 -> 0 | LC9: =HC9-JN9 -> 0 | LD9: =-(IF(F9<99999.99999,INDEX('Hist RF to SPR'!$B$6:$M$30,MATCH($B$2,'Hist RF to SPR'!$A$6:$A$30,0),MATCH($A9,'Hist RF to SPR'!$B$5:$M$5,0))/AMA9/1.9835,0)) -> -0.0192909467 | LE9: ='Joint Aug Station Deliveries'!CG9 -> 0 | LF9: =IF(AND(LE9>0,SUM($KB$9:KB9,$KD$9:KD9,$LE$9:LE9)*1.9835<OFFSET('FIDCO Credit'!$X$39,0,MATCH($A9,'FIDCO Credit'!$Y$5:$AJ$5,0))),LE9-JB9,0) -> 0 | LG9: =MIN(-LD9,LF9) -> 0 | LH9: no | LI9: =IF($LH9="No",MIN(-(LD9+LG9),LB9),0) -> 0 | LJ9: =IF(AND(LH9="No",$CF9="No"),MIN(-(LD9+LG9+LI9),LC9),0) -> 0 | LK9: =IF(AND($JG9="No"),MIN(-(LD9+LG9+LI9+LJ9),LA9),0) -> 0 | LL9: =LD9+LG9+LI9+LJ9+LK9 -> -0.0192909467 | LM9: 0 | LN9: =IF(LM9>0,MIN(-LL9/(1-0.5/100*'Distances for Transit Losses'!$C$135),LM9),0) -> 0 | LO9: =-LN9*0.5/100*'Distances for Transit Losses'!$C$135 -> 0 | LP9: =IF(AND(JT9-JU9>0,LH9="no"),MIN(-(LL9+LN9+LO9),JT9-JU9),0) -> 0 | LQ9: 0.44 | LR9: =-LQ9*0.5/100*'Distances for Transit Losses'!$C$86 -> -0.00066 | LS9: =IF((LQ9+LR9)>0,MIN((-LL9-(LN9-LO9)-LP9)/(1-0.5/100*'Distances for Transit Losses'!$C$137),(LQ9+LR9)),0) -> 0.02189664779 | LT9: =-LS9*0.5/100*'Distances for Transit Losses'!$C$137 -> -0.002605701086 | LU9: 0 | LW9: =LL9+LN9+LO9+LP9+LR9+LS9+LT9+LU9 -> -0.00066 | LX9: =IF(AND($LH9="No",$CF9="No"),$MH9-KT9,0) -> 0 | LY9: 0 | LZ9: =IF(LH9="No",$MG9-KV9,0) -> 0 | MA9: 0 | MB9: =KO9 -> 0 | MC9: =KR9 -> 0 | MD9: 0 | ME9: =-MD9*0.5/100*'Distances for Transit Losses'!$C$139 -> 0 | MF9: =LY9+MA9+MB9+MC9+MD9+ME9 -> 0 | MG9: =LB9-LI9 -> 0 | MH9: =LC9-LJ9 -> 0 | MI9: =-(IF(N9<99999.99999,(VLOOKUP(B9,'ECCV Upper Dpln'!$B$7:$BD$306,55))/AMA9/1.9835,0)) -> -4.258586602 | MJ9: =-(IF(N9<99999.99999,INDEX('Hist RF abv Milton'!$B$6:$M$30,MATCH($B$2,'Hist RF abv Milton'!$A$6:$A$30,0),MATCH($A9,'Hist RF abv Milton'!$B$5:$M$5,0))/AMA9/1.9835,0)) -> -0.01407697074 | MK9: 0 | ML9: =(VLOOKUP($B9,'ECCV Beebe Pond Acrtns'!$B$7:$BI$1206,41)+VLOOKUP($B9,'ECCV Canal Acrtns'!$B$7:$AL$1206,22)+VLOOKUP($B9,'2003 Beebe Pond Acrtns'!$B$7:$BI$1206,41)+VLOOKUP($B9,'2003 Canal Acrtns'!$B$7:$AL$1206,22))/$AMA9/1.9835 -> 1.135489872 | MM9: 0 | MN9: 0 | MO9: 0 | MP9: 0 | MQ9: 0 | MR9: 0 | MS9: =MIN(ML9,-(MI9+MO9)) -> 1.135489872 | MT9: =MIN($MR9,-($MI9+$MO9+$MS9)) -> 0 | MU9: no | MV9: 0 | MW9: =IF($MU9="No",IF($MV9>0,0,MIN(-MJ9,ED9)),0) -> 0 | MX9: =IF($MU9="No",IF($MV9>0,0,MIN(-(MI9+MO9+MS9+MT9),ED9-MW9)),0) -> 0 | MY9: =IF(AND(MU9="No",$CF9="No"),IF($MV9>0,0,MIN(-(MJ9+MW9),CQ9)),0) -> 0.01407697074 | MZ9: =IF(AND(MU9="No",$CF9="No"),IF($MV9>0,0,MIN(-(MI9+MS9+MT9+MX9),$CQ9-MY9)),0) -> 1.60185911 | NA9: =IF($MU9="No",IF($MV9>0,0,MIN(-(MJ9+MW9+MY9),HA9)),0) -> 0 | NB9: =IF($MU9="No",IF($MV9>0,0,MIN(-(MI9+MO9+MS9+MT9+MX9+MZ9),HA9-NA9)),0) -> 0 | NC9: =MI9+MO9+MS9+MT9+MX9+MZ9+NB9 -> -1.52123762 | ND9: =MJ9+MW9+MY9+NA9 -> 0 | NE9: 0 | NF9: =-(NE9*0.5/100*'Distances for Transit Losses'!$C$6) -> 0 | NG9: 0 | NH9: 0 | NI9: 0 | NJ9: =IF(AND(E9<>"Lower Latham",I9<>"Lower Latham"),MAX(0,MIN(-(ND9+NG9),KC9-KC9*0.25/100*'Distances for Transit Losses'!$C$99),0)) -> 0 | NK9: =IF(AND(E9<>"Lower Latham",I9<>"Lower Latham"),MAX(0,MIN(-(NC9+NE9+NF9+NI9),KC9-KC9*0.5/100*'Distances for Transit Losses'!$C$99-NJ9/(1-0.5/100*'Distances for Transit Losses'!$C$99))),0) -> 0 | NL9: =MIN(-(ND9+NG9+NJ9),KA9-KA9*0.5/100*'Distances for Transit Losses'!$C$95) -> 0 | NM9: =MAX(0,MIN(-(NC9+NE9+NF9+NK9),KA9*(1-0.5/100*'Distances for Transit Losses'!$C$95)-NL9/(1-0.5/100*'Distances for Transit Losses'!$C$95))) -> 0.1203611966 | NN9: =MIN(NM9/(1-0.5/100*'Distances for Transit Losses'!$C$95),(IA9-JD9)) -> 0.1308985281 | NO9: =MAX(0,IF(AND(JT9-JU9-LP9-GU9>0,GH9="no"),MIN(-(NC9+NE9+NF9+NI9+NK9+NM9+NN9)/(1-0.5/100*'Distances for Transit Losses'!$C$105),JT9-JU9-LP9-GU9),0)) -> 0 | NP9: =-NO9*0.5/100*'Distances for Transit Losses'!$C$105 -> 0 | NQ9: 0.58 | NR9: Lease of South Adams 5k Credits | NS9: =MIN(0,SUM(MI9:MK9)+MN9+MS9+MT9+SUM(MW9:NB9)+SUM(NE9:NM9)+SUM(NO9:NQ9)) -> -0.8208764229 | NT9: =ML9-MS9+IF(NQ9<0,NQ9,0) -> 0 | NU9: =MR9-MT9 -> 0 | NV9: =ED9-MW9-MX9 -> 0 | NW9: =CQ9-LY9-MY9-MZ9 -> 0 | NX9: =-(IF(N9<99999.99999,INDEX('Hist RF blw Milton'!$B$6:$M$30,MATCH($B$2,'Hist RF blw Milton'!$A$6:$A$30,0),MATCH($A9,'Hist RF blw Milton'!$B$5:$M$5,0))/AMA9/1.9835,0)) -> -0.02248984129 | NY9: no | NZ9: =IF($NY9="No",MIN(-(NX9+OI9),$NV9),0) -> 0 | OA9: =IF(AND(NY9="No",$CF9="No"),MIN(-(NX9+NZ9+OI9),$NW9),0) -> 0 | OB9: =NX9+OI9+NZ9+OA9 -> -0.02248984129 | OC9: 0 | OD9: ='Distances for Transit Losses'!$C$12*0.5/100*OC9 -> 0 | OE9: 0 | OG9: 0 | OH9: 0 | OI9: 0 | OJ9: =IF(NV9-NZ9<0,0,NV9-NZ9) -> 0 | OK9: =NW9-OA9 -> 0 | OL9: =-(IF(N9<99999.99999,INDEX('Hist RF to Box Elder'!$B$6:$M$30,MATCH($B$2,'Hist RF to Box Elder'!$A$6:$A$30,0),MATCH($A9,'Hist RF to Box Elder'!$B$5:$M$5,0))/AMA9/1.9835,0)) -> -0.01346302756 | OM9: =(VLOOKUP($B9,'ECCV Beebe Pond Acrtns'!$B$7:$BI$1206,54)+VLOOKUP($B9,'ECCV Canal Acrtns'!$B$7:$AL$1206,34)+VLOOKUP($B9,'2003 Beebe Pond Acrtns'!$B$7:$BI$1206,54)+VLOOKUP($B9,'2003 Canal Acrtns'!$B$7:$AL$1206,34)+VLOOKUP($B9,'84CW090 Beebe Pond Acrtns'!$B$7:$BI$1206,55)+VLOOKUP($B9,'84CW090 Canal Acrtns'!$B$7:$AL$1206,34))/$AMA9/1.9835 -> 0.09220421947 | ON9: =MIN(-OL9,OM9) -> 0.01346302756 | OO9: =IF(OL9+ON9+OQ9=0,0,-(OL9+OM9+OQ9)) -> 0 | OP9: 0 | OQ9: 0 | OS9: =AV9+AZ9+BB9+BD9+BF9+BH9+CT9+DA9+ET9+FD9+FU9+MI9+MJ9+MK9+HH9+HK9+HN9+HQ9+LD9+NX9+OL9 -> -5.623546357 | OT9: =MO9+MS9+MT9+SUM(MW9:NB9)+SUM(NE9:NM9)+SUM(NO9:NQ9)+IF(NQ9<0,MIN(-NQ9,ML9-MS9),0) -> 3.451787149 | OU9: =NZ9+OA9+OC9+OD9+OE9+OI9 -> 0 | OV9: =ON9+OO9+OP9+OQ9 -> 0.01346302756 | OW9: =LG9+LI9+LJ9+LK9+LN9+LO9+LP9+LS9+LT9+LU9 -> 0.0192909467 | OX9: =HR9+HS9+HU9+HV9+HX9+IB9+IE9+IF9+IZ9+JA9+JB9+JC9+JD9+JM9+JN9+JP9+JQ9+JR9+JS9+SUM(JU9:JW9) -> 0.1113599682 | OY9: =SUM(FW9:GF9)+SUM(GM9:GW9) -> 0 | OZ9: =SUM(EE9:EK9)+SUM(EN9:ES9)+SUM(EV9:EZ9)+SUM(FG9:FL9) -> 0 | PA9: =DL9+DM9+DO9+DS9+DT9+DU9+DV9+DW9+DY9+EA9+EC9 -> 0.02535763361 | PB9: =AW9+AX9+BN9+BO9+BP9+BR9+BS9+BT9+BV9+BX9+BZ9+CB9 -> 0.2355596909 | PC9: =SUM(OT9:PB9) -> 3.856818416 | PD9: =OS9+PC9 -> -1.766727941 | PE9: =NT9+NU9 -> 0 | PF9: =LZ9-MA9 -> 0 | PG9: =LX9 -> 0 | PO9: 0 | PP9: =PO9 -> 0 | PR9: 0 | PS9: 0 | PT9: 0 | PU9: 0 | PV9: 0 | PW9: 0 | PX9: 0 | PY9: 0 | PZ9: 0 | QA9: 0 | QB9: 0 | QC9: 0 | QD9: 0 | QE9: 0 | QF9: =SUM(PS9:QE9) -> 0 | QH9: 0 | QI9: 0 | QJ9: 0 | QK9: 0 | QL9: 0 | QM9: 0 | QN9: 0 | QO9: 0 | QP9: =QO9+QN9+QM9+QL9+QI9 -> 0 | QQ9: 0 | QR9: =QK9+QJ9+QH9 -> 0 | QT9: 0 | QU9: 0 | QV9: 0 | QW9: 0 | QX9: 0 | QY9: 0 | QZ9: 0 | RA9: 0 | RB9: 0 | RC9: 0 | RD9: =RC9+RB9+RA9+QZ9+QY9+QX9+QW9+QV9+QU9 -> 0 | RE9: =BL9+BM9 -> 0 | RF9: 0 | RG9: 0 | RH9: 0 | RI9: 0 | RJ9: 0 | RK9: 0 | RL9: 0 | RM9: =RL9+RK9+RJ9+RI9+RF9 -> 0 | RN9: 0 | RO9: =RH9+RG9 -> 0 | RQ9: 0 | RR9: 0 | RS9: 0 | RT9: 0 | RU9: 0 | RV9: 0 | RW9: 0 | RX9: 0 | RY9: 0 | RZ9: 0 | SA9: 0 | SB9: 0 | SC9: 0 | SD9: 0 | SE9: 0 | SF9: =SE9+SD9+SC9+SB9+SA9+RZ9+RY9+RX9+RW9+RV9+RU9+RT9+RS9+RR9 -> 0 | SG9: 0 | SH9: 0 | SI9: 0 | SJ9: 0 | SK9: 0 | SL9: 0 | SM9: 0 | SN9: 0 | SO9: 0 | SP9: 0 | SQ9: 0 | SR9: 0 | SS9: 0 | ST9: 0 | SU9: 0 | SV9: =SU9+ST9+SS9+SR9+SQ9+SP9+SO9+SN9+SM9+SL9+SK9+SJ9+SI9+SH9 -> 0 | SW9: =PF9+PG9-AJ9 -> 0 | SX9: 0 | SY9: 0 | SZ9: 0 | TA9: 0 | TB9: 0 | TC9: 0 | TD9: 0 | TE9: =TD9+TC9+TB9+TA9+SX9 -> 0 | TF9: 0 | TG9: =SZ9+SY9 -> 0 | TI9: 0 | TJ9: 0 | TK9: 0 | TL9: 0 | TM9: 0 | TN9: 0 | TO9: 0 | TP9: 0 | TQ9: 0 | TR9: 0 | TS9: 0 | TT9: 0 | TU9: 0 | TV9: 0 | TW9: 0 | TX9: 0 | TY9: 0 | TZ9: 0 | UA9: 0 | UB9: 0 | UC9: 0 | UD9: 0 | UE9: 0 | UF9: 0 | UG9: 0 | UH9: 0 | UI9: =UH9+UG9+UF9+UE9+UD9+UC9+UB9+UA9+TZ9+TY9+TX9+TW9+TV9+TU9 -> 0 | UJ9: 0 | UK9: 0 | UL9: 0 | UM9: 0 | UN9: 0 | UO9: 0 | UP9: 0 | UQ9: 0 | UR9: 0 | US9: 0 | UT9: 0 | UU9: 0 | UV9: 0 | UW9: 0 | UX9: 0 | UY9: 0 | UZ9: 0 | VA9: 0 | VB9: 0 | VC9: 0 | VD9: 0 | VE9: 0 | VF9: 0 | VG9: 0 | VH9: =VG9+VF9+VE9+VD9+VC9+VB9+VA9+UZ9+UY9+UX9+UW9+UV9+UU9 -> 0 | VI9: 0 | VJ9: 0 | VK9: 0 | VL9: 0 | VM9: 0 | VN9: 0 | VO9: 0 | VP9: 0 | VQ9: =VP9+VO9+VN9+VM9+VL9+VK9+VJ9 -> 0 | VR9: 0 | VS9: 0 | VT9: 0 | VU9: 0 | VV9: 0 | VW9: 0 | VX9: 0 | VY9: 0 | VZ9: 0 | WA9: 0 | WB9: 0 | WC9: 0 | WD9: 0 | WE9: =WD9+WC9+WB9+WA9+VZ9+VY9+VX9+VW9+VV9+VU9+VT9+VS9 -> 0 | WF9: 0 | WG9: 0 | WH9: 0 | WI9: 0 | WJ9: 0 | WK9: 0 | WL9: 0 | WM9: 0 | WN9: 0 | WO9: 0 | WP9: 0 | WQ9: 0 | WR9: 0 | WS9: =WR9+WQ9+WP9+WO9+WN9+WM9+WL9+WK9+WJ9+WI9+WH9+WG9 -> 0 | WT9: 0 | WU9: 0 | WV9: 0 | WW9: 0 | WX9: 0 | WY9: 0 | WZ9: 0 | XA9: 0 | XB9: =XA9+WZ9+WY9+WX9+WW9+WV9+WU9 -> 0 | XC9: 0 | XD9: 0 | XE9: 0 | XF9: 0 | XG9: 0 | XH9: 0 | XI9: 0 | XJ9: 0 | XK9: 0 | XL9: 0 | XM9: 0 | XN9: 0 | XO9: 0 | XP9: =XO9+XN9+XM9+XL9+XK9+XJ9+XI9+XH9+XG9+XF9+XE9+XD9 -> 0 | XQ9: 0 | XR9: 0 | XS9: 0 | XT9: 0 | XU9: 0 | XV9: 0 | XW9: 0 | XX9: 0 | XY9: 0 | XZ9: 0 | YA9: =XZ9+XY9+XX9+XW9 -> 0 | YB9: 0 | YC9: =XV9+XU9 -> 0 | YE9: 0 | YF9: 0 | YG9: 0 | YH9: 0 | YI9: 0 | YJ9: 0 | YK9: 0 | YL9: 0 | YM9: 0 | YN9: 0 | YO9: 0 | YP9: 0 | YQ9: 0 | YS9: 0 | YT9: 0 | YU9: 0 | YV9: 0 | YW9: 0 | YX9: =YW9+YV9+YU9 -> 0 | YY9: 0 | YZ9: =YT9+YS9 -> 0 | ZB9: 0 | ZC9: 0 | ZD9: 0 | ZE9: 0 | ZF9: 0 | ZG9: 0 | ZH9: 0 | ZI9: 0 | ZJ9: 0 | ZK9: 0 | ZL9: 0 | ZM9: 0 | ZN9: 0 | ZO9: 0 | ZP9: 0 | ZQ9: 0 | ZR9: 0 | ZS9: 0 | ZT9: 0 | ZU9: 0 | ZV9: 0 | ZW9: 0 | ZX9: 0 | ZY9: =ZX9+ZW9+ZV9+ZU9+ZT9+ZS9+ZR9+ZQ9+ZP9+ZO9 -> 0 | ZZ9: 0 | AAA9: 0 | AAB9: 0 | AAC9: 0 | AAD9: 0 | AAE9: 0 | AAF9: 0 | AAG9: 0 | AAH9: 0 | AAI9: 0 | AAJ9: 0 | AAK9: =AAJ9+AAI9+AAH9+AAG9+AAF9+AAE9+AAD9+AAC9+AAB9+AAA9 -> 0 | AAL9: 0 | AAM9: 0 | AAN9: 0 | AAO9: 0 | AAP9: 0 | AAQ9: 0 | AAR9: 0 | AAS9: 0 | AAT9: 0 | AAU9: 0 | AAV9: 0 | AAW9: =AAM9+AAN9+AAO9+AAP9+AAQ9+AAR9+AAS9+AAT9+AAU9+AAV9 -> 0 | AAX9: 0 | AAY9: 0 | AAZ9: 0 | ABA9: 0 | ABB9: 0 | ABC9: 0 | ABD9: =ABC9+ABB9+ABA9+AAZ9+AAY9 -> 0 | ABE9: 0 | ABF9: 0 | ABG9: 0 | ABH9: 0 | ABI9: 0 | ABJ9: 0 | ABK9: 0 | ABL9: 0 | ABM9: 0 | ABN9: 0 | ABO9: 0 | ABP9: =ABO9+ABN9+ABM9+ABL9+ABK9+ABJ9+ABI9+ABH9+ABG9+ABF9 -> 0 | ABQ9: 0 | ABR9: 0 | ABS9: 0 | ABT9: 0 | ABU9: 0 | ABV9: 0 | ABW9: 0 | ABX9: 0 | ABY9: 0 | ABZ9: 0 | ACA9: 0 | ACB9: =ACA9+ABZ9+ABY9+ABX9+ABW9+ABV9+ABU9+ABT9+ABS9+ABR9 -> 0 | ACD9: 0 | ACE9: 0 | ACF9: 0 | ACG9: 0 | ACH9: =ACG9+ACF9+ACE9 -> 0 | ACI9: 0 | ACJ9: =ACD9 -> 0 | ACL9: 0 | ACM9: 0 | ACN9: 0 | ACO9: 0 | ACP9: =ACO9+ACN9+ACM9 -> 0 | ACQ9: 0 | ACR9: 0 | ACS9: 0 | ACT9: 0 | ACU9: =ACT9+ACS9+ACR9 -> 0 | ACV9: 0 | ACW9: 0 | ACX9: =ACW9 -> 0 | ACZ9: 0 | ADA9: 0 | ADB9: 0 | ADC9: 0 | ADD9: 0 | ADE9: 0 | ADF9: 0 | ADG9: 0 | ADH9: =ADG9+ADF9+ADE9+ADD9+ADC9+ADB9+ADA9 -> 0 | ADI9: 0 | ADJ9: 0 | ADK9: 0 | ADL9: 0 | ADM9: 0 | ADN9: 0 | ADO9: =ADN9+ADM9+ADL9+ADK9+ADJ9 -> 0 | ADP9: 0 | ADQ9: 0 | ADR9: 0 | ADS9: 0 | ADT9: 0 | ADU9: 0 | ADV9: =ADU9+ADT9+ADS9+ADR9+ADQ9 -> 0 | ADW9: 0 | ADX9: 0 | ADY9: 0 | ADZ9: 0 | AEA9: 0 | AEB9: =AEA9+ADZ9+ADY9+ADX9 -> 0 | AEC9: 0 | AED9: 0 | AEE9: 0 | AEF9: 0 | AEG9: 0 | AEH9: =AEG9+AEF9+AEE9+AED9 -> 0 | AEI9: 0 | AEJ9: 0 | AEK9: 0 | AEL9: =AEJ9+AEK9 -> 0 | AEN9: 0 | AEO9: 0 | AEP9: 0 | AER9: 0 | AES9: 0 | AET9: 0 | AEU9: 0 | AEV9: =AEU9+AET9+AES9 -> 0 | AEW9: 0 | AEX9: =AER9 -> 0 | AEZ9: 0 | AFA9: 0 | AFB9: 0 | AFC9: 0 | AFD9: =AFA9+AFB9+AFC9 -> 0 | AFE9: 0 | AFF9: 0 | AFG9: =AFF9 -> 0 | AFH9: 0 | AFI9: 0 | AFJ9: =AFI9 -> 0 | AFK9: 0 | AFL9: 0 | AFM9: =AFL9 -> 0 | AFN9: 0 | AFO9: 0 | AFP9: 0 | AFQ9: =AFO9+AFP9 -> 0 | AFR9: 0 | AFS9: 0 | AFT9: 0 | AFU9: 0 | AFV9: =SUM(AFS9:AFU9) -> 0 | AFW9: 0 | AFX9: 0 | AFY9: 0 | AFZ9: 0 | AGA9: 0 | AGB9: 0 | AGC9: =SUM(AFX9:AGB9) -> 0 | AGD9: 0 | AGE9: 0 | AGF9: 0 | AGG9: 0 | AGH9: 0 | AGI9: 0 | AGJ9: =SUM(AGE9:AGI9) -> 0 | AGK9: 0 | AGL9: 0 | AGM9: 0 | AGN9: 0 | AGO9: 0 | AGP9: 0 | AGQ9: 0 | AGR9: =SUM(AGL9:AGQ9) -> 0 | AGS9: 0 | AGT9: 0 | AGU9: 0 | AGV9: 0 | AGW9: 0 | AGX9: 0 | AGY9: 0 | AGZ9: 0 | AHA9: =SUM(AGT9:AGZ9) -> 0 | AHB9: 0 | AHC9: 0 | AHD9: 0 | AHE9: 0 | AHF9: 0 | AHG9: 0 | AHH9: 0 | AHI9: 0 | AHJ9: =SUM(AHC9:AHI9) -> 0 | AHK9: 0 | AHL9: 0 | AHM9: 0 | AHN9: 0 | AHO9: 0 | AHP9: 0 | AHQ9: 0 | AHR9: 0 | AHS9: =SUM(AHL9:AHR9) -> 0 | AHT9: 0 | AHU9: 0 | AHV9: 0 | AHW9: 0 | AHX9: 0 | AHY9: 0 | AHZ9: 0 | AIA9: 0 | AIB9: =SUM(AHU9:AIA9) -> 0 | AIC9: 0 | AID9: 0 | AIE9: 0 | AIF9: 0 | AIG9: 0 | AIH9: 0 | AII9: 0 | AIJ9: 0 | AIK9: 0 | AIL9: 0 | AIM9: =SUM(AID9:AIL9) -> 0 | AIN9: 0 | AIO9: 0 | AIP9: 0 | AIQ9: =SUM(AIN9:AIP9) -> 0 | AIR9: 0 | AIS9: 0 | AIT9: 0 | AIU9: =SUM(AIR9:AIT9) -> 0 | AIV9: 0 | AIW9: 0 | AIX9: 0 | AIY9: =SUM(AIV9:AIX9) -> 0 | AIZ9: 0 | AJA9: 0 | AJB9: 0 | AJC9: =SUM(AIZ9:AJB9) -> 0 | AJD9: 0 | AJE9: 0 | AJF9: 0 | AJG9: =SUM(AJD9:AJF9) -> 0 | AJH9: 0 | AJI9: 0 | AJJ9: 0 | AJK9: =SUM(AJH9:AJJ9) -> 0 | AJL9: 0 | AJM9: 0 | AJN9: =AJL9+AJM9 -> 0 | AJO9: 0 | AJP9: 0 | AJQ9: =AJO9+AJP9 -> 0 | AJS9: =AFP9+AFB9+AEE9+ADY9+ADR9+ADK9+ADB9+ACF9+ABS9+ABG9+AAN9+AAB9+ZP9+ZD9+YG9+XE9+WH9+VT9+UV9+TV9+SI9+RS9+PT9 -> 0 | AJT9: =AEO9+AEF9+ADZ9+ADS9+ADL9+ADC9+ACR9+ACM9+ABT9+ABH9+AAY9+AAO9+AAC9+ZQ9+ZE9+YH9+XF9+WU9+WI9+VU9+VJ9+UW9+UK9+TW9+TJ9+SJ9+RT9+QU9+PU9 -> 0 | AJU9: =AEG9+AEA9+ADT9+ADM9+ADD9+ACS9+ACN9+ABU9+ABI9+AAZ9+AAP9+AAD9+ZR9+ZF9+YI9+XG9+WV9+WJ9+VV9+VK9+UX9+UL9+TX9+TK9+SK9+RU9+QV9+PV9 -> 0 | AJV9: =ADU9+ADN9+ADE9+ACT9+ACO9+ABV9+ABJ9+ABA9+AAQ9+AAE9+ZS9+ZG9+YJ9+XH9+WW9+WK9+VW9+VL9+UY9+UM9+TY9+TL9+SL9+RV9+QW9+PW9 -> 0 | AJW9: =ABW9+ABK9+AAR9+AAF9+ZT9+ZH9+YK9+XI9+WL9+VX9+UZ9+TZ9+SM9+RW9+PX9 -> 0 | AJX9: =ABX9+ABL9+ABB9+AAS9+AAG9+ZU9+ZI9+YL9+XJ9+WX9+WM9+VY9+VM9+VA9+UN9+UA9+TM9+SN9+RX9 -> 0 | AJY9: =ACW9+ACD9+ABY9+ABM9+AAT9+AAH9+ZV9+ZJ9+YM9+XV9+XK9+WN9+VZ9+VB9+UB9+SO9+RY9 -> 0 | AJZ9: =ABZ9+ABN9+ABC9+AAU9+AAI9+ZW9+ZK9+YN9+XL9+WY9+WO9+WA9+VN9+VC9+UO9+UC9+TN9+SP9+RZ9+QY9+PZ9 -> 0 | AKA9: =ACA9+ABO9+AAV9+AAJ9+ZX9+ZL9+YO9+XM9+WP9+WB9+VD9+SQ9+SA9 -> 0 | AKB9: =YP9+XN9+WZ9+WQ9+WC9+VO9+VE9+UP9+UE9+TO9+SR9+SB9+QZ9+QB9 -> 0 | AKC9: =XO9+XA9+WR9+WD9+VP9+VF9+UQ9+UF9+TP9+SS9+SC9+RA9+QC9 -> 0 | AKD9: =VG9+UR9+UG9+TQ9+ST9+SD9+RB9+QD9 -> 0 | AKE9: =UH9+TR9+SU9+SE9 -> 0 | AKF9: =AID9+AHU9+AHL9+AHC9+AGT9+AGL9+AGE9+AFX9+AFS9 -> 0 | AKG9: =AIE9+AHV9+AHM9+AHD9+AGU9+AGM9+AGF9+AFY9+AFT9 -> 0 | AKH9: =AIF9+AHW9+AHN9+AHE9+AGV9+AGN9+AGG9+AFZ9+AFU9 -> 0 | AKI9: =AIG9+AHX9+AHO9+AHF9+AGW9+AGO9+AGH9+AGA9 -> 0 | AKJ9: =AIH9+AHY9+AHP9+AHG9+AGX9+AGI9+AGB9 -> 0 | AKK9: =AII9+AHZ9+AHQ9+AHH9+AGY9+AGQ9 -> 0 | AKL9: =AIJ9+AIA9+AHR9+AHI9+AGZ9 -> 0 | AKM9: =AIK9 -> 0 | AKN9: =AIL9 -> 0 | AKO9: =AJP9+AJM9+AJI9+AJE9+AJA9+AIW9+AIS9+AIO9 -> 0 | AKP9: =AJJ9+AJF9+AJB9+AIX9+AIT9+AIP9 -> 0 | AKQ9: =SUM(AJR9:AKP9) -> 0 | AKR9: =TE9+RM9+QP9+YA9+YX9+ACH9+AEV9 -> 0 | AKS9: =TF9+RN9+QQ9+YB9+YY9+ACI9+AEW9 -> 0 | AKT9: =TG9+RO9+PP9+QR9+YC9+YZ9+ACJ9+ACX9+AEL9+AEX9 -> 0 | AKU9: =PO9+SUM(SX9:TD9)+SUM(RF9:RL9)+SUM(QH9:QO9)+SUM(XU9:XZ9)+SUM(YS9:YW9)+SUM(ACD9:ACG9)+SUM(AER9:AEU9) -> 0 | AKV9: =IF(AKU9*1.9835>8706,"Exceeded Annual Maximum",AKU9*1.9835) -> 0 | AKW9: 309.6 | AKY9: =PE9 -> 0 | AKZ9: 0 | ALA9: 0 | ALB9: 0 | ALC9: 0 | ALD9: 0 | ALE9: 0 | ALF9: 0 | ALG9: 0 | ALH9: 0 | ALI9: 0 | ALJ9: 0 | ALK9: 0 | ALL9: 0 | ALM9: 0 | ALN9: 0 | ALO9: 0 | ALP9: 0 | ALQ9: 0 | ALR9: 0 | ALS9: =AKY9-SUM(AKZ9:ALR9) -> 0 | ALT9: =-((LQ9+LR9)-LS9-MD9-KX9-JR9-GS9-DY9)<0.05 -> TRUE | ALU9: =ABS((KC9+KE9+LF9)-(KF9+KH9+KQ9+KR9+KW9+LG9+NJ9+NK9))<0.05 -> TRUE | ALV9: =JE9+JD9<=IA9 -> TRUE | ALX9: =NE9+NG9+NH9 -> 0 | ALY9: =OO9+OC9 -> 0 | AMA9: =VLOOKUP(A9,'Control Sheet'!$G$9:$H$20,2) -> 30
A10: Apr | B10: =B9+1 -> 2019-04-02 | C10: Burlington D River HG | D10: 1910-11-21 | E10: Burlington D River HG | F10: 22239 | AA10: =SW10 -> 0 | AB10: 0 | AC10: 0 | AD10: 0 | AF10: 0 | AG10: =('NFC Well Pumping'!$L8+'NFC Well Pumping'!$L45+'NFC Well Pumping'!$L81)/1.9835 -> 0 | AH10: ='88CW264(B) Pumping'!$E8/1.9835+'88CW264(B) Pumping'!$E44/1.9835+'88CW264(B) Pumping'!E84/1.9835+'88CW264(B) Pumping'!E120/1.9835+'88CW264(B) Pumping'!E160/1.9835+'88CW264(B) Pumping'!E196/1.9835 -> 0.008339451787 | AI10: =$PF10+$PG10 -> 0 | AJ10: =('United No. 2 Well Pumping'!G9+'United No. 2 Well Pumping'!G45+'United No. 2 Well Pumping'!G81)/1.9835 -> 0 | AK10: =('United No. 2 Well Pumping'!F9+'United No. 2 Well Pumping'!F45+'United No. 2 Well Pumping'!F81)/1.9835 -> 0 | AL10: 0 | AN10: =AG10+AH10+AJ10+AK10+AL10 -> 0.008339451787 | AO10: =AC10+AK10+'United Res'!AA172+'United Res'!AQ172+'Milliken Res'!J160 -> 0 | AP10: 100 | AQ10: =-(IF($N10=99999.99999,0,VLOOKUP($B10,'NFC Well Dplns-URF'!B$7:$AB$306,27))/$AMA10/1.9835) -> -0.005586020147 | AR10: 0 | AT10: =(VLOOKUP($B10,'ECCV 70R Pond Acrtns'!$B$7:$AI$1206,34)+VLOOKUP($B10,'2003 70R Pond Acrtns'!$B$7:$AI$1206,34)+VLOOKUP($B10,'ECCV 70R Canal Acrtns'!$B$7:$AI$1206,27)+VLOOKUP($B10,'2003 70R Canal Acrtns'!$B$7:$AI$1206,27))/$AMA10/1.9835 -> 0 | AU10: -0.005586020147 | AV10: =-(IF($N10=99999.99999,0,VLOOKUP($B10,'NFC Well Dplns-SDF'!$B$7:$Z$306,25)+VLOOKUP($B10,'NFC Well Dplns-URF'!B$7:$AB$306,20))/$AMA10/1.9835) -> -0.1028154558 | AW10: 0 | AX10: 0.07 | AY10: ECCV Riverside Credits | AZ10: =-((BL10+BM10)*'Weldon Credit'!$BB$36) -> 0 | BA10: =-((BL10+BM10)*'Weldon Credit'!$BB$34) -> 0 | BB10: =-INDEX('Weldon Credit'!$AX$249:$BJ$276,MATCH($B$2,'Weldon Credit'!$AX$249:$AX$276,0),MATCH(A10,'Weldon Credit'!$AX$249:$BJ$249,0))/AMA10/1.9835 -> -0.009784592734 | BC10: =AZ10+BB10 -> -0.009784592734 | BD10: =-((BL10+BM10)*'Weldon Credit'!$BB$37) -> 0 | BE10: =-((BL10+BM10)*'Weldon Credit'!$BB$35) -> 0 | BF10: =-INDEX('Weldon Credit'!$AX$281:$BJ$308,MATCH($B$2,'Weldon Credit'!$AX$281:$AX$308,0),MATCH(A10,'Weldon Credit'!$AX$281:$BJ$281,0))/AMA10/1.9835 -> -0.1557750982 | BG10: =BD10+BF10 -> -0.1557750982 | BH10: =-(BL10+BM10)*'Weldon Credit'!$BB$38 -> 0 | BI10: =0.4*(INDEX('Riverside Pond Accrtns'!$B$6:$M$36,MATCH($B$2,'Riverside Pond Accrtns'!$A$6:$A$36,0),MATCH('ECCV Daily Replacement Summary'!A10,'Riverside Pond Accrtns'!$B$5:$M$5,0))/AMA10)/1.9835 -> 1.357862365 | BJ10: =(44/640)*(INDEX('Weldon Valley Accrtns (02CW377)'!$B$6:$M$36,MATCH($B$2,'Weldon Valley Accrtns (02CW377)'!$A$6:$A$36,0),MATCH(A10,'Weldon Valley Accrtns (02CW377)'!$B$5:$M$5,0))/AMA10)/1.9835 -> 0.205705823 | BK10: =(VLOOKUP($B10,'ECCV 70R Pond Acrtns'!$B$7:$AI$1206,25)+VLOOKUP($B10,'ECCV 70R Canal Acrtns'!$B$7:$AI$1206,20)+VLOOKUP($B10,'2003 70R Pond Acrtns'!$B$7:$AI$1206,25)+VLOOKUP($B10,'2003 70R Canal Acrtns'!$B$7:$AI$1206,20))/$AMA10/1.9835 -> 0 | BL10: ='Joint Aug Station Deliveries'!G10 -> 0 | BM10: ='Joint Aug Station Deliveries'!H10 -> 0 | BN10: 0 | BO10: 0 | BP10: =IF(CD10="no",-MAX(0,MIN(BO10,(BM10-BL10))*(0.5/100*'Distances for Transit Losses'!$C$91)),0) -> 0 | BQ10: =IF(BL10+BM10>0,BL10+BM10-BN10-BO10+BP10,0) -> 0 | BR10: =MIN(-($BC10+BG10+BH10+BN10+BO10+BP10),BI10-BI10*0.5/100*'Distances for Transit Losses'!$C$93) -> 0.1655596909 | BS10: =MIN(-($BC10+BG10+BH10+BN10+BO10+BP10+BR10),BJ10) -> 0 | BT10: =MIN(-($BC10+BG10+BH10+BN10+BO10+BP10+BR10+BS10),BK10-BK10*0.5/100*'Distances for Transit Losses'!$C$93) -> 0 | BU10: =-((BR10+BT10)*(0.5/100*'Distances for Transit Losses'!$C$93)) -> -0.01763210708 | BV10: 0 | BW10: =--BV10*0.5/100*'Distances for Transit Losses'!C$117 -> 0 | BX10: 0 | BY10: =--BX10*0.5/100*'Distances for Transit Losses'!$C$119 -> 0 | BZ10: 0 | CA10: =-BZ10*0.5/100*'Distances for Transit Losses'!$C$115 -> 0 | CB10: 0 | CD10: no | CE10: no | CF10: no | CG10: 0 | CH10: 0 | CI10: 0 | CK10: =IF($CF10="No",MIN(IF(-DR10<0,0,-DR10),BI10-BR10/(1-0.5/100*'Distances for Transit Losses'!$C$93)),0) -> 0.02535763361 | CL10: =IF($CF10="No",IF(MIN(-(DR10+CK10),BK10-BT10/(1-0.5/100*'Distances for Transit Losses'!$C$93))<0,0,MIN(-(DR10+CK10),BK10-BT10/(1-0.5/100*'Distances for Transit Losses'!$C$93))),0) -> 0 | CM10: =IF(AND($CD10="No",$CE10="No",$CF10="No",(DR10+CK10+CL10)<0,CQ10>0),MIN(-(DR10+CK10+CL10),BQ10),0) -> 0 | CN10: 0 | CO10: 0 | CP10: =AV10+BC10+BG10+BH10 -> -0.2683751467 | CQ10: =AV10+AW10+AX10+BC10+BG10+BH10+BI10+BJ10+BK10+BL10+BM10+BP10+BU10+BV10+BX10+BZ10+CB10-SUM(CO10:CP10) -> 1.61593608 | CR10: =-(IF($N10=99999.99999,0,VLOOKUP($B10,'NFC Well Dplns-SDF'!$B$7:$Z$306,16)+VLOOKUP($B10,'NFC Well Dplns-URF'!$B$7:$AB$306,13))/$AMA10/1.9835) -> -0.8829552079 | CS10: =-(IF($N10>=99999,0,'88CW264(B) Pumping'!$E8/1.9835)+IF($N10>=99999,0,'88CW264(B) Pumping'!$E44/1.9835)+IF($N10>=99999,0,'88CW264(B) Pumping'!$E84/1.9835)+IF($N10>=99999,0,'88CW264(B) Pumping'!$E120/1.9835)+IF($N10>=51134.50919,0,'88CW264(B) Pumping'!$E160/1.9835)+IF($N10>=53406,0,'88CW264(B) Pumping'!$E196/1.9835)) -> -0.008339451787 | CT10: -0.8912946597 | CU10: 0.69 | CV10: 0 | CX10: =-(IF($N10=99999.99999,0,VLOOKUP($B10,'United No. 2 Dplns'!$B$7:$X$676,13)/1.9835)) -> 0 | CY10: =CX10+(-(INDEX('Pre 1995 Net Accretions'!$B$6:$M$105,MATCH($B$2,'Pre 1995 Net Accretions'!$A$6:$A$105,0),MATCH($A10,'Pre 1995 Net Accretions'!$B$5:$M$5,0))/$AMA10/1.9835)) -> 0.02746354924 | CZ10: =-(IF(N10<99999.99999,(INDEX('70 Ranch RF Obligation'!$B$6:$M$36,MATCH($B$2,'70 Ranch RF Obligation'!$A$6:$A$36,0),MATCH('ECCV Daily Replacement Summary'!A10,'70 Ranch RF Obligation'!$B$5:$M$5,0))/AMA10)/1.9835,0))-DC10*(1-'L. Latham Credit'!$E$41) -> -0.05282118285 | DA10: =MIN(0,CZ10+CY10) -> -0.02535763361 | DB10: =(VLOOKUP($B10,'ECCV 70R Pond Acrtns'!$B$7:$AI$1206,16)+VLOOKUP($B10,'ECCV 70R Canal Acrtns'!$B$7:$AI$1206,13)+VLOOKUP($B10,'2003 70R Pond Acrtns'!$B$7:$AI$1206,16)+VLOOKUP($B10,'2003 70R Canal Acrtns'!$B$7:$AI$1206,13))/$AMA10/1.9835 -> 0 | DC10: ='Joint Aug Station Deliveries'!DQ10 -> 0 | DD10: =IF(DC10>0,DC10-DE10,0) -> 0 | DE10: =MAX(0,MIN(-DA10,DC10)) -> 0 | DF10: ='Joint Aug Station Deliveries'!DT10 -> 0 | DG10: 0 | DH10: 0 | DI10: 0 | DK10: 0 | DL10: =MAX(0,MIN(-DA10,DK10)) -> 0 | DM10: 0 | DN10: =-DM10*0.5/100*'Distances for Transit Losses'!$C$52 -> 0 | DO10: =MAX(0,MIN(DB10,-(DA10+DL10))) -> 0 | DP10: 0 | DQ10: 0 | DR10: -0.02535763361 | DS10: 0.02535763361 | DT10: 0 | DU10: 0 | DV10: =('NFC Well Pumping'!I8+'NFC Well Pumping'!I45+'NFC Well Pumping'!I81)/1.9835 -> 0 | DW10: 0 | DX10: =-DW10*0.5/100*'Distances for Transit Losses'!C$121 -> 0 | DY10: 0 | DZ10: =-DY10*0.5/100*'Distances for Transit Losses'!$C$145 -> 0 | EA10: 0 | EB10: =--EA10*0.5/100*'Distances for Transit Losses'!$C$123 -> 0 | EC10: 0 | ED10: =DR10+DS10+DT10+DU10+DV10+DW10+DY10+EA10+EC10 -> 0 | EE10: =IF('Joint Aug Station Deliveries'!R10="Yes",'Joint Aug Station Deliveries'!P10,0) -> 0 | EF10: ='Joint Aug Station Deliveries'!T10 -> 0 | EG10: =IF('Joint Aug Station Deliveries'!Z10="Yes",'Joint Aug Station Deliveries'!X10,0) -> 0 | EH10: =-(EG10*0.5/100*'Distances for Transit Losses'!$C$234) -> 0 | EI10: =IF('Joint Aug Station Deliveries'!AD10="Yes",'Joint Aug Station Deliveries'!AB10,0) -> 0 | EJ10: =-(EI10*0.5/100*'Distances for Transit Losses'!$C$266) -> 0 | EK10: 0 | EL10: =-(EK10*0.5/100*'Distances for Transit Losses'!$C$256) -> 0 | EM10: no | EN10: =IF('Joint Aug Station Deliveries'!AH10="Yes",'Joint Aug Station Deliveries'!AF10,0) -> 0 | EO10: =-(EN10*0.5/100*'Distances for Transit Losses'!$C$268) -> 0 | EP10: =IF('Joint Aug Station Deliveries'!AL10="Yes",'Joint Aug Station Deliveries'!AJ10,0) -> 0 | EQ10: =-(EP10*0.5/100*'Distances for Transit Losses'!$C$270) -> 0 | ER10: =IF('Joint Aug Station Deliveries'!AP10="Yes",'Joint Aug Station Deliveries'!AN10,0) -> 0 | ES10: =-(ER10*0.5/100*'Distances for Transit Losses'!$C$272) -> 0 | ET10: =-0.25*(INDEX('GIC Credit'!$B$85:$M$116,MATCH($B$2,'GIC Credit'!$A$85:$A$116,0),MATCH($A10,'GIC Credit'!$B$85:$M$85,0))/$AMA10/1.9835+FN10*'GIC Credit'!$Z$39+FO10*'GIC Credit'!$AO$39) -> -0.00014 | EU10: =ET10 -> -0.00014 | EV10: ='Joint Aug Station Deliveries'!DI10 -> 0 | EW10: =-(EV10*0.5/100*'Distances for Transit Losses'!$C$262) -> 0 | EX10: ='Joint Aug Station Deliveries'!DJ10 -> 0 | EY10: =-(EX10*0.5/100*'Distances for Transit Losses'!$C$264) -> 0 | EZ10: 0 | FB10: no | FC10: -0.00014 | FD10: =-0.39*(INDEX('GIC Credit'!$B$85:$M$116,MATCH($B$2,'GIC Credit'!$A$85:$A$116,0),MATCH($A10,'GIC Credit'!$B$85:$M$85,0))/$AMA10/1.9835+FN10*'GIC Credit'!$Z$39+FO10*'GIC Credit'!$AO$39) -> -0.0002184 | FE10: 0 | FF10: =-(FE10*0.5/100*('Distances for Transit Losses'!$C$238+'Distances for Transit Losses'!$C$244)) -> 0 | FG10: =IF('Joint Aug Station Deliveries'!AT10="Yes",'Joint Aug Station Deliveries'!AR10,0) -> 0 | FH10: =-(FG10*0.5/100*('Distances for Transit Losses'!$C$240+'Distances for Transit Losses'!$C$242)) -> 0 | FI10: =IF('Joint Aug Station Deliveries'!AX10="Yes",'Joint Aug Station Deliveries'!AV10,0) -> 0 | FJ10: =-(FI10*0.5/100*'Distances for Transit Losses'!$C$242) -> 0 | FK10: ='Joint Aug Station Deliveries'!DK10 -> 0 | FL10: =-(FK10*0.5/100*'Distances for Transit Losses'!$C$248) -> 0 | FM10: 0 | FN10: ='Joint Aug Station Deliveries'!DM10 -> 0 | FO10: ='Joint Aug Station Deliveries'!DN10 -> 0 | FP10: =MIN(0,FC10)+SUM(FD10:FF10)+EE10/(1-0.5/100*('Distances for Transit Losses'!$C$274+'Distances for Transit Losses'!$C$286))+EF10/(1-0.5/100*('Distances for Transit Losses'!$C$260))+SUM(EG10:EH10)/(1-0.5/100*('Distances for Transit Losses'!$C$276+'Distances for Transit Losses'!$C$286))+SUM(EI10:EJ10)/(1-0.5/100*('Distances for Transit Losses'!$C$278+'Distances for Transit Losses'!$C$286))+EK10/(1-0.5/100*('Distances for Transit Losses'!$C$260))+SUM(EN10:EO10)/(1-0.5/100*('Distances for Transit Losses'!$C$280+'Distances for Transit Losses'!$C$288))+SUM(EP10:EQ10)/(1-0.5/100*('Distances for Transit Losses'!$C$282+'Distances for Transit Losses'!$C$288))+SUM(ER10:ES10)/(1-0.5/100*('Distances for Transit Losses'!$C$284+'Distances for Transit Losses'!$C$288))+SUM(FG10:FJ10)/(1-0.5/100*('Distances for Transit Losses'!$C$244))+SUM(FK10:FL10) -> -0.0003584 | FQ10: =-(IF(N10<99999.99999,INDEX('Hist RF to SPR'!$AF$6:$AQ$30,MATCH($B$2,'Hist RF to SPR'!$AE$6:$AE$30,0),MATCH($A10,'Hist RF to SPR'!$AF$5:$AQ$5,0))/AMA10/1.9835,0)) -> -0.0002698345146 | FR10: =IF(N10<99999.99999,-INDEX('New Cache Credit'!$BO$109:$CA$136,MATCH($B$2,'New Cache Credit'!$BO$109:$BO$136,0),MATCH(A10,'New Cache Credit'!$BO$109:$CA$109,0))/AMA10/1.9835-INDEX('New Cache Credit'!$CD$77:$CP$104,MATCH($B$2,'New Cache Credit'!$CD$77:$CD$104,0),MATCH(A10,'New Cache Credit'!$CD$77:$CP$77,0))/AMA10/1.9835,0) -> -0.0008755433333 | FS10: =-0.36*(INDEX('GIC Credit'!$B$85:$M$116,MATCH($B$2,'GIC Credit'!$A$85:$A$116,0),MATCH($A10,'GIC Credit'!$B$85:$M$85,0))/$AMA10/1.9835+FN10*'GIC Credit'!$Z$39+FO10*'GIC Credit'!$AO$39) -> -0.0002016 | FT10: -0.0003584 | FU10: -0.001705377848 | FV10: 0 | FW10: =IF('Joint Aug Station Deliveries'!BB10="Yes",'Joint Aug Station Deliveries'!AZ10,0) -> 0 | FX10: =-(FW10*0.5/100*'Distances for Transit Losses'!$C$226) -> 0 | FY10: =IF('Joint Aug Station Deliveries'!BF10="Yes",'Joint Aug Station Deliveries'!BD10,0) -> 0 | FZ10: =-(FY10*0.5/100*'Distances for Transit Losses'!$C$228) -> 0 | GA10: =IF('Joint Aug Station Deliveries'!BJ10,'Joint Aug Station Deliveries'!BH10,0) -> 0 | GB10: =-(GA10*0.5/100*'Distances for Transit Losses'!$C$230) -> 0 | GC10: =IF('Joint Aug Station Deliveries'!BN10="Yes",'Joint Aug Station Deliveries'!BL10,0) -> 0 | GD10: =-(GC10*0.5/100*'Distances for Transit Losses'!$C$218) -> 0 | GE10: =IF('Joint Aug Station Deliveries'!BR10="Yes",'Joint Aug Station Deliveries'!BP10,0) -> 0 | GF10: =-(GE10*0.5/100*'Distances for Transit Losses'!$C$224) -> 0 | GG10: =MIN(-FU10-FV10,SUM(FW10:FX10)/(1-0.5/100*('Distances for Transit Losses'!$C$292))+SUM(FY10:FZ10)/(1-0.5/100*('Distances for Transit Losses'!$C$294))+SUM(GA10:GB10)+SUM(GC10:GD10)+SUM(GE10:GF10)) -> 0 | GH10: no | GI10: 0 | GJ10: 0 | GK10: 0 | GM10: 0 | GN10: 0 | GO10: =IF(AND(LM10-LN10-JP10>0,LH10="no"),MIN(-(FU10+FV10+GG10+GM10+GN10)/(1-0.5/100*'Distances for Transit Losses'!$C$125),LM10-LN10-JP10),0) -> 0 | GP10: =-GO10*0.5/100*'Distances for Transit Losses'!$C$125 -> 0 | GQ10: 0 | GR10: 0 | GS10: 0 | GT10: =-GS10*0.5/100*'Distances for Transit Losses'!$C$143 -> 0 | GU10: =IF(AND(JT10-JU10-LP10>0,JF10="no"),MIN(-(FU10+FV10+GG10+GM10+GN10+GO10+GP10+GS10+GT10)/(1-0.5/100*'Distances for Transit Losses'!$C$127),JT10-JU10-LP10),0) -> 0 | GV10: =-GU10*0.5/100*'Distances for Transit Losses'!$C$133 -> 0 | GW10: 0 | GY10: 0 | GZ10: -0.001705377848 | HA10: 0 | HB10: =IF(OJ10>FQ10,OJ10-GM10,0) -> 0 | HC10: =OK10-GN10 -> 0 | HD10: =-(IF(N10<99999.99999,INDEX('Hist RF to SPR'!$Q$6:$AB$30,MATCH($B$2,'Hist RF to SPR'!$P$6:$P$30,0),MATCH($A10,'Hist RF to SPR'!$Q$5:$AB$5,0))/AMA10/1.9835,0)) -> -0.002812216867 | HE10: =-(IF(OR($N10<99999.99999,E10="Lower Latham",I10="Lower Latham",E10="Highland",I10="Highland",E10="Plum",I10="Plum"),(INDEX('FIDCO Credit'!$Y$48:$AJ$78,MATCH($B$2,'FIDCO Credit'!$X$48:$X$78,0),MATCH($A10,'FIDCO Credit'!$Y$47:$AJ$47,0))/$AMA10)/1.9835,0)) -> 0 | HF10: =-(IF(OR($N10<99999.99999,E10="Lower Latham",I10="Lower Latham",E10="Highland",I10="Highland",E10="Plum",I10="Plum",E10="Godfrey",I10="Godfrey",E10="Union",I10="Union"),(INDEX('Western Credit'!$AY$239:$BJ$269,MATCH($B$2,'Western Credit'!$AX$239:$AX$269,0),MATCH($A10,'Western Credit'!$AY$238:$BJ$238,0))/$AMA10)/1.9835)) -> -0.01059002452 | HG10: =-('Joint Aug Station Deliveries'!CK10+'Joint Aug Station Deliveries'!CN10+'Joint Aug Station Deliveries'!CQ10+'Joint Aug Station Deliveries'!CT10)*'Western Credit'!$BB$40 -> 0 | HH10: =SUM(HF10:HG10) -> -0.01059002452 | HI10: =-(IF(OR($N10<99999.99999,E10="Lower Latham",I10="Lower Latham",E10="Highland",I10="Highland",E10="Plum",I10="Plum",E10="Godfrey",I10="Godfrey",E10="Union",I10="Union"),(INDEX('Western Credit'!$AY$276:$BJ$306,MATCH($B$2,'Western Credit'!$AX$276:$AX$306,0),MATCH($A10,'Western Credit'!$AY$275:$BJ$275,0))/$AMA10)/1.9835)) -> -0.008320733551 | HJ10: =-('Joint Aug Station Deliveries'!CK10+'Joint Aug Station Deliveries'!CN10+'Joint Aug Station Deliveries'!CQ10+'Joint Aug Station Deliveries'!CT10)*'Western Credit'!$BB$41 -> 0 | HK10: =SUM(HI10:HJ10) -> -0.008320733551 | HL10: =-(IF(OR($N10<99999.99999,E10="Lower Latham",I10="Lower Latham",E10="Highland",I10="Highland",E10="Plum",I10="Plum",E10="Godfrey",I10="Godfrey"),(INDEX('Western Credit'!$AY$313:$BJ$343,MATCH($B$2,'Western Credit'!$AX$313:$AX$343,0),MATCH($A10,'Western Credit'!$AY$312:$BJ$312,0))/$AMA10)/1.9835)) -> -0.01550682162 | HM10: =('Joint Aug Station Deliveries'!CK10+'Joint Aug Station Deliveries'!CN10+'Joint Aug Station Deliveries'!CQ10+'Joint Aug Station Deliveries'!CT10)*'Western Credit'!$BB$42 -> 0 | HN10: -0.01550682162 | HO10: =-(IF(OR($N10<99999.99999,E10="Lower Latham",I10="Lower Latham",E10="Highland",I10="Highland",E10="Plum",I10="Plum"),(INDEX('Western Credit'!$AY$350:$BJ$380,MATCH($B$2,'Western Credit'!$AX$350:$AX$380,0),MATCH($A10,'Western Credit'!$AY$349:$BJ$349,0))/$AMA10)/1.9835)) -> -0.07413017164 | HP10: =-('Joint Aug Station Deliveries'!CK10+'Joint Aug Station Deliveries'!CN10+'Joint Aug Station Deliveries'!CQ10+'Joint Aug Station Deliveries'!CT10)*'Western Credit'!$BB$43 -> 0 | HQ10: -0.07413017164 | HR10: ='Joint Aug Station Deliveries'!CK10 -> 0 | HS10: 0 | HT10: =-HS10*0.5/100*'Distances for Transit Losses'!$C$26 -> 0 | HU10: =MIN(VLOOKUP($B10,'ECCV Haren Pond Oxbow Acrtns'!$B$7:$G$306,6)/$AMA10/1.9835,-HK10) -> 0.008320733551 | HV10: 0 | HX10: 0 | HZ10: no | IA10: =VLOOKUP($B10,'ECCV Haren Pond S.P. Acrtns'!$B$7:$G$306,6)/$AMA10/1.9835 -> 0.2339377628 | IB10: 0 | ID10: no | IE10: =VLOOKUP($B10,'ECCV Strohauer S.P. Acrtns'!$B$7:$G$306,6)/$AMA10/1.9835 -> 0 | IF10: 0 | IH10: no | II10: 0.01059002452 | IJ10: 0 | IK10: 0 | IL10: 0 | IM10: 0.008320733551 | IN10: 0 | IO10: 0 | IP10: 0 | IQ10: =MAX(0,MIN(-HN10,IA10+IF(HZ10="No",HR10*(1-0.5/100*'Distances for Transit Losses'!$C$66),0)+IF(ID10="No",IE10,0)-II10-(MAX(0,IM10-HU10-HV10)))) -> 0.01550682162 | IR10: 0 | IS10: 0 | IT10: 0 | IU10: =MAX(0,MIN(-HQ10,IE10+IF(AND(HZ10="No",ID10="No"),HR10*(1-0.5/100*'Distances for Transit Losses'!$C$68),0)+IF(ID10="No",IA10*(1-0.5/100*'Distances for Transit Losses'!$C$70),0)-II10-(MAX(0,IM10-HU10-HV10))-IQ10)) -> 0.07413017164 | IV10: =MIN(-HQ10-IU10,(HS10-IJ10-IN10-IR10)*(1-0.5/100*'Distances for Transit Losses'!$C$72)) -> 0 | IW10: =MIN(-HQ10-IU10-IV10,(JU10-IK10-IO10-IS10)/(1-0.5/100*'Distances for Transit Losses'!$C$74)) -> 0 | IX10: 0 | IY10: -0.002812216867 | IZ10: 0 | JA10: 0 | JB10: =IF(AND(JG10="no",JH10="no"),MIN(-(IY10-IZ10-JA10)/(1-0.5/100*'Distances for Transit Losses'!$C$111),LE10),0) -> 0 | JC10: =-JB10*0.5/100*'Distances for Transit Losses'!$C$111 -> 0 | JD10: 0.1002270178 | JE10: =NN10 -> 0.1308985281 | JF10: no | JG10: no | JH10: no | JI10: 0 | JJ10: 0 | JK10: 0 | JM10: 0 | JN10: 0 | JO10: -0.002812216867 | JP10: =IF(AND(LM10-LN10>0,LH10="no"),MIN(-JO10/(1-0.5/100*'Distances for Transit Losses'!$C$129)+IJ10+IN10+IR10+IV10,LM10-LN10),0) -> 0 | JQ10: =-JP10*0.5/100*'Distances for Transit Losses'!$C$129 -> 0 | JR10: =IF(AND(LQ10+LR10-LS10-MD10>0,LH10="no"),MIN((-JO10-(JP10+JQ10))/(1-0.5/100*'Distances for Transit Losses'!$C$131),LQ10+LR10-LS10-MD10),0) -> 0.003737165272 | JS10: =-JR10*0.5/100*'Distances for Transit Losses'!$C$131 -> -0.0009249484048 | JT10: 0 | JU10: =IF(JT10>0,MIN(-(JO10+JP10+JQ10+JR10+JS10)/(1-0.5/100*'Distances for Transit Losses'!$C$133)+IK10+IO10+IS10+IW10,JT10),0) -> 0 | JV10: =-JU10*0.5/100*'Distances for Transit Losses'!$C$133 -> 0 | JW10: 0 | JY10: 0 | JZ10: ='Joint Aug Station Deliveries'!CN10 -> 0 | KA10: 0.1308985281 | KB10: ='Joint Aug Station Deliveries'!CA10 -> 0 | KC10: =IF(AND(KB10>0,SUM($KB$9:KB10,$KD$9:KD10,$LE$9:LE10)*1.9835<OFFSET('FIDCO Credit'!$X$39,0,MATCH($A10,'FIDCO Credit'!$Y$5:$AJ$5,0))),KB10-IZ10,0) -> 0 | KD10: ='Joint Aug Station Deliveries'!CD10 -> 0 | KE10: =IF(AND(KD10>0,SUM($KB$9:KB10,$KD$9:KD10,$LE$9:LE10)*1.9835<OFFSET('FIDCO Credit'!$X$39,0,MATCH($A10,'FIDCO Credit'!$Y$5:$AJ$5,0))),KD10-JA10,0) -> 0 | KF10: =MAX(0,(NJ10+NK10))/(1-0.5/100*'Distances for Transit Losses'!$C$99) -> 0 | KG10: =MAX(0,(NL10+NM10)/(1-0.5/100*'Distances for Transit Losses'!$C$95)) -> 0.1308985281 | KH10: 0 | KI10: =-KH10*0.5/100*'Distances for Transit Losses'!$C$101 -> 0 | KJ10: 0 | KK10: 0 | KL10: =-KK10*0.5/100*'Distances for Transit Losses'!$C$38 -> 0 | KM10: =IF($JG10="No",KA10-KG10-KJ10,0) -> 0 | KN10: 0 | KO10: 0 | KP10: 0 | KQ10: 0 | KR10: 0 | KS10: =IF(AND($JF10="No",$CF10="No"),MH10,0) -> 0 | KT10: 0 | KU10: =IF(JF10="No",MG10,0) -> 0 | KV10: 0 | KW10: 0 | KX10: 0 | KY10: =-KX10*0.5/100*'Distances for Transit Losses'!$C$141 -> 0 | KZ10: =KN10+KQ10+KT10+SUM(KV10:KY10) -> 0 | LA10: =KA10+KC10+KE10-SUM(KF10:KJ10)-KN10-KO10-KQ10-KR10-KW10 -> 0 | LB10: 0 | LC10: 0 | LD10: =-(IF(F10<99999.99999,INDEX('Hist RF to SPR'!$B$6:$M$30,MATCH($B$2,'Hist RF to SPR'!$A$6:$A$30,0),MATCH($A10,'Hist RF to SPR'!$B$5:$M$5,0))/AMA10/1.9835,0)) -> -0.0192909467 | LE10: ='Joint Aug Station Deliveries'!CG10 -> 0 | LF10: =IF(AND(LE10>0,SUM($KB$9:KB10,$KD$9:KD10,$LE$9:LE10)*1.9835<OFFSET('FIDCO Credit'!$X$39,0,MATCH($A10,'FIDCO Credit'!$Y$5:$AJ$5,0))),LE10-JB10,0) -> 0 | LG10: =MIN(-LD10,LF10) -> 0 | LH10: no | LI10: =IF($LH10="No",MIN(-(LD10+LG10),LB10),0) -> 0 | LJ10: =IF(AND(LH10="No",$CF10="No"),MIN(-(LD10+LG10+LI10),LC10),0) -> 0 | LK10: =IF(AND($JG10="No"),MIN(-(LD10+LG10+LI10+LJ10),LA10),0) -> 0 | LL10: =LD10+LG10+LI10+LJ10+LK10 -> -0.0192909467 | LM10: 0 | LN10: =IF(LM10>0,MIN(-LL10/(1-0.5/100*'Distances for Transit Losses'!$C$135),LM10),0) -> 0 | LO10: =-LN10*0.5/100*'Distances for Transit Losses'!$C$135 -> 0 | LP10: 0 | LQ10: 0.44 | LR10: =-LQ10*0.5/100*'Distances for Transit Losses'!$C$86 -> -0.00066 | LS10: =IF((LQ10+LR10)>0,MIN((-LL10-(LN10-LO10)-LP10)/(1-0.5/100*'Distances for Transit Losses'!$C$137),(LQ10+LR10)),0) -> 0.02189664779 | LT10: =-LS10*0.5/100*'Distances for Transit Losses'!$C$137 -> -0.002605701086 | LU10: 0 | LW10: =LL10+LN10+LO10+LP10+LR10+LS10+LT10+LU10 -> -0.00066 | LX10: 0 | LY10: 0 | LZ10: 0 | MA10: 0 | MB10: 0 | MC10: 0 | MD10: 0 | ME10: =-MD10*0.5/100*'Distances for Transit Losses'!$C$139 -> 0 | MF10: =LY10+MA10+MB10+MC10+MD10+ME10 -> 0 | MG10: 0 | MH10: 0 | MI10: =-(IF(N10<99999.99999,(VLOOKUP(B10,'ECCV Upper Dpln'!$B$7:$BD$306,55))/AMA10/1.9835,0)) -> -4.258586602 | MJ10: =-(IF(N10<99999.99999,INDEX('Hist RF abv Milton'!$B$6:$M$30,MATCH($B$2,'Hist RF abv Milton'!$A$6:$A$30,0),MATCH($A10,'Hist RF abv Milton'!$B$5:$M$5,0))/AMA10/1.9835,0)) -> -0.01407697074 | MK10: 0 | ML10: =(VLOOKUP($B10,'ECCV Beebe Pond Acrtns'!$B$7:$BI$1206,41)+VLOOKUP($B10,'ECCV Canal Acrtns'!$B$7:$AL$1206,22)+VLOOKUP($B10,'2003 Beebe Pond Acrtns'!$B$7:$BI$1206,41)+VLOOKUP($B10,'2003 Canal Acrtns'!$B$7:$AL$1206,22))/$AMA10/1.9835 -> 1.135489872 | MM10: 0 | MN10: 0 | MO10: 0 | MP10: 0 | MQ10: 0 | MR10: 0 | MS10: =MIN(ML10,-MI10) -> 1.135489872 | MT10: =MIN($MR10,-($MI10+$MS10)) -> 0 | MU10: no | MV10: 0 | MW10: 0 | MX10: =IF($MU10="No",IF($MV10>0,0,MIN(-(MI10+MS10+MT10),ED10-MW10)),0) -> 0 | MY10: 0.01407697074 | MZ10: 1.60185911 | NA10: 0 | NB10: =IF($MU10="No",IF($MV10>0,0,MIN(-(MI10+MS10+MT10+MX10+MZ10),HA10-NA10)),0) -> 0 | NC10: =MI10+MS10+MT10+MX10+MZ10+NB10 -> -1.52123762 | ND10: =MJ10+MW10+MY10+NA10 -> 0 | NE10: 0 | NF10: =-(NE10*0.5/100*'Distances for Transit Losses'!$C$6) -> 0 | NG10: 0 | NH10: 0 | NI10: 0 | NJ10: =IF(AND(E10<>"Lower Latham",I10<>"Lower Latham"),MAX(0,MIN(-(ND10+NG10),KC10-KC10*0.25/100*'Distances for Transit Losses'!$C$99),0)) -> 0 | NK10: =IF(AND(E10<>"Lower Latham",I10<>"Lower Latham"),MAX(0,MIN(-(NC10+NE10+NF10+NI10),KC10-KC10*0.5/100*'Distances for Transit Losses'!$C$99-NJ10/(1-0.5/100*'Distances for Transit Losses'!$C$99))),0) -> 0 | NL10: =MIN(-(ND10+NJ10),KA10-KA10*0.5/100*'Distances for Transit Losses'!$C$95) -> 0 | NM10: =MAX(0,MIN(-(NC10+NE10+NF10+NK10),KA10*(1-0.5/100*'Distances for Transit Losses'!$C$95)-NL10/(1-0.5/100*'Distances for Transit Losses'!$C$95))) -> 0.1203611966 | NN10: =MIN(NM10/(1-0.5/100*'Distances for Transit Losses'!$C$95),(IA10-JD10)) -> 0.1308985281 | NO10: =MAX(0,IF(AND(JT10-JU10-LP10-GU10>0,GH10="no"),MIN(-(NC10+NE10+NF10+NI10+NK10+NM10+NN10)/(1-0.5/100*'Distances for Transit Losses'!$C$105),JT10-JU10-LP10-GU10),0)) -> 0 | NP10: =-NO10*0.5/100*'Distances for Transit Losses'!$C$105 -> 0 | NQ10: 0.58 | NR10: Lease of South Adams 5k Credits | NS10: =MIN(0,SUM(MI10:MK10)+MN10+MS10+MT10+SUM(MW10:NB10)+SUM(NE10:NM10)+SUM(NO10:NQ10)) -> -0.8208764229 | NT10: 0 | NU10: 0 | NV10: 0 | NW10: 0 | NX10: =-(IF(N10<99999.99999,INDEX('Hist RF blw Milton'!$B$6:$M$30,MATCH($B$2,'Hist RF blw Milton'!$A$6:$A$30,0),MATCH($A10,'Hist RF blw Milton'!$B$5:$M$5,0))/AMA10/1.9835,0)) -> -0.02248984129 | NY10: no | NZ10: =IF($NY10="No",MIN(-NX10,$NV10),0) -> 0 | OA10: =IF(AND(NY10="No",$CF10="No"),MIN(-(NX10+NZ10),$NW10),0) -> 0 | OB10: =NX10+NZ10+OA10 -> -0.02248984129 | OC10: 0 | OD10: ='Distances for Transit Losses'!$C$12*0.5/100*OC10 -> 0 | OE10: 0 | OG10: 0 | OH10: 0 | OI10: 0 | OJ10: 0 | OK10: 0 | OL10: =-(IF(N10<99999.99999,INDEX('Hist RF to Box Elder'!$B$6:$M$30,MATCH($B$2,'Hist RF to Box Elder'!$A$6:$A$30,0),MATCH($A10,'Hist RF to Box Elder'!$B$5:$M$5,0))/AMA10/1.9835,0)) -> -0.01346302756 | OM10: =(VLOOKUP($B10,'ECCV Beebe Pond Acrtns'!$B$7:$BI$1206,54)+VLOOKUP($B10,'ECCV Canal Acrtns'!$B$7:$AL$1206,34)+VLOOKUP($B10,'2003 Beebe Pond Acrtns'!$B$7:$BI$1206,54)+VLOOKUP($B10,'2003 Canal Acrtns'!$B$7:$AL$1206,34)+VLOOKUP($B10,'84CW090 Beebe Pond Acrtns'!$B$7:$BI$1206,55)+VLOOKUP($B10,'84CW090 Canal Acrtns'!$B$7:$AL$1206,34))/$AMA10/1.9835 -> 0.09220421947 | ON10: 0.01346302756 | OO10: 0 | OP10: 0 | OQ10: 0 | OS10: -5.623546357 | OT10: 3.451787149 | OU10: =NZ10+OA10+OC10+OD10+OE10 -> 0 | OV10: =ON10+OO10+OP10+OQ10 -> 0.01346302756 | OW10: 0.0192909467 | OX10: =HR10+HS10+HU10+HV10+HX10+IB10+IE10+IF10+IZ10+JA10+JB10+JC10+JD10+JM10+JN10+JP10+JQ10+JR10+JS10+SUM(JU10:JW10) -> 0.1113599682 | OY10: 0 | OZ10: 0 | PA10: 0.02535763361 | PB10: 0.2355596909 | PC10: 3.856818416 | PD10: -1.766727941 | PE10: =NT10 -> 0 | PF10: 0 | PG10: 0 | PO10: 0 | PP10: =PO10 -> 0 | PR10: 0 | PS10: 0 | PT10: 0 | PU10: 0 | PV10: 0 | PW10: 0 | PX10: 0 | PY10: 0 | PZ10: 0 | QA10: 0 | QB10: 0 | QC10: 0 | QD10: 0 | QE10: 0 | QF10: =SUM(PS10:QE10) -> 0 | QH10: 0 | QI10: 0 | QJ10: 0 | QK10: 0 | QL10: 0 | QM10: 0 | QN10: 0 | QO10: 0 | QP10: =QO10+QN10+QM10+QL10+QI10 -> 0 | QQ10: 0 | QR10: =QK10+QJ10+QH10 -> 0 | QT10: 0 | QU10: 0 | QV10: 0 | QW10: 0 | QX10: 0 | QY10: 0 | QZ10: 0 | RA10: 0 | RB10: 0 | RC10: 0 | RD10: =RC10+RB10+RA10+QZ10+QY10+QX10+QW10+QV10+QU10 -> 0 | RE10: 0 | RF10: 0 | RG10: 0 | RH10: 0 | RI10: 0 | RJ10: 0 | RK10: 0 | RL10: 0 | RM10: =RL10+RK10+RJ10+RI10+RF10 -> 0 | RN10: 0 | RO10: =RH10+RG10 -> 0 | RQ10: 0 | RR10: 0 | RS10: 0 | RT10: 0 | RU10: 0 | RV10: 0 | RW10: 0 | RX10: 0 | RY10: 0 | RZ10: 0 | SA10: 0 | SB10: 0 | SC10: 0 | SD10: 0 | SE10: 0 | SF10: =SE10+SD10+SC10+SB10+SA10+RZ10+RY10+RX10+RW10+RV10+RU10+RT10+RS10+RR10 -> 0 | SG10: 0 | SH10: 0 | SI10: 0 | SJ10: 0 | SK10: 0 | SL10: 0 | SM10: 0 | SN10: 0 | SO10: 0 | SP10: 0 | SQ10: 0 | SR10: 0 | SS10: 0 | ST10: 0 | SU10: 0 | SV10: =SU10+ST10+SS10+SR10+SQ10+SP10+SO10+SN10+SM10+SL10+SK10+SJ10+SI10+SH10 -> 0 | SW10: 0 | SX10: 0 | SY10: 0 | SZ10: 0 | TA10: 0 | TB10: 0 | TC10: 0 | TD10: 0 | TE10: =TD10+TC10+TB10+TA10+SX10 -> 0 | TF10: 0 | TG10: =SZ10+SY10 -> 0 | TI10: 0 | TJ10: 0 | TK10: 0 | TL10: 0 | TM10: 0 | TN10: 0 | TO10: 0 | TP10: 0 | TQ10: 0 | TR10: 0 | TS10: 0 | TT10: 0 | TU10: 0 | TV10: 0 | TW10: 0 | TX10: 0 | TY10: 0 | TZ10: 0 | UA10: 0 | UB10: 0 | UC10: 0 | UD10: 0 | UE10: 0 | UF10: 0 | UG10: 0 | UH10: 0 | UI10: =UH10+UG10+UF10+UE10+UD10+UC10+UB10+UA10+TZ10+TY10+TX10+TW10+TV10+TU10 -> 0 | UJ10: 0 | UK10: 0 | UL10: 0 | UM10: 0 | UN10: 0 | UO10: 0 | UP10: 0 | UQ10: 0 | UR10: 0 | US10: 0 | UT10: 0 | UU10: 0 | UV10: 0 | UW10: 0 | UX10: 0 | UY10: 0 | UZ10: 0 | VA10: 0 | VB10: 0 | VC10: 0 | VD10: 0 | VE10: 0 | VF10: 0 | VG10: 0 | VH10: =VG10+VF10+VE10+VD10+VC10+VB10+VA10+UZ10+UY10+UX10+UW10+UV10+UU10 -> 0 | VI10: 0 | VJ10: 0 | VK10: 0 | VL10: 0 | VM10: 0 | VN10: 0 | VO10: 0 | VP10: 0 | VQ10: =VP10+VO10+VN10+VM10+VL10+VK10+VJ10 -> 0 | VR10: 0 | VS10: 0 | VT10: 0 | VU10: 0 | VV10: 0 | VW10: 0 | VX10: 0 | VY10: 0 | VZ10: 0 | WA10: 0 | WB10: 0 | WC10: 0 | WD10: 0 | WE10: =WD10+WC10+WB10+WA10+VZ10+VY10+VX10+VW10+VV10+VU10+VT10+VS10 -> 0 | WF10: 0 | WG10: 0 | WH10: 0 | WI10: 0 | WJ10: 0 | WK10: 0 | WL10: 0 | WM10: 0 | WN10: 0 | WO10: 0 | WP10: 0 | WQ10: 0 | WR10: 0 | WS10: =WR10+WQ10+WP10+WO10+WN10+WM10+WL10+WK10+WJ10+WI10+WH10+WG10 -> 0 | WT10: 0 | WU10: 0 | WV10: 0 | WW10: 0 | WX10: 0 | WY10: 0 | WZ10: 0 | XA10: 0 | XB10: =XA10+WZ10+WY10+WX10+WW10+WV10+WU10 -> 0 | XC10: 0 | XD10: 0 | XE10: 0 | XF10: 0 | XG10: 0 | XH10: 0 | XI10: 0 | XJ10: 0 | XK10: 0 | XL10: 0 | XM10: 0 | XN10: 0 | XO10: 0 | XP10: =XO10+XN10+XM10+XL10+XK10+XJ10+XI10+XH10+XG10+XF10+XE10+XD10 -> 0 | XQ10: 0 | XR10: 0 | XS10: 0 | XT10: 0 | XU10: 0 | XV10: 0 | XW10: 0 | XX10: 0 | XY10: 0 | XZ10: 0 | YA10: =XZ10+XY10+XX10+XW10 -> 0 | YB10: 0 | YC10: =XV10+XU10 -> 0 | YE10: 0 | YF10: 0 | YG10: 0 | YH10: 0 | YI10: 0 | YJ10: 0 | YK10: 0 | YL10: 0 | YM10: 0 | YN10: 0 | YO10: 0 | YP10: 0 | YQ10: 0 | YS10: 0 | YT10: 0 | YU10: 0 | YV10: 0 | YW10: 0 | YX10: =YW10+YV10+YU10 -> 0 | YY10: 0 | YZ10: =YT10+YS10 -> 0 | ZB10: 0 | ZC10: 0 | ZD10: 0 | ZE10: 0 | ZF10: 0 | ZG10: 0 | ZH10: 0 | ZI10: 0 | ZJ10: 0 | ZK10: 0 | ZL10: 0 | ZM10: 0 | ZN10: 0 | ZO10: 0 | ZP10: 0 | ZQ10: 0 | ZR10: 0 | ZS10: 0 | ZT10: 0 | ZU10: 0 | ZV10: 0 | ZW10: 0 | ZX10: 0 | ZY10: =ZX10+ZW10+ZV10+ZU10+ZT10+ZS10+ZR10+ZQ10+ZP10+ZO10 -> 0 | ZZ10: 0 | AAA10: 0 | AAB10: 0 | AAC10: 0 | AAD10: 0 | AAE10: 0 | AAF10: 0 | AAG10: 0 | AAH10: 0 | AAI10: 0 | AAJ10: 0 | AAK10: =AAJ10+AAI10+AAH10+AAG10+AAF10+AAE10+AAD10+AAC10+AAB10+AAA10 -> 0 | AAL10: 0 | AAM10: 0 | AAN10: 0 | AAO10: 0 | AAP10: 0 | AAQ10: 0 | AAR10: 0 | AAS10: 0 | AAT10: 0 | AAU10: 0 | AAV10: 0 | AAW10: =AAM10+AAN10+AAO10+AAP10+AAQ10+AAR10+AAS10+AAT10+AAU10+AAV10 -> 0 | AAX10: 0 | AAY10: 0 | AAZ10: 0 | ABA10: 0 | ABB10: 0 | ABC10: 0 | ABD10: =ABC10+ABB10+ABA10+AAZ10+AAY10 -> 0 | ABE10: 0 | ABF10: 0 | ABG10: 0 | ABH10: 0 | ABI10: 0 | ABJ10: 0 | ABK10: 0 | ABL10: 0 | ABM10: 0 | ABN10: 0 | ABO10: 0 | ABP10: =ABO10+ABN10+ABM10+ABL10+ABK10+ABJ10+ABI10+ABH10+ABG10+ABF10 -> 0 | ABQ10: 0 | ABR10: 0 | ABS10: 0 | ABT10: 0 | ABU10: 0 | ABV10: 0 | ABW10: 0 | ABX10: 0 | ABY10: 0 | ABZ10: 0 | ACA10: 0 | ACB10: =ACA10+ABZ10+ABY10+ABX10+ABW10+ABV10+ABU10+ABT10+ABS10+ABR10 -> 0 | ACD10: 0 | ACE10: 0 | ACF10: 0 | ACG10: 0 | ACH10: =ACG10+ACF10+ACE10 -> 0 | ACI10: 0 | ACJ10: =ACD10 -> 0 | ACL10: 0 | ACM10: 0 | ACN10: 0 | ACO10: 0 | ACP10: =ACO10+ACN10+ACM10 -> 0 | ACQ10: 0 | ACR10: 0 | ACS10: 0 | ACT10: 0 | ACU10: =ACT10+ACS10+ACR10 -> 0 | ACV10: 0 | ACW10: 0 | ACX10: =ACW10 -> 0 | ACZ10: 0 | ADA10: 0 | ADB10: 0 | ADC10: 0 | ADD10: 0 | ADE10: 0 | ADF10: 0 | ADG10: 0 | ADH10: =ADG10+ADF10+ADE10+ADD10+ADC10+ADB10+ADA10 -> 0 | ADI10: 0 | ADJ10: 0 | ADK10: 0 | ADL10: 0 | ADM10: 0 | ADN10: 0 | ADO10: =ADN10+ADM10+ADL10+ADK10+ADJ10 -> 0 | ADP10: 0 | ADQ10: 0 | ADR10: 0 | ADS10: 0 | ADT10: 0 | ADU10: 0 | ADV10: =ADU10+ADT10+ADS10+ADR10+ADQ10 -> 0 | ADW10: 0 | ADX10: 0 | ADY10: 0 | ADZ10: 0 | AEA10: 0 | AEB10: =AEA10+ADZ10+ADY10+ADX10 -> 0 | AEC10: 0 | AED10: 0 | AEE10: 0 | AEF10: 0 | AEG10: 0 | AEH10: =AEG10+AEF10+AEE10+AED10 -> 0 | AEI10: 0 | AEJ10: 0 | AEK10: 0 | AEL10: =AEJ10+AEK10 -> 0 | AEN10: 0 | AEO10: 0 | AEP10: 0 | AER10: 0 | AES10: 0 | AET10: 0 | AEU10: 0 | AEV10: =AEU10+AET10+AES10 -> 0 | AEW10: 0 | AEX10: =AER10 -> 0 | AEZ10: 0 | AFA10: 0 | AFB10: 0 | AFC10: 0 | AFD10: =AFA10+AFB10+AFC10 -> 0 | AFE10: 0 | AFF10: 0 | AFG10: =AFF10 -> 0 | AFH10: 0 | AFI10: 0 | AFJ10: =AFI10 -> 0 | AFK10: 0 | AFL10: 0 | AFM10: =AFL10 -> 0 | AFN10: 0 | AFO10: 0 | AFP10: 0 | AFQ10: =AFO10+AFP10 -> 0 | AFR10: 0 | AFS10: 0 | AFT10: 0 | AFU10: 0 | AFV10: =SUM(AFS10:AFU10) -> 0 | AFW10: 0 | AFX10: 0 | AFY10: 0 | AFZ10: 0 | AGA10: 0 | AGB10: 0 | AGC10: =SUM(AFX10:AGB10) -> 0 | AGD10: 0 | AGE10: 0 | AGF10: 0 | AGG10: 0 | AGH10: 0 | AGI10: 0 | AGJ10: =SUM(AGE10:AGI10) -> 0 | AGK10: 0 | AGL10: 0 | AGM10: 0 | AGN10: 0 | AGO10: 0 | AGP10: 0 | AGQ10: 0 | AGR10: =SUM(AGL10:AGQ10) -> 0 | AGS10: 0 | AGT10: 0 | AGU10: 0 | AGV10: 0 | AGW10: 0 | AGX10: 0 | AGY10: 0 | AGZ10: 0 | AHA10: =SUM(AGT10:AGZ10) -> 0 | AHB10: 0 | AHC10: 0 | AHD10: 0 | AHE10: 0 | AHF10: 0 | AHG10: 0 | AHH10: 0 | AHI10: 0 | AHJ10: =SUM(AHC10:AHI10) -> 0 | AHK10: 0 | AHL10: 0 | AHM10: 0 | AHN10: 0 | AHO10: 0 | AHP10: 0 | AHQ10: 0 | AHR10: 0 | AHS10: =SUM(AHL10:AHR10) -> 0 | AHT10: 0 | AHU10: 0 | AHV10: 0 | AHW10: 0 | AHX10: 0 | AHY10: 0 | AHZ10: 0 | AIA10: 0 | AIB10: =SUM(AHU10:AIA10) -> 0 | AIC10: 0 | AID10: 0 | AIE10: 0 | AIF10: 0 | AIG10: 0 | AIH10: 0 | AII10: 0 | AIJ10: 0 | AIK10: 0 | AIL10: 0 | AIM10: =SUM(AID10:AIL10) -> 0 | AIN10: 0 | AIO10: 0 | AIP10: 0 | AIQ10: =SUM(AIN10:AIP10) -> 0 | AIR10: 0 | AIS10: 0 | AIT10: 0 | AIU10: =SUM(AIR10:AIT10) -> 0 | AIV10: 0 | AIW10: 0 | AIX10: 0 | AIY10: =SUM(AIV10:AIX10) -> 0 | AIZ10: 0 | AJA10: 0 | AJB10: 0 | AJC10: =SUM(AIZ10:AJB10) -> 0 | AJD10: 0 | AJE10: 0 | AJF10: 0 | AJG10: =SUM(AJD10:AJF10) -> 0 | AJH10: 0 | AJI10: 0 | AJJ10: 0 | AJK10: =SUM(AJH10:AJJ10) -> 0 | AJL10: 0 | AJM10: 0 | AJN10: =AJL10+AJM10 -> 0 | AJO10: 0 | AJP10: 0 | AJQ10: =AJO10+AJP10 -> 0 | AJR10: =AEK10+AED10+ADX10+ADQ10+ADJ10+ADA10+ABR10+ABF10+AAM10+AAA10+ZO10+ZC10+YF10+WG10+VS10+UU10+TU10+SH10+RR10+PS10 -> 0 | AJS10: =AFP10+AFB10+AEE10+ADY10+ADR10+ADK10+ADB10+ACF10+ABS10+ABG10+AAN10+AAB10+ZP10+ZD10+YG10+XE10+WH10+VT10+UV10+TV10+SI10+RS10+PT10 -> 0 | AJT10: =AEO10+AEF10+ADZ10+ADS10+ADL10+ADC10+ACR10+ACM10+ABT10+ABH10+AAY10+AAO10+AAC10+ZQ10+ZE10+YH10+XF10+WU10+WI10+VU10+VJ10+UW10+UK10+TW10+TJ10+SJ10+RT10+QU10+PU10 -> 0 | AJU10: =AEG10+AEA10+ADT10+ADM10+ADD10+ACS10+ACN10+ABU10+ABI10+AAZ10+AAP10+AAD10+ZR10+ZF10+YI10+XG10+WV10+WJ10+VV10+VK10+UX10+UL10+TX10+TK10+SK10+RU10+QV10+PV10 -> 0 | AJV10: =ADU10+ADN10+ADE10+ACT10+ACO10+ABV10+ABJ10+ABA10+AAQ10+AAE10+ZS10+ZG10+YJ10+XH10+WW10+WK10+VW10+VL10+UY10+UM10+TY10+TL10+SL10+RV10+QW10+PW10 -> 0 | AJW10: =ABW10+ABK10+AAR10+AAF10+ZT10+ZH10+YK10+XI10+WL10+VX10+UZ10+TZ10+SM10+RW10+PX10 -> 0 | AJX10: =ABX10+ABL10+ABB10+AAS10+AAG10+ZU10+ZI10+YL10+XJ10+WX10+WM10+VY10+VM10+VA10+UN10+UA10+TM10+SN10+RX10 -> 0 | AJY10: =ACW10+ACD10+ABY10+ABM10+AAT10+AAH10+ZV10+ZJ10+YM10+XV10+XK10+WN10+VZ10+VB10+UB10+SO10+RY10 -> 0 | AJZ10: =ABZ10+ABN10+ABC10+AAU10+AAI10+ZW10+ZK10+YN10+XL10+WY10+WO10+WA10+VN10+VC10+UO10+UC10+TN10+SP10+RZ10+QY10+PZ10 -> 0 | AKA10: =ACA10+ABO10+AAV10+AAJ10+ZX10+ZL10+YO10+XM10+WP10+WB10+VD10+SQ10+SA10 -> 0 | AKB10: =YP10+XN10+WZ10+WQ10+WC10+VO10+VE10+UP10+UE10+TO10+SR10+SB10+QZ10+QB10 -> 0 | AKC10: =XO10+XA10+WR10+WD10+VP10+VF10+UQ10+UF10+TP10+SS10+SC10+RA10+QC10 -> 0 | AKD10: =VG10+UR10+UG10+TQ10+ST10+SD10+RB10+QD10 -> 0 | AKE10: =UH10+TR10+SU10+SE10 -> 0 | AKF10: =AID10+AHU10+AHL10+AHC10+AGT10+AGL10+AGE10+AFX10+AFS10 -> 0 | AKG10: =AIE10+AHV10+AHM10+AHD10+AGU10+AGM10+AGF10+AFY10+AFT10 -> 0 | AKH10: =AIF10+AHW10+AHN10+AHE10+AGV10+AGN10+AGG10+AFZ10+AFU10 -> 0 | AKI10: =AIG10+AHX10+AHO10+AHF10+AGW10+AGO10+AGH10+AGA10 -> 0 | AKJ10: =AIH10+AHY10+AHP10+AHG10+AGX10+AGI10+AGB10 -> 0 | AKK10: =AII10+AHZ10+AHQ10+AHH10+AGY10+AGQ10 -> 0 | AKL10: =AIJ10+AIA10+AHR10+AHI10+AGZ10 -> 0 | AKM10: =AIK10 -> 0 | AKN10: =AIL10 -> 0 | AKO10: =AJP10+AJM10+AJI10+AJE10+AJA10+AIW10+AIS10+AIO10 -> 0 | AKP10: =AJJ10+AJF10+AJB10+AIX10+AIT10+AIP10 -> 0 | AKQ10: =SUM(AJR10:AKP10) -> 0 | AKR10: 0 | AKS10: 0 | AKT10: 0 | AKU10: 0 | AKV10: =IF(AKU10*1.9835>8706,"Exceeded Annual Maximum",AKU10*1.9835) -> 0 | AKW10: 309.6 | AKY10: 0 | AKZ10: 0 | ALA10: 0 | ALB10: 0 | ALC10: 0 | ALD10: 0 | ALE10: 0 | ALF10: 0 | ALG10: 0 | ALH10: 0 | ALI10: 0 | ALJ10: 0 | ALK10: 0 | ALL10: 0 | ALM10: 0 | ALN10: 0 | ALO10: 0 | ALP10: 0 | ALQ10: 0 | ALR10: 0 | ALS10: =AKY10-SUM(AKZ10:ALR10) -> 0 | ALT10: TRUE | ALU10: TRUE | ALV10: TRUE | ALX10: 0 | ALY10: 0 | AMA10: =VLOOKUP(A10,'Control Sheet'!$G$9:$H$20,2) -> 30
A11: Apr | B11: 2019-04-03 | C11: Burlington D River HG | D11: 1910-11-21 | E11: Burlington D River HG | F11: 22239 | AA11: 0 | AB11: 0 | AC11: 0 | AD11: 0 | AF11: 0 | AG11: =('NFC Well Pumping'!$L9+'NFC Well Pumping'!$L46+'NFC Well Pumping'!$L82)/1.9835 -> 0 | AH11: ='88CW264(B) Pumping'!$E9/1.9835+'88CW264(B) Pumping'!$E45/1.9835+'88CW264(B) Pumping'!E85/1.9835+'88CW264(B) Pumping'!E121/1.9835+'88CW264(B) Pumping'!E161/1.9835+'88CW264(B) Pumping'!E197/1.9835 -> 0.008339451787 | AI11: =$PF11+$PG11 -> 0 | AJ11: =('United No. 2 Well Pumping'!G10+'United No. 2 Well Pumping'!G46+'United No. 2 Well Pumping'!G82)/1.9835 -> 0 | AK11: =('United No. 2 Well Pumping'!F10+'United No. 2 Well Pumping'!F46+'United No. 2 Well Pumping'!F82)/1.9835 -> 0 | AL11: 0 | AN11: 0.008339451787 | AO11: =AC11+AK11+'United Res'!AA173+'United Res'!AQ173+'Milliken Res'!J161 -> 0 | AP11: 100 | AQ11: =-(IF($N11=99999.99999,0,VLOOKUP($B11,'NFC Well Dplns-URF'!B$7:$AB$306,27))/$AMA11/1.9835) -> -0.005586020147 | AR11: 0 | AT11: =(VLOOKUP($B11,'ECCV 70R Pond Acrtns'!$B$7:$AI$1206,34)+VLOOKUP($B11,'2003 70R Pond Acrtns'!$B$7:$AI$1206,34)+VLOOKUP($B11,'ECCV 70R Canal Acrtns'!$B$7:$AI$1206,27)+VLOOKUP($B11,'2003 70R Canal Acrtns'!$B$7:$AI$1206,27))/$AMA11/1.9835 -> 0 | AU11: -0.005586020147 | AV11: =-(IF($N11=99999.99999,0,VLOOKUP($B11,'NFC Well Dplns-SDF'!$B$7:$Z$306,25)+VLOOKUP($B11,'NFC Well Dplns-URF'!B$7:$AB$306,20))/$AMA11/1.9835) -> -0.1028154558 | AW11: 0 | AX11: 0.07 | AY11: ECCV Riverside Credits | AZ11: =-((BL11+BM11)*'Weldon Credit'!$BB$36) -> 0 | BA11: =-((BL11+BM11)*'Weldon Credit'!$BB$34) -> 0 | BB11: =-INDEX('Weldon Credit'!$AX$249:$BJ$276,MATCH($B$2,'Weldon Credit'!$AX$249:$AX$276,0),MATCH(A11,'Weldon Credit'!$AX$249:$BJ$249,0))/AMA11/1.9835 -> -0.009784592734 | BC11: -0.009784592734 | BD11: =-((BL11+BM11)*'Weldon Credit'!$BB$37) -> 0 | BE11: =-((BL11+BM11)*'Weldon Credit'!$BB$35) -> 0 | BF11: =-INDEX('Weldon Credit'!$AX$281:$BJ$308,MATCH($B$2,'Weldon Credit'!$AX$281:$AX$308,0),MATCH(A11,'Weldon Credit'!$AX$281:$BJ$281,0))/AMA11/1.9835 -> -0.1557750982 | BG11: -0.1557750982 | BH11: =-(BL11+BM11)*'Weldon Credit'!$BB$38 -> 0 | BI11: =0.4*(INDEX('Riverside Pond Accrtns'!$B$6:$M$36,MATCH($B$2,'Riverside Pond Accrtns'!$A$6:$A$36,0),MATCH('ECCV Daily Replacement Summary'!A11,'Riverside Pond Accrtns'!$B$5:$M$5,0))/AMA11)/1.9835 -> 1.357862365 | BJ11: =(44/640)*(INDEX('Weldon Valley Accrtns (02CW377)'!$B$6:$M$36,MATCH($B$2,'Weldon Valley Accrtns (02CW377)'!$A$6:$A$36,0),MATCH(A11,'Weldon Valley Accrtns (02CW377)'!$B$5:$M$5,0))/AMA11)/1.9835 -> 0.205705823 | BK11: =(VLOOKUP($B11,'ECCV 70R Pond Acrtns'!$B$7:$AI$1206,25)+VLOOKUP($B11,'ECCV 70R Canal Acrtns'!$B$7:$AI$1206,20)+VLOOKUP($B11,'2003 70R Pond Acrtns'!$B$7:$AI$1206,25)+VLOOKUP($B11,'2003 70R Canal Acrtns'!$B$7:$AI$1206,20))/$AMA11/1.9835 -> 0 | BL11: ='Joint Aug Station Deliveries'!G11 -> 0 | BM11: ='Joint Aug Station Deliveries'!H11 -> 0 | BN11: 0 | BO11: 0 | BP11: =IF(CD11="no",-MAX(0,MIN(BO11,(BM11-BL11))*(0.5/100*'Distances for Transit Losses'!$C$91)),0) -> 0 | BQ11: 0 | BR11: =MIN(-($BC11+BG11+BH11+BN11+BO11+BP11),BI11-BI11*0.5/100*'Distances for Transit Losses'!$C$93) -> 0.1655596909 | BS11: 0 | BT11: =MIN(-($BC11+BG11+BH11+BN11+BO11+BP11+BR11+BS11),BK11-BK11*0.5/100*'Distances for Transit Losses'!$C$93) -> 0 | BU11: =-((BR11+BT11)*(0.5/100*'Distances for Transit Losses'!$C$93)) -> -0.01763210708 | BV11: 0 | BW11: =--BV11*0.5/100*'Distances for Transit Losses'!C$117 -> 0 | BX11: 0 | BY11: =--BX11*0.5/100*'Distances for Transit Losses'!$C$119 -> 0 | BZ11: 0 | CA11: =-BZ11*0.5/100*'Distances for Transit Losses'!$C$115 -> 0 | CB11: 0 | CD11: no | CE11: no | CF11: no | CG11: 0 | CH11: 0 | CI11: 0 | CK11: =IF($CF11="No",MIN(IF(-DR11<0,0,-DR11),BI11-BR11/(1-0.5/100*'Distances for Transit Losses'!$C$93)),0) -> 0.02535763361 | CL11: =IF($CF11="No",IF(MIN(-(DR11+CK11),BK11-BT11/(1-0.5/100*'Distances for Transit Losses'!$C$93))<0,0,MIN(-(DR11+CK11),BK11-BT11/(1-0.5/100*'Distances for Transit Losses'!$C$93))),0) -> 0 | CM11: 0 | CN11: 0 | CO11: 0 | CP11: -0.2683751467 | CQ11: 1.61593608 | CR11: =-(IF($N11=99999.99999,0,VLOOKUP($B11,'NFC Well Dplns-SDF'!$B$7:$Z$306,16)+VLOOKUP($B11,'NFC Well Dplns-URF'!$B$7:$AB$306,13))/$AMA11/1.9835) -> -0.8829552079 | CS11: =-(IF($N11>=99999,0,'88CW264(B) Pumping'!$E9/1.9835)+IF($N11>=99999,0,'88CW264(B) Pumping'!$E45/1.9835)+IF($N11>=99999,0,'88CW264(B) Pumping'!$E85/1.9835)+IF($N11>=99999,0,'88CW264(B) Pumping'!$E121/1.9835)+IF($N11>=51134.50919,0,'88CW264(B) Pumping'!$E161/1.9835)+IF($N11>=53406,0,'88CW264(B) Pumping'!$E197/1.9835)) -> -0.008339451787 | CT11: -0.8912946597 | CU11: 0.69 | CV11: 0 | CX11: =-(IF($N11=99999.99999,0,VLOOKUP($B11,'United No. 2 Dplns'!$B$7:$X$676,13)/1.9835)) -> 0 | CY11: =CX11+(-(INDEX('Pre 1995 Net Accretions'!$B$6:$M$105,MATCH($B$2,'Pre 1995 Net Accretions'!$A$6:$A$105,0),MATCH($A11,'Pre 1995 Net Accretions'!$B$5:$M$5,0))/$AMA11/1.9835)) -> 0.02746354924 | CZ11: =-(IF(N11<99999.99999,(INDEX('70 Ranch RF Obligation'!$B$6:$M$36,MATCH($B$2,'70 Ranch RF Obligation'!$A$6:$A$36,0),MATCH('ECCV Daily Replacement Summary'!A11,'70 Ranch RF Obligation'!$B$5:$M$5,0))/AMA11)/1.9835,0))-DC11*(1-'L. Latham Credit'!$E$41) -> -0.05282118285 | DA11: -0.02535763361 | DB11: =(VLOOKUP($B11,'ECCV 70R Pond Acrtns'!$B$7:$AI$1206,16)+VLOOKUP($B11,'ECCV 70R Canal Acrtns'!$B$7:$AI$1206,13)+VLOOKUP($B11,'2003 70R Pond Acrtns'!$B$7:$AI$1206,16)+VLOOKUP($B11,'2003 70R Canal Acrtns'!$B$7:$AI$1206,13))/$AMA11/1.9835 -> 0 | DC11: ='Joint Aug Station Deliveries'!DQ11 -> 0 | DD11: 0 | DE11: 0 | DF11: ='Joint Aug Station Deliveries'!DT11 -> 0 | DG11: 0 | DH11: 0 | DI11: 0 | DK11: 0 | DL11: 0 | DM11: 0 | DN11: =-DM11*0.5/100*'Distances for Transit Losses'!$C$52 -> 0 | DO11: 0 | DP11: 0 | DQ11: 0 | DR11: -0.02535763361 | DS11: 0.02535763361 | DT11: 0 | DU11: 0 | DV11: =('NFC Well Pumping'!I9+'NFC Well Pumping'!I46+'NFC Well Pumping'!I82)/1.9835 -> 0 | DW11: 0 | DX11: =-DW11*0.5/100*'Distances for Transit Losses'!C$121 -> 0 | DY11: 0 | DZ11: =-DY11*0.5/100*'Distances for Transit Losses'!$C$145 -> 0 | EA11: 0 | EB11: =--EA11*0.5/100*'Distances for Transit Losses'!$C$123 -> 0 | EC11: 0 | ED11: 0 | EE11: =IF('Joint Aug Station Deliveries'!R11="Yes",'Joint Aug Station Deliveries'!P11,0) -> 0 | EF11: ='Joint Aug Station Deliveries'!T11 -> 0 | EG11: =IF('Joint Aug Station Deliveries'!Z11="Yes",'Joint Aug Station Deliveries'!X11,0) -> 0 | EH11: =-(EG11*0.5/100*'Distances for Transit Losses'!$C$234) -> 0 | EI11: =IF('Joint Aug Station Deliveries'!AD11="Yes",'Joint Aug Station Deliveries'!AB11,0) -> 0 | EJ11: =-(EI11*0.5/100*'Distances for Transit Losses'!$C$266) -> 0 | EK11: 0 | EL11: =-(EK11*0.5/100*'Distances for Transit Losses'!$C$256) -> 0 | EM11: no | EN11: =IF('Joint Aug Station Deliveries'!AH11="Yes",'Joint Aug Station Deliveries'!AF11,0) -> 0 | EO11: =-(EN11*0.5/100*'Distances for Transit Losses'!$C$268) -> 0 | EP11: =IF('Joint Aug Station Deliveries'!AL11="Yes",'Joint Aug Station Deliveries'!AJ11,0) -> 0 | EQ11: =-(EP11*0.5/100*'Distances for Transit Losses'!$C$270) -> 0 | ER11: =IF('Joint Aug Station Deliveries'!AP11="Yes",'Joint Aug Station Deliveries'!AN11,0) -> 0 | ES11: =-(ER11*0.5/100*'Distances for Transit Losses'!$C$272) -> 0 | ET11: =-0.25*(INDEX('GIC Credit'!$B$85:$M$116,MATCH($B$2,'GIC Credit'!$A$85:$A$116,0),MATCH($A11,'GIC Credit'!$B$85:$M$85,0))/$AMA11/1.9835+FN11*'GIC Credit'!$Z$39+FO11*'GIC Credit'!$AO$39) -> -0.00014 | EU11: -0.00014 | EV11: ='Joint Aug Station Deliveries'!DI11 -> 0 | EW11: =-(EV11*0.5/100*'Distances for Transit Losses'!$C$262) -> 0 | EX11: ='Joint Aug Station Deliveries'!DJ11 -> 0 | EY11: =-(EX11*0.5/100*'Distances for Transit Losses'!$C$264) -> 0 | EZ11: 0 | FB11: no | FC11: -0.00014 | FD11: =-0.39*(INDEX('GIC Credit'!$B$85:$M$116,MATCH($B$2,'GIC Credit'!$A$85:$A$116,0),MATCH($A11,'GIC Credit'!$B$85:$M$85,0))/$AMA11/1.9835+FN11*'GIC Credit'!$Z$39+FO11*'GIC Credit'!$AO$39) -> -0.0002184 | FE11: 0 | FF11: =-(FE11*0.5/100*('Distances for Transit Losses'!$C$238+'Distances for Transit Losses'!$C$244)) -> 0 | FG11: =IF('Joint Aug Station Deliveries'!AT11="Yes",'Joint Aug Station Deliveries'!AR11,0) -> 0 | FH11: =-(FG11*0.5/100*('Distances for Transit Losses'!$C$240+'Distances for Transit Losses'!$C$242)) -> 0 | FI11: =IF('Joint Aug Station Deliveries'!AX11="Yes",'Joint Aug Station Deliveries'!AV11,0) -> 0 | FJ11: =-(FI11*0.5/100*'Distances for Transit Losses'!$C$242) -> 0 | FK11: ='Joint Aug Station Deliveries'!DK11 -> 0 | FL11: =-(FK11*0.5/100*'Distances for Transit Losses'!$C$248) -> 0 | FM11: 0 | FN11: ='Joint Aug Station Deliveries'!DM11 -> 0 | FO11: ='Joint Aug Station Deliveries'!DN11 -> 0 | FP11: =MIN(0,FC11)+SUM(FD11:FF11)+EE11/(1-0.5/100*('Distances for Transit Losses'!$C$274+'Distances for Transit Losses'!$C$286))+EF11/(1-0.5/100*('Distances for Transit Losses'!$C$260))+SUM(EG11:EH11)/(1-0.5/100*('Distances for Transit Losses'!$C$276+'Distances for Transit Losses'!$C$286))+SUM(EI11:EJ11)/(1-0.5/100*('Distances for Transit Losses'!$C$278+'Distances for Transit Losses'!$C$286))+EK11/(1-0.5/100*('Distances for Transit Losses'!$C$260))+SUM(EN11:EO11)/(1-0.5/100*('Distances for Transit Losses'!$C$280+'Distances for Transit Losses'!$C$288))+SUM(EP11:EQ11)/(1-0.5/100*('Distances for Transit Losses'!$C$282+'Distances for Transit Losses'!$C$288))+SUM(ER11:ES11)/(1-0.5/100*('Distances for Transit Losses'!$C$284+'Distances for Transit Losses'!$C$288))+SUM(FG11:FJ11)/(1-0.5/100*('Distances for Transit Losses'!$C$244))+SUM(FK11:FL11) -> -0.0003584 | FQ11: =-(IF(N11<99999.99999,INDEX('Hist RF to SPR'!$AF$6:$AQ$30,MATCH($B$2,'Hist RF to SPR'!$AE$6:$AE$30,0),MATCH($A11,'Hist RF to SPR'!$AF$5:$AQ$5,0))/AMA11/1.9835,0)) -> -0.0002698345146 | FR11: =IF(N11<99999.99999,-INDEX('New Cache Credit'!$BO$109:$CA$136,MATCH($B$2,'New Cache Credit'!$BO$109:$BO$136,0),MATCH(A11,'New Cache Credit'!$BO$109:$CA$109,0))/AMA11/1.9835-INDEX('New Cache Credit'!$CD$77:$CP$104,MATCH($B$2,'New Cache Credit'!$CD$77:$CD$104,0),MATCH(A11,'New Cache Credit'!$CD$77:$CP$77,0))/AMA11/1.9835,0) -> -0.0008755433333 | FS11: =-0.36*(INDEX('GIC Credit'!$B$85:$M$116,MATCH($B$2,'GIC Credit'!$A$85:$A$116,0),MATCH($A11,'GIC Credit'!$B$85:$M$85,0))/$AMA11/1.9835+FN11*'GIC Credit'!$Z$39+FO11*'GIC Credit'!$AO$39) -> -0.0002016 | FT11: -0.0003584 | FU11: -0.001705377848 | FV11: 0 | FW11: =IF('Joint Aug Station Deliveries'!BB11="Yes",'Joint Aug Station Deliveries'!AZ11,0) -> 0 | FX11: =-(FW11*0.5/100*'Distances for Transit Losses'!$C$226) -> 0 | FY11: =IF('Joint Aug Station Deliveries'!BF11="Yes",'Joint Aug Station Deliveries'!BD11,0) -> 0 | FZ11: =-(FY11*0.5/100*'Distances for Transit Losses'!$C$228) -> 0 | GA11: =IF('Joint Aug Station Deliveries'!BJ11,'Joint Aug Station Deliveries'!BH11,0) -> 0 | GB11: =-(GA11*0.5/100*'Distances for Transit Losses'!$C$230) -> 0 | GC11: =IF('Joint Aug Station Deliveries'!BN11="Yes",'Joint Aug Station Deliveries'!BL11,0) -> 0 | GD11: =-(GC11*0.5/100*'Distances for Transit Losses'!$C$218) -> 0 | GE11: =IF('Joint Aug Station Deliveries'!BR11="Yes",'Joint Aug Station Deliveries'!BP11,0) -> 0 | GF11: =-(GE11*0.5/100*'Distances for Transit Losses'!$C$224) -> 0 | GG11: =MIN(-FU11-FV11,SUM(FW11:FX11)/(1-0.5/100*('Distances for Transit Losses'!$C$292))+SUM(FY11:FZ11)/(1-0.5/100*('Distances for Transit Losses'!$C$294))+SUM(GA11:GB11)+SUM(GC11:GD11)+SUM(GE11:GF11)) -> 0 | GH11: no | GI11: 0 | GJ11: 0 | GK11: 0 | GM11: 0 | GN11: 0 | GO11: =IF(AND(LM11-LN11-JP11>0,LH11="no"),MIN(-(FU11+FV11+GG11+GM11+GN11)/(1-0.5/100*'Distances for Transit Losses'!$C$125),LM11-LN11-JP11),0) -> 0 | GP11: =-GO11*0.5/100*'Distances for Transit Losses'!$C$125 -> 0 | GQ11: 0 | GR11: 0 | GS11: 0 | GT11: =-GS11*0.5/100*'Distances for Transit Losses'!$C$143 -> 0 | GU11: =IF(AND(JT11-JU11-LP11>0,JF11="no"),MIN(-(FU11+FV11+GG11+GM11+GN11+GO11+GP11+GS11+GT11)/(1-0.5/100*'Distances for Transit Losses'!$C$127),JT11-JU11-LP11),0) -> 0 | GV11: =-GU11*0.5/100*'Distances for Transit Losses'!$C$133 -> 0 | GW11: 0 | GY11: 0 | GZ11: -0.001705377848 | HA11: 0 | HB11: 0 | HC11: 0 | HD11: =-(IF(N11<99999.99999,INDEX('Hist RF to SPR'!$Q$6:$AB$30,MATCH($B$2,'Hist RF to SPR'!$P$6:$P$30,0),MATCH($A11,'Hist RF to SPR'!$Q$5:$AB$5,0))/AMA11/1.9835,0)) -> -0.002812216867 | HE11: =-(IF(OR($N11<99999.99999,E11="Lower Latham",I11="Lower Latham",E11="Highland",I11="Highland",E11="Plum",I11="Plum"),(INDEX('FIDCO Credit'!$Y$48:$AJ$78,MATCH($B$2,'FIDCO Credit'!$X$48:$X$78,0),MATCH($A11,'FIDCO Credit'!$Y$47:$AJ$47,0))/$AMA11)/1.9835,0)) -> 0 | HF11: =-(IF(OR($N11<99999.99999,E11="Lower Latham",I11="Lower Latham",E11="Highland",I11="Highland",E11="Plum",I11="Plum",E11="Godfrey",I11="Godfrey",E11="Union",I11="Union"),(INDEX('Western Credit'!$AY$239:$BJ$269,MATCH($B$2,'Western Credit'!$AX$239:$AX$269,0),MATCH($A11,'Western Credit'!$AY$238:$BJ$238,0))/$AMA11)/1.9835)) -> -0.01059002452 | HG11: =-('Joint Aug Station Deliveries'!CK11+'Joint Aug Station Deliveries'!CN11+'Joint Aug Station Deliveries'!CQ11+'Joint Aug Station Deliveries'!CT11)*'Western Credit'!$BB$40 -> 0 | HH11: -0.01059002452 | HI11: =-(IF(OR($N11<99999.99999,E11="Lower Latham",I11="Lower Latham",E11="Highland",I11="Highland",E11="Plum",I11="Plum",E11="Godfrey",I11="Godfrey",E11="Union",I11="Union"),(INDEX('Western Credit'!$AY$276:$BJ$306,MATCH($B$2,'Western Credit'!$AX$276:$AX$306,0),MATCH($A11,'Western Credit'!$AY$275:$BJ$275,0))/$AMA11)/1.9835)) -> -0.008320733551 | HJ11: =-('Joint Aug Station Deliveries'!CK11+'Joint Aug Station Deliveries'!CN11+'Joint Aug Station Deliveries'!CQ11+'Joint Aug Station Deliveries'!CT11)*'Western Credit'!$BB$41 -> 0 | HK11: -0.008320733551 | HL11: =-(IF(OR($N11<99999.99999,E11="Lower Latham",I11="Lower Latham",E11="Highland",I11="Highland",E11="Plum",I11="Plum",E11="Godfrey",I11="Godfrey"),(INDEX('Western Credit'!$AY$313:$BJ$343,MATCH($B$2,'Western Credit'!$AX$313:$AX$343,0),MATCH($A11,'Western Credit'!$AY$312:$BJ$312,0))/$AMA11)/1.9835)) -> -0.01550682162 | HM11: =('Joint Aug Station Deliveries'!CK11+'Joint Aug Station Deliveries'!CN11+'Joint Aug Station Deliveries'!CQ11+'Joint Aug Station Deliveries'!CT11)*'Western Credit'!$BB$42 -> 0 | HN11: -0.01550682162 | HO11: =-(IF(OR($N11<99999.99999,E11="Lower Latham",I11="Lower Latham",E11="Highland",I11="Highland",E11="Plum",I11="Plum"),(INDEX('Western Credit'!$AY$350:$BJ$380,MATCH($B$2,'Western Credit'!$AX$350:$AX$380,0),MATCH($A11,'Western Credit'!$AY$349:$BJ$349,0))/$AMA11)/1.9835)) -> -0.07413017164 | HP11: =-('Joint Aug Station Deliveries'!CK11+'Joint Aug Station Deliveries'!CN11+'Joint Aug Station Deliveries'!CQ11+'Joint Aug Station Deliveries'!CT11)*'Western Credit'!$BB$43 -> 0 | HQ11: -0.07413017164 | HR11: ='Joint Aug Station Deliveries'!CK11 -> 0 | HS11: 0 | HT11: =-HS11*0.5/100*'Distances for Transit Losses'!$C$26 -> 0 | HU11: =MIN(VLOOKUP($B11,'ECCV Haren Pond Oxbow Acrtns'!$B$7:$G$306,6)/$AMA11/1.9835,-HK11) -> 0.008320733551 | HV11: 0 | HX11: 0 | HZ11: no | IA11: =VLOOKUP($B11,'ECCV Haren Pond S.P. Acrtns'!$B$7:$G$306,6)/$AMA11/1.9835 -> 0.2339377628 | IB11: 0 | ID11: no | IE11: =VLOOKUP($B11,'ECCV Strohauer S.P. Acrtns'!$B$7:$G$306,6)/$AMA11/1.9835 -> 0 | IF11: 0 | IH11: no | II11: 0.01059002452 | IJ11: 0 | IK11: 0 | IL11: 0 | IM11: 0.008320733551 | IN11: 0 | IO11: 0 | IP11: 0 | IQ11: =MAX(0,MIN(-HN11,IA11+IF(HZ11="No",HR11*(1-0.5/100*'Distances for Transit Losses'!$C$66),0)+IF(ID11="No",IE11,0)-II11-(MAX(0,IM11-HU11-HV11)))) -> 0.01550682162 | IR11: 0 | IS11: 0 | IT11: 0 | IU11: =MAX(0,MIN(-HQ11,IE11+IF(AND(HZ11="No",ID11="No"),HR11*(1-0.5/100*'Distances for Transit Losses'!$C$68),0)+IF(ID11="No",IA11*(1-0.5/100*'Distances for Transit Losses'!$C$70),0)-II11-(MAX(0,IM11-HU11-HV11))-IQ11)) -> 0.07413017164 | IV11: =MIN(-HQ11-IU11,(HS11-IJ11-IN11-IR11)*(1-0.5/100*'Distances for Transit Losses'!$C$72)) -> 0 | IW11: =MIN(-HQ11-IU11-IV11,(JU11-IK11-IO11-IS11)/(1-0.5/100*'Distances for Transit Losses'!$C$74)) -> 0 | IX11: 0 | IY11: -0.002812216867 | IZ11: 0 | JA11: 0 | JB11: =IF(AND(JG11="no",JH11="no"),MIN(-(IY11-IZ11-JA11)/(1-0.5/100*'Distances for Transit Losses'!$C$111),LE11),0) -> 0 | JC11: =-JB11*0.5/100*'Distances for Transit Losses'!$C$111 -> 0 | JD11: 0.1002270178 | JE11: 0.1308985281 | JF11: no | JG11: no | JH11: no | JI11: 0 | JJ11: 0 | JK11: 0 | JM11: 0 | JN11: 0 | JO11: -0.002812216867 | JP11: =IF(AND(LM11-LN11>0,LH11="no"),MIN(-JO11/(1-0.5/100*'Distances for Transit Losses'!$C$129)+IJ11+IN11+IR11+IV11,LM11-LN11),0) -> 0 | JQ11: =-JP11*0.5/100*'Distances for Transit Losses'!$C$129 -> 0 | JR11: =IF(AND(LQ11+LR11-LS11-MD11>0,LH11="no"),MIN((-JO11-(JP11+JQ11))/(1-0.5/100*'Distances for Transit Losses'!$C$131),LQ11+LR11-LS11-MD11),0) -> 0.003737165272 | JS11: =-JR11*0.5/100*'Distances for Transit Losses'!$C$131 -> -0.0009249484048 | JT11: 0 | JU11: =IF(JT11>0,MIN(-(JO11+JP11+JQ11+JR11+JS11)/(1-0.5/100*'Distances for Transit Losses'!$C$133)+IK11+IO11+IS11+IW11,JT11),0) -> 0 | JV11: =-JU11*0.5/100*'Distances for Transit Losses'!$C$133 -> 0 | JW11: 0 | JY11: 0 | JZ11: ='Joint Aug Station Deliveries'!CN11 -> 0 | KA11: 0.1308985281 | KB11: ='Joint Aug Station Deliveries'!CA11 -> 0 | KC11: =IF(AND(KB11>0,SUM($KB$9:KB11,$KD$9:KD11,$LE$9:LE11)*1.9835<OFFSET('FIDCO Credit'!$X$39,0,MATCH($A11,'FIDCO Credit'!$Y$5:$AJ$5,0))),KB11-IZ11,0) -> 0 | KD11: ='Joint Aug Station Deliveries'!CD11 -> 0 | KE11: =IF(AND(KD11>0,SUM($KB$9:KB11,$KD$9:KD11,$LE$9:LE11)*1.9835<OFFSET('FIDCO Credit'!$X$39,0,MATCH($A11,'FIDCO Credit'!$Y$5:$AJ$5,0))),KD11-JA11,0) -> 0 | KF11: =MAX(0,(NJ11+NK11))/(1-0.5/100*'Distances for Transit Losses'!$C$99) -> 0 | KG11: =MAX(0,(NL11+NM11)/(1-0.5/100*'Distances for Transit Losses'!$C$95)) -> 0.1308985281 | KH11: 0 | KI11: =-KH11*0.5/100*'Distances for Transit Losses'!$C$101 -> 0 | KJ11: 0 | KK11: 0 | KL11: =-KK11*0.5/100*'Distances for Transit Losses'!$C$38 -> 0 | KM11: 0 | KN11: 0 | KO11: 0 | KP11: 0 | KQ11: 0 | KR11: 0 | KS11: 0 | KT11: 0 | KU11: 0 | KV11: 0 | KW11: 0 | KX11: 0 | KY11: =-KX11*0.5/100*'Distances for Transit Losses'!$C$141 -> 0 | KZ11: 0 | LA11: 0 | LB11: 0 | LC11: 0 | LD11: =-(IF(F11<99999.99999,INDEX('Hist RF to SPR'!$B$6:$M$30,MATCH($B$2,'Hist RF to SPR'!$A$6:$A$30,0),MATCH($A11,'Hist RF to SPR'!$B$5:$M$5,0))/AMA11/1.9835,0)) -> -0.0192909467 | LE11: ='Joint Aug Station Deliveries'!CG11 -> 0 | LF11: =IF(AND(LE11>0,SUM($KB$9:KB11,$KD$9:KD11,$LE$9:LE11)*1.9835<OFFSET('FIDCO Credit'!$X$39,0,MATCH($A11,'FIDCO Credit'!$Y$5:$AJ$5,0))),LE11-JB11,0) -> 0 | LG11: 0 | LH11: no | LI11: 0 | LJ11: 0 | LK11: 0 | LL11: -0.0192909467 | LM11: 0 | LN11: =IF(LM11>0,MIN(-LL11/(1-0.5/100*'Distances for Transit Losses'!$C$135),LM11),0) -> 0 | LO11: =-LN11*0.5/100*'Distances for Transit Losses'!$C$135 -> 0 | LP11: 0 | LQ11: 0.44 | LR11: =-LQ11*0.5/100*'Distances for Transit Losses'!$C$86 -> -0.00066 | LS11: =IF((LQ11+LR11)>0,MIN((-LL11-(LN11-LO11)-LP11)/(1-0.5/100*'Distances for Transit Losses'!$C$137),(LQ11+LR11)),0) -> 0.02189664779 | LT11: =-LS11*0.5/100*'Distances for Transit Losses'!$C$137 -> -0.002605701086 | LU11: 0 | LW11: -0.00066 | LX11: 0 | LY11: 0 | LZ11: 0 | MA11: 0 | MB11: 0 | MC11: 0 | MD11: 0 | ME11: =-MD11*0.5/100*'Distances for Transit Losses'!$C$139 -> 0 | MF11: =LY11+MA11+MB11+MC11+MD11+ME11 -> 0 | MG11: 0 | MH11: 0 | MI11: =-(IF(N11<99999.99999,(VLOOKUP(B11,'ECCV Upper Dpln'!$B$7:$BD$306,55))/AMA11/1.9835,0)) -> -4.258586602 | MJ11: =-(IF(N11<99999.99999,INDEX('Hist RF abv Milton'!$B$6:$M$30,MATCH($B$2,'Hist RF abv Milton'!$A$6:$A$30,0),MATCH($A11,'Hist RF abv Milton'!$B$5:$M$5,0))/AMA11/1.9835,0)) -> -0.01407697074 | MK11: 0 | ML11: =(VLOOKUP($B11,'ECCV Beebe Pond Acrtns'!$B$7:$BI$1206,41)+VLOOKUP($B11,'ECCV Canal Acrtns'!$B$7:$AL$1206,22)+VLOOKUP($B11,'2003 Beebe Pond Acrtns'!$B$7:$BI$1206,41)+VLOOKUP($B11,'2003 Canal Acrtns'!$B$7:$AL$1206,22))/$AMA11/1.9835 -> 1.135489872 | MM11: 0 | MN11: 0 | MO11: 0 | MP11: 0 | MQ11: 0 | MR11: 0 | MS11: 1.135489872 | MT11: 0 | MU11: no | MV11: 0 | MW11: 0 | MX11: 0 | MY11: 0.01407697074 | MZ11: 1.60185911 | NA11: 0 | NB11: 0 | NC11: -1.52123762 | ND11: 0 | NE11: 0 | NF11: =-(NE11*0.5/100*'Distances for Transit Losses'!$C$6) -> 0 | NG11: 0 | NH11: 0 | NI11: 0 | NJ11: =IF(AND(E11<>"Lower Latham",I11<>"Lower Latham"),MAX(0,MIN(-(ND11+NG11),KC11-KC11*0.25/100*'Distances for Transit Losses'!$C$99),0)) -> 0 | NK11: =IF(AND(E11<>"Lower Latham",I11<>"Lower Latham"),MAX(0,MIN(-(NC11+NE11+NF11+NI11),KC11-KC11*0.5/100*'Distances for Transit Losses'!$C$99-NJ11/(1-0.5/100*'Distances for Transit Losses'!$C$99))),0) -> 0 | NL11: =MIN(-(ND11+NJ11),KA11-KA11*0.5/100*'Distances for Transit Losses'!$C$95) -> 0 | NM11: =MAX(0,MIN(-(NC11+NE11+NF11+NK11),KA11*(1-0.5/100*'Distances for Transit Losses'!$C$95)-NL11/(1-0.5/100*'Distances for Transit Losses'!$C$95))) -> 0.1203611966 | NN11: =MIN(NM11/(1-0.5/100*'Distances for Transit Losses'!$C$95),(IA11-JD11)) -> 0.1308985281 | NO11: =MAX(0,IF(AND(JT11-JU11-LP11-GU11>0,GH11="no"),MIN(-(NC11+NE11+NF11+NI11+NK11+NM11+NN11)/(1-0.5/100*'Distances for Transit Losses'!$C$105),JT11-JU11-LP11-GU11),0)) -> 0 | NP11: =-NO11*0.5/100*'Distances for Transit Losses'!$C$105 -> 0 | NQ11: 0.58 | NR11: Lease of South Adams 5k Credits | NS11: -0.8208764229 | NT11: 0 | NU11: 0 | NV11: 0 | NW11: 0 | NX11: =-(IF(N11<99999.99999,INDEX('Hist RF blw Milton'!$B$6:$M$30,MATCH($B$2,'Hist RF blw Milton'!$A$6:$A$30,0),MATCH($A11,'Hist RF blw Milton'!$B$5:$M$5,0))/AMA11/1.9835,0)) -> -0.02248984129 | NY11: no | NZ11: 0 | OA11: 0 | OB11: -0.02248984129 | OC11: 0 | OD11: ='Distances for Transit Losses'!$C$12*0.5/100*OC11 -> 0 | OE11: 0 | OG11: 0 | OH11: 0 | OI11: 0 | OJ11: 0 | OK11: 0 | OL11: =-(IF(N11<99999.99999,INDEX('Hist RF to Box Elder'!$B$6:$M$30,MATCH($B$2,'Hist RF to Box Elder'!$A$6:$A$30,0),MATCH($A11,'Hist RF to Box Elder'!$B$5:$M$5,0))/AMA11/1.9835,0)) -> -0.01346302756 | OM11: =(VLOOKUP($B11,'ECCV Beebe Pond Acrtns'!$B$7:$BI$1206,54)+VLOOKUP($B11,'ECCV Canal Acrtns'!$B$7:$AL$1206,34)+VLOOKUP($B11,'2003 Beebe Pond Acrtns'!$B$7:$BI$1206,54)+VLOOKUP($B11,'2003 Canal Acrtns'!$B$7:$AL$1206,34)+VLOOKUP($B11,'84CW090 Beebe Pond Acrtns'!$B$7:$BI$1206,55)+VLOOKUP($B11,'84CW090 Canal Acrtns'!$B$7:$AL$1206,34))/$AMA11/1.9835 -> 0.09220421947 | ON11: 0.01346302756 | OO11: 0 | OP11: 0 | OQ11: 0 | OS11: -5.623546357 | OT11: 3.451787149 | OU11: 0 | OV11: 0.01346302756 | OW11: 0.0192909467 | OX11: 0.1113599682 | OY11: 0 | OZ11: 0 | PA11: 0.02535763361 | PB11: 0.2355596909 | PC11: 3.856818416 | PD11: -1.766727941 | PE11: 0 | PF11: 0 | PG11: 0 | PO11: 0 | PP11: 0 | PR11: 0 | PS11: 0 | PT11: 0 | PU11: 0 | PV11: 0 | PW11: 0 | PX11: 0 | PY11: 0 | PZ11: 0 | QA11: 0 | QB11: 0 | QC11: 0 | QD11: 0 | QE11: 0 | QF11: 0 | QH11: 0 | QI11: 0 | QJ11: 0 | QK11: 0 | QL11: 0 | QM11: 0 | QN11: 0 | QO11: 0 | QP11: 0 | QQ11: 0 | QR11: 0 | QT11: 0 | QU11: 0 | QV11: 0 | QW11: 0 | QX11: 0 | QY11: 0 | QZ11: 0 | RA11: 0 | RB11: 0 | RC11: 0 | RD11: 0 | RE11: 0 | RF11: 0 | RG11: 0 | RH11: 0 | RI11: 0 | RJ11: 0 | RK11: 0 | RL11: 0 | RM11: 0 | RN11: 0 | RO11: 0 | RQ11: 0 | RR11: 0 | RS11: 0 | RT11: 0 | RU11: 0 | RV11: 0 | RW11: 0 | RX11: 0 | RY11: 0 | RZ11: 0 | SA11: 0 | SB11: 0 | SC11: 0 | SD11: 0 | SE11: 0 | SF11: 0 | SG11: 0 | SH11: 0 | SI11: 0 | SJ11: 0 | SK11: 0 | SL11: 0 | SM11: 0 | SN11: 0 | SO11: 0 | SP11: 0 | SQ11: 0 | SR11: 0 | SS11: 0 | ST11: 0 | SU11: 0 | SV11: 0 | SW11: 0 | SX11: 0 | SY11: 0 | SZ11: 0 | TA11: 0 | TB11: 0 | TC11: 0 | TD11: 0 | TE11: 0 | TF11: 0 | TG11: 0 | TI11: 0 | TJ11: 0 | TK11: 0 | TL11: 0 | TM11: 0 | TN11: 0 | TO11: 0 | TP11: 0 | TQ11: 0 | TR11: 0 | TS11: 0 | TT11: 0 | TU11: 0 | TV11: 0 | TW11: 0 | TX11: 0 | TY11: 0 | TZ11: 0 | UA11: 0 | UB11: 0 | UC11: 0 | UD11: 0 | UE11: 0 | UF11: 0 | UG11: 0 | UH11: 0 | UI11: 0 | UJ11: 0 | UK11: 0 | UL11: 0 | UM11: 0 | UN11: 0 | UO11: 0 | UP11: 0 | UQ11: 0 | UR11: 0 | US11: 0 | UT11: 0 | UU11: 0 | UV11: 0 | UW11: 0 | UX11: 0 | UY11: 0 | UZ11: 0 | VA11: 0 | VB11: 0 | VC11: 0 | VD11: 0 | VE11: 0 | VF11: 0 | VG11: 0 | VH11: 0 | VI11: 0 | VJ11: 0 | VK11: 0 | VL11: 0 | VM11: 0 | VN11: 0 | VO11: 0 | VP11: 0 | VQ11: 0 | VR11: 0 | VS11: 0 | VT11: 0 | VU11: 0 | VV11: 0 | VW11: 0 | VX11: 0 | VY11: 0 | VZ11: 0 | WA11: 0 | WB11: 0 | WC11: 0 | WD11: 0 | WE11: 0 | WF11: 0 | WG11: 0 | WH11: 0 | WI11: 0 | WJ11: 0 | WK11: 0 | WL11: 0 | WM11: 0 | WN11: 0 | WO11: 0 | WP11: 0 | WQ11: 0 | WR11: 0 | WS11: 0 | WT11: 0 | WU11: 0 | WV11: 0 | WW11: 0 | WX11: 0 | WY11: 0 | WZ11: 0 | XA11: 0 | XB11: 0 | XC11: 0 | XD11: 0 | XE11: 0 | XF11: 0 | XG11: 0 | XH11: 0 | XI11: 0 | XJ11: 0 | XK11: 0 | XL11: 0 | XM11: 0 | XN11: 0 | XO11: 0 | XP11: 0 | XQ11: 0 | XR11: 0 | XS11: 0 | XT11: 0 | XU11: 0 | XV11: 0 | XW11: 0 | XX11: 0 | XY11: 0 | XZ11: 0 | YA11: 0 | YB11: 0 | YC11: 0 | YE11: 0 | YF11: 0 | YG11: 0 | YH11: 0 | YI11: 0 | YJ11: 0 | YK11: 0 | YL11: 0 | YM11: 0 | YN11: 0 | YO11: 0 | YP11: 0 | YQ11: 0 | YS11: 0 | YT11: 0 | YU11: 0 | YV11: 0 | YW11: 0 | YX11: 0 | YY11: 0 | YZ11: 0 | ZB11: 0 | ZC11: 0 | ZD11: 0 | ZE11: 0 | ZF11: 0 | ZG11: 0 | ZH11: 0 | ZI11: 0 | ZJ11: 0 | ZK11: 0 | ZL11: 0 | ZM11: 0 | ZN11: 0 | ZO11: 0 | ZP11: 0 | ZQ11: 0 | ZR11: 0 | ZS11: 0 | ZT11: 0 | ZU11: 0 | ZV11: 0 | ZW11: 0 | ZX11: 0 | ZY11: 0 | ZZ11: 0 | AAA11: 0 | AAB11: 0 | AAC11: 0 | AAD11: 0 | AAE11: 0 | AAF11: 0 | AAG11: 0 | AAH11: 0 | AAI11: 0 | AAJ11: 0 | AAK11: 0 | AAL11: 0 | AAM11: 0 | AAN11: 0 | AAO11: 0 | AAP11: 0 | AAQ11: 0 | AAR11: 0 | AAS11: 0 | AAT11: 0 | AAU11: 0 | AAV11: 0 | AAW11: 0 | AAX11: 0 | AAY11: 0 | AAZ11: 0 | ABA11: 0 | ABB11: 0 | ABC11: 0 | ABD11: 0 | ABE11: 0 | ABF11: 0 | ABG11: 0 | ABH11: 0 | ABI11: 0 | ABJ11: 0 | ABK11: 0 | ABL11: 0 | ABM11: 0 | ABN11: 0 | ABO11: 0 | ABP11: 0 | ABQ11: 0 | ABR11: 0 | ABS11: 0 | ABT11: 0 | ABU11: 0 | ABV11: 0 | ABW11: 0 | ABX11: 0 | ABY11: 0 | ABZ11: 0 | ACA11: 0 | ACB11: 0 | ACD11: 0 | ACE11: 0 | ACF11: 0 | ACG11: 0 | ACH11: 0 | ACI11: 0 | ACJ11: 0 | ACL11: 0 | ACM11: 0 | ACN11: 0 | ACO11: 0 | ACP11: 0 | ACQ11: 0 | ACR11: 0 | ACS11: 0 | ACT11: 0 | ACU11: 0 | ACV11: 0 | ACW11: 0 | ACX11: 0 | ACZ11: 0 | ADA11: 0 | ADB11: 0 | ADC11: 0 | ADD11: 0 | ADE11: 0 | ADF11: 0 | ADG11: 0 | ADH11: 0 | ADI11: 0 | ADJ11: 0 | ADK11: 0 | ADL11: 0 | ADM11: 0 | ADN11: 0 | ADO11: 0 | ADP11: 0 | ADQ11: 0 | ADR11: 0 | ADS11: 0 | ADT11: 0 | ADU11: 0 | ADV11: 0 | ADW11: 0 | ADX11: 0 | ADY11: 0 | ADZ11: 0 | AEA11: 0 | AEB11: 0 | AEC11: 0 | AED11: 0 | AEE11: 0 | AEF11: 0 | AEG11: 0 | AEH11: 0 | AEI11: 0 | AEJ11: 0 | AEK11: 0 | AEL11: 0 | AEN11: 0 | AEO11: 0 | AEP11: 0 | AER11: 0 | AES11: 0 | AET11: 0 | AEU11: 0 | AEV11: 0 | AEW11: 0 | AEX11: 0 | AEZ11: 0 | AFA11: 0 | AFB11: 0 | AFC11: 0 | AFD11: 0 | AFE11: 0 | AFF11: 0 | AFG11: 0 | AFH11: 0 | AFI11: 0 | AFJ11: 0 | AFK11: 0 | AFL11: 0 | AFM11: 0 | AFN11: 0 | AFO11: 0 | AFP11: 0 | AFQ11: 0 | AFR11: 0 | AFS11: 0 | AFT11: 0 | AFU11: 0 | AFV11: 0 | AFW11: 0 | AFX11: 0 | AFY11: 0 | AFZ11: 0 | AGA11: 0 | AGB11: 0 | AGC11: 0 | AGD11: 0 | AGE11: 0 | AGF11: 0 | AGG11: 0 | AGH11: 0 | AGI11: 0 | AGJ11: 0 | AGK11: 0 | AGL11: 0 | AGM11: 0 | AGN11: 0 | AGO11: 0 | AGP11: 0 | AGQ11: 0 | AGR11: 0 | AGS11: 0 | AGT11: 0 | AGU11: 0 | AGV11: 0 | AGW11: 0 | AGX11: 0 | AGY11: 0 | AGZ11: 0 | AHA11: 0 | AHB11: 0 | AHC11: 0 | AHD11: 0 | AHE11: 0 | AHF11: 0 | AHG11: 0 | AHH11: 0 | AHI11: 0 | AHJ11: 0 | AHK11: 0 | AHL11: 0 | AHM11: 0 | AHN11: 0 | AHO11: 0 | AHP11: 0 | AHQ11: 0 | AHR11: 0 | AHS11: 0 | AHT11: 0 | AHU11: 0 | AHV11: 0 | AHW11: 0 | AHX11: 0 | AHY11: 0 | AHZ11: 0 | AIA11: 0 | AIB11: 0 | AIC11: 0 | AID11: 0 | AIE11: 0 | AIF11: 0 | AIG11: 0 | AIH11: 0 | AII11: 0 | AIJ11: 0 | AIK11: 0 | AIL11: 0 | AIM11: 0 | AIN11: 0 | AIO11: 0 | AIP11: 0 | AIQ11: 0 | AIR11: 0 | AIS11: 0 | AIT11: 0 | AIU11: 0 | AIV11: 0 | AIW11: 0 | AIX11: 0 | AIY11: 0 | AIZ11: 0 | AJA11: 0 | AJB11: 0 | AJC11: 0 | AJD11: 0 | AJE11: 0 | AJF11: 0 | AJG11: 0 | AJH11: 0 | AJI11: 0 | AJJ11: 0 | AJK11: 0 | AJL11: 0 | AJM11: 0 | AJN11: 0 | AJO11: 0 | AJP11: 0 | AJQ11: 0 | AJR11: 0 | AJS11: 0 | AJT11: 0 | AJU11: 0 | AJV11: 0 | AJW11: 0 | AJX11: 0 | AJY11: 0 | AJZ11: 0 | AKA11: 0 | AKB11: 0 | AKC11: 0 | AKD11: 0 | AKE11: 0 | AKF11: 0 | AKG11: 0 | AKH11: 0 | AKI11: 0 | AKJ11: 0 | AKK11: 0 | AKL11: 0 | AKM11: 0 | AKN11: 0 | AKO11: 0 | AKP11: 0 | AKQ11: 0 | AKR11: 0 | AKS11: 0 | AKT11: 0 | AKU11: 0 | AKV11: 0 | AKW11: 309.6 | AKY11: 0 | AKZ11: 0 | ALA11: 0 | ALB11: 0 | ALC11: 0 | ALD11: 0 | ALE11: 0 | ALF11: 0 | ALG11: 0 | ALH11: 0 | ALI11: 0 | ALJ11: 0 | ALK11: 0 | ALL11: 0 | ALM11: 0 | ALN11: 0 | ALO11: 0 | ALP11: 0 | ALQ11: 0 | ALR11: 0 | ALS11: =AKY11-SUM(AKZ11:ALR11) -> 0 | ALT11: TRUE | ALU11: TRUE | ALV11: TRUE | ALX11: 0 | ALY11: 0 | AMA11: =VLOOKUP(A11,'Control Sheet'!$G$9:$H$20,2) -> 30
A12: Apr | B12: 2019-04-04 | C12: Burlington D River HG | D12: 1911-03-17 | E12: Burlington D River HG | F12: 22355 | AA12: 0 | AB12: 0 | AC12: 0 | AD12: 0 | AF12: 0 | AG12: =('NFC Well Pumping'!$L10+'NFC Well Pumping'!$L47+'NFC Well Pumping'!$L83)/1.9835 -> 0 | AH12: ='88CW264(B) Pumping'!$E10/1.9835+'88CW264(B) Pumping'!$E46/1.9835+'88CW264(B) Pumping'!E86/1.9835+'88CW264(B) Pumping'!E122/1.9835+'88CW264(B) Pumping'!E162/1.9835+'88CW264(B) Pumping'!E198/1.9835 -> 0.008339451787 | AI12: 0 | AJ12: =('United No. 2 Well Pumping'!G11+'United No. 2 Well Pumping'!G47+'United No. 2 Well Pumping'!G83)/1.9835 -> 0 | AK12: =('United No. 2 Well Pumping'!F11+'United No. 2 Well Pumping'!F47+'United No. 2 Well Pumping'!F83)/1.9835 -> 0 | AL12: 0 | AN12: 0.008339451787 | AO12: =AC12+AK12+'United Res'!AA174+'United Res'!AQ174+'Milliken Res'!J162 -> 0 | AP12: 100 | AQ12: =-(IF($N12=99999.99999,0,VLOOKUP($B12,'NFC Well Dplns-URF'!B$7:$AB$306,27))/$AMA12/1.9835) -> -0.005586020147 | AR12: 0 | AT12: =(VLOOKUP($B12,'ECCV 70R Pond Acrtns'!$B$7:$AI$1206,34)+VLOOKUP($B12,'2003 70R Pond Acrtns'!$B$7:$AI$1206,34)+VLOOKUP($B12,'ECCV 70R Canal Acrtns'!$B$7:$AI$1206,27)+VLOOKUP($B12,'2003 70R Canal Acrtns'!$B$7:$AI$1206,27))/$AMA12/1.9835 -> 0 | AU12: -0.005586020147 | AV12: =-(IF($N12=99999.99999,0,VLOOKUP($B12,'NFC Well Dplns-SDF'!$B$7:$Z$306,25)+VLOOKUP($B12,'NFC Well Dplns-URF'!B$7:$AB$306,20))/$AMA12/1.9835) -> -0.1028154558 | AW12: 0 | AX12: 0.07 | AY12: ECCV Riverside Credits | AZ12: =-((BL12+BM12)*'Weldon Credit'!$BB$36) -> 0 | BA12: =-((BL12+BM12)*'Weldon Credit'!$BB$34) -> 0 | BB12: =-INDEX('Weldon Credit'!$AX$249:$BJ$276,MATCH($B$2,'Weldon Credit'!$AX$249:$AX$276,0),MATCH(A12,'Weldon Credit'!$AX$249:$BJ$249,0))/AMA12/1.9835 -> -0.009784592734 | BC12: -0.009784592734 | BD12: =-((BL12+BM12)*'Weldon Credit'!$BB$37) -> 0 | BE12: =-((BL12+BM12)*'Weldon Credit'!$BB$35) -> 0 | BF12: =-INDEX('Weldon Credit'!$AX$281:$BJ$308,MATCH($B$2,'Weldon Credit'!$AX$281:$AX$308,0),MATCH(A12,'Weldon Credit'!$AX$281:$BJ$281,0))/AMA12/1.9835 -> -0.1557750982 | BG12: -0.1557750982 | BH12: =-(BL12+BM12)*'Weldon Credit'!$BB$38 -> 0 | BI12: =0.4*(INDEX('Riverside Pond Accrtns'!$B$6:$M$36,MATCH($B$2,'Riverside Pond Accrtns'!$A$6:$A$36,0),MATCH('ECCV Daily Replacement Summary'!A12,'Riverside Pond Accrtns'!$B$5:$M$5,0))/AMA12)/1.9835 -> 1.357862365 | BJ12: =(44/640)*(INDEX('Weldon Valley Accrtns (02CW377)'!$B$6:$M$36,MATCH($B$2,'Weldon Valley Accrtns (02CW377)'!$A$6:$A$36,0),MATCH(A12,'Weldon Valley Accrtns (02CW377)'!$B$5:$M$5,0))/AMA12)/1.9835 -> 0.205705823 | BK12: =(VLOOKUP($B12,'ECCV 70R Pond Acrtns'!$B$7:$AI$1206,25)+VLOOKUP($B12,'ECCV 70R Canal Acrtns'!$B$7:$AI$1206,20)+VLOOKUP($B12,'2003 70R Pond Acrtns'!$B$7:$AI$1206,25)+VLOOKUP($B12,'2003 70R Canal Acrtns'!$B$7:$AI$1206,20))/$AMA12/1.9835 -> 0 | BL12: ='Joint Aug Station Deliveries'!G12 -> 0 | BM12: ='Joint Aug Station Deliveries'!H12 -> 0 | BN12: 0 | BO12: 0 | BP12: =IF(CD12="no",-MAX(0,MIN(BO12,(BM12-BL12))*(0.5/100*'Distances for Transit Losses'!$C$91)),0) -> 0 | BQ12: 0 | BR12: =MIN(-($BC12+BG12+BH12+BN12+BO12+BP12),BI12-BI12*0.5/100*'Distances for Transit Losses'!$C$93) -> 0.1655596909 | BS12: 0 | BT12: =MIN(-($BC12+BG12+BH12+BN12+BO12+BP12+BR12+BS12),BK12-BK12*0.5/100*'Distances for Transit Losses'!$C$93) -> 0 | BU12: =-((BR12+BT12)*(0.5/100*'Distances for Transit Losses'!$C$93)) -> -0.01763210708 | BV12: 0 | BW12: =--BV12*0.5/100*'Distances for Transit Losses'!C$117 -> 0 | BX12: 0 | BY12: =--BX12*0.5/100*'Distances for Transit Losses'!$C$119 -> 0 | BZ12: 0 | CA12: =-BZ12*0.5/100*'Distances for Transit Losses'!$C$115 -> 0 | CB12: 0 | CD12: no | CE12: no | CF12: no | CG12: 0 | CH12: 0 | CI12: 0 | CK12: =IF($CF12="No",MIN(IF(-DR12<0,0,-DR12),BI12-BR12/(1-0.5/100*'Distances for Transit Losses'!$C$93)),0) -> 0.02535763361 | CL12: =IF($CF12="No",IF(MIN(-(DR12+CK12),BK12-BT12/(1-0.5/100*'Distances for Transit Losses'!$C$93))<0,0,MIN(-(DR12+CK12),BK12-BT12/(1-0.5/100*'Distances for Transit Losses'!$C$93))),0) -> 0 | CM12: 0 | CN12: 0 | CO12: 0 | CP12: -0.2683751467 | CQ12: 1.61593608 | CR12: =-(IF($N12=99999.99999,0,VLOOKUP($B12,'NFC Well Dplns-SDF'!$B$7:$Z$306,16)+VLOOKUP($B12,'NFC Well Dplns-URF'!$B$7:$AB$306,13))/$AMA12/1.9835) -> -0.8829552079 | CS12: =-(IF($N12>=99999,0,'88CW264(B) Pumping'!$E10/1.9835)+IF($N12>=99999,0,'88CW264(B) Pumping'!$E46/1.9835)+IF($N12>=99999,0,'88CW264(B) Pumping'!$E86/1.9835)+IF($N12>=99999,0,'88CW264(B) Pumping'!$E122/1.9835)+IF($N12>=51134.50919,0,'88CW264(B) Pumping'!$E162/1.9835)+IF($N12>=53406,0,'88CW264(B) Pumping'!$E198/1.9835)) -> -0.008339451787 | CT12: -0.8912946597 | CU12: 0.69 | CV12: 0 | CX12: =-(IF($N12=99999.99999,0,VLOOKUP($B12,'United No. 2 Dplns'!$B$7:$X$676,13)/1.9835)) -> 0 | CY12: =CX12+(-(INDEX('Pre 1995 Net Accretions'!$B$6:$M$105,MATCH($B$2,'Pre 1995 Net Accretions'!$A$6:$A$105,0),MATCH($A12,'Pre 1995 Net Accretions'!$B$5:$M$5,0))/$AMA12/1.9835)) -> 0.02746354924 | CZ12: =-(IF(N12<99999.99999,(INDEX('70 Ranch RF Obligation'!$B$6:$M$36,MATCH($B$2,'70 Ranch RF Obligation'!$A$6:$A$36,0),MATCH('ECCV Daily Replacement Summary'!A12,'70 Ranch RF Obligation'!$B$5:$M$5,0))/AMA12)/1.9835,0))-DC12*(1-'L. Latham Credit'!$E$41) -> -0.05282118285 | DA12: -0.02535763361 | DB12: =(VLOOKUP($B12,'ECCV 70R Pond Acrtns'!$B$7:$AI$1206,16)+VLOOKUP($B12,'ECCV 70R Canal Acrtns'!$B$7:$AI$1206,13)+VLOOKUP($B12,'2003 70R Pond Acrtns'!$B$7:$AI$1206,16)+VLOOKUP($B12,'2003 70R Canal Acrtns'!$B$7:$AI$1206,13))/$AMA12/1.9835 -> 0 | DC12: ='Joint Aug Station Deliveries'!DQ12 -> 0 | DD12: 0 | DE12: 0 | DF12: ='Joint Aug Station Deliveries'!DT12 -> 0 | DG12: 0 | DH12: 0 | DI12: 0 | DK12: 0 | DL12: 0 | DM12: 0 | DN12: =-DM12*0.5/100*'Distances for Transit Losses'!$C$52 -> 0 | DO12: 0 | DP12: 0 | DQ12: 0 | DR12: -0.02535763361 | DS12: 0.02535763361 | DT12: 0 | DU12: 0 | DV12: =('NFC Well Pumping'!I10+'NFC Well Pumping'!I47+'NFC Well Pumping'!I83)/1.9835 -> 0 | DW12: 0 | DX12: =-DW12*0.5/100*'Distances for Transit Losses'!C$121 -> 0 | DY12: 0 | DZ12: =-DY12*0.5/100*'Distances for Transit Losses'!$C$145 -> 0 | EA12: 0 | EB12: =--EA12*0.5/100*'Distances for Transit Losses'!$C$123 -> 0 | EC12: 0 | ED12: 0 | EE12: =IF('Joint Aug Station Deliveries'!R12="Yes",'Joint Aug Station Deliveries'!P12,0) -> 0 | EF12: ='Joint Aug Station Deliveries'!T12 -> 0 | EG12: =IF('Joint Aug Station Deliveries'!Z12="Yes",'Joint Aug Station Deliveries'!X12,0) -> 0 | EH12: =-(EG12*0.5/100*'Distances for Transit Losses'!$C$234) -> 0 | EI12: =IF('Joint Aug Station Deliveries'!AD12="Yes",'Joint Aug Station Deliveries'!AB12,0) -> 0 | EJ12: =-(EI12*0.5/100*'Distances for Transit Losses'!$C$266) -> 0 | EK12: 0 | EL12: =-(EK12*0.5/100*'Distances for Transit Losses'!$C$256) -> 0 | EM12: no | EN12: =IF('Joint Aug Station Deliveries'!AH12="Yes",'Joint Aug Station Deliveries'!AF12,0) -> 0 | EO12: =-(EN12*0.5/100*'Distances for Transit Losses'!$C$268) -> 0 | EP12: =IF('Joint Aug Station Deliveries'!AL12="Yes",'Joint Aug Station Deliveries'!AJ12,0) -> 0 | EQ12: =-(EP12*0.5/100*'Distances for Transit Losses'!$C$270) -> 0 | ER12: =IF('Joint Aug Station Deliveries'!AP12="Yes",'Joint Aug Station Deliveries'!AN12,0) -> 0 | ES12: =-(ER12*0.5/100*'Distances for Transit Losses'!$C$272) -> 0 | ET12: =-0.25*(INDEX('GIC Credit'!$B$85:$M$116,MATCH($B$2,'GIC Credit'!$A$85:$A$116,0),MATCH($A12,'GIC Credit'!$B$85:$M$85,0))/$AMA12/1.9835+FN12*'GIC Credit'!$Z$39+FO12*'GIC Credit'!$AO$39) -> -0.00014 | EU12: -0.00014 | EV12: ='Joint Aug Station Deliveries'!DI12 -> 0 | EW12: =-(EV12*0.5/100*'Distances for Transit Losses'!$C$262) -> 0 | EX12: ='Joint Aug Station Deliveries'!DJ12 -> 0 | EY12: =-(EX12*0.5/100*'Distances for Transit Losses'!$C$264) -> 0 | EZ12: 0 | FB12: no | FC12: -0.00014 | FD12: =-0.39*(INDEX('GIC Credit'!$B$85:$M$116,MATCH($B$2,'GIC Credit'!$A$85:$A$116,0),MATCH($A12,'GIC Credit'!$B$85:$M$85,0))/$AMA12/1.9835+FN12*'GIC Credit'!$Z$39+FO12*'GIC Credit'!$AO$39) -> -0.0002184 | FE12: 0 | FF12: =-(FE12*0.5/100*('Distances for Transit Losses'!$C$238+'Distances for Transit Losses'!$C$244)) -> 0 | FG12: =IF('Joint Aug Station Deliveries'!AT12="Yes",'Joint Aug Station Deliveries'!AR12,0) -> 0 | FH12: =-(FG12*0.5/100*('Distances for Transit Losses'!$C$240+'Distances for Transit Losses'!$C$242)) -> 0 | FI12: =IF('Joint Aug Station Deliveries'!AX12="Yes",'Joint Aug Station Deliveries'!AV12,0) -> 0 | FJ12: =-(FI12*0.5/100*'Distances for Transit Losses'!$C$242) -> 0 | FK12: ='Joint Aug Station Deliveries'!DK12 -> 0 | FL12: =-(FK12*0.5/100*'Distances for Transit Losses'!$C$248) -> 0 | FM12: 0 | FN12: ='Joint Aug Station Deliveries'!DM12 -> 0 | FO12: ='Joint Aug Station Deliveries'!DN12 -> 0 | FP12: =MIN(0,FC12)+SUM(FD12:FF12)+EE12/(1-0.5/100*('Distances for Transit Losses'!$C$274+'Distances for Transit Losses'!$C$286))+EF12/(1-0.5/100*('Distances for Transit Losses'!$C$260))+SUM(EG12:EH12)/(1-0.5/100*('Distances for Transit Losses'!$C$276+'Distances for Transit Losses'!$C$286))+SUM(EI12:EJ12)/(1-0.5/100*('Distances for Transit Losses'!$C$278+'Distances for Transit Losses'!$C$286))+EK12/(1-0.5/100*('Distances for Transit Losses'!$C$260))+SUM(EN12:EO12)/(1-0.5/100*('Distances for Transit Losses'!$C$280+'Distances for Transit Losses'!$C$288))+SUM(EP12:EQ12)/(1-0.5/100*('Distances for Transit Losses'!$C$282+'Distances for Transit Losses'!$C$288))+SUM(ER12:ES12)/(1-0.5/100*('Distances for Transit Losses'!$C$284+'Distances for Transit Losses'!$C$288))+SUM(FG12:FJ12)/(1-0.5/100*('Distances for Transit Losses'!$C$244))+SUM(FK12:FL12) -> -0.0003584 | FQ12: =-(IF(N12<99999.99999,INDEX('Hist RF to SPR'!$AF$6:$AQ$30,MATCH($B$2,'Hist RF to SPR'!$AE$6:$AE$30,0),MATCH($A12,'Hist RF to SPR'!$AF$5:$AQ$5,0))/AMA12/1.9835,0)) -> -0.0002698345146 | FR12: =IF(N12<99999.99999,-INDEX('New Cache Credit'!$BO$109:$CA$136,MATCH($B$2,'New Cache Credit'!$BO$109:$BO$136,0),MATCH(A12,'New Cache Credit'!$BO$109:$CA$109,0))/AMA12/1.9835-INDEX('New Cache Credit'!$CD$77:$CP$104,MATCH($B$2,'New Cache Credit'!$CD$77:$CD$104,0),MATCH(A12,'New Cache Credit'!$CD$77:$CP$77,0))/AMA12/1.9835,0) -> -0.0008755433333 | FS12: =-0.36*(INDEX('GIC Credit'!$B$85:$M$116,MATCH($B$2,'GIC Credit'!$A$85:$A$116,0),MATCH($A12,'GIC Credit'!$B$85:$M$85,0))/$AMA12/1.9835+FN12*'GIC Credit'!$Z$39+FO12*'GIC Credit'!$AO$39) -> -0.0002016 | FT12: -0.0003584 | FU12: -0.001705377848 | FV12: 0 | FW12: =IF('Joint Aug Station Deliveries'!BB12="Yes",'Joint Aug Station Deliveries'!AZ12,0) -> 0 | FX12: =-(FW12*0.5/100*'Distances for Transit Losses'!$C$226) -> 0 | FY12: =IF('Joint Aug Station Deliveries'!BF12="Yes",'Joint Aug Station Deliveries'!BD12,0) -> 0 | FZ12: =-(FY12*0.5/100*'Distances for Transit Losses'!$C$228) -> 0 | GA12: =IF('Joint Aug Station Deliveries'!BJ12,'Joint Aug Station Deliveries'!BH12,0) -> 0 | GB12: =-(GA12*0.5/100*'Distances for Transit Losses'!$C$230) -> 0 | GC12: =IF('Joint Aug Station Deliveries'!BN12="Yes",'Joint Aug Station Deliveries'!BL12,0) -> 0 | GD12: =-(GC12*0.5/100*'Distances for Transit Losses'!$C$218) -> 0 | GE12: =IF('Joint Aug Station Deliveries'!BR12="Yes",'Joint Aug Station Deliveries'!BP12,0) -> 0 | GF12: =-(GE12*0.5/100*'Distances for Transit Losses'!$C$224) -> 0 | GG12: =MIN(-FU12-FV12,SUM(FW12:FX12)/(1-0.5/100*('Distances for Transit Losses'!$C$292))+SUM(FY12:FZ12)/(1-0.5/100*('Distances for Transit Losses'!$C$294))+SUM(GA12:GB12)+SUM(GC12:GD12)+SUM(GE12:GF12)) -> 0 | GH12: no | GI12: 0 | GJ12: 0 | GK12: 0 | GM12: 0 | GN12: 0 | GO12: =IF(AND(LM12-LN12-JP12>0,LH12="no"),MIN(-(FU12+FV12+GG12+GM12+GN12)/(1-0.5/100*'Distances for Transit Losses'!$C$125),LM12-LN12-JP12),0) -> 0 | GP12: =-GO12*0.5/100*'Distances for Transit Losses'!$C$125 -> 0 | GQ12: 0 | GR12: 0 | GS12: 0 | GT12: =-GS12*0.5/100*'Distances for Transit Losses'!$C$143 -> 0 | GU12: =IF(AND(JT12-JU12-LP12>0,JF12="no"),MIN(-(FU12+FV12+GG12+GM12+GN12+GO12+GP12+GS12+GT12)/(1-0.5/100*'Distances for Transit Losses'!$C$127),JT12-JU12-LP12),0) -> 0 | GV12: =-GU12*0.5/100*'Distances for Transit Losses'!$C$133 -> 0 | GW12: 0 | GY12: 0 | GZ12: -0.001705377848 | HA12: 0 | HB12: 0 | HC12: 0 | HD12: =-(IF(N12<99999.99999,INDEX('Hist RF to SPR'!$Q$6:$AB$30,MATCH($B$2,'Hist RF to SPR'!$P$6:$P$30,0),MATCH($A12,'Hist RF to SPR'!$Q$5:$AB$5,0))/AMA12/1.9835,0)) -> -0.002812216867 | HE12: =-(IF(OR($N12<99999.99999,E12="Lower Latham",I12="Lower Latham",E12="Highland",I12="Highland",E12="Plum",I12="Plum"),(INDEX('FIDCO Credit'!$Y$48:$AJ$78,MATCH($B$2,'FIDCO Credit'!$X$48:$X$78,0),MATCH($A12,'FIDCO Credit'!$Y$47:$AJ$47,0))/$AMA12)/1.9835,0)) -> 0 | HF12: =-(IF(OR($N12<99999.99999,E12="Lower Latham",I12="Lower Latham",E12="Highland",I12="Highland",E12="Plum",I12="Plum",E12="Godfrey",I12="Godfrey",E12="Union",I12="Union"),(INDEX('Western Credit'!$AY$239:$BJ$269,MATCH($B$2,'Western Credit'!$AX$239:$AX$269,0),MATCH($A12,'Western Credit'!$AY$238:$BJ$238,0))/$AMA12)/1.9835)) -> -0.01059002452 | HG12: =-('Joint Aug Station Deliveries'!CK12+'Joint Aug Station Deliveries'!CN12+'Joint Aug Station Deliveries'!CQ12+'Joint Aug Station Deliveries'!CT12)*'Western Credit'!$BB$40 -> 0 | HH12: -0.01059002452 | HI12: =-(IF(OR($N12<99999.99999,E12="Lower Latham",I12="Lower Latham",E12="Highland",I12="Highland",E12="Plum",I12="Plum",E12="Godfrey",I12="Godfrey",E12="Union",I12="Union"),(INDEX('Western Credit'!$AY$276:$BJ$306,MATCH($B$2,'Western Credit'!$AX$276:$AX$306,0),MATCH($A12,'Western Credit'!$AY$275:$BJ$275,0))/$AMA12)/1.9835)) -> -0.008320733551 | HJ12: =-('Joint Aug Station Deliveries'!CK12+'Joint Aug Station Deliveries'!CN12+'Joint Aug Station Deliveries'!CQ12+'Joint Aug Station Deliveries'!CT12)*'Western Credit'!$BB$41 -> 0 | HK12: -0.008320733551 | HL12: =-(IF(OR($N12<99999.99999,E12="Lower Latham",I12="Lower Latham",E12="Highland",I12="Highland",E12="Plum",I12="Plum",E12="Godfrey",I12="Godfrey"),(INDEX('Western Credit'!$AY$313:$BJ$343,MATCH($B$2,'Western Credit'!$AX$313:$AX$343,0),MATCH($A12,'Western Credit'!$AY$312:$BJ$312,0))/$AMA12)/1.9835)) -> -0.01550682162 | HM12: =('Joint Aug Station Deliveries'!CK12+'Joint Aug Station Deliveries'!CN12+'Joint Aug Station Deliveries'!CQ12+'Joint Aug Station Deliveries'!CT12)*'Western Credit'!$BB$42 -> 0 | HN12: -0.01550682162 | HO12: =-(IF(OR($N12<99999.99999,E12="Lower Latham",I12="Lower Latham",E12="Highland",I12="Highland",E12="Plum",I12="Plum"),(INDEX('Western Credit'!$AY$350:$BJ$380,MATCH($B$2,'Western Credit'!$AX$350:$AX$380,0),MATCH($A12,'Western Credit'!$AY$349:$BJ$349,0))/$AMA12)/1.9835)) -> -0.07413017164 | HP12: =-('Joint Aug Station Deliveries'!CK12+'Joint Aug Station Deliveries'!CN12+'Joint Aug Station Deliveries'!CQ12+'Joint Aug Station Deliveries'!CT12)*'Western Credit'!$BB$43 -> 0 | HQ12: -0.07413017164 | HR12: ='Joint Aug Station Deliveries'!CK12 -> 0 | HS12: 0 | HT12: =-HS12*0.5/100*'Distances for Transit Losses'!$C$26 -> 0 | HU12: =MIN(VLOOKUP($B12,'ECCV Haren Pond Oxbow Acrtns'!$B$7:$G$306,6)/$AMA12/1.9835,-HK12) -> 0.008320733551 | HV12: 0 | HX12: 0 | HZ12: no | IA12: =VLOOKUP($B12,'ECCV Haren Pond S.P. Acrtns'!$B$7:$G$306,6)/$AMA12/1.9835 -> 0.2339377628 | IB12: 0 | ID12: no | IE12: =VLOOKUP($B12,'ECCV Strohauer S.P. Acrtns'!$B$7:$G$306,6)/$AMA12/1.9835 -> 0 | IF12: 0 | IH12: no | II12: 0.01059002452 | IJ12: 0 | IK12: 0 | IL12: 0 | IM12: 0.008320733551 | IN12: 0 | IO12: 0 | IP12: 0 | IQ12: =MAX(0,MIN(-HN12,IA12+IF(HZ12="No",HR12*(1-0.5/100*'Distances for Transit Losses'!$C$66),0)+IF(ID12="No",IE12,0)-II12-(MAX(0,IM12-HU12-HV12)))) -> 0.01550682162 | IR12: 0 | IS12: 0 | IT12: 0 | IU12: =MAX(0,MIN(-HQ12,IE12+IF(AND(HZ12="No",ID12="No"),HR12*(1-0.5/100*'Distances for Transit Losses'!$C$68),0)+IF(ID12="No",IA12*(1-0.5/100*'Distances for Transit Losses'!$C$70),0)-II12-(MAX(0,IM12-HU12-HV12))-IQ12)) -> 0.07413017164 | IV12: =MIN(-HQ12-IU12,(HS12-IJ12-IN12-IR12)*(1-0.5/100*'Distances for Transit Losses'!$C$72)) -> 0 | IW12: =MIN(-HQ12-IU12-IV12,(JU12-IK12-IO12-IS12)/(1-0.5/100*'Distances for Transit Losses'!$C$74)) -> 0 | IX12: 0 | IY12: -0.002812216867 | IZ12: 0 | JA12: 0 | JB12: =IF(AND(JG12="no",JH12="no"),MIN(-(IY12-IZ12-JA12)/(1-0.5/100*'Distances for Transit Losses'!$C$111),LE12),0) -> 0 | JC12: =-JB12*0.5/100*'Distances for Transit Losses'!$C$111 -> 0 | JD12: 0.1002270178 | JE12: 0.1308985281 | JF12: no | JG12: no | JH12: no | JI12: 0 | JJ12: 0 | JK12: 0 | JM12: 0 | JN12: 0 | JO12: -0.002812216867 | JP12: =IF(AND(LM12-LN12>0,LH12="no"),MIN(-JO12/(1-0.5/100*'Distances for Transit Losses'!$C$129)+IJ12+IN12+IR12+IV12,LM12-LN12),0) -> 0 | JQ12: =-JP12*0.5/100*'Distances for Transit Losses'!$C$129 -> 0 | JR12: =IF(AND(LQ12+LR12-LS12-MD12>0,LH12="no"),MIN((-JO12-(JP12+JQ12))/(1-0.5/100*'Distances for Transit Losses'!$C$131),LQ12+LR12-LS12-MD12),0) -> 0.003737165272 | JS12: =-JR12*0.5/100*'Distances for Transit Losses'!$C$131 -> -0.0009249484048 | JT12: 0 | JU12: =IF(JT12>0,MIN(-(JO12+JP12+JQ12+JR12+JS12)/(1-0.5/100*'Distances for Transit Losses'!$C$133)+IK12+IO12+IS12+IW12,JT12),0) -> 0 | JV12: =-JU12*0.5/100*'Distances for Transit Losses'!$C$133 -> 0 | JW12: 0 | JY12: 0 | JZ12: ='Joint Aug Station Deliveries'!CN12 -> 0 | KA12: 0.1308985281 | KB12: ='Joint Aug Station Deliveries'!CA12 -> 0 | KC12: =IF(AND(KB12>0,SUM($KB$9:KB12,$KD$9:KD12,$LE$9:LE12)*1.9835<OFFSET('FIDCO Credit'!$X$39,0,MATCH($A12,'FIDCO Credit'!$Y$5:$AJ$5,0))),KB12-IZ12,0) -> 0 | KD12: ='Joint Aug Station Deliveries'!CD12 -> 0 | KE12: =IF(AND(KD12>0,SUM($KB$9:KB12,$KD$9:KD12,$LE$9:LE12)*1.9835<OFFSET('FIDCO Credit'!$X$39,0,MATCH($A12,'FIDCO Credit'!$Y$5:$AJ$5,0))),KD12-JA12,0) -> 0 | KF12: =MAX(0,(NJ12+NK12))/(1-0.5/100*'Distances for Transit Losses'!$C$99) -> 0 | KG12: =MAX(0,(NL12+NM12)/(1-0.5/100*'Distances for Transit Losses'!$C$95)) -> 0.1308985281 | KH12: 0 | KI12: =-KH12*0.5/100*'Distances for Transit Losses'!$C$101 -> 0 | KJ12: 0 | KK12: 0 | KL12: =-KK12*0.5/100*'Distances for Transit Losses'!$C$38 -> 0 | KM12: 0 | KN12: 0 | KO12: 0 | KP12: 0 | KQ12: 0 | KR12: 0 | KS12: 0 | KT12: 0 | KU12: 0 | KV12: 0 | KW12: 0 | KX12: 0 | KY12: =-KX12*0.5/100*'Distances for Transit Losses'!$C$141 -> 0 | KZ12: 0 | LA12: 0 | LB12: 0 | LC12: 0 | LD12: =-(IF(F12<99999.99999,INDEX('Hist RF to SPR'!$B$6:$M$30,MATCH($B$2,'Hist RF to SPR'!$A$6:$A$30,0),MATCH($A12,'Hist RF to SPR'!$B$5:$M$5,0))/AMA12/1.9835,0)) -> -0.0192909467 | LE12: ='Joint Aug Station Deliveries'!CG12 -> 0 | LF12: =IF(AND(LE12>0,SUM($KB$9:KB12,$KD$9:KD12,$LE$9:LE12)*1.9835<OFFSET('FIDCO Credit'!$X$39,0,MATCH($A12,'FIDCO Credit'!$Y$5:$AJ$5,0))),LE12-JB12,0) -> 0 | LG12: 0 | LH12: no | LI12: 0 | LJ12: 0 | LK12: 0 | LL12: -0.0192909467 | LM12: 0 | LN12: =IF(LM12>0,MIN(-LL12/(1-0.5/100*'Distances for Transit Losses'!$C$135),LM12),0) -> 0 | LO12: =-LN12*0.5/100*'Distances for Transit Losses'!$C$135 -> 0 | LP12: 0 | LQ12: 0.44 | LR12: =-LQ12*0.5/100*'Distances for Transit Losses'!$C$86 -> -0.00066 | LS12: =IF((LQ12+LR12)>0,MIN((-LL12-(LN12-LO12)-LP12)/(1-0.5/100*'Distances for Transit Losses'!$C$137),(LQ12+LR12)),0) -> 0.02189664779 | LT12: =-LS12*0.5/100*'Distances for Transit Losses'!$C$137 -> -0.002605701086 | LU12: 0 | LW12: -0.00066 | LX12: 0 | LY12: 0 | LZ12: 0 | MA12: 0 | MB12: 0 | MC12: 0 | MD12: 0 | ME12: =-MD12*0.5/100*'Distances for Transit Losses'!$C$139 -> 0 | MF12: 0 | MG12: 0 | MH12: 0 | MI12: =-(IF(N12<99999.99999,(VLOOKUP(B12,'ECCV Upper Dpln'!$B$7:$BD$306,55))/AMA12/1.9835,0)) -> -4.258586602 | MJ12: =-(IF(N12<99999.99999,INDEX('Hist RF abv Milton'!$B$6:$M$30,MATCH($B$2,'Hist RF abv Milton'!$A$6:$A$30,0),MATCH($A12,'Hist RF abv Milton'!$B$5:$M$5,0))/AMA12/1.9835,0)) -> -0.01407697074 | MK12: 0 | ML12: =(VLOOKUP($B12,'ECCV Beebe Pond Acrtns'!$B$7:$BI$1206,41)+VLOOKUP($B12,'ECCV Canal Acrtns'!$B$7:$AL$1206,22)+VLOOKUP($B12,'2003 Beebe Pond Acrtns'!$B$7:$BI$1206,41)+VLOOKUP($B12,'2003 Canal Acrtns'!$B$7:$AL$1206,22))/$AMA12/1.9835 -> 1.135489872 | MM12: 0 | MN12: 0 | MO12: 0 | MP12: 0 | MQ12: =33.4/1.9835/30 -> 0.56129737 | MR12: 0 | MS12: 1.135489872 | MT12: 0 | MU12: no | MV12: 0 | MW12: 0 | MX12: 0 | MY12: 0.01407697074 | MZ12: 1.60185911 | NA12: 0 | NB12: 0 | NC12: -1.52123762 | ND12: 0 | NE12: 0 | NF12: =-(NE12*0.5/100*'Distances for Transit Losses'!$C$6) -> 0 | NG12: 0 | NH12: 0 | NI12: 0 | NJ12: =IF(AND(E12<>"Lower Latham",I12<>"Lower Latham"),MAX(0,MIN(-(ND12+NG12),KC12-KC12*0.25/100*'Distances for Transit Losses'!$C$99),0)) -> 0 | NK12: =IF(AND(E12<>"Lower Latham",I12<>"Lower Latham"),MAX(0,MIN(-(NC12+NE12+NF12+NI12),KC12-KC12*0.5/100*'Distances for Transit Losses'!$C$99-NJ12/(1-0.5/100*'Distances for Transit Losses'!$C$99))),0) -> 0 | NL12: =MIN(-(ND12+NJ12),KA12-KA12*0.5/100*'Distances for Transit Losses'!$C$95) -> 0 | NM12: =MAX(0,MIN(-(NC12+NE12+NF12+NK12),KA12*(1-0.5/100*'Distances for Transit Losses'!$C$95)-NL12/(1-0.5/100*'Distances for Transit Losses'!$C$95))) -> 0.1203611966 | NN12: =MIN(NM12/(1-0.5/100*'Distances for Transit Losses'!$C$95),(IA12-JD12)) -> 0.1308985281 | NO12: =MAX(0,IF(AND(JT12-JU12-LP12-GU12>0,GH12="no"),MIN(-(NC12+NE12+NF12+NI12+NK12+NM12+NN12)/(1-0.5/100*'Distances for Transit Losses'!$C$105),JT12-JU12-LP12-GU12),0)) -> 0 | NP12: =-NO12*0.5/100*'Distances for Transit Losses'!$C$105 -> 0 | NQ12: 0.58 | NR12: Lease of South Adams 5k Credits | NS12: -0.8208764229 | NT12: 0 | NU12: 0 | NV12: 0 | NW12: 0 | NX12: =-(IF(N12<99999.99999,INDEX('Hist RF blw Milton'!$B$6:$M$30,MATCH($B$2,'Hist RF blw Milton'!$A$6:$A$30,0),MATCH($A12,'Hist RF blw Milton'!$B$5:$M$5,0))/AMA12/1.9835,0)) -> -0.02248984129 | NY12: no | NZ12: 0 | OA12: 0 | OB12: -0.02248984129 | OC12: 0 | OD12: ='Distances for Transit Losses'!$C$12*0.5/100*OC12 -> 0 | OE12: 0 | OG12: 0 | OH12: 0 | OI12: 0 | OJ12: 0 | OK12: 0 | OL12: =-(IF(N12<99999.99999,INDEX('Hist RF to Box Elder'!$B$6:$M$30,MATCH($B$2,'Hist RF to Box Elder'!$A$6:$A$30,0),MATCH($A12,'Hist RF to Box Elder'!$B$5:$M$5,0))/AMA12/1.9835,0)) -> -0.01346302756 | OM12: =(VLOOKUP($B12,'ECCV Beebe Pond Acrtns'!$B$7:$BI$1206,54)+VLOOKUP($B12,'ECCV Canal Acrtns'!$B$7:$AL$1206,34)+VLOOKUP($B12,'2003 Beebe Pond Acrtns'!$B$7:$BI$1206,54)+VLOOKUP($B12,'2003 Canal Acrtns'!$B$7:$AL$1206,34)+VLOOKUP($B12,'84CW090 Beebe Pond Acrtns'!$B$7:$BI$1206,55)+VLOOKUP($B12,'84CW090 Canal Acrtns'!$B$7:$AL$1206,34))/$AMA12/1.9835 -> 0.09220421947 | ON12: 0.01346302756 | OO12: 0 | OP12: 0 | OQ12: 0 | OS12: -5.623546357 | OT12: 3.451787149 | OU12: 0 | OV12: 0.01346302756 | OW12: 0.0192909467 | OX12: 0.1113599682 | OY12: 0 | OZ12: 0 | PA12: 0.02535763361 | PB12: 0.2355596909 | PC12: 3.856818416 | PD12: -1.766727941 | PE12: 0 | PF12: 0 | PG12: 0 | PO12: 0 | PP12: 0 | PR12: 0 | PS12: 0 | PT12: 0 | PU12: 0 | PV12: 0 | PW12: 0 | PX12: 0 | PY12: 0 | PZ12: 0 | QA12: 0 | QB12: 0 | QC12: 0 | QD12: 0 | QE12: 0 | QF12: 0 | QH12: 0 | QI12: 0 | QJ12: 0 | QK12: 0 | QL12: 0 | QM12: 0 | QN12: 0 | QO12: 0 | QP12: 0 | QQ12: 0 | QR12: 0 | QT12: 0 | QU12: 0 | QV12: 0 | QW12: 0 | QX12: 0 | QY12: 0 | QZ12: 0 | RA12: 0 | RB12: 0 | RC12: 0 | RD12: 0 | RE12: 0 | RF12: 0 | RG12: 0 | RH12: 0 | RI12: 0 | RJ12: 0 | RK12: 0 | RL12: 0 | RM12: 0 | RN12: 0 | RO12: 0 | RQ12: 0 | RR12: 0 | RS12: 0 | RT12: 0 | RU12: 0 | RV12: 0 | RW12: 0 | RX12: 0 | RY12: 0 | RZ12: 0 | SA12: 0 | SB12: 0 | SC12: 0 | SD12: 0 | SE12: 0 | SF12: 0 | SG12: 0 | SH12: 0 | SI12: 0 | SJ12: 0 | SK12: 0 | SL12: 0 | SM12: 0 | SN12: 0 | SO12: 0 | SP12: 0 | SQ12: 0 | SR12: 0 | SS12: 0 | ST12: 0 | SU12: 0 | SV12: 0 | SW12: 0 | SX12: 0 | SY12: 0 | SZ12: 0 | TA12: 0 | TB12: 0 | TC12: 0 | TD12: 0 | TE12: 0 | TF12: 0 | TG12: 0 | TI12: 0 | TJ12: 0 | TK12: 0 | TL12: 0 | TM12: 0 | TN12: 0 | TO12: 0 | TP12: 0 | TQ12: 0 | TR12: 0 | TS12: 0 | TT12: 0 | TU12: 0 | TV12: 0 | TW12: 0 | TX12: 0 | TY12: 0 | TZ12: 0 | UA12: 0 | UB12: 0 | UC12: 0 | UD12: 0 | UE12: 0 | UF12: 0 | UG12: 0 | UH12: 0 | UI12: 0 | UJ12: 0 | UK12: 0 | UL12: 0 | UM12: 0 | UN12: 0 | UO12: 0 | UP12: 0 | UQ12: 0 | UR12: 0 | US12: 0 | UT12: 0 | UU12: 0 | UV12: 0 | UW12: 0 | UX12: 0 | UY12: 0 | UZ12: 0 | VA12: 0 | VB12: 0 | VC12: 0 | VD12: 0 | VE12: 0 | VF12: 0 | VG12: 0 | VH12: 0 | VI12: 0 | VJ12: 0 | VK12: 0 | VL12: 0 | VM12: 0 | VN12: 0 | VO12: 0 | VP12: 0 | VQ12: 0 | VR12: 0 | VS12: 0 | VT12: 0 | VU12: 0 | VV12: 0 | VW12: 0 | VX12: 0 | VY12: 0 | VZ12: 0 | WA12: 0 | WB12: 0 | WC12: 0 | WD12: 0 | WE12: 0 | WF12: 0 | WG12: 0 | WH12: 0 | WI12: 0 | WJ12: 0 | WK12: 0 | WL12: 0 | WM12: 0 | WN12: 0 | WO12: 0 | WP12: 0 | WQ12: 0 | WR12: 0 | WS12: 0 | WT12: 0 | WU12: 0 | WV12: 0 | WW12: 0 | WX12: 0 | WY12: 0 | WZ12: 0 | XA12: 0 | XB12: 0 | XC12: 0 | XD12: 0 | XE12: 0 | XF12: 0 | XG12: 0 | XH12: 0 | XI12: 0 | XJ12: 0 | XK12: 0 | XL12: 0 | XM12: 0 | XN12: 0 | XO12: 0 | XP12: 0 | XQ12: 0 | XR12: 0 | XS12: 0 | XT12: 0 | XU12: 0 | XV12: 0 | XW12: 0 | XX12: 0 | XY12: 0 | XZ12: 0 | YA12: 0 | YB12: 0 | YC12: 0 | YE12: 0 | YF12: 0 | YG12: 0 | YH12: 0 | YI12: 0 | YJ12: 0 | YK12: 0 | YL12: 0 | YM12: 0 | YN12: 0 | YO12: 0 | YP12: 0 | YQ12: 0 | YS12: 0 | YT12: 0 | YU12: 0 | YV12: 0 | YW12: 0 | YX12: 0 | YY12: 0 | YZ12: 0 | ZB12: 0 | ZC12: 0 | ZD12: 0 | ZE12: 0 | ZF12: 0 | ZG12: 0 | ZH12: 0 | ZI12: 0 | ZJ12: 0 | ZK12: 0 | ZL12: 0 | ZM12: 0 | ZN12: 0 | ZO12: 0 | ZP12: 0 | ZQ12: 0 | ZR12: 0 | ZS12: 0 | ZT12: 0 | ZU12: 0 | ZV12: 0 | ZW12: 0 | ZX12: 0 | ZY12: 0 | ZZ12: 0 | AAA12: 0 | AAB12: 0 | AAC12: 0 | AAD12: 0 | AAE12: 0 | AAF12: 0 | AAG12: 0 | AAH12: 0 | AAI12: 0 | AAJ12: 0 | AAK12: 0 | AAL12: 0 | AAM12: 0 | AAN12: 0 | AAO12: 0 | AAP12: 0 | AAQ12: 0 | AAR12: 0 | AAS12: 0 | AAT12: 0 | AAU12: 0 | AAV12: 0 | AAW12: 0 | AAX12: 0 | AAY12: 0 | AAZ12: 0 | ABA12: 0 | ABB12: 0 | ABC12: 0 | ABD12: 0 | ABE12: 0 | ABF12: 0 | ABG12: 0 | ABH12: 0 | ABI12: 0 | ABJ12: 0 | ABK12: 0 | ABL12: 0 | ABM12: 0 | ABN12: 0 | ABO12: 0 | ABP12: 0 | ABQ12: 0 | ABR12: 0 | ABS12: 0 | ABT12: 0 | ABU12: 0 | ABV12: 0 | ABW12: 0 | ABX12: 0 | ABY12: 0 | ABZ12: 0 | ACA12: 0 | ACB12: 0 | ACD12: 0 | ACE12: 0 | ACF12: 0 | ACG12: 0 | ACH12: 0 | ACI12: 0 | ACJ12: 0 | ACL12: 0 | ACM12: 0 | ACN12: 0 | ACO12: 0 | ACP12: 0 | ACQ12: 0 | ACR12: 0 | ACS12: 0 | ACT12: 0 | ACU12: 0 | ACV12: 0 | ACW12: 0 | ACX12: 0 | ACZ12: 0 | ADA12: 0 | ADB12: 0 | ADC12: 0 | ADD12: 0 | ADE12: 0 | ADF12: 0 | ADG12: 0 | ADH12: 0 | ADI12: 0 | ADJ12: 0 | ADK12: 0 | ADL12: 0 | ADM12: 0 | ADN12: 0 | ADO12: 0 | ADP12: 0 | ADQ12: 0 | ADR12: 0 | ADS12: 0 | ADT12: 0 | ADU12: 0 | ADV12: 0 | ADW12: 0 | ADX12: 0 | ADY12: 0 | ADZ12: 0 | AEA12: 0 | AEB12: 0 | AEC12: 0 | AED12: 0 | AEE12: 0 | AEF12: 0 | AEG12: 0 | AEH12: 0 | AEI12: 0 | AEJ12: 0 | AEK12: 0 | AEL12: 0 | AEN12: 0 | AEO12: 0 | AEP12: 0 | AER12: 0 | AES12: 0 | AET12: 0 | AEU12: 0 | AEV12: 0 | AEW12: 0 | AEX12: 0 | AEZ12: 0 | AFA12: 0 | AFB12: 0 | AFC12: 0 | AFD12: 0 | AFE12: 0 | AFF12: 0 | AFG12: 0 | AFH12: 0 | AFI12: 0 | AFJ12: 0 | AFK12: 0 | AFL12: 0 | AFM12: 0 | AFN12: 0 | AFO12: 0 | AFP12: 0 | AFQ12: 0 | AFR12: 0 | AFS12: 0 | AFT12: 0 | AFU12: 0 | AFV12: 0 | AFW12: 0 | AFX12: 0 | AFY12: 0 | AFZ12: 0 | AGA12: 0 | AGB12: 0 | AGC12: 0 | AGD12: 0 | AGE12: 0 | AGF12: 0 | AGG12: 0 | AGH12: 0 | AGI12: 0 | AGJ12: 0 | AGK12: 0 | AGL12: 0 | AGM12: 0 | AGN12: 0 | AGO12: 0 | AGP12: 0 | AGQ12: 0 | AGR12: 0 | AGS12: 0 | AGT12: 0 | AGU12: 0 | AGV12: 0 | AGW12: 0 | AGX12: 0 | AGY12: 0 | AGZ12: 0 | AHA12: 0 | AHB12: 0 | AHC12: 0 | AHD12: 0 | AHE12: 0 | AHF12: 0 | AHG12: 0 | AHH12: 0 | AHI12: 0 | AHJ12: 0 | AHK12: 0 | AHL12: 0 | AHM12: 0 | AHN12: 0 | AHO12: 0 | AHP12: 0 | AHQ12: 0 | AHR12: 0 | AHS12: 0 | AHT12: 0 | AHU12: 0 | AHV12: 0 | AHW12: 0 | AHX12: 0 | AHY12: 0 | AHZ12: 0 | AIA12: 0 | AIB12: 0 | AIC12: 0 | AID12: 0 | AIE12: 0 | AIF12: 0 | AIG12: 0 | AIH12: 0 | AII12: 0 | AIJ12: 0 | AIK12: 0 | AIL12: 0 | AIM12: 0 | AIN12: 0 | AIO12: 0 | AIP12: 0 | AIQ12: 0 | AIR12: 0 | AIS12: 0 | AIT12: 0 | AIU12: 0 | AIV12: 0 | AIW12: 0 | AIX12: 0 | AIY12: 0 | AIZ12: 0 | AJA12: 0 | AJB12: 0 | AJC12: 0 | AJD12: 0 | AJE12: 0 | AJF12: 0 | AJG12: 0 | AJH12: 0 | AJI12: 0 | AJJ12: 0 | AJK12: 0 | AJL12: 0 | AJM12: 0 | AJN12: 0 | AJO12: 0 | AJP12: 0 | AJQ12: 0 | AJR12: 0 | AJS12: 0 | AJT12: 0 | AJU12: 0 | AJV12: 0 | AJW12: 0 | AJX12: 0 | AJY12: 0 | AJZ12: 0 | AKA12: 0 | AKB12: 0 | AKC12: 0 | AKD12: 0 | AKE12: 0 | AKF12: 0 | AKG12: 0 | AKH12: 0 | AKI12: 0 | AKJ12: 0 | AKK12: 0 | AKL12: 0 | AKM12: 0 | AKN12: 0 | AKO12: 0 | AKP12: 0 | AKQ12: 0 | AKR12: 0 | AKS12: 0 | AKT12: 0 | AKU12: 0 | AKV12: 0 | AKW12: 309.6 | AKY12: 0 | AKZ12: 0 | ALA12: 0 | ALB12: 0 | ALC12: 0 | ALD12: 0 | ALE12: 0 | ALF12: 0 | ALG12: 0 | ALH12: 0 | ALI12: 0 | ALJ12: 0 | ALK12: 0 | ALL12: 0 | ALM12: 0 | ALN12: 0 | ALO12: 0 | ALP12: 0 | ALQ12: 0 | ALR12: 0 | ALS12: 0 | ALT12: TRUE | ALU12: TRUE | ALV12: TRUE | ALX12: 0 | ALY12: 0 | AMA12: =VLOOKUP(A12,'Control Sheet'!$G$9:$H$20,2) -> 30
A13: Apr | B13: 2019-04-05 | C13: Burlington D River HG | D13: 1911-03-17 | E13: Burlington D River HG | F13: 22355 | AA13: 0 | AB13: 0 | AC13: 0 | AD13: 0 | AF13: 0 | AG13: =('NFC Well Pumping'!$L11+'NFC Well Pumping'!$L48+'NFC Well Pumping'!$L84)/1.9835 -> 0 | AH13: ='88CW264(B) Pumping'!$E11/1.9835+'88CW264(B) Pumping'!$E47/1.9835+'88CW264(B) Pumping'!E87/1.9835+'88CW264(B) Pumping'!E123/1.9835+'88CW264(B) Pumping'!E163/1.9835+'88CW264(B) Pumping'!E199/1.9835 -> 0.008339451787 | AI13: 0 | AJ13: =('United No. 2 Well Pumping'!G12+'United No. 2 Well Pumping'!G48+'United No. 2 Well Pumping'!G84)/1.9835 -> 0 | AK13: =('United No. 2 Well Pumping'!F12+'United No. 2 Well Pumping'!F48+'United No. 2 Well Pumping'!F84)/1.9835 -> 0 | AL13: 0 | AN13: 0.008339451787 | AO13: =AC13+AK13+'United Res'!AA175+'United Res'!AQ175+'Milliken Res'!J163 -> 0 | AP13: 100 | AQ13: =-(IF($N13=99999.99999,0,VLOOKUP($B13,'NFC Well Dplns-URF'!B$7:$AB$306,27))/$AMA13/1.9835) -> -0.005586020147 | AR13: 0 | AT13: =(VLOOKUP($B13,'ECCV 70R Pond Acrtns'!$B$7:$AI$1206,34)+VLOOKUP($B13,'2003 70R Pond Acrtns'!$B$7:$AI$1206,34)+VLOOKUP($B13,'ECCV 70R Canal Acrtns'!$B$7:$AI$1206,27)+VLOOKUP($B13,'2003 70R Canal Acrtns'!$B$7:$AI$1206,27))/$AMA13/1.9835 -> 0 | AU13: -0.005586020147 | AV13: =-(IF($N13=99999.99999,0,VLOOKUP($B13,'NFC Well Dplns-SDF'!$B$7:$Z$306,25)+VLOOKUP($B13,'NFC Well Dplns-URF'!B$7:$AB$306,20))/$AMA13/1.9835) -> -0.1028154558 | AW13: 0 | AX13: 0.07 | AY13: ECCV Riverside Credits | AZ13: =-((BL13+BM13)*'Weldon Credit'!$BB$36) -> 0 | BA13: =-((BL13+BM13)*'Weldon Credit'!$BB$34) -> 0 | BB13: =-INDEX('Weldon Credit'!$AX$249:$BJ$276,MATCH($B$2,'Weldon Credit'!$AX$249:$AX$276,0),MATCH(A13,'Weldon Credit'!$AX$249:$BJ$249,0))/AMA13/1.9835 -> -0.009784592734 | BC13: -0.009784592734 | BD13: =-((BL13+BM13)*'Weldon Credit'!$BB$37) -> 0 | BE13: =-((BL13+BM13)*'Weldon Credit'!$BB$35) -> 0 | BF13: =-INDEX('Weldon Credit'!$AX$281:$BJ$308,MATCH($B$2,'Weldon Credit'!$AX$281:$AX$308,0),MATCH(A13,'Weldon Credit'!$AX$281:$BJ$281,0))/AMA13/1.9835 -> -0.1557750982 | BG13: -0.1557750982 | BH13: =-(BL13+BM13)*'Weldon Credit'!$BB$38 -> 0 | BI13: =0.4*(INDEX('Riverside Pond Accrtns'!$B$6:$M$36,MATCH($B$2,'Riverside Pond Accrtns'!$A$6:$A$36,0),MATCH('ECCV Daily Replacement Summary'!A13,'Riverside Pond Accrtns'!$B$5:$M$5,0))/AMA13)/1.9835 -> 1.357862365 | BJ13: =(44/640)*(INDEX('Weldon Valley Accrtns (02CW377)'!$B$6:$M$36,MATCH($B$2,'Weldon Valley Accrtns (02CW377)'!$A$6:$A$36,0),MATCH(A13,'Weldon Valley Accrtns (02CW377)'!$B$5:$M$5,0))/AMA13)/1.9835 -> 0.205705823 | BK13: =(VLOOKUP($B13,'ECCV 70R Pond Acrtns'!$B$7:$AI$1206,25)+VLOOKUP($B13,'ECCV 70R Canal Acrtns'!$B$7:$AI$1206,20)+VLOOKUP($B13,'2003 70R Pond Acrtns'!$B$7:$AI$1206,25)+VLOOKUP($B13,'2003 70R Canal Acrtns'!$B$7:$AI$1206,20))/$AMA13/1.9835 -> 0 | BL13: ='Joint Aug Station Deliveries'!G13 -> 0 | BM13: ='Joint Aug Station Deliveries'!H13 -> 0 | BN13: 0 | BO13: 0 | BP13: =IF(CD13="no",-MAX(0,MIN(BO13,(BM13-BL13))*(0.5/100*'Distances for Transit Losses'!$C$91)),0) -> 0 | BQ13: 0 | BR13: =MIN(-($BC13+BG13+BH13+BN13+BO13+BP13),BI13-BI13*0.5/100*'Distances for Transit Losses'!$C$93) -> 0.1655596909 | BS13: 0 | BT13: =MIN(-($BC13+BG13+BH13+BN13+BO13+BP13+BR13+BS13),BK13-BK13*0.5/100*'Distances for Transit Losses'!$C$93) -> 0 | BU13: =-((BR13+BT13)*(0.5/100*'Distances for Transit Losses'!$C$93)) -> -0.01763210708 | BV13: 0 | BW13: =--BV13*0.5/100*'Distances for Transit Losses'!C$117 -> 0 | BX13: 0 | BY13: =--BX13*0.5/100*'Distances for Transit Losses'!$C$119 -> 0 | BZ13: 0 | CA13: =-BZ13*0.5/100*'Distances for Transit Losses'!$C$115 -> 0 | CB13: 0 | CD13: no | CE13: no | CF13: no | CG13: 0 | CH13: 0 | CI13: 0 | CK13: =IF($CF13="No",MIN(IF(-DR13<0,0,-DR13),BI13-BR13/(1-0.5/100*'Distances for Transit Losses'!$C$93)),0) -> 0.02535763361 | CL13: =IF($CF13="No",IF(MIN(-(DR13+CK13),BK13-BT13/(1-0.5/100*'Distances for Transit Losses'!$C$93))<0,0,MIN(-(DR13+CK13),BK13-BT13/(1-0.5/100*'Distances for Transit Losses'!$C$93))),0) -> 0 | CM13: 0 | CN13: 0 | CO13: 0 | CP13: -0.2683751467 | CQ13: 1.61593608 | CR13: =-(IF($N13=99999.99999,0,VLOOKUP($B13,'NFC Well Dplns-SDF'!$B$7:$Z$306,16)+VLOOKUP($B13,'NFC Well Dplns-URF'!$B$7:$AB$306,13))/$AMA13/1.9835) -> -0.8829552079 | CS13: =-(IF($N13>=99999,0,'88CW264(B) Pumping'!$E11/1.9835)+IF($N13>=99999,0,'88CW264(B) Pumping'!$E47/1.9835)+IF($N13>=99999,0,'88CW264(B) Pumping'!$E87/1.9835)+IF($N13>=99999,0,'88CW264(B) Pumping'!$E123/1.9835)+IF($N13>=51134.50919,0,'88CW264(B) Pumping'!$E163/1.9835)+IF($N13>=53406,0,'88CW264(B) Pumping'!$E199/1.9835)) -> -0.008339451787 | CT13: -0.8912946597 | CU13: 0.69 | CV13: 0 | CX13: =-(IF($N13=99999.99999,0,VLOOKUP($B13,'United No. 2 Dplns'!$B$7:$X$676,13)/1.9835)) -> 0 | CY13: =CX13+(-(INDEX('Pre 1995 Net Accretions'!$B$6:$M$105,MATCH($B$2,'Pre 1995 Net Accretions'!$A$6:$A$105,0),MATCH($A13,'Pre 1995 Net Accretions'!$B$5:$M$5,0))/$AMA13/1.9835)) -> 0.02746354924 | CZ13: =-(IF(N13<99999.99999,(INDEX('70 Ranch RF Obligation'!$B$6:$M$36,MATCH($B$2,'70 Ranch RF Obligation'!$A$6:$A$36,0),MATCH('ECCV Daily Replacement Summary'!A13,'70 Ranch RF Obligation'!$B$5:$M$5,0))/AMA13)/1.9835,0))-DC13*(1-'L. Latham Credit'!$E$41) -> -0.05282118285 | DA13: -0.02535763361 | DB13: =(VLOOKUP($B13,'ECCV 70R Pond Acrtns'!$B$7:$AI$1206,16)+VLOOKUP($B13,'ECCV 70R Canal Acrtns'!$B$7:$AI$1206,13)+VLOOKUP($B13,'2003 70R Pond Acrtns'!$B$7:$AI$1206,16)+VLOOKUP($B13,'2003 70R Canal Acrtns'!$B$7:$AI$1206,13))/$AMA13/1.9835 -> 0 | DC13: ='Joint Aug Station Deliveries'!DQ13 -> 0 | DD13: 0 | DE13: 0 | DF13: ='Joint Aug Station Deliveries'!DT13 -> 0 | DG13: 0 | DH13: 0 | DI13: 0 | DK13: 0 | DL13: 0 | DM13: 0 | DN13: =-DM13*0.5/100*'Distances for Transit Losses'!$C$52 -> 0 | DO13: 0 | DP13: 0 | DQ13: 0 | DR13: -0.02535763361 | DS13: 0.02535763361 | DT13: 0 | DU13: 0 | DV13: =('NFC Well Pumping'!I11+'NFC Well Pumping'!I48+'NFC Well Pumping'!I84)/1.9835 -> 0 | DW13: 0 | DX13: =-DW13*0.5/100*'Distances for Transit Losses'!C$121 -> 0 | DY13: 0 | DZ13: =-DY13*0.5/100*'Distances for Transit Losses'!$C$145 -> 0 | EA13: 0 | EB13: =--EA13*0.5/100*'Distances for Transit Losses'!$C$123 -> 0 | EC13: 0 | ED13: 0 | EE13: =IF('Joint Aug Station Deliveries'!R13="Yes",'Joint Aug Station Deliveries'!P13,0) -> 0 | EF13: ='Joint Aug Station Deliveries'!T13 -> 0 | EG13: =IF('Joint Aug Station Deliveries'!Z13="Yes",'Joint Aug Station Deliveries'!X13,0) -> 0 | EH13: =-(EG13*0.5/100*'Distances for Transit Losses'!$C$234) -> 0 | EI13: =IF('Joint Aug Station Deliveries'!AD13="Yes",'Joint Aug Station Deliveries'!AB13,0) -> 0 | EJ13: =-(EI13*0.5/100*'Distances for Transit Losses'!$C$266) -> 0 | EK13: 0 | EL13: =-(EK13*0.5/100*'Distances for Transit Losses'!$C$256) -> 0 | EM13: no | EN13: =IF('Joint Aug Station Deliveries'!AH13="Yes",'Joint Aug Station Deliveries'!AF13,0) -> 0 | EO13: =-(EN13*0.5/100*'Distances for Transit Losses'!$C$268) -> 0 | EP13: =IF('Joint Aug Station Deliveries'!AL13="Yes",'Joint Aug Station Deliveries'!AJ13,0) -> 0 | EQ13: =-(EP13*0.5/100*'Distances for Transit Losses'!$C$270) -> 0 | ER13: =IF('Joint Aug Station Deliveries'!AP13="Yes",'Joint Aug Station Deliveries'!AN13,0) -> 0 | ES13: =-(ER13*0.5/100*'Distances for Transit Losses'!$C$272) -> 0 | ET13: =-0.25*(INDEX('GIC Credit'!$B$85:$M$116,MATCH($B$2,'GIC Credit'!$A$85:$A$116,0),MATCH($A13,'GIC Credit'!$B$85:$M$85,0))/$AMA13/1.9835+FN13*'GIC Credit'!$Z$39+FO13*'GIC Credit'!$AO$39) -> -0.00014 | EU13: -0.00014 | EV13: ='Joint Aug Station Deliveries'!DI13 -> 0 | EW13: =-(EV13*0.5/100*'Distances for Transit Losses'!$C$262) -> 0 | EX13: ='Joint Aug Station Deliveries'!DJ13 -> 0 | EY13: =-(EX13*0.5/100*'Distances for Transit Losses'!$C$264) -> 0 | EZ13: 0 | FB13: no | FC13: -0.00014 | FD13: =-0.39*(INDEX('GIC Credit'!$B$85:$M$116,MATCH($B$2,'GIC Credit'!$A$85:$A$116,0),MATCH($A13,'GIC Credit'!$B$85:$M$85,0))/$AMA13/1.9835+FN13*'GIC Credit'!$Z$39+FO13*'GIC Credit'!$AO$39) -> -0.0002184 | FE13: 0 | FF13: =-(FE13*0.5/100*('Distances for Transit Losses'!$C$238+'Distances for Transit Losses'!$C$244)) -> 0 | FG13: =IF('Joint Aug Station Deliveries'!AT13="Yes",'Joint Aug Station Deliveries'!AR13,0) -> 0 | FH13: =-(FG13*0.5/100*('Distances for Transit Losses'!$C$240+'Distances for Transit Losses'!$C$242)) -> 0 | FI13: =IF('Joint Aug Station Deliveries'!AX13="Yes",'Joint Aug Station Deliveries'!AV13,0) -> 0 | FJ13: =-(FI13*0.5/100*'Distances for Transit Losses'!$C$242) -> 0 | FK13: ='Joint Aug Station Deliveries'!DK13 -> 0 | FL13: =-(FK13*0.5/100*'Distances for Transit Losses'!$C$248) -> 0 | FM13: 0 | FN13: ='Joint Aug Station Deliveries'!DM13 -> 0 | FO13: ='Joint Aug Station Deliveries'!DN13 -> 0 | FP13: =MIN(0,FC13)+SUM(FD13:FF13)+EE13/(1-0.5/100*('Distances for Transit Losses'!$C$274+'Distances for Transit Losses'!$C$286))+EF13/(1-0.5/100*('Distances for Transit Losses'!$C$260))+SUM(EG13:EH13)/(1-0.5/100*('Distances for Transit Losses'!$C$276+'Distances for Transit Losses'!$C$286))+SUM(EI13:EJ13)/(1-0.5/100*('Distances for Transit Losses'!$C$278+'Distances for Transit Losses'!$C$286))+EK13/(1-0.5/100*('Distances for Transit Losses'!$C$260))+SUM(EN13:EO13)/(1-0.5/100*('Distances for Transit Losses'!$C$280+'Distances for Transit Losses'!$C$288))+SUM(EP13:EQ13)/(1-0.5/100*('Distances for Transit Losses'!$C$282+'Distances for Transit Losses'!$C$288))+SUM(ER13:ES13)/(1-0.5/100*('Distances for Transit Losses'!$C$284+'Distances for Transit Losses'!$C$288))+SUM(FG13:FJ13)/(1-0.5/100*('Distances for Transit Losses'!$C$244))+SUM(FK13:FL13) -> -0.0003584 | FQ13: =-(IF(N13<99999.99999,INDEX('Hist RF to SPR'!$AF$6:$AQ$30,MATCH($B$2,'Hist RF to SPR'!$AE$6:$AE$30,0),MATCH($A13,'Hist RF to SPR'!$AF$5:$AQ$5,0))/AMA13/1.9835,0)) -> -0.0002698345146 | FR13: =IF(N13<99999.99999,-INDEX('New Cache Credit'!$BO$109:$CA$136,MATCH($B$2,'New Cache Credit'!$BO$109:$BO$136,0),MATCH(A13,'New Cache Credit'!$BO$109:$CA$109,0))/AMA13/1.9835-INDEX('New Cache Credit'!$CD$77:$CP$104,MATCH($B$2,'New Cache Credit'!$CD$77:$CD$104,0),MATCH(A13,'New Cache Credit'!$CD$77:$CP$77,0))/AMA13/1.9835,0) -> -0.0008755433333 | FS13: =-0.36*(INDEX('GIC Credit'!$B$85:$M$116,MATCH($B$2,'GIC Credit'!$A$85:$A$116,0),MATCH($A13,'GIC Credit'!$B$85:$M$85,0))/$AMA13/1.9835+FN13*'GIC Credit'!$Z$39+FO13*'GIC Credit'!$AO$39) -> -0.0002016 | FT13: -0.0003584 | FU13: -0.001705377848 | FV13: 0 | FW13: =IF('Joint Aug Station Deliveries'!BB13="Yes",'Joint Aug Station Deliveries'!AZ13,0) -> 0 | FX13: =-(FW13*0.5/100*'Distances for Transit Losses'!$C$226) -> 0 | FY13: =IF('Joint Aug Station Deliveries'!BF13="Yes",'Joint Aug Station Deliveries'!BD13,0) -> 0 | FZ13: =-(FY13*0.5/100*'Distances for Transit Losses'!$C$228) -> 0 | GA13: =IF('Joint Aug Station Deliveries'!BJ13,'Joint Aug Station Deliveries'!BH13,0) -> 0 | GB13: =-(GA13*0.5/100*'Distances for Transit Losses'!$C$230) -> 0 | GC13: =IF('Joint Aug Station Deliveries'!BN13="Yes",'Joint Aug Station Deliveries'!BL13,0) -> 0 | GD13: =-(GC13*0.5/100*'Distances for Transit Losses'!$C$218) -> 0 | GE13: =IF('Joint Aug Station Deliveries'!BR13="Yes",'Joint Aug Station Deliveries'!BP13,0) -> 0 | GF13: =-(GE13*0.5/100*'Distances for Transit Losses'!$C$224) -> 0 | GG13: =MIN(-FU13-FV13,SUM(FW13:FX13)/(1-0.5/100*('Distances for Transit Losses'!$C$292))+SUM(FY13:FZ13)/(1-0.5/100*('Distances for Transit Losses'!$C$294))+SUM(GA13:GB13)+SUM(GC13:GD13)+SUM(GE13:GF13)) -> 0 | GH13: no | GI13: 0 | GJ13: 0 | GK13: 0 | GM13: 0 | GN13: 0 | GO13: =IF(AND(LM13-LN13-JP13>0,LH13="no"),MIN(-(FU13+FV13+GG13+GM13+GN13)/(1-0.5/100*'Distances for Transit Losses'!$C$125),LM13-LN13-JP13),0) -> 0 | GP13: =-GO13*0.5/100*'Distances for Transit Losses'!$C$125 -> 0 | GQ13: 0 | GR13: 0 | GS13: 0 | GT13: =-GS13*0.5/100*'Distances for Transit Losses'!$C$143 -> 0 | GU13: =IF(AND(JT13-JU13-LP13>0,JF13="no"),MIN(-(FU13+FV13+GG13+GM13+GN13+GO13+GP13+GS13+GT13)/(1-0.5/100*'Distances for Transit Losses'!$C$127),JT13-JU13-LP13),0) -> 0 | GV13: =-GU13*0.5/100*'Distances for Transit Losses'!$C$133 -> 0 | GW13: 0 | GY13: 0 | GZ13: -0.001705377848 | HA13: 0 | HB13: 0 | HC13: 0 | HD13: =-(IF(N13<99999.99999,INDEX('Hist RF to SPR'!$Q$6:$AB$30,MATCH($B$2,'Hist RF to SPR'!$P$6:$P$30,0),MATCH($A13,'Hist RF to SPR'!$Q$5:$AB$5,0))/AMA13/1.9835,0)) -> -0.002812216867 | HE13: =-(IF(OR($N13<99999.99999,E13="Lower Latham",I13="Lower Latham",E13="Highland",I13="Highland",E13="Plum",I13="Plum"),(INDEX('FIDCO Credit'!$Y$48:$AJ$78,MATCH($B$2,'FIDCO Credit'!$X$48:$X$78,0),MATCH($A13,'FIDCO Credit'!$Y$47:$AJ$47,0))/$AMA13)/1.9835,0)) -> 0 | HF13: =-(IF(OR($N13<99999.99999,E13="Lower Latham",I13="Lower Latham",E13="Highland",I13="Highland",E13="Plum",I13="Plum",E13="Godfrey",I13="Godfrey",E13="Union",I13="Union"),(INDEX('Western Credit'!$AY$239:$BJ$269,MATCH($B$2,'Western Credit'!$AX$239:$AX$269,0),MATCH($A13,'Western Credit'!$AY$238:$BJ$238,0))/$AMA13)/1.9835)) -> -0.01059002452 | HG13: =-('Joint Aug Station Deliveries'!CK13+'Joint Aug Station Deliveries'!CN13+'Joint Aug Station Deliveries'!CQ13+'Joint Aug Station Deliveries'!CT13)*'Western Credit'!$BB$40 -> 0 | HH13: -0.01059002452 | HI13: =-(IF(OR($N13<99999.99999,E13="Lower Latham",I13="Lower Latham",E13="Highland",I13="Highland",E13="Plum",I13="Plum",E13="Godfrey",I13="Godfrey",E13="Union",I13="Union"),(INDEX('Western Credit'!$AY$276:$BJ$306,MATCH($B$2,'Western Credit'!$AX$276:$AX$306,0),MATCH($A13,'Western Credit'!$AY$275:$BJ$275,0))/$AMA13)/1.9835)) -> -0.008320733551 | HJ13: =-('Joint Aug Station Deliveries'!CK13+'Joint Aug Station Deliveries'!CN13+'Joint Aug Station Deliveries'!CQ13+'Joint Aug Station Deliveries'!CT13)*'Western Credit'!$BB$41 -> 0 | HK13: -0.008320733551 | HL13: =-(IF(OR($N13<99999.99999,E13="Lower Latham",I13="Lower Latham",E13="Highland",I13="Highland",E13="Plum",I13="Plum",E13="Godfrey",I13="Godfrey"),(INDEX('Western Credit'!$AY$313:$BJ$343,MATCH($B$2,'Western Credit'!$AX$313:$AX$343,0),MATCH($A13,'Western Credit'!$AY$312:$BJ$312,0))/$AMA13)/1.9835)) -> -0.01550682162 | HM13: =('Joint Aug Station Deliveries'!CK13+'Joint Aug Station Deliveries'!CN13+'Joint Aug Station Deliveries'!CQ13+'Joint Aug Station Deliveries'!CT13)*'Western Credit'!$BB$42 -> 0 | HN13: -0.01550682162 | HO13: =-(IF(OR($N13<99999.99999,E13="Lower Latham",I13="Lower Latham",E13="Highland",I13="Highland",E13="Plum",I13="Plum"),(INDEX('Western Credit'!$AY$350:$BJ$380,MATCH($B$2,'Western Credit'!$AX$350:$AX$380,0),MATCH($A13,'Western Credit'!$AY$349:$BJ$349,0))/$AMA13)/1.9835)) -> -0.07413017164 | HP13: =-('Joint Aug Station Deliveries'!CK13+'Joint Aug Station Deliveries'!CN13+'Joint Aug Station Deliveries'!CQ13+'Joint Aug Station Deliveries'!CT13)*'Western Credit'!$BB$43 -> 0 | HQ13: -0.07413017164 | HR13: ='Joint Aug Station Deliveries'!CK13 -> 0 | HS13: 0 | HT13: =-HS13*0.5/100*'Distances for Transit Losses'!$C$26 -> 0 | HU13: =MIN(VLOOKUP($B13,'ECCV Haren Pond Oxbow Acrtns'!$B$7:$G$306,6)/$AMA13/1.9835,-HK13) -> 0.008320733551 | HV13: 0 | HX13: 0 | HZ13: no | IA13: =VLOOKUP($B13,'ECCV Haren Pond S.P. Acrtns'!$B$7:$G$306,6)/$AMA13/1.9835 -> 0.2339377628 | IB13: 0 | ID13: no | IE13: =VLOOKUP($B13,'ECCV Strohauer S.P. Acrtns'!$B$7:$G$306,6)/$AMA13/1.9835 -> 0 | IF13: 0 | IH13: no | II13: 0.01059002452 | IJ13: 0 | IK13: 0 | IL13: 0 | IM13: 0.008320733551 | IN13: 0 | IO13: 0 | IP13: 0 | IQ13: =MAX(0,MIN(-HN13,IA13+IF(HZ13="No",HR13*(1-0.5/100*'Distances for Transit Losses'!$C$66),0)+IF(ID13="No",IE13,0)-II13-(MAX(0,IM13-HU13-HV13)))) -> 0.01550682162 | IR13: 0 | IS13: 0 | IT13: 0 | IU13: =MAX(0,MIN(-HQ13,IE13+IF(AND(HZ13="No",ID13="No"),HR13*(1-0.5/100*'Distances for Transit Losses'!$C$68),0)+IF(ID13="No",IA13*(1-0.5/100*'Distances for Transit Losses'!$C$70),0)-II13-(MAX(0,IM13-HU13-HV13))-IQ13)) -> 0.07413017164 | IV13: =MIN(-HQ13-IU13,(HS13-IJ13-IN13-IR13)*(1-0.5/100*'Distances for Transit Losses'!$C$72)) -> 0 | IW13: =MIN(-HQ13-IU13-IV13,(JU13-IK13-IO13-IS13)/(1-0.5/100*'Distances for Transit Losses'!$C$74)) -> 0 | IX13: 0 | IY13: -0.002812216867 | IZ13: 0 | JA13: 0 | JB13: =IF(AND(JG13="no",JH13="no"),MIN(-(IY13-IZ13-JA13)/(1-0.5/100*'Distances for Transit Losses'!$C$111),LE13),0) -> 0 | JC13: =-JB13*0.5/100*'Distances for Transit Losses'!$C$111 -> 0 | JD13: 0.1002270178 | JE13: 0.1308985281 | JF13: no | JG13: no | JH13: no | JI13: 0 | JJ13: 0 | JK13: 0 | JM13: 0 | JN13: 0 | JO13: -0.002812216867 | JP13: =IF(AND(LM13-LN13>0,LH13="no"),MIN(-JO13/(1-0.5/100*'Distances for Transit Losses'!$C$129)+IJ13+IN13+IR13+IV13,LM13-LN13),0) -> 0 | JQ13: =-JP13*0.5/100*'Distances for Transit Losses'!$C$129 -> 0 | JR13: =IF(AND(LQ13+LR13-LS13-MD13>0,LH13="no"),MIN((-JO13-(JP13+JQ13))/(1-0.5/100*'Distances for Transit Losses'!$C$131),LQ13+LR13-LS13-MD13),0) -> 0.003737165272 | JS13: =-JR13*0.5/100*'Distances for Transit Losses'!$C$131 -> -0.0009249484048 | JT13: 0 | JU13: =IF(JT13>0,MIN(-(JO13+JP13+JQ13+JR13+JS13)/(1-0.5/100*'Distances for Transit Losses'!$C$133)+IK13+IO13+IS13+IW13,JT13),0) -> 0 | JV13: =-JU13*0.5/100*'Distances for Transit Losses'!$C$133 -> 0 | JW13: 0 | JY13: 0 | JZ13: ='Joint Aug Station Deliveries'!CN13 -> 0 | KA13: 0.1308985281 | KB13: ='Joint Aug Station Deliveries'!CA13 -> 0 | KC13: =IF(AND(KB13>0,SUM($KB$9:KB13,$KD$9:KD13,$LE$9:LE13)*1.9835<OFFSET('FIDCO Credit'!$X$39,0,MATCH($A13,'FIDCO Credit'!$Y$5:$AJ$5,0))),KB13-IZ13,0) -> 0 | KD13: ='Joint Aug Station Deliveries'!CD13 -> 0 | KE13: =IF(AND(KD13>0,SUM($KB$9:KB13,$KD$9:KD13,$LE$9:LE13)*1.9835<OFFSET('FIDCO Credit'!$X$39,0,MATCH($A13,'FIDCO Credit'!$Y$5:$AJ$5,0))),KD13-JA13,0) -> 0 | KF13: =MAX(0,(NJ13+NK13))/(1-0.5/100*'Distances for Transit Losses'!$C$99) -> 0 | KG13: =MAX(0,(NL13+NM13)/(1-0.5/100*'Distances for Transit Losses'!$C$95)) -> 0.1308985281 | KH13: 0 | KI13: =-KH13*0.5/100*'Distances for Transit Losses'!$C$101 -> 0 | KJ13: 0 | KK13: 0 | KL13: =-KK13*0.5/100*'Distances for Transit Losses'!$C$38 -> 0 | KM13: 0 | KN13: 0 | KO13: 0 | KP13: 0 | KQ13: 0 | KR13: 0 | KS13: 0 | KT13: 0 | KU13: 0 | KV13: 0 | KW13: 0 | KX13: 0 | KY13: =-KX13*0.5/100*'Distances for Transit Losses'!$C$141 -> 0 | KZ13: 0 | LA13: 0 | LB13: 0 | LC13: 0 | LD13: =-(IF(F13<99999.99999,INDEX('Hist RF to SPR'!$B$6:$M$30,MATCH($B$2,'Hist RF to SPR'!$A$6:$A$30,0),MATCH($A13,'Hist RF to SPR'!$B$5:$M$5,0))/AMA13/1.9835,0)) -> -0.0192909467 | LE13: ='Joint Aug Station Deliveries'!CG13 -> 0 | LF13: =IF(AND(LE13>0,SUM($KB$9:KB13,$KD$9:KD13,$LE$9:LE13)*1.9835<OFFSET('FIDCO Credit'!$X$39,0,MATCH($A13,'FIDCO Credit'!$Y$5:$AJ$5,0))),LE13-JB13,0) -> 0 | LG13: 0 | LH13: no | LI13: 0 | LJ13: 0 | LK13: 0 | LL13: -0.0192909467 | LM13: 0 | LN13: =IF(LM13>0,MIN(-LL13/(1-0.5/100*'Distances for Transit Losses'!$C$135),LM13),0) -> 0 | LO13: =-LN13*0.5/100*'Distances for Transit Losses'!$C$135 -> 0 | LP13: 0 | LQ13: 0.44 | LR13: =-LQ13*0.5/100*'Distances for Transit Losses'!$C$86 -> -0.00066 | LS13: =IF((LQ13+LR13)>0,MIN((-LL13-(LN13-LO13)-LP13)/(1-0.5/100*'Distances for Transit Losses'!$C$137),(LQ13+LR13)),0) -> 0.02189664779 | LT13: =-LS13*0.5/100*'Distances for Transit Losses'!$C$137 -> -0.002605701086 | LU13: 0 | LW13: -0.00066 | LX13: 0 | LY13: 0 | LZ13: 0 | MA13: 0 | MB13: 0 | MC13: 0 | MD13: 0 | ME13: =-MD13*0.5/100*'Distances for Transit Losses'!$C$139 -> 0 | MF13: 0 | MG13: 0 | MH13: 0 | MI13: =-(IF(N13<99999.99999,(VLOOKUP(B13,'ECCV Upper Dpln'!$B$7:$BD$306,55))/AMA13/1.9835,0)) -> -4.258586602 | MJ13: =-(IF(N13<99999.99999,INDEX('Hist RF abv Milton'!$B$6:$M$30,MATCH($B$2,'Hist RF abv Milton'!$A$6:$A$30,0),MATCH($A13,'Hist RF abv Milton'!$B$5:$M$5,0))/AMA13/1.9835,0)) -> -0.01407697074 | MK13: 0 | ML13: =(VLOOKUP($B13,'ECCV Beebe Pond Acrtns'!$B$7:$BI$1206,41)+VLOOKUP($B13,'ECCV Canal Acrtns'!$B$7:$AL$1206,22)+VLOOKUP($B13,'2003 Beebe Pond Acrtns'!$B$7:$BI$1206,41)+VLOOKUP($B13,'2003 Canal Acrtns'!$B$7:$AL$1206,22))/$AMA13/1.9835 -> 1.135489872 | MM13: 0 | MN13: 0 | MO13: 0 | MP13: 0 | MQ13: 0.56129737 | MR13: 0 | MS13: 1.135489872 | MT13: 0 | MU13: no | MV13: 0 | MW13: 0 | MX13: 0 | MY13: 0.01407697074 | MZ13: 1.60185911 | NA13: 0 | NB13: 0 | NC13: -1.52123762 | ND13: 0 | NE13: 0 | NF13: =-(NE13*0.5/100*'Distances for Transit Losses'!$C$6) -> 0 | NG13: 0 | NH13: 0 | NI13: 0 | NJ13: =IF(AND(E13<>"Lower Latham",I13<>"Lower Latham"),MAX(0,MIN(-(ND13+NG13),KC13-KC13*0.25/100*'Distances for Transit Losses'!$C$99),0)) -> 0 | NK13: =IF(AND(E13<>"Lower Latham",I13<>"Lower Latham"),MAX(0,MIN(-(NC13+NE13+NF13+NI13),KC13-KC13*0.5/100*'Distances for Transit Losses'!$C$99-NJ13/(1-0.5/100*'Distances for Transit Losses'!$C$99))),0) -> 0 | NL13: =MIN(-(ND13+NJ13),KA13-KA13*0.5/100*'Distances for Transit Losses'!$C$95) -> 0 | NM13: =MAX(0,MIN(-(NC13+NE13+NF13+NK13),KA13*(1-0.5/100*'Distances for Transit Losses'!$C$95)-NL13/(1-0.5/100*'Distances for Transit Losses'!$C$95))) -> 0.1203611966 | NN13: =MIN(NM13/(1-0.5/100*'Distances for Transit Losses'!$C$95),(IA13-JD13)) -> 0.1308985281 | NO13: =MAX(0,IF(AND(JT13-JU13-LP13-GU13>0,GH13="no"),MIN(-(NC13+NE13+NF13+NI13+NK13+NM13+NN13)/(1-0.5/100*'Distances for Transit Losses'!$C$105),JT13-JU13-LP13-GU13),0)) -> 0 | NP13: =-NO13*0.5/100*'Distances for Transit Losses'!$C$105 -> 0 | NQ13: 0.58 | NR13: Lease of South Adams 5k Credits | NS13: -0.8208764229 | NT13: 0 | NU13: 0 | NV13: 0 | NW13: 0 | NX13: =-(IF(N13<99999.99999,INDEX('Hist RF blw Milton'!$B$6:$M$30,MATCH($B$2,'Hist RF blw Milton'!$A$6:$A$30,0),MATCH($A13,'Hist RF blw Milton'!$B$5:$M$5,0))/AMA13/1.9835,0)) -> -0.02248984129 | NY13: no | NZ13: 0 | OA13: 0 | OB13: -0.02248984129 | OC13: 0 | OD13: ='Distances for Transit Losses'!$C$12*0.5/100*OC13 -> 0 | OE13: 0 | OG13: 0 | OH13: 0 | OI13: 0 | OJ13: 0 | OK13: 0 | OL13: =-(IF(N13<99999.99999,INDEX('Hist RF to Box Elder'!$B$6:$M$30,MATCH($B$2,'Hist RF to Box Elder'!$A$6:$A$30,0),MATCH($A13,'Hist RF to Box Elder'!$B$5:$M$5,0))/AMA13/1.9835,0)) -> -0.01346302756 | OM13: =(VLOOKUP($B13,'ECCV Beebe Pond Acrtns'!$B$7:$BI$1206,54)+VLOOKUP($B13,'ECCV Canal Acrtns'!$B$7:$AL$1206,34)+VLOOKUP($B13,'2003 Beebe Pond Acrtns'!$B$7:$BI$1206,54)+VLOOKUP($B13,'2003 Canal Acrtns'!$B$7:$AL$1206,34)+VLOOKUP($B13,'84CW090 Beebe Pond Acrtns'!$B$7:$BI$1206,55)+VLOOKUP($B13,'84CW090 Canal Acrtns'!$B$7:$AL$1206,34))/$AMA13/1.9835 -> 0.09220421947 | ON13: 0.01346302756 | OO13: 0 | OP13: 0 | OQ13: 0 | OS13: -5.623546357 | OT13: 3.451787149 | OU13: 0 | OV13: 0.01346302756 | OW13: 0.0192909467 | OX13: 0.1113599682 | OY13: 0 | OZ13: 0 | PA13: 0.02535763361 | PB13: 0.2355596909 | PC13: 3.856818416 | PD13: -1.766727941 | PE13: 0 | PF13: 0 | PG13: 0 | PO13: 0 | PP13: 0 | PR13: 0 | PS13: 0 | PT13: 0 | PU13: 0 | PV13: 0 | PW13: 0 | PX13: 0 | PY13: 0 | PZ13: 0 | QA13: 0 | QB13: 0 | QC13: 0 | QD13: 0 | QE13: 0 | QF13: 0 | QH13: 0 | QI13: 0 | QJ13: 0 | QK13: 0 | QL13: 0 | QM13: 0 | QN13: 0 | QO13: 0 | QP13: 0 | QQ13: 0 | QR13: 0 | QT13: 0 | QU13: 0 | QV13: 0 | QW13: 0 | QX13: 0 | QY13: 0 | QZ13: 0 | RA13: 0 | RB13: 0 | RC13: 0 | RD13: 0 | RE13: 0 | RF13: 0 | RG13: 0 | RH13: 0 | RI13: 0 | RJ13: 0 | RK13: 0 | RL13: 0 | RM13: 0 | RN13: 0 | RO13: 0 | RQ13: 0 | RR13: 0 | RS13: 0 | RT13: 0 | RU13: 0 | RV13: 0 | RW13: 0 | RX13: 0 | RY13: 0 | RZ13: 0 | SA13: 0 | SB13: 0 | SC13: 0 | SD13: 0 | SE13: 0 | SF13: 0 | SG13: 0 | SH13: 0 | SI13: 0 | SJ13: 0 | SK13: 0 | SL13: 0 | SM13: 0 | SN13: 0 | SO13: 0 | SP13: 0 | SQ13: 0 | SR13: 0 | SS13: 0 | ST13: 0 | SU13: 0 | SV13: 0 | SW13: 0 | SX13: 0 | SY13: 0 | SZ13: 0 | TA13: 0 | TB13: 0 | TC13: 0 | TD13: 0 | TE13: 0 | TF13: 0 | TG13: 0 | TI13: 0 | TJ13: 0 | TK13: 0 | TL13: 0 | TM13: 0 | TN13: 0 | TO13: 0 | TP13: 0 | TQ13: 0 | TR13: 0 | TS13: 0 | TT13: 0 | TU13: 0 | TV13: 0 | TW13: 0 | TX13: 0 | TY13: 0 | TZ13: 0 | UA13: 0 | UB13: 0 | UC13: 0 | UD13: 0 | UE13: 0 | UF13: 0 | UG13: 0 | UH13: 0 | UI13: 0 | UJ13: 0 | UK13: 0 | UL13: 0 | UM13: 0 | UN13: 0 | UO13: 0 | UP13: 0 | UQ13: 0 | UR13: 0 | US13: 0 | UT13: 0 | UU13: 0 | UV13: 0 | UW13: 0 | UX13: 0 | UY13: 0 | UZ13: 0 | VA13: 0 | VB13: 0 | VC13: 0 | VD13: 0 | VE13: 0 | VF13: 0 | VG13: 0 | VH13: 0 | VI13: 0 | VJ13: 0 | VK13: 0 | VL13: 0 | VM13: 0 | VN13: 0 | VO13: 0 | VP13: 0 | VQ13: 0 | VR13: 0 | VS13: 0 | VT13: 0 | VU13: 0 | VV13: 0 | VW13: 0 | VX13: 0 | VY13: 0 | VZ13: 0 | WA13: 0 | WB13: 0 | WC13: 0 | WD13: 0 | WE13: 0 | WF13: 0 | WG13: 0 | WH13: 0 | WI13: 0 | WJ13: 0 | WK13: 0 | WL13: 0 | WM13: 0 | WN13: 0 | WO13: 0 | WP13: 0 | WQ13: 0 | WR13: 0 | WS13: 0 | WT13: 0 | WU13: 0 | WV13: 0 | WW13: 0 | WX13: 0 | WY13: 0 | WZ13: 0 | XA13: 0 | XB13: 0 | XC13: 0 | XD13: 0 | XE13: 0 | XF13: 0 | XG13: 0 | XH13: 0 | XI13: 0 | XJ13: 0 | XK13: 0 | XL13: 0 | XM13: 0 | XN13: 0 | XO13: 0 | XP13: 0 | XQ13: 0 | XR13: 0 | XS13: 0 | XT13: 0 | XU13: 0 | XV13: 0 | XW13: 0 | XX13: 0 | XY13: 0 | XZ13: 0 | YA13: 0 | YB13: 0 | YC13: 0 | YE13: 0 | YF13: 0 | YG13: 0 | YH13: 0 | YI13: 0 | YJ13: 0 | YK13: 0 | YL13: 0 | YM13: 0 | YN13: 0 | YO13: 0 | YP13: 0 | YQ13: 0 | YS13: 0 | YT13: 0 | YU13: 0 | YV13: 0 | YW13: 0 | YX13: 0 | YY13: 0 | YZ13: 0 | ZB13: 0 | ZC13: 0 | ZD13: 0 | ZE13: 0 | ZF13: 0 | ZG13: 0 | ZH13: 0 | ZI13: 0 | ZJ13: 0 | ZK13: 0 | ZL13: 0 | ZM13: 0 | ZN13: 0 | ZO13: 0 | ZP13: 0 | ZQ13: 0 | ZR13: 0 | ZS13: 0 | ZT13: 0 | ZU13: 0 | ZV13: 0 | ZW13: 0 | ZX13: 0 | ZY13: 0 | ZZ13: 0 | AAA13: 0 | AAB13: 0 | AAC13: 0 | AAD13: 0 | AAE13: 0 | AAF13: 0 | AAG13: 0 | AAH13: 0 | AAI13: 0 | AAJ13: 0 | AAK13: 0 | AAL13: 0 | AAM13: 0 | AAN13: 0 | AAO13: 0 | AAP13: 0 | AAQ13: 0 | AAR13: 0 | AAS13: 0 | AAT13: 0 | AAU13: 0 | AAV13: 0 | AAW13: 0 | AAX13: 0 | AAY13: 0 | AAZ13: 0 | ABA13: 0 | ABB13: 0 | ABC13: 0 | ABD13: 0 | ABE13: 0 | ABF13: 0 | ABG13: 0 | ABH13: 0 | ABI13: 0 | ABJ13: 0 | ABK13: 0 | ABL13: 0 | ABM13: 0 | ABN13: 0 | ABO13: 0 | ABP13: 0 | ABQ13: 0 | ABR13: 0 | ABS13: 0 | ABT13: 0 | ABU13: 0 | ABV13: 0 | ABW13: 0 | ABX13: 0 | ABY13: 0 | ABZ13: 0 | ACA13: 0 | ACB13: 0 | ACD13: 0 | ACE13: 0 | ACF13: 0 | ACG13: 0 | ACH13: 0 | ACI13: 0 | ACJ13: 0 | ACL13: 0 | ACM13: 0 | ACN13: 0 | ACO13: 0 | ACP13: 0 | ACQ13: 0 | ACR13: 0 | ACS13: 0 | ACT13: 0 | ACU13: 0 | ACV13: 0 | ACW13: 0 | ACX13: 0 | ACZ13: 0 | ADA13: 0 | ADB13: 0 | ADC13: 0 | ADD13: 0 | ADE13: 0 | ADF13: 0 | ADG13: 0 | ADH13: 0 | ADI13: 0 | ADJ13: 0 | ADK13: 0 | ADL13: 0 | ADM13: 0 | ADN13: 0 | ADO13: 0 | ADP13: 0 | ADQ13: 0 | ADR13: 0 | ADS13: 0 | ADT13: 0 | ADU13: 0 | ADV13: 0 | ADW13: 0 | ADX13: 0 | ADY13: 0 | ADZ13: 0 | AEA13: 0 | AEB13: 0 | AEC13: 0 | AED13: 0 | AEE13: 0 | AEF13: 0 | AEG13: 0 | AEH13: 0 | AEI13: 0 | AEJ13: 0 | AEK13: 0 | AEL13: 0 | AEN13: 0 | AEO13: 0 | AEP13: 0 | AER13: 0 | AES13: 0 | AET13: 0 | AEU13: 0 | AEV13: 0 | AEW13: 0 | AEX13: 0 | AEZ13: 0 | AFA13: 0 | AFB13: 0 | AFC13: 0 | AFD13: 0 | AFE13: 0 | AFF13: 0 | AFG13: 0 | AFH13: 0 | AFI13: 0 | AFJ13: 0 | AFK13: 0 | AFL13: 0 | AFM13: 0 | AFN13: 0 | AFO13: 0 | AFP13: 0 | AFQ13: 0 | AFR13: 0 | AFS13: 0 | AFT13: 0 | AFU13: 0 | AFV13: 0 | AFW13: 0 | AFX13: 0 | AFY13: 0 | AFZ13: 0 | AGA13: 0 | AGB13: 0 | AGC13: 0 | AGD13: 0 | AGE13: 0 | AGF13: 0 | AGG13: 0 | AGH13: 0 | AGI13: 0 | AGJ13: 0 | AGK13: 0 | AGL13: 0 | AGM13: 0 | AGN13: 0 | AGO13: 0 | AGP13: 0 | AGQ13: 0 | AGR13: 0 | AGS13: 0 | AGT13: 0 | AGU13: 0 | AGV13: 0 | AGW13: 0 | AGX13: 0 | AGY13: 0 | AGZ13: 0 | AHA13: 0 | AHB13: 0 | AHC13: 0 | AHD13: 0 | AHE13: 0 | AHF13: 0 | AHG13: 0 | AHH13: 0 | AHI13: 0 | AHJ13: 0 | AHK13: 0 | AHL13: 0 | AHM13: 0 | AHN13: 0 | AHO13: 0 | AHP13: 0 | AHQ13: 0 | AHR13: 0 | AHS13: 0 | AHT13: 0 | AHU13: 0 | AHV13: 0 | AHW13: 0 | AHX13: 0 | AHY13: 0 | AHZ13: 0 | AIA13: 0 | AIB13: 0 | AIC13: 0 | AID13: 0 | AIE13: 0 | AIF13: 0 | AIG13: 0 | AIH13: 0 | AII13: 0 | AIJ13: 0 | AIK13: 0 | AIL13: 0 | AIM13: 0 | AIN13: 0 | AIO13: 0 | AIP13: 0 | AIQ13: 0 | AIR13: 0 | AIS13: 0 | AIT13: 0 | AIU13: 0 | AIV13: 0 | AIW13: 0 | AIX13: 0 | AIY13: 0 | AIZ13: 0 | AJA13: 0 | AJB13: 0 | AJC13: 0 | AJD13: 0 | AJE13: 0 | AJF13: 0 | AJG13: 0 | AJH13: 0 | AJI13: 0 | AJJ13: 0 | AJK13: 0 | AJL13: 0 | AJM13: 0 | AJN13: 0 | AJO13: 0 | AJP13: 0 | AJQ13: 0 | AJR13: 0 | AJS13: 0 | AJT13: 0 | AJU13: 0 | AJV13: 0 | AJW13: 0 | AJX13: 0 | AJY13: 0 | AJZ13: 0 | AKA13: 0 | AKB13: 0 | AKC13: 0 | AKD13: 0 | AKE13: 0 | AKF13: 0 | AKG13: 0 | AKH13: 0 | AKI13: 0 | AKJ13: 0 | AKK13: 0 | AKL13: 0 | AKM13: 0 | AKN13: 0 | AKO13: 0 | AKP13: 0 | AKQ13: 0 | AKR13: 0 | AKS13: 0 | AKT13: 0 | AKU13: 0 | AKV13: 0 | AKW13: 309.6 | AKY13: 0 | AKZ13: 0 | ALA13: 0 | ALB13: 0 | ALC13: 0 | ALD13: 0 | ALE13: 0 | ALF13: 0 | ALG13: 0 | ALH13: 0 | ALI13: 0 | ALJ13: 0 | ALK13: 0 | ALL13: 0 | ALM13: 0 | ALN13: 0 | ALO13: 0 | ALP13: 0 | ALQ13: 0 | ALR13: 0 | ALS13: 0 | ALT13: TRUE | ALU13: TRUE | ALV13: TRUE | ALX13: 0 | ALY13: 0 | AMA13: =VLOOKUP(A13,'Control Sheet'!$G$9:$H$20,2) -> 30
A14: Apr | B14: 2019-04-06 | C14: Burlington D River HG | D14: 1911-03-17 | E14: Burlington D River HG | F14: 22355 | AA14: 0 | AB14: 0 | AC14: 0 | AD14: 0 | AF14: 0 | AG14: =('NFC Well Pumping'!$L12+'NFC Well Pumping'!$L49+'NFC Well Pumping'!$L85)/1.9835 -> 0 | AH14: ='88CW264(B) Pumping'!$E12/1.9835+'88CW264(B) Pumping'!$E48/1.9835+'88CW264(B) Pumping'!E88/1.9835+'88CW264(B) Pumping'!E124/1.9835+'88CW264(B) Pumping'!E164/1.9835+'88CW264(B) Pumping'!E200/1.9835 -> 0.008339451787 | AI14: 0 | AJ14: =('United No. 2 Well Pumping'!G13+'United No. 2 Well Pumping'!G49+'United No. 2 Well Pumping'!G85)/1.9835 -> 0 | AK14: =('United No. 2 Well Pumping'!F13+'United No. 2 Well Pumping'!F49+'United No. 2 Well Pumping'!F85)/1.9835 -> 0 | AL14: 0 | AN14: 0.008339451787 | AO14: =AC14+AK14+'United Res'!AA176+'United Res'!AQ176+'Milliken Res'!J164 -> 0 | AP14: 100 | AQ14: =-(IF($N14=99999.99999,0,VLOOKUP($B14,'NFC Well Dplns-URF'!B$7:$AB$306,27))/$AMA14/1.9835) -> -0.005586020147 | AR14: 0 | AT14: =(VLOOKUP($B14,'ECCV 70R Pond Acrtns'!$B$7:$AI$1206,34)+VLOOKUP($B14,'2003 70R Pond Acrtns'!$B$7:$AI$1206,34)+VLOOKUP($B14,'ECCV 70R Canal Acrtns'!$B$7:$AI$1206,27)+VLOOKUP($B14,'2003 70R Canal Acrtns'!$B$7:$AI$1206,27))/$AMA14/1.9835 -> 0 | AU14: -0.005586020147 | AV14: =-(IF($N14=99999.99999,0,VLOOKUP($B14,'NFC Well Dplns-SDF'!$B$7:$Z$306,25)+VLOOKUP($B14,'NFC Well Dplns-URF'!B$7:$AB$306,20))/$AMA14/1.9835) -> -0.1028154558 | AW14: 0 | AX14: 0.07 | AY14: ECCV Riverside Credits | AZ14: =-((BL14+BM14)*'Weldon Credit'!$BB$36) -> 0 | BA14: =-((BL14+BM14)*'Weldon Credit'!$BB$34) -> 0 | BB14: =-INDEX('Weldon Credit'!$AX$249:$BJ$276,MATCH($B$2,'Weldon Credit'!$AX$249:$AX$276,0),MATCH(A14,'Weldon Credit'!$AX$249:$BJ$249,0))/AMA14/1.9835 -> -0.009784592734 | BC14: -0.009784592734 | BD14: =-((BL14+BM14)*'Weldon Credit'!$BB$37) -> 0 | BE14: =-((BL14+BM14)*'Weldon Credit'!$BB$35) -> 0 | BF14: =-INDEX('Weldon Credit'!$AX$281:$BJ$308,MATCH($B$2,'Weldon Credit'!$AX$281:$AX$308,0),MATCH(A14,'Weldon Credit'!$AX$281:$BJ$281,0))/AMA14/1.9835 -> -0.1557750982 | BG14: -0.1557750982 | BH14: =-(BL14+BM14)*'Weldon Credit'!$BB$38 -> 0 | BI14: =0.4*(INDEX('Riverside Pond Accrtns'!$B$6:$M$36,MATCH($B$2,'Riverside Pond Accrtns'!$A$6:$A$36,0),MATCH('ECCV Daily Replacement Summary'!A14,'Riverside Pond Accrtns'!$B$5:$M$5,0))/AMA14)/1.9835 -> 1.357862365 | BJ14: =(44/640)*(INDEX('Weldon Valley Accrtns (02CW377)'!$B$6:$M$36,MATCH($B$2,'Weldon Valley Accrtns (02CW377)'!$A$6:$A$36,0),MATCH(A14,'Weldon Valley Accrtns (02CW377)'!$B$5:$M$5,0))/AMA14)/1.9835 -> 0.205705823 | BK14: =(VLOOKUP($B14,'ECCV 70R Pond Acrtns'!$B$7:$AI$1206,25)+VLOOKUP($B14,'ECCV 70R Canal Acrtns'!$B$7:$AI$1206,20)+VLOOKUP($B14,'2003 70R Pond Acrtns'!$B$7:$AI$1206,25)+VLOOKUP($B14,'2003 70R Canal Acrtns'!$B$7:$AI$1206,20))/$AMA14/1.9835 -> 0 | BL14: ='Joint Aug Station Deliveries'!G14 -> 0 | BM14: ='Joint Aug Station Deliveries'!H14 -> 0 | BN14: 0 | BO14: 0 | BP14: =IF(CD14="no",-MAX(0,MIN(BO14,(BM14-BL14))*(0.5/100*'Distances for Transit Losses'!$C$91)),0) -> 0 | BQ14: 0 | BR14: =MIN(-($BC14+BG14+BH14+BN14+BO14+BP14),BI14-BI14*0.5/100*'Distances for Transit Losses'!$C$93) -> 0.1655596909 | BS14: 0 | BT14: =MIN(-($BC14+BG14+BH14+BN14+BO14+BP14+BR14+BS14),BK14-BK14*0.5/100*'Distances for Transit Losses'!$C$93) -> 0 | BU14: =-((BR14+BT14)*(0.5/100*'Distances for Transit Losses'!$C$93)) -> -0.01763210708 | BV14: 0 | BW14: =--BV14*0.5/100*'Distances for Transit Losses'!C$117 -> 0 | BX14: 0 | BY14: =--BX14*0.5/100*'Distances for Transit Losses'!$C$119 -> 0 | BZ14: 0 | CA14: =-BZ14*0.5/100*'Distances for Transit Losses'!$C$115 -> 0 | CB14: 0 | CD14: no | CE14: no | CF14: no | CG14: 0 | CH14: 0 | CI14: 0 | CK14: =IF($CF14="No",MIN(IF(-DR14<0,0,-DR14),BI14-BR14/(1-0.5/100*'Distances for Transit Losses'!$C$93)),0) -> 0.02535763361 | CL14: =IF($CF14="No",IF(MIN(-(DR14+CK14),BK14-BT14/(1-0.5/100*'Distances for Transit Losses'!$C$93))<0,0,MIN(-(DR14+CK14),BK14-BT14/(1-0.5/100*'Distances for Transit Losses'!$C$93))),0) -> 0 | CM14: 0 | CN14: 0 | CO14: 0 | CP14: -0.2683751467 | CQ14: 1.61593608 | CR14: =-(IF($N14=99999.99999,0,VLOOKUP($B14,'NFC Well Dplns-SDF'!$B$7:$Z$306,16)+VLOOKUP($B14,'NFC Well Dplns-URF'!$B$7:$AB$306,13))/$AMA14/1.9835) -> -0.8829552079 | CS14: =-(IF($N14>=99999,0,'88CW264(B) Pumping'!$E12/1.9835)+IF($N14>=99999,0,'88CW264(B) Pumping'!$E48/1.9835)+IF($N14>=99999,0,'88CW264(B) Pumping'!$E88/1.9835)+IF($N14>=99999,0,'88CW264(B) Pumping'!$E124/1.9835)+IF($N14>=51134.50919,0,'88CW264(B) Pumping'!$E164/1.9835)+IF($N14>=53406,0,'88CW264(B) Pumping'!$E200/1.9835)) -> -0.008339451787 | CT14: -0.8912946597 | CU14: 0.69 | CV14: 0 | CX14: =-(IF($N14=99999.99999,0,VLOOKUP($B14,'United No. 2 Dplns'!$B$7:$X$676,13)/1.9835)) -> 0 | CY14: =CX14+(-(INDEX('Pre 1995 Net Accretions'!$B$6:$M$105,MATCH($B$2,'Pre 1995 Net Accretions'!$A$6:$A$105,0),MATCH($A14,'Pre 1995 Net Accretions'!$B$5:$M$5,0))/$AMA14/1.9835)) -> 0.02746354924 | CZ14: =-(IF(N14<99999.99999,(INDEX('70 Ranch RF Obligation'!$B$6:$M$36,MATCH($B$2,'70 Ranch RF Obligation'!$A$6:$A$36,0),MATCH('ECCV Daily Replacement Summary'!A14,'70 Ranch RF Obligation'!$B$5:$M$5,0))/AMA14)/1.9835,0))-DC14*(1-'L. Latham Credit'!$E$41) -> -0.05282118285 | DA14: -0.02535763361 | DB14: =(VLOOKUP($B14,'ECCV 70R Pond Acrtns'!$B$7:$AI$1206,16)+VLOOKUP($B14,'ECCV 70R Canal Acrtns'!$B$7:$AI$1206,13)+VLOOKUP($B14,'2003 70R Pond Acrtns'!$B$7:$AI$1206,16)+VLOOKUP($B14,'2003 70R Canal Acrtns'!$B$7:$AI$1206,13))/$AMA14/1.9835 -> 0 | DC14: ='Joint Aug Station Deliveries'!DQ14 -> 0 | DD14: 0 | DE14: 0 | DF14: ='Joint Aug Station Deliveries'!DT14 -> 0 | DG14: 0 | DH14: 0 | DI14: 0 | DK14: 0 | DL14: 0 | DM14: 0 | DN14: =-DM14*0.5/100*'Distances for Transit Losses'!$C$52 -> 0 | DO14: 0 | DP14: 0 | DQ14: 0 | DR14: -0.02535763361 | DS14: 0.02535763361 | DT14: 0 | DU14: 0 | DV14: =('NFC Well Pumping'!I12+'NFC Well Pumping'!I49+'NFC Well Pumping'!I85)/1.9835 -> 0 | DW14: 0 | DX14: =-DW14*0.5/100*'Distances for Transit Losses'!C$121 -> 0 | DY14: 0 | DZ14: =-DY14*0.5/100*'Distances for Transit Losses'!$C$145 -> 0 | EA14: 0 | EB14: =--EA14*0.5/100*'Distances for Transit Losses'!$C$123 -> 0 | EC14: 0 | ED14: 0 | EE14: =IF('Joint Aug Station Deliveries'!R14="Yes",'Joint Aug Station Deliveries'!P14,0) -> 0 | EF14: ='Joint Aug Station Deliveries'!T14 -> 0 | EG14: =IF('Joint Aug Station Deliveries'!Z14="Yes",'Joint Aug Station Deliveries'!X14,0) -> 0 | EH14: =-(EG14*0.5/100*'Distances for Transit Losses'!$C$234) -> 0 | EI14: =IF('Joint Aug Station Deliveries'!AD14="Yes",'Joint Aug Station Deliveries'!AB14,0) -> 0 | EJ14: =-(EI14*0.5/100*'Distances for Transit Losses'!$C$266) -> 0 | EK14: 0 | EL14: =-(EK14*0.5/100*'Distances for Transit Losses'!$C$256) -> 0 | EM14: no | EN14: =IF('Joint Aug Station Deliveries'!AH14="Yes",'Joint Aug Station Deliveries'!AF14,0) -> 0 | EO14: =-(EN14*0.5/100*'Distances for Transit Losses'!$C$268) -> 0 | EP14: =IF('Joint Aug Station Deliveries'!AL14="Yes",'Joint Aug Station Deliveries'!AJ14,0) -> 0 | EQ14: =-(EP14*0.5/100*'Distances for Transit Losses'!$C$270) -> 0 | ER14: =IF('Joint Aug Station Deliveries'!AP14="Yes",'Joint Aug Station Deliveries'!AN14,0) -> 0 | ES14: =-(ER14*0.5/100*'Distances for Transit Losses'!$C$272) -> 0 | ET14: =-0.25*(INDEX('GIC Credit'!$B$85:$M$116,MATCH($B$2,'GIC Credit'!$A$85:$A$116,0),MATCH($A14,'GIC Credit'!$B$85:$M$85,0))/$AMA14/1.9835+FN14*'GIC Credit'!$Z$39+FO14*'GIC Credit'!$AO$39) -> -0.00014 | EU14: -0.00014 | EV14: ='Joint Aug Station Deliveries'!DI14 -> 0 | EW14: =-(EV14*0.5/100*'Distances for Transit Losses'!$C$262) -> 0 | EX14: ='Joint Aug Station Deliveries'!DJ14 -> 0 | EY14: =-(EX14*0.5/100*'Distances for Transit Losses'!$C$264) -> 0 | EZ14: 0 | FB14: no | FC14: -0.00014 | FD14: =-0.39*(INDEX('GIC Credit'!$B$85:$M$116,MATCH($B$2,'GIC Credit'!$A$85:$A$116,0),MATCH($A14,'GIC Credit'!$B$85:$M$85,0))/$AMA14/1.9835+FN14*'GIC Credit'!$Z$39+FO14*'GIC Credit'!$AO$39) -> -0.0002184 | FE14: 0 | FF14: =-(FE14*0.5/100*('Distances for Transit Losses'!$C$238+'Distances for Transit Losses'!$C$244)) -> 0 | FG14: =IF('Joint Aug Station Deliveries'!AT14="Yes",'Joint Aug Station Deliveries'!AR14,0) -> 0 | FH14: =-(FG14*0.5/100*('Distances for Transit Losses'!$C$240+'Distances for Transit Losses'!$C$242)) -> 0 | FI14: =IF('Joint Aug Station Deliveries'!AX14="Yes",'Joint Aug Station Deliveries'!AV14,0) -> 0 | FJ14: =-(FI14*0.5/100*'Distances for Transit Losses'!$C$242) -> 0 | FK14: ='Joint Aug Station Deliveries'!DK14 -> 0 | FL14: =-(FK14*0.5/100*'Distances for Transit Losses'!$C$248) -> 0 | FM14: 0 | FN14: ='Joint Aug Station Deliveries'!DM14 -> 0 | FO14: ='Joint Aug Station Deliveries'!DN14 -> 0 | FP14: =MIN(0,FC14)+SUM(FD14:FF14)+EE14/(1-0.5/100*('Distances for Transit Losses'!$C$274+'Distances for Transit Losses'!$C$286))+EF14/(1-0.5/100*('Distances for Transit Losses'!$C$260))+SUM(EG14:EH14)/(1-0.5/100*('Distances for Transit Losses'!$C$276+'Distances for Transit Losses'!$C$286))+SUM(EI14:EJ14)/(1-0.5/100*('Distances for Transit Losses'!$C$278+'Distances for Transit Losses'!$C$286))+EK14/(1-0.5/100*('Distances for Transit Losses'!$C$260))+SUM(EN14:EO14)/(1-0.5/100*('Distances for Transit Losses'!$C$280+'Distances for Transit Losses'!$C$288))+SUM(EP14:EQ14)/(1-0.5/100*('Distances for Transit Losses'!$C$282+'Distances for Transit Losses'!$C$288))+SUM(ER14:ES14)/(1-0.5/100*('Distances for Transit Losses'!$C$284+'Distances for Transit Losses'!$C$288))+SUM(FG14:FJ14)/(1-0.5/100*('Distances for Transit Losses'!$C$244))+SUM(FK14:FL14) -> -0.0003584 | FQ14: =-(IF(N14<99999.99999,INDEX('Hist RF to SPR'!$AF$6:$AQ$30,MATCH($B$2,'Hist RF to SPR'!$AE$6:$AE$30,0),MATCH($A14,'Hist RF to SPR'!$AF$5:$AQ$5,0))/AMA14/1.9835,0)) -> -0.0002698345146 | FR14: =IF(N14<99999.99999,-INDEX('New Cache Credit'!$BO$109:$CA$136,MATCH($B$2,'New Cache Credit'!$BO$109:$BO$136,0),MATCH(A14,'New Cache Credit'!$BO$109:$CA$109,0))/AMA14/1.9835-INDEX('New Cache Credit'!$CD$77:$CP$104,MATCH($B$2,'New Cache Credit'!$CD$77:$CD$104,0),MATCH(A14,'New Cache Credit'!$CD$77:$CP$77,0))/AMA14/1.9835,0) -> -0.0008755433333 | FS14: =-0.36*(INDEX('GIC Credit'!$B$85:$M$116,MATCH($B$2,'GIC Credit'!$A$85:$A$116,0),MATCH($A14,'GIC Credit'!$B$85:$M$85,0))/$AMA14/1.9835+FN14*'GIC Credit'!$Z$39+FO14*'GIC Credit'!$AO$39) -> -0.0002016 | FT14: -0.0003584 | FU14: -0.001705377848 | FV14: 0 | FW14: =IF('Joint Aug Station Deliveries'!BB14="Yes",'Joint Aug Station Deliveries'!AZ14,0) -> 0 | FX14: =-(FW14*0.5/100*'Distances for Transit Losses'!$C$226) -> 0 | FY14: =IF('Joint Aug Station Deliveries'!BF14="Yes",'Joint Aug Station Deliveries'!BD14,0) -> 0 | FZ14: =-(FY14*0.5/100*'Distances for Transit Losses'!$C$228) -> 0 | GA14: =IF('Joint Aug Station Deliveries'!BJ14,'Joint Aug Station Deliveries'!BH14,0) -> 0 | GB14: =-(GA14*0.5/100*'Distances for Transit Losses'!$C$230) -> 0 | GC14: =IF('Joint Aug Station Deliveries'!BN14="Yes",'Joint Aug Station Deliveries'!BL14,0) -> 0 | GD14: =-(GC14*0.5/100*'Distances for Transit Losses'!$C$218) -> 0 | GE14: =IF('Joint Aug Station Deliveries'!BR14="Yes",'Joint Aug Station Deliveries'!BP14,0) -> 0 | GF14: =-(GE14*0.5/100*'Distances for Transit Losses'!$C$224) -> 0 | GG14: =MIN(-FU14-FV14,SUM(FW14:FX14)/(1-0.5/100*('Distances for Transit Losses'!$C$292))+SUM(FY14:FZ14)/(1-0.5/100*('Distances for Transit Losses'!$C$294))+SUM(GA14:GB14)+SUM(GC14:GD14)+SUM(GE14:GF14)) -> 0 | GH14: no | GI14: 0 | GJ14: 0 | GK14: 0 | GM14: 0 | GN14: 0 | GO14: =IF(AND(LM14-LN14-JP14>0,LH14="no"),MIN(-(FU14+FV14+GG14+GM14+GN14)/(1-0.5/100*'Distances for Transit Losses'!$C$125),LM14-LN14-JP14),0) -> 0 | GP14: =-GO14*0.5/100*'Distances for Transit Losses'!$C$125 -> 0 | GQ14: 0 | GR14: 0 | GS14: 0 | GT14: =-GS14*0.5/100*'Distances for Transit Losses'!$C$143 -> 0 | GU14: =IF(AND(JT14-JU14-LP14>0,JF14="no"),MIN(-(FU14+FV14+GG14+GM14+GN14+GO14+GP14+GS14+GT14)/(1-0.5/100*'Distances for Transit Losses'!$C$127),JT14-JU14-LP14),0) -> 0 | GV14: =-GU14*0.5/100*'Distances for Transit Losses'!$C$133 -> 0 | GW14: 0 | GY14: 0 | GZ14: -0.001705377848 | HA14: 0 | HB14: 0 | HC14: 0 | HD14: =-(IF(N14<99999.99999,INDEX('Hist RF to SPR'!$Q$6:$AB$30,MATCH($B$2,'Hist RF to SPR'!$P$6:$P$30,0),MATCH($A14,'Hist RF to SPR'!$Q$5:$AB$5,0))/AMA14/1.9835,0)) -> -0.002812216867 | HE14: =-(IF(OR($N14<99999.99999,E14="Lower Latham",I14="Lower Latham",E14="Highland",I14="Highland",E14="Plum",I14="Plum"),(INDEX('FIDCO Credit'!$Y$48:$AJ$78,MATCH($B$2,'FIDCO Credit'!$X$48:$X$78,0),MATCH($A14,'FIDCO Credit'!$Y$47:$AJ$47,0))/$AMA14)/1.9835,0)) -> 0 | HF14: =-(IF(OR($N14<99999.99999,E14="Lower Latham",I14="Lower Latham",E14="Highland",I14="Highland",E14="Plum",I14="Plum",E14="Godfrey",I14="Godfrey",E14="Union",I14="Union"),(INDEX('Western Credit'!$AY$239:$BJ$269,MATCH($B$2,'Western Credit'!$AX$239:$AX$269,0),MATCH($A14,'Western Credit'!$AY$238:$BJ$238,0))/$AMA14)/1.9835)) -> -0.01059002452 | HG14: =-('Joint Aug Station Deliveries'!CK14+'Joint Aug Station Deliveries'!CN14+'Joint Aug Station Deliveries'!CQ14+'Joint Aug Station Deliveries'!CT14)*'Western Credit'!$BB$40 -> 0 | HH14: -0.01059002452 | HI14: =-(IF(OR($N14<99999.99999,E14="Lower Latham",I14="Lower Latham",E14="Highland",I14="Highland",E14="Plum",I14="Plum",E14="Godfrey",I14="Godfrey",E14="Union",I14="Union"),(INDEX('Western Credit'!$AY$276:$BJ$306,MATCH($B$2,'Western Credit'!$AX$276:$AX$306,0),MATCH($A14,'Western Credit'!$AY$275:$BJ$275,0))/$AMA14)/1.9835)) -> -0.008320733551 | HJ14: =-('Joint Aug Station Deliveries'!CK14+'Joint Aug Station Deliveries'!CN14+'Joint Aug Station Deliveries'!CQ14+'Joint Aug Station Deliveries'!CT14)*'Western Credit'!$BB$41 -> 0 | HK14: -0.008320733551 | HL14: =-(IF(OR($N14<99999.99999,E14="Lower Latham",I14="Lower Latham",E14="Highland",I14="Highland",E14="Plum",I14="Plum",E14="Godfrey",I14="Godfrey"),(INDEX('Western Credit'!$AY$313:$BJ$343,MATCH($B$2,'Western Credit'!$AX$313:$AX$343,0),MATCH($A14,'Western Credit'!$AY$312:$BJ$312,0))/$AMA14)/1.9835)) -> -0.01550682162 | HM14: =('Joint Aug Station Deliveries'!CK14+'Joint Aug Station Deliveries'!CN14+'Joint Aug Station Deliveries'!CQ14+'Joint Aug Station Deliveries'!CT14)*'Western Credit'!$BB$42 -> 0 | HN14: -0.01550682162 | HO14: =-(IF(OR($N14<99999.99999,E14="Lower Latham",I14="Lower Latham",E14="Highland",I14="Highland",E14="Plum",I14="Plum"),(INDEX('Western Credit'!$AY$350:$BJ$380,MATCH($B$2,'Western Credit'!$AX$350:$AX$380,0),MATCH($A14,'Western Credit'!$AY$349:$BJ$349,0))/$AMA14)/1.9835)) -> -0.07413017164 | HP14: =-('Joint Aug Station Deliveries'!CK14+'Joint Aug Station Deliveries'!CN14+'Joint Aug Station Deliveries'!CQ14+'Joint Aug Station Deliveries'!CT14)*'Western Credit'!$BB$43 -> 0 | HQ14: -0.07413017164 | HR14: ='Joint Aug Station Deliveries'!CK14 -> 0 | HS14: 0 | HT14: =-HS14*0.5/100*'Distances for Transit Losses'!$C$26 -> 0 | HU14: =MIN(VLOOKUP($B14,'ECCV Haren Pond Oxbow Acrtns'!$B$7:$G$306,6)/$AMA14/1.9835,-HK14) -> 0.008320733551 | HV14: 0 | HX14: 0 | HZ14: no | IA14: =VLOOKUP($B14,'ECCV Haren Pond S.P. Acrtns'!$B$7:$G$306,6)/$AMA14/1.9835 -> 0.2339377628 | IB14: 0 | ID14: no | IE14: =VLOOKUP($B14,'ECCV Strohauer S.P. Acrtns'!$B$7:$G$306,6)/$AMA14/1.9835 -> 0 | IF14: 0 | IH14: no | II14: 0.01059002452 | IJ14: 0 | IK14: 0 | IL14: 0 | IM14: 0.008320733551 | IN14: 0 | IO14: 0 | IP14: 0 | IQ14: =MAX(0,MIN(-HN14,IA14+IF(HZ14="No",HR14*(1-0.5/100*'Distances for Transit Losses'!$C$66),0)+IF(ID14="No",IE14,0)-II14-(MAX(0,IM14-HU14-HV14)))) -> 0.01550682162 | IR14: 0 | IS14: 0 | IT14: 0 | IU14: =MAX(0,MIN(-HQ14,IE14+IF(AND(HZ14="No",ID14="No"),HR14*(1-0.5/100*'Distances for Transit Losses'!$C$68),0)+IF(ID14="No",IA14*(1-0.5/100*'Distances for Transit Losses'!$C$70),0)-II14-(MAX(0,IM14-HU14-HV14))-IQ14)) -> 0.07413017164 | IV14: =MIN(-HQ14-IU14,(HS14-IJ14-IN14-IR14)*(1-0.5/100*'Distances for Transit Losses'!$C$72)) -> 0 | IW14: =MIN(-HQ14-IU14-IV14,(JU14-IK14-IO14-IS14)/(1-0.5/100*'Distances for Transit Losses'!$C$74)) -> 0 | IX14: 0 | IY14: -0.002812216867 | IZ14: 0 | JA14: 0 | JB14: =IF(AND(JG14="no",JH14="no"),MIN(-(IY14-IZ14-JA14)/(1-0.5/100*'Distances for Transit Losses'!$C$111),LE14),0) -> 0 | JC14: =-JB14*0.5/100*'Distances for Transit Losses'!$C$111 -> 0 | JD14: 0.1002270178 | JE14: 0.1308985281 | JF14: no | JG14: no | JH14: no | JI14: 0 | JJ14: 0 | JK14: 0 | JM14: 0 | JN14: 0 | JO14: -0.002812216867 | JP14: =IF(AND(LM14-LN14>0,LH14="no"),MIN(-JO14/(1-0.5/100*'Distances for Transit Losses'!$C$129)+IJ14+IN14+IR14+IV14,LM14-LN14),0) -> 0 | JQ14: =-JP14*0.5/100*'Distances for Transit Losses'!$C$129 -> 0 | JR14: =IF(AND(LQ14+LR14-LS14-MD14>0,LH14="no"),MIN((-JO14-(JP14+JQ14))/(1-0.5/100*'Distances for Transit Losses'!$C$131),LQ14+LR14-LS14-MD14),0) -> 0.003737165272 | JS14: =-JR14*0.5/100*'Distances for Transit Losses'!$C$131 -> -0.0009249484048 | JT14: 0 | JU14: =IF(JT14>0,MIN(-(JO14+JP14+JQ14+JR14+JS14)/(1-0.5/100*'Distances for Transit Losses'!$C$133)+IK14+IO14+IS14+IW14,JT14),0) -> 0 | JV14: =-JU14*0.5/100*'Distances for Transit Losses'!$C$133 -> 0 | JW14: 0 | JY14: 0 | JZ14: ='Joint Aug Station Deliveries'!CN14 -> 0 | KA14: 0.1308985281 | KB14: ='Joint Aug Station Deliveries'!CA14 -> 0 | KC14: =IF(AND(KB14>0,SUM($KB$9:KB14,$KD$9:KD14,$LE$9:LE14)*1.9835<OFFSET('FIDCO Credit'!$X$39,0,MATCH($A14,'FIDCO Credit'!$Y$5:$AJ$5,0))),KB14-IZ14,0) -> 0 | KD14: ='Joint Aug Station Deliveries'!CD14 -> 0 | KE14: =IF(AND(KD14>0,SUM($KB$9:KB14,$KD$9:KD14,$LE$9:LE14)*1.9835<OFFSET('FIDCO Credit'!$X$39,0,MATCH($A14,'FIDCO Credit'!$Y$5:$AJ$5,0))),KD14-JA14,0) -> 0 | KF14: =MAX(0,(NJ14+NK14))/(1-0.5/100*'Distances for Transit Losses'!$C$99) -> 0 | KG14: =MAX(0,(NL14+NM14)/(1-0.5/100*'Distances for Transit Losses'!$C$95)) -> 0.1308985281 | KH14: 0 | KI14: =-KH14*0.5/100*'Distances for Transit Losses'!$C$101 -> 0 | KJ14: 0 | KK14: 0 | KL14: =-KK14*0.5/100*'Distances for Transit Losses'!$C$38 -> 0 | KM14: 0 | KN14: 0 | KO14: 0 | KP14: 0 | KQ14: 0 | KR14: 0 | KS14: 0 | KT14: 0 | KU14: 0 | KV14: 0 | KW14: 0 | KX14: 0 | KY14: =-KX14*0.5/100*'Distances for Transit Losses'!$C$141 -> 0 | KZ14: 0 | LA14: 0 | LB14: 0 | LC14: 0 | LD14: =-(IF(F14<99999.99999,INDEX('Hist RF to SPR'!$B$6:$M$30,MATCH($B$2,'Hist RF to SPR'!$A$6:$A$30,0),MATCH($A14,'Hist RF to SPR'!$B$5:$M$5,0))/AMA14/1.9835,0)) -> -0.0192909467 | LE14: ='Joint Aug Station Deliveries'!CG14 -> 0 | LF14: =IF(AND(LE14>0,SUM($KB$9:KB14,$KD$9:KD14,$LE$9:LE14)*1.9835<OFFSET('FIDCO Credit'!$X$39,0,MATCH($A14,'FIDCO Credit'!$Y$5:$AJ$5,0))),LE14-JB14,0) -> 0 | LG14: 0 | LH14: no | LI14: 0 | LJ14: 0 | LK14: 0 | LL14: -0.0192909467 | LM14: 0 | LN14: =IF(LM14>0,MIN(-LL14/(1-0.5/100*'Distances for Transit Losses'!$C$135),LM14),0) -> 0 | LO14: =-LN14*0.5/100*'Distances for Transit Losses'!$C$135 -> 0 | LP14: 0 | LQ14: 0.44 | LR14: =-LQ14*0.5/100*'Distances for Transit Losses'!$C$86 -> -0.00066 | LS14: =IF((LQ14+LR14)>0,MIN((-LL14-(LN14-LO14)-LP14)/(1-0.5/100*'Distances for Transit Losses'!$C$137),(LQ14+LR14)),0) -> 0.02189664779 | LT14: =-LS14*0.5/100*'Distances for Transit Losses'!$C$137 -> -0.002605701086 | LU14: 0 | LW14: -0.00066 | LX14: 0 | LY14: 0 | LZ14: 0 | MA14: 0 | MB14: 0 | MC14: 0 | MD14: 0 | ME14: =-MD14*0.5/100*'Distances for Transit Losses'!$C$139 -> 0 | MF14: 0 | MG14: 0 | MH14: 0 | MI14: =-(IF(N14<99999.99999,(VLOOKUP(B14,'ECCV Upper Dpln'!$B$7:$BD$306,55))/AMA14/1.9835,0)) -> -4.258586602 | MJ14: =-(IF(N14<99999.99999,INDEX('Hist RF abv Milton'!$B$6:$M$30,MATCH($B$2,'Hist RF abv Milton'!$A$6:$A$30,0),MATCH($A14,'Hist RF abv Milton'!$B$5:$M$5,0))/AMA14/1.9835,0)) -> -0.01407697074 | MK14: 0 | ML14: =(VLOOKUP($B14,'ECCV Beebe Pond Acrtns'!$B$7:$BI$1206,41)+VLOOKUP($B14,'ECCV Canal Acrtns'!$B$7:$AL$1206,22)+VLOOKUP($B14,'2003 Beebe Pond Acrtns'!$B$7:$BI$1206,41)+VLOOKUP($B14,'2003 Canal Acrtns'!$B$7:$AL$1206,22))/$AMA14/1.9835 -> 1.135489872 | MM14: 0 | MN14: 0 | MO14: 0 | MP14: 0 | MQ14: 0.56129737 | MR14: 0 | MS14: 1.135489872 | MT14: 0 | MU14: no | MV14: 0 | MW14: 0 | MX14: 0 | MY14: 0.01407697074 | MZ14: 1.60185911 | NA14: 0 | NB14: 0 | NC14: -1.52123762 | ND14: 0 | NE14: 0 | NF14: =-(NE14*0.5/100*'Distances for Transit Losses'!$C$6) -> 0 | NG14: 0 | NH14: 0 | NI14: 0 | NJ14: =IF(AND(E14<>"Lower Latham",I14<>"Lower Latham"),MAX(0,MIN(-(ND14+NG14),KC14-KC14*0.25/100*'Distances for Transit Losses'!$C$99),0)) -> 0 | NK14: =IF(AND(E14<>"Lower Latham",I14<>"Lower Latham"),MAX(0,MIN(-(NC14+NE14+NF14+NI14),KC14-KC14*0.5/100*'Distances for Transit Losses'!$C$99-NJ14/(1-0.5/100*'Distances for Transit Losses'!$C$99))),0) -> 0 | NL14: =MIN(-(ND14+NJ14),KA14-KA14*0.5/100*'Distances for Transit Losses'!$C$95) -> 0 | NM14: =MAX(0,MIN(-(NC14+NE14+NF14+NK14),KA14*(1-0.5/100*'Distances for Transit Losses'!$C$95)-NL14/(1-0.5/100*'Distances for Transit Losses'!$C$95))) -> 0.1203611966 | NN14: =MIN(NM14/(1-0.5/100*'Distances for Transit Losses'!$C$95),(IA14-JD14)) -> 0.1308985281 | NO14: =MAX(0,IF(AND(JT14-JU14-LP14-GU14>0,GH14="no"),MIN(-(NC14+NE14+NF14+NI14+NK14+NM14+NN14)/(1-0.5/100*'Distances for Transit Losses'!$C$105),JT14-JU14-LP14-GU14),0)) -> 0 | NP14: =-NO14*0.5/100*'Distances for Transit Losses'!$C$105 -> 0 | NQ14: 0.58 | NR14: Lease of South Adams 5k Credits | NS14: -0.8208764229 | NT14: 0 | NU14: 0 | NV14: 0 | NW14: 0 | NX14: =-(IF(N14<99999.99999,INDEX('Hist RF blw Milton'!$B$6:$M$30,MATCH($B$2,'Hist RF blw Milton'!$A$6:$A$30,0),MATCH($A14,'Hist RF blw Milton'!$B$5:$M$5,0))/AMA14/1.9835,0)) -> -0.02248984129 | NY14: no | NZ14: 0 | OA14: 0 | OB14: -0.02248984129 | OC14: 0 | OD14: ='Distances for Transit Losses'!$C$12*0.5/100*OC14 -> 0 | OE14: 0 | OG14: 0 | OH14: 0 | OI14: 0 | OJ14: 0 | OK14: 0 | OL14: =-(IF(N14<99999.99999,INDEX('Hist RF to Box Elder'!$B$6:$M$30,MATCH($B$2,'Hist RF to Box Elder'!$A$6:$A$30,0),MATCH($A14,'Hist RF to Box Elder'!$B$5:$M$5,0))/AMA14/1.9835,0)) -> -0.01346302756 | OM14: =(VLOOKUP($B14,'ECCV Beebe Pond Acrtns'!$B$7:$BI$1206,54)+VLOOKUP($B14,'ECCV Canal Acrtns'!$B$7:$AL$1206,34)+VLOOKUP($B14,'2003 Beebe Pond Acrtns'!$B$7:$BI$1206,54)+VLOOKUP($B14,'2003 Canal Acrtns'!$B$7:$AL$1206,34)+VLOOKUP($B14,'84CW090 Beebe Pond Acrtns'!$B$7:$BI$1206,55)+VLOOKUP($B14,'84CW090 Canal Acrtns'!$B$7:$AL$1206,34))/$AMA14/1.9835 -> 0.09220421947 | ON14: 0.01346302756 | OO14: 0 | OP14: 0 | OQ14: 0 | OS14: -5.623546357 | OT14: 3.451787149 | OU14: 0 | OV14: 0.01346302756 | OW14: 0.0192909467 | OX14: 0.1113599682 | OY14: 0 | OZ14: 0 | PA14: 0.02535763361 | PB14: 0.2355596909 | PC14: 3.856818416 | PD14: -1.766727941 | PE14: 0 | PF14: 0 | PG14: 0 | PO14: 0 | PP14: 0 | PR14: 0 | PS14: 0 | PT14: 0 | PU14: 0 | PV14: 0 | PW14: 0 | PX14: 0 | PY14: 0 | PZ14: 0 | QA14: 0 | QB14: 0 | QC14: 0 | QD14: 0 | QE14: 0 | QF14: 0 | QH14: 0 | QI14: 0 | QJ14: 0 | QK14: 0 | QL14: 0 | QM14: 0 | QN14: 0 | QO14: 0 | QP14: 0 | QQ14: 0 | QR14: 0 | QT14: 0 | QU14: 0 | QV14: 0 | QW14: 0 | QX14: 0 | QY14: 0 | QZ14: 0 | RA14: 0 | RB14: 0 | RC14: 0 | RD14: 0 | RE14: 0 | RF14: 0 | RG14: 0 | RH14: 0 | RI14: 0 | RJ14: 0 | RK14: 0 | RL14: 0 | RM14: 0 | RN14: 0 | RO14: 0 | RQ14: 0 | RR14: 0 | RS14: 0 | RT14: 0 | RU14: 0 | RV14: 0 | RW14: 0 | RX14: 0 | RY14: 0 | RZ14: 0 | SA14: 0 | SB14: 0 | SC14: 0 | SD14: 0 | SE14: 0 | SF14: 0 | SG14: 0 | SH14: 0 | SI14: 0 | SJ14: 0 | SK14: 0 | SL14: 0 | SM14: 0 | SN14: 0 | SO14: 0 | SP14: 0 | SQ14: 0 | SR14: 0 | SS14: 0 | ST14: 0 | SU14: 0 | SV14: 0 | SW14: 0 | SX14: 0 | SY14: 0 | SZ14: 0 | TA14: 0 | TB14: 0 | TC14: 0 | TD14: 0 | TE14: 0 | TF14: 0 | TG14: 0 | TI14: 0 | TJ14: 0 | TK14: 0 | TL14: 0 | TM14: 0 | TN14: 0 | TO14: 0 | TP14: 0 | TQ14: 0 | TR14: 0 | TS14: 0 | TT14: 0 | TU14: 0 | TV14: 0 | TW14: 0 | TX14: 0 | TY14: 0 | TZ14: 0 | UA14: 0 | UB14: 0 | UC14: 0 | UD14: 0 | UE14: 0 | UF14: 0 | UG14: 0 | UH14: 0 | UI14: 0 | UJ14: 0 | UK14: 0 | UL14: 0 | UM14: 0 | UN14: 0 | UO14: 0 | UP14: 0 | UQ14: 0 | UR14: 0 | US14: 0 | UT14: 0 | UU14: 0 | UV14: 0 | UW14: 0 | UX14: 0 | UY14: 0 | UZ14: 0 | VA14: 0 | VB14: 0 | VC14: 0 | VD14: 0 | VE14: 0 | VF14: 0 | VG14: 0 | VH14: 0 | VI14: 0 | VJ14: 0 | VK14: 0 | VL14: 0 | VM14: 0 | VN14: 0 | VO14: 0 | VP14: 0 | VQ14: 0 | VR14: 0 | VS14: 0 | VT14: 0 | VU14: 0 | VV14: 0 | VW14: 0 | VX14: 0 | VY14: 0 | VZ14: 0 | WA14: 0 | WB14: 0 | WC14: 0 | WD14: 0 | WE14: 0 | WF14: 0 | WG14: 0 | WH14: 0 | WI14: 0 | WJ14: 0 | WK14: 0 | WL14: 0 | WM14: 0 | WN14: 0 | WO14: 0 | WP14: 0 | WQ14: 0 | WR14: 0 | WS14: 0 | WT14: 0 | WU14: 0 | WV14: 0 | WW14: 0 | WX14: 0 | WY14: 0 | WZ14: 0 | XA14: 0 | XB14: 0 | XC14: 0 | XD14: 0 | XE14: 0 | XF14: 0 | XG14: 0 | XH14: 0 | XI14: 0 | XJ14: 0 | XK14: 0 | XL14: 0 | XM14: 0 | XN14: 0 | XO14: 0 | XP14: 0 | XQ14: 0 | XR14: 0 | XS14: 0 | XT14: 0 | XU14: 0 | XV14: 0 | XW14: 0 | XX14: 0 | XY14: 0 | XZ14: 0 | YA14: 0 | YB14: 0 | YC14: 0 | YE14: 0 | YF14: 0 | YG14: 0 | YH14: 0 | YI14: 0 | YJ14: 0 | YK14: 0 | YL14: 0 | YM14: 0 | YN14: 0 | YO14: 0 | YP14: 0 | YQ14: 0 | YS14: 0 | YT14: 0 | YU14: 0 | YV14: 0 | YW14: 0 | YX14: 0 | YY14: 0 | YZ14: 0 | ZB14: 0 | ZC14: 0 | ZD14: 0 | ZE14: 0 | ZF14: 0 | ZG14: 0 | ZH14: 0 | ZI14: 0 | ZJ14: 0 | ZK14: 0 | ZL14: 0 | ZM14: 0 | ZN14: 0 | ZO14: 0 | ZP14: 0 | ZQ14: 0 | ZR14: 0 | ZS14: 0 | ZT14: 0 | ZU14: 0 | ZV14: 0 | ZW14: 0 | ZX14: 0 | ZY14: 0 | ZZ14: 0 | AAA14: 0 | AAB14: 0 | AAC14: 0 | AAD14: 0 | AAE14: 0 | AAF14: 0 | AAG14: 0 | AAH14: 0 | AAI14: 0 | AAJ14: 0 | AAK14: 0 | AAL14: 0 | AAM14: 0 | AAN14: 0 | AAO14: 0 | AAP14: 0 | AAQ14: 0 | AAR14: 0 | AAS14: 0 | AAT14: 0 | AAU14: 0 | AAV14: 0 | AAW14: 0 | AAX14: 0 | AAY14: 0 | AAZ14: 0 | ABA14: 0 | ABB14: 0 | ABC14: 0 | ABD14: 0 | ABE14: 0 | ABF14: 0 | ABG14: 0 | ABH14: 0 | ABI14: 0 | ABJ14: 0 | ABK14: 0 | ABL14: 0 | ABM14: 0 | ABN14: 0 | ABO14: 0 | ABP14: 0 | ABQ14: 0 | ABR14: 0 | ABS14: 0 | ABT14: 0 | ABU14: 0 | ABV14: 0 | ABW14: 0 | ABX14: 0 | ABY14: 0 | ABZ14: 0 | ACA14: 0 | ACB14: 0 | ACD14: 0 | ACE14: 0 | ACF14: 0 | ACG14: 0 | ACH14: 0 | ACI14: 0 | ACJ14: 0 | ACL14: 0 | ACM14: 0 | ACN14: 0 | ACO14: 0 | ACP14: 0 | ACQ14: 0 | ACR14: 0 | ACS14: 0 | ACT14: 0 | ACU14: 0 | ACV14: 0 | ACW14: 0 | ACX14: 0 | ACZ14: 0 | ADA14: 0 | ADB14: 0 | ADC14: 0 | ADD14: 0 | ADE14: 0 | ADF14: 0 | ADG14: 0 | ADH14: 0 | ADI14: 0 | ADJ14: 0 | ADK14: 0 | ADL14: 0 | ADM14: 0 | ADN14: 0 | ADO14: 0 | ADP14: 0 | ADQ14: 0 | ADR14: 0 | ADS14: 0 | ADT14: 0 | ADU14: 0 | ADV14: 0 | ADW14: 0 | ADX14: 0 | ADY14: 0 | ADZ14: 0 | AEA14: 0 | AEB14: 0 | AEC14: 0 | AED14: 0 | AEE14: 0 | AEF14: 0 | AEG14: 0 | AEH14: 0 | AEI14: 0 | AEJ14: 0 | AEK14: 0 | AEL14: 0 | AEN14: 0 | AEO14: 0 | AEP14: 0 | AER14: 0 | AES14: 0 | AET14: 0 | AEU14: 0 | AEV14: 0 | AEW14: 0 | AEX14: 0 | AEZ14: 0 | AFA14: 0 | AFB14: 0 | AFC14: 0 | AFD14: 0 | AFE14: 0 | AFF14: 0 | AFG14: 0 | AFH14: 0 | AFI14: 0 | AFJ14: 0 | AFK14: 0 | AFL14: 0 | AFM14: 0 | AFN14: 0 | AFO14: 0 | AFP14: 0 | AFQ14: 0 | AFR14: 0 | AFS14: 0 | AFT14: 0 | AFU14: 0 | AFV14: 0 | AFW14: 0 | AFX14: 0 | AFY14: 0 | AFZ14: 0 | AGA14: 0 | AGB14: 0 | AGC14: 0 | AGD14: 0 | AGE14: 0 | AGF14: 0 | AGG14: 0 | AGH14: 0 | AGI14: 0 | AGJ14: 0 | AGK14: 0 | AGL14: 0 | AGM14: 0 | AGN14: 0 | AGO14: 0 | AGP14: 0 | AGQ14: 0 | AGR14: 0 | AGS14: 0 | AGT14: 0 | AGU14: 0 | AGV14: 0 | AGW14: 0 | AGX14: 0 | AGY14: 0 | AGZ14: 0 | AHA14: 0 | AHB14: 0 | AHC14: 0 | AHD14: 0 | AHE14: 0 | AHF14: 0 | AHG14: 0 | AHH14: 0 | AHI14: 0 | AHJ14: 0 | AHK14: 0 | AHL14: 0 | AHM14: 0 | AHN14: 0 | AHO14: 0 | AHP14: 0 | AHQ14: 0 | AHR14: 0 | AHS14: 0 | AHT14: 0 | AHU14: 0 | AHV14: 0 | AHW14: 0 | AHX14: 0 | AHY14: 0 | AHZ14: 0 | AIA14: 0 | AIB14: 0 | AIC14: 0 | AID14: 0 | AIE14: 0 | AIF14: 0 | AIG14: 0 | AIH14: 0 | AII14: 0 | AIJ14: 0 | AIK14: 0 | AIL14: 0 | AIM14: 0 | AIN14: 0 | AIO14: 0 | AIP14: 0 | AIQ14: 0 | AIR14: 0 | AIS14: 0 | AIT14: 0 | AIU14: 0 | AIV14: 0 | AIW14: 0 | AIX14: 0 | AIY14: 0 | AIZ14: 0 | AJA14: 0 | AJB14: 0 | AJC14: 0 | AJD14: 0 | AJE14: 0 | AJF14: 0 | AJG14: 0 | AJH14: 0 | AJI14: 0 | AJJ14: 0 | AJK14: 0 | AJL14: 0 | AJM14: 0 | AJN14: 0 | AJO14: 0 | AJP14: 0 | AJQ14: 0 | AJR14: 0 | AJS14: 0 | AJT14: 0 | AJU14: 0 | AJV14: 0 | AJW14: 0 | AJX14: 0 | AJY14: 0 | AJZ14: 0 | AKA14: 0 | AKB14: 0 | AKC14: 0 | AKD14: 0 | AKE14: 0 | AKF14: 0 | AKG14: 0 | AKH14: 0 | AKI14: 0 | AKJ14: 0 | AKK14: 0 | AKL14: 0 | AKM14: 0 | AKN14: 0 | AKO14: 0 | AKP14: 0 | AKQ14: 0 | AKR14: 0 | AKS14: 0 | AKT14: 0 | AKU14: 0 | AKV14: 0 | AKW14: 309.6 | AKY14: 0 | AKZ14: 0 | ALA14: 0 | ALB14: 0 | ALC14: 0 | ALD14: 0 | ALE14: 0 | ALF14: 0 | ALG14: 0 | ALH14: 0 | ALI14: 0 | ALJ14: 0 | ALK14: 0 | ALL14: 0 | ALM14: 0 | ALN14: 0 | ALO14: 0 | ALP14: 0 | ALQ14: 0 | ALR14: 0 | ALS14: 0 | ALT14: TRUE | ALU14: TRUE | ALV14: TRUE | ALX14: 0 | ALY14: 0 | AMA14: =VLOOKUP(A14,'Control Sheet'!$G$9:$H$20,2) -> 30
